Workbook

Sheet Guidance
C1: THE CONTENTS OF THE WORKBOOK INCLUDE ESTIMATES
C2: BASED ON SMALL SAMPLE SIZES WHICH MAY BE UNRELIABLE
C3: THEY ARE PROVIDED ON A CAVEAT EMPTOR BASIS
G5: Users should follow the guidelines set out in general terms below
G6: and in more detail in the Working Futures technical documentation available on line at:
G7: https://www.gov.uk/government/publications/uk-labour-market-projections-2014-to-2024
G9: If in doubt about what to do please contact:
G11: UKCES: email: working.futures@ukces.org.uk
G12: All other enquiries: Rob Wilson, IER, University of Warwick, email: r.a.wilson@warwick.ac.uk, tel: 024 7652 3530
G14: Copyright: Warwick Institute for Employment Research / Cambridge Econometrics, 2015
G17: REPORTING
G18: The projections presented in this Workbook are calculated from a number of different data sources, using
G19: a variety of econometric and statistical techniques. As a result, precise margins of error cannot be assigned
G20: to the estimates. For further details, see the Working Futures Technical Report.
G22: However, as a general rule of thumb, it is not advisable to use any statistics or analyses in published reports etc which are not
G23: based on data for at least 10,000 individuals. This should provide a reasonable degree of statistical robustness to
G24: the estimates whether historic or forecast.
G26: For unpublished analyses, a more lenient criterion can be used. However, the uncertainties associated with
G27: projections involving fewer than 1,000 individuals are probably too great to make such estimates useful.
G28: However, there is inevitably some degree of judgement required on the part of the researcher.
G30: For cases in between 1,000 and 10,000 individuals, it is difficult to prescribe general rules, and an element of
G31: judgement by on behalf of the user is needed.
G33: Thus, in summary, CE/IER advise:
G35: PUBLISHED ANALYSIS: Ideally, a minimum of 10,000 individuals per cell
G36: UNPUBLISHED ANALYSIS: A minimum of 1,000 individuals per cell

Sheet Info
A1: South East
A2: c152 | B2: <-MDM forecast identifier
A3: Occupational forecast: Saturday, 23 January 2016 at 03:23

Sheet Figure 6.x.1.1
S1: ="Total Employment (FT+PT+SE)"&CHAR(13)&S2 -> Total Employment (FT+PT+SE) Agriculture, etc
S2: =Males!A35 -> Agriculture, etc | T2: =All!D7 -> 1992 | U2: =All!E7 -> 1993 | V2: =All!F7 -> 1994 | W2: =All!G7 -> 1995 | X2: =All!H7 -> 1996 | Y2: =All!I7 -> 1997 | Z2: =All!J7 -> 1998 | AA2: =All!K7 -> 1999 | AB2: =All!L7 -> 2000 | AC2: =All!M7 -> 2001 | AD2: =All!N7 -> 2002 | AE2: =All!O7 -> 2003 | AF2: =All!P7 -> 2004 | AG2: =All!Q7 -> 2005 | AH2: =All!R7 -> 2006 | AI2: =All!S7 -> 2007 | AJ2: =All!T7 -> 2008 | AK2: =All!U7 -> 2009 | AL2: =All!V7 -> 2010 | AM2: =All!W7 -> 2011 | AN2: =All!X7 -> 2012 | AO2: =All!Y7 -> 2013 | AP2: =All!Z7 -> 2014 | AQ2: =All!AA7 -> 2015 | AR2: =All!AB7 -> 2016 | AS2: =All!AC7 -> 2017 | AT2: =All!AD7 -> 2018 | AU2: =All!AE7 -> 2019 | AV2: =All!AF7 -> 2020 | AW2: =All!AG7 -> 2021 | AX2: =All!AH7 -> 2022 | AY2: =All!AI7 -> 2023 | AZ2: =All!AJ7 -> 2024
S3: Women | T3: =Females!D36/1000 -> 20.201 | U3: =Females!E36/1000 -> 19.455 | V3: =Females!F36/1000 -> 15.437 | W3: =Females!G36/1000 -> 11.411 | X3: =Females!H36/1000 -> 10.099 | Y3: =Females!I36/1000 -> 15.031 | Z3: =Females!J36/1000 -> 19.33 | AA3: =Females!K36/1000 -> 16.39 | AB3: =Females!L36/1000 -> 20.963 | AC3: =Females!M36/1000 -> 24.086 | AD3: =Females!N36/1000 -> 18.381 | AE3: =Females!O36/1000 -> 15.384 | AF3: =Females!P36/1000 -> 17.612 | AG3: =Females!Q36/1000 -> 21.132 | AH3: =Females!R36/1000 -> 14.836 | AI3: =Females!S36/1000 -> 13.073 | AJ3: =Females!T36/1000 -> 19.009 | AK3: =Females!U36/1000 -> 9.236 | AL3: =Females!V36/1000 -> 9.113 | AM3: =Females!W36/1000 -> 13.518 | AN3: =Females!X36/1000 -> 14.019 | AO3: =Females!Y36/1000 -> 9.928 | AP3: =Females!Z36/1000 -> 17.057 | AQ3: =Females!AA36/1000 -> 15.435 | AR3: =Females!AB36/1000 -> 15.413 | AS3: =Females!AC36/1000 -> 15.498 | AT3: =Females!AD36/1000 -> 15.523 | AU3: =Females!AE36/1000 -> 15.554 | AV3: =Females!AF36/1000 -> 15.622 | AW3: =Females!AG36/1000 -> 15.664 | AX3: =Females!AH36/1000 -> 15.759 | AY3: =Females!AI36/1000 -> 15.832 | AZ3: =Females!AJ36/1000 -> 15.913
S4: Men | T4: =Males!D36/1000 -> 37.984 | U4: =Males!E36/1000 -> 34.656 | V4: =Males!F36/1000 -> 36.962 | W4: =Males!G36/1000 -> 36.163 | X4: =Males!H36/1000 -> 36.26 | Y4: =Males!I36/1000 -> 44.951 | Z4: =Males!J36/1000 -> 34.103 | AA4: =Males!K36/1000 -> 33.087 | AB4: =Males!L36/1000 -> 39.226 | AC4: =Males!M36/1000 -> 37.982 | AD4: =Males!N36/1000 -> 36.681 | AE4: =Males!O36/1000 -> 27.101 | AF4: =Males!P36/1000 -> 34.994 | AG4: =Males!Q36/1000 -> 34.337 | AH4: =Males!R36/1000 -> 29.924 | AI4: =Males!S36/1000 -> 27.273 | AJ4: =Males!T36/1000 -> 26.032 | AK4: =Males!U36/1000 -> 36.801 | AL4: =Males!V36/1000 -> 26.07 | AM4: =Males!W36/1000 -> 26.804 | AN4: =Males!X36/1000 -> 33.271 | AO4: =Males!Y36/1000 -> 22.99 | AP4: =Males!Z36/1000 -> 40.954 | AQ4: =Males!AA36/1000 -> 36.939 | AR4: =Males!AB36/1000 -> 36.037 | AS4: =Males!AC36/1000 -> 35.385 | AT4: =Males!AD36/1000 -> 34.558 | AU4: =Males!AE36/1000 -> 33.741 | AV4: =Males!AF36/1000 -> 33.008 | AW4: =Males!AG36/1000 -> 32.206 | AX4: =Males!AH36/1000 -> 31.515 | AY4: =Males!AI36/1000 -> 30.768 | AZ4: =Males!AJ36/1000 -> 30.033
T6: 1992 | U6: 1993 | V6: 1994 | W6: 1995 | X6: 1996 | Y6: 1997 | Z6: 1998 | AA6: 1999 | AB6: 2000 | AC6: 2001 | AD6: 2002 | AE6: 2003 | AF6: 2004 | AG6: 2005 | AH6: 2006 | AI6: 2007 | AJ6: 2008 | AK6: 2009 | AL6: 2010 | AM6: 2011 | AN6: 2012 | AO6: 2013 | AP6: 2014 | AQ6: 2015 | AR6: 2016 | AS6: 2017 | AT6: 2018 | AU6: 2019 | AV6: 2020 | AW6: 2021 | AX6: 2022 | AY6: 2023 | AZ6: 2024
S29: ="Total Employment (FT+PT+SE)"&CHAR(13)&S30 -> Total Employment (FT+PT+SE) Coal, oil & gas; Mining & related
S30: =Males!A63 -> Coal, oil & gas; Mining & related | T30: =T$2 -> 1992 | U30: =U$2 -> 1993 | V30: 1994 | W30: 1995 | X30: 1996 | Y30: 1997 | Z30: 1998 | AA30: 1999 | AB30: 2000 | AC30: 2001 | AD30: 2002 | AE30: 2003 | AF30: 2004 | AG30: 2005 | AH30: 2006 | AI30: 2007 | AJ30: 2008 | AK30: 2009 | AL30: 2010 | AM30: 2011 | AN30: 2012 | AO30: 2013 | AP30: 2014 | AQ30: 2015 | AR30: 2016 | AS30: 2017 | AT30: 2018 | AU30: 2019 | AV30: 2020 | AW30: 2021 | AX30: 2022 | AY30: 2023 | AZ30: 2024
S31: Women | T31: =Females!D64/1000 -> 0.01 | U31: =Females!E64/1000 -> 0.112 | V31: =Females!F64/1000 -> 0.127 | W31: =Females!G64/1000 -> 0.102 | X31: =Females!H64/1000 -> 0.17 | Y31: =Females!I64/1000 -> 0.226 | Z31: =Females!J64/1000 -> 0.201 | AA31: =Females!K64/1000 -> 1.424 | AB31: =Females!L64/1000 -> 1.314 | AC31: =Females!M64/1000 -> 1.179 | AD31: =Females!N64/1000 -> 1.379 | AE31: =Females!O64/1000 -> 1.298 | AF31: =Females!P64/1000 -> 1.705 | AG31: =Females!Q64/1000 -> 1.17 | AH31: =Females!R64/1000 -> 1.045 | AI31: =Females!S64/1000 -> 1.032 | AJ31: =Females!T64/1000 -> 1.4 | AK31: =Females!U64/1000 -> 1.52 | AL31: =Females!V64/1000 -> 0.002 | AM31: =Females!W64/1000 -> 1.07 | AN31: =Females!X64/1000 -> 0.989 | AO31: =Females!Y64/1000 -> 2.782 | AP31: =Females!Z64/1000 -> 1.158 | AQ31: =Females!AA64/1000 -> 1.612 | AR31: =Females!AB64/1000 -> 1.623 | AS31: =Females!AC64/1000 -> 1.616 | AT31: =Females!AD64/1000 -> 1.641 | AU31: =Females!AE64/1000 -> 1.546 | AV31: =Females!AF64/1000 -> 1.458 | AW31: =Females!AG64/1000 -> 1.377 | AX31: =Females!AH64/1000 -> 1.302 | AY31: =Females!AI64/1000 -> 1.232 | AZ31: =Females!AJ64/1000 -> 1.167
S32: Men | T32: =Males!D64/1000 -> 5.033 | U32: =Males!E64/1000 -> 4.039 | V32: =Males!F64/1000 -> 4.086 | W32: =Males!G64/1000 -> 3.041 | X32: =Males!H64/1000 -> 4.033 | Y32: =Males!I64/1000 -> 3.978 | Z32: =Males!J64/1000 -> 3.142 | AA32: =Males!K64/1000 -> 4.091 | AB32: =Males!L64/1000 -> 4.058 | AC32: =Males!M64/1000 -> 5.761 | AD32: =Males!N64/1000 -> 4.024 | AE32: =Males!O64/1000 -> 2.984 | AF32: =Males!P64/1000 -> 2.955 | AG32: =Males!Q64/1000 -> 3.078 | AH32: =Males!R64/1000 -> 3.027 | AI32: =Males!S64/1000 -> 3.039 | AJ32: =Males!T64/1000 -> 3.988 | AK32: =Males!U64/1000 -> 3.997 | AL32: =Males!V64/1000 -> 3.031 | AM32: =Males!W64/1000 -> 3.027 | AN32: =Males!X64/1000 -> 5.91 | AO32: =Males!Y64/1000 -> 4.876 | AP32: =Males!Z64/1000 -> 3.806 | AQ32: =Males!AA64/1000 -> 5.153 | AR32: =Males!AB64/1000 -> 5.163 | AS32: =Males!AC64/1000 -> 5.098 | AT32: =Males!AD64/1000 -> 5.166 | AU32: =Males!AE64/1000 -> 4.936 | AV32: =Males!AF64/1000 -> 4.724 | AW32: =Males!AG64/1000 -> 4.524 | AX32: =Males!AH64/1000 -> 4.338 | AY32: =Males!AI64/1000 -> 4.163 | AZ32: =Males!AJ64/1000 -> 3.999
S51: ="Total Employment (FT+PT+SE)"&CHAR(13)&S52 -> Total Employment (FT+PT+SE) Food products
S52: =Males!A91 -> Food products | T52: =T$2 -> 1992 | U52: =U$2 -> 1993 | V52: 1994 | W52: 1995 | X52: 1996 | Y52: 1997 | Z52: 1998 | AA52: 1999 | AB52: 2000 | AC52: 2001 | AD52: 2002 | AE52: 2003 | AF52: 2004 | AG52: 2005 | AH52: 2006 | AI52: 2007 | AJ52: 2008 | AK52: 2009 | AL52: 2010 | AM52: 2011 | AN52: 2012 | AO52: 2013 | AP52: 2014 | AQ52: 2015 | AR52: 2016 | AS52: 2017 | AT52: 2018 | AU52: 2019 | AV52: 2020 | AW52: 2021 | AX52: 2022 | AY52: 2023 | AZ52: 2024
S53: Women | T53: =Females!D92/1000 -> 21.871 | U53: =Females!E92/1000 -> 20.357 | V53: =Females!F92/1000 -> 19.017 | W53: =Females!G92/1000 -> 18.404 | X53: =Females!H92/1000 -> 12.391 | Y53: =Females!I92/1000 -> 12.854 | Z53: =Females!J92/1000 -> 14.166 | AA53: =Females!K92/1000 -> 11.864 | AB53: =Females!L92/1000 -> 13.312 | AC53: =Females!M92/1000 -> 10.472 | AD53: =Females!N92/1000 -> 10.272 | AE53: =Females!O92/1000 -> 11.179 | AF53: =Females!P92/1000 -> 8.482 | AG53: =Females!Q92/1000 -> 8.406 | AH53: =Females!R92/1000 -> 8.623 | AI53: =Females!S92/1000 -> 8.266 | AJ53: =Females!T92/1000 -> 8.547 | AK53: =Females!U92/1000 -> 10.542 | AL53: =Females!V92/1000 -> 9.057 | AM53: =Females!W92/1000 -> 11.847 | AN53: =Females!X92/1000 -> 9.382 | AO53: =Females!Y92/1000 -> 6.879 | AP53: =Females!Z92/1000 -> 7.808 | AQ53: =Females!AA92/1000 -> 8.295 | AR53: =Females!AB92/1000 -> 8.362 | AS53: =Females!AC92/1000 -> 8.322 | AT53: =Females!AD92/1000 -> 8.264 | AU53: =Females!AE92/1000 -> 8.21 | AV53: =Females!AF92/1000 -> 8.161 | AW53: =Females!AG92/1000 -> 8.099 | AX53: =Females!AH92/1000 -> 8.036 | AY53: =Females!AI92/1000 -> 7.967 | AZ53: =Females!AJ92/1000 -> 7.889
S54: Men | T54: =Males!D92/1000 -> 22.008 | U54: =Males!E92/1000 -> 21.051 | V54: =Males!F92/1000 -> 20.045 | W54: =Males!G92/1000 -> 20.027 | X54: =Males!H92/1000 -> 17.432 | Y54: =Males!I92/1000 -> 16.442 | Z54: =Males!J92/1000 -> 19.495 | AA54: =Males!K92/1000 -> 21.242 | AB54: =Males!L92/1000 -> 18.158 | AC54: =Males!M92/1000 -> 19.179 | AD54: =Males!N92/1000 -> 18.441 | AE54: =Males!O92/1000 -> 16.426 | AF54: =Males!P92/1000 -> 18.478 | AG54: =Males!Q92/1000 -> 15.95 | AH54: =Males!R92/1000 -> 15.133 | AI54: =Males!S92/1000 -> 14.554 | AJ54: =Males!T92/1000 -> 13.709 | AK54: =Males!U92/1000 -> 15.442 | AL54: =Males!V92/1000 -> 14.246 | AM54: =Males!W92/1000 -> 17.495 | AN54: =Males!X92/1000 -> 14.249 | AO54: =Males!Y92/1000 -> 13.51 | AP54: =Males!Z92/1000 -> 13.309 | AQ54: =Males!AA92/1000 -> 14.161 | AR54: =Males!AB92/1000 -> 14.229 | AS54: =Males!AC92/1000 -> 14.125 | AT54: =Males!AD92/1000 -> 13.993 | AU54: =Males!AE92/1000 -> 13.869 | AV54: =Males!AF92/1000 -> 13.755 | AW54: =Males!AG92/1000 -> 13.622 | AX54: =Males!AH92/1000 -> 13.484 | AY54: =Males!AI92/1000 -> 13.335 | AZ54: =Males!AJ92/1000 -> 13.174
S79: ="Total Employment (FT+PT+SE)"&CHAR(13)&S80 -> Total Employment (FT+PT+SE) Beverages & tobacco
S80: =Males!A119 -> Beverages & tobacco | T80: =T$2 -> 1992 | U80: =U$2 -> 1993 | V80: 1994 | W80: 1995 | X80: 1996 | Y80: 1997 | Z80: 1998 | AA80: 1999 | AB80: 2000 | AC80: 2001 | AD80: 2002 | AE80: 2003 | AF80: 2004 | AG80: 2005 | AH80: 2006 | AI80: 2007 | AJ80: 2008 | AK80: 2009 | AL80: 2010 | AM80: 2011 | AN80: 2012 | AO80: 2013 | AP80: 2014 | AQ80: 2015 | AR80: 2016 | AS80: 2017 | AT80: 2018 | AU80: 2019 | AV80: 2020 | AW80: 2021 | AX80: 2022 | AY80: 2023 | AZ80: 2024
S81: Women | T81: =Females!D120/1000 -> 2.934 | U81: =Females!E120/1000 -> 2.684 | V81: =Females!F120/1000 -> 2.491 | W81: =Females!G120/1000 -> 2.39 | X81: =Females!H120/1000 -> 1.482 | Y81: =Females!I120/1000 -> 1.59 | Z81: =Females!J120/1000 -> 1.655 | AA81: =Females!K120/1000 -> 1.322 | AB81: =Females!L120/1000 -> 1.499 | AC81: =Females!M120/1000 -> 1.2 | AD81: =Females!N120/1000 -> 1.072 | AE81: =Females!O120/1000 -> 1.012 | AF81: =Females!P120/1000 -> 0.887 | AG81: =Females!Q120/1000 -> 0.984 | AH81: =Females!R120/1000 -> 1.159 | AI81: =Females!S120/1000 -> 1.08 | AJ81: =Females!T120/1000 -> 0.567 | AK81: =Females!U120/1000 -> 0.582 | AL81: =Females!V120/1000 -> 0.568 | AM81: =Females!W120/1000 -> 0.522 | AN81: =Females!X120/1000 -> 1.288 | AO81: =Females!Y120/1000 -> 0.641 | AP81: =Females!Z120/1000 -> 0.708 | AQ81: =Females!AA120/1000 -> 0.75 | AR81: =Females!AB120/1000 -> 0.758 | AS81: =Females!AC120/1000 -> 0.756 | AT81: =Females!AD120/1000 -> 0.751 | AU81: =Females!AE120/1000 -> 0.748 | AV81: =Females!AF120/1000 -> 0.745 | AW81: =Females!AG120/1000 -> 0.74 | AX81: =Females!AH120/1000 -> 0.735 | AY81: =Females!AI120/1000 -> 0.729 | AZ81: =Females!AJ120/1000 -> 0.723
S82: Men | T82: =Males!D120/1000 -> 4.01 | U82: =Males!E120/1000 -> 3.84 | V82: =Males!F120/1000 -> 3.678 | W82: =Males!G120/1000 -> 3.66 | X82: =Males!H120/1000 -> 3.136 | Y82: =Males!I120/1000 -> 2.935 | Z82: =Males!J120/1000 -> 3.513 | AA82: =Males!K120/1000 -> 3.933 | AB82: =Males!L120/1000 -> 3.441 | AC82: =Males!M120/1000 -> 3.566 | AD82: =Males!N120/1000 -> 3.104 | AE82: =Males!O120/1000 -> 2.676 | AF82: =Males!P120/1000 -> 3.068 | AG82: =Males!Q120/1000 -> 3.197 | AH82: =Males!R120/1000 -> 3.673 | AI82: =Males!S120/1000 -> 2.688 | AJ82: =Males!T120/1000 -> 1.82 | AK82: =Males!U120/1000 -> 1.549 | AL82: =Males!V120/1000 -> 1.243 | AM82: =Males!W120/1000 -> 1.114 | AN82: =Males!X120/1000 -> 1.709 | AO82: =Males!Y120/1000 -> 1.264 | AP82: =Males!Z120/1000 -> 1.23 | AQ82: =Males!AA120/1000 -> 1.308 | AR82: =Males!AB120/1000 -> 1.316 | AS82: =Males!AC120/1000 -> 1.308 | AT82: =Males!AD120/1000 -> 1.298 | AU82: =Males!AE120/1000 -> 1.287 | AV82: =Males!AF120/1000 -> 1.278 | AW82: =Males!AG120/1000 -> 1.268 | AX82: =Males!AH120/1000 -> 1.256 | AY82: =Males!AI120/1000 -> 1.245 | AZ82: =Males!AJ120/1000 -> 1.23
S101: ="Total Employment (FT+PT+SE)"&CHAR(13)&S102 -> Total Employment (FT+PT+SE) Textiles
S102: =Males!A147 -> Textiles | T102: =T$2 -> 1992 | U102: =U$2 -> 1993 | V102: 1994 | W102: 1995 | X102: 1996 | Y102: 1997 | Z102: 1998 | AA102: 1999 | AB102: 2000 | AC102: 2001 | AD102: 2002 | AE102: 2003 | AF102: 2004 | AG102: 2005 | AH102: 2006 | AI102: 2007 | AJ102: 2008 | AK102: 2009 | AL102: 2010 | AM102: 2011 | AN102: 2012 | AO102: 2013 | AP102: 2014 | AQ102: 2015 | AR102: 2016 | AS102: 2017 | AT102: 2018 | AU102: 2019 | AV102: 2020 | AW102: 2021 | AX102: 2022 | AY102: 2023 | AZ102: 2024
S103: Women | T103: =Females!D148/1000 -> 3.629 | U103: =Females!E148/1000 -> 3.576 | V103: =Females!F148/1000 -> 3.603 | W103: =Females!G148/1000 -> 3.556 | X103: =Females!H148/1000 -> 2.724 | Y103: =Females!I148/1000 -> 3.041 | Z103: =Females!J148/1000 -> 3.425 | AA103: =Females!K148/1000 -> 3.044 | AB103: =Females!L148/1000 -> 2.272 | AC103: =Females!M148/1000 -> 2.277 | AD103: =Females!N148/1000 -> 2.878 | AE103: =Females!O148/1000 -> 2.418 | AF103: =Females!P148/1000 -> 1.976 | AG103: =Females!Q148/1000 -> 2.507 | AH103: =Females!R148/1000 -> 1.497 | AI103: =Females!S148/1000 -> 1.668 | AJ103: =Females!T148/1000 -> 2.052 | AK103: =Females!U148/1000 -> 2.834 | AL103: =Females!V148/1000 -> 1.393 | AM103: =Females!W148/1000 -> 1.381 | AN103: =Females!X148/1000 -> 0.895 | AO103: =Females!Y148/1000 -> 1.843 | AP103: =Females!Z148/1000 -> 3.174 | AQ103: =Females!AA148/1000 -> 3.291 | AR103: =Females!AB148/1000 -> 3.326 | AS103: =Females!AC148/1000 -> 3.268 | AT103: =Females!AD148/1000 -> 3.151 | AU103: =Females!AE148/1000 -> 3.035 | AV103: =Females!AF148/1000 -> 2.912 | AW103: =Females!AG148/1000 -> 2.794 | AX103: =Females!AH148/1000 -> 2.684 | AY103: =Females!AI148/1000 -> 2.579 | AZ103: =Females!AJ148/1000 -> 2.477
S104: Men | T104: =Males!D148/1000 -> 0.883 | U104: =Males!E148/1000 -> 0.946 | V104: =Males!F148/1000 -> 1.098 | W104: =Males!G148/1000 -> 1.286 | X104: =Males!H148/1000 -> 1.417 | Y104: =Males!I148/1000 -> 1.466 | Z104: =Males!J148/1000 -> 2.15 | AA104: =Males!K148/1000 -> 3.554 | AB104: =Males!L148/1000 -> 2.807 | AC104: =Males!M148/1000 -> 2.691 | AD104: =Males!N148/1000 -> 2.491 | AE104: =Males!O148/1000 -> 2.139 | AF104: =Males!P148/1000 -> 2.166 | AG104: =Males!Q148/1000 -> 1.665 | AH104: =Males!R148/1000 -> 2.075 | AI104: =Males!S148/1000 -> 2.142 | AJ104: =Males!T148/1000 -> 2.637 | AK104: =Males!U148/1000 -> 2.132 | AL104: =Males!V148/1000 -> 1.501 | AM104: =Males!W148/1000 -> 1.382 | AN104: =Males!X148/1000 -> 1.008 | AO104: =Males!Y148/1000 -> 2.21 | AP104: =Males!Z148/1000 -> 2.04 | AQ104: =Males!AA148/1000 -> 2.119 | AR104: =Males!AB148/1000 -> 2.157 | AS104: =Males!AC148/1000 -> 2.134 | AT104: =Males!AD148/1000 -> 2.081 | AU104: =Males!AE148/1000 -> 2.03 | AV104: =Males!AF148/1000 -> 1.977 | AW104: =Males!AG148/1000 -> 1.926 | AX104: =Males!AH148/1000 -> 1.877 | AY104: =Males!AI148/1000 -> 1.825 | AZ104: =Males!AJ148/1000 -> 1.773
... 29 more rows

Sheet Figure 6.x.1.2
O1: ="Total Employment by Status"&CHAR(13)&O2 -> Total Employment by Status Agriculture, etc
O2: =FT!A35 -> Agriculture, etc | P2: =All!D7 -> 1992 | Q2: =All!E7 -> 1993 | R2: =All!F7 -> 1994 | S2: =All!G7 -> 1995 | T2: =All!H7 -> 1996 | U2: =All!I7 -> 1997 | V2: =All!J7 -> 1998 | W2: =All!K7 -> 1999 | X2: =All!L7 -> 2000 | Y2: =All!M7 -> 2001 | Z2: =All!N7 -> 2002 | AA2: =All!O7 -> 2003 | AB2: =All!P7 -> 2004 | AC2: =All!Q7 -> 2005 | AD2: =All!R7 -> 2006 | AE2: =All!S7 -> 2007 | AF2: =All!T7 -> 2008 | AG2: =All!U7 -> 2009 | AH2: =All!V7 -> 2010 | AI2: =All!W7 -> 2011 | AJ2: =All!X7 -> 2012 | AK2: =All!Y7 -> 2013 | AL2: =All!Z7 -> 2014 | AM2: =All!AA7 -> 2015 | AN2: =All!AB7 -> 2016 | AO2: =All!AC7 -> 2017 | AP2: =All!AD7 -> 2018 | AQ2: =All!AE7 -> 2019 | AR2: =All!AF7 -> 2020 | AS2: =All!AG7 -> 2021 | AT2: =All!AH7 -> 2022 | AU2: =All!AI7 -> 2023 | AV2: =All!AJ7 -> 2024
O3: FT | P3: =FT!D36/1000 -> 35.172 | Q3: =FT!E36/1000 -> 34.988 | R3: =FT!F36/1000 -> 29.23 | S3: =FT!G36/1000 -> 24.032 | T3: =FT!H36/1000 -> 24.433 | U3: =FT!I36/1000 -> 30.853 | V3: =FT!J36/1000 -> 33.52 | W3: =FT!K36/1000 -> 29.284 | X3: =FT!L36/1000 -> 36.315 | Y3: =FT!M36/1000 -> 33.188 | Z3: =FT!N36/1000 -> 32.018 | AA3: =FT!O36/1000 -> 26.036 | AB3: =FT!P36/1000 -> 32.634 | AC3: =FT!Q36/1000 -> 28.048 | AD3: =FT!R36/1000 -> 26.849 | AE3: =FT!S36/1000 -> 25.166 | AF3: =FT!T36/1000 -> 26.988 | AG3: =FT!U36/1000 -> 28.839 | AH3: =FT!V36/1000 -> 21.986 | AI3: =FT!W36/1000 -> 21.309 | AJ3: =FT!X36/1000 -> 21.33 | AK3: =FT!Y36/1000 -> 21.927 | AL3: =FT!Z36/1000 -> 24.072 | AM3: =FT!AA36/1000 -> 21.743 | AN3: =FT!AB36/1000 -> 21.271 | AO3: =FT!AC36/1000 -> 20.943 | AP3: =FT!AD36/1000 -> 20.533 | AQ3: =FT!AE36/1000 -> 20.135 | AR3: =FT!AF36/1000 -> 19.785 | AS3: =FT!AG36/1000 -> 19.407 | AT3: =FT!AH36/1000 -> 19.092 | AU3: =FT!AI36/1000 -> 18.753 | AV3: =FT!AJ36/1000 -> 18.426
O4: PT | P4: =PT!D36/1000 -> 8.933 | Q4: =PT!E36/1000 -> 8.848 | R4: =PT!F36/1000 -> 10.22 | S4: =PT!G36/1000 -> 10.976 | T4: =PT!H36/1000 -> 10.918 | U4: =PT!I36/1000 -> 11.98 | V4: =PT!J36/1000 -> 8.911 | W4: =PT!K36/1000 -> 9.063 | X4: =PT!L36/1000 -> 12.994 | Y4: =PT!M36/1000 -> 17.63 | Z4: =PT!N36/1000 -> 14.102 | AA4: =PT!O36/1000 -> 9.257 | AB4: =PT!P36/1000 -> 11.982 | AC4: =PT!Q36/1000 -> 12.279 | AD4: =PT!R36/1000 -> 6.109 | AE4: =PT!S36/1000 -> 6.273 | AF4: =PT!T36/1000 -> 5.049 | AG4: =PT!U36/1000 -> 5.167 | AH4: =PT!V36/1000 -> 5.216 | AI4: =PT!W36/1000 -> 5.087 | AJ4: =PT!X36/1000 -> 8.996 | AK4: =PT!Y36/1000 -> 3.062 | AL4: =PT!Z36/1000 -> 9.878 | AM4: =PT!AA36/1000 -> 8.941 | AN4: =PT!AB36/1000 -> 9.02 | AO4: =PT!AC36/1000 -> 9.164 | AP4: =PT!AD36/1000 -> 9.265 | AQ4: =PT!AE36/1000 -> 9.367 | AR4: =PT!AF36/1000 -> 9.492 | AS4: =PT!AG36/1000 -> 9.595 | AT4: =PT!AH36/1000 -> 9.733 | AU4: =PT!AI36/1000 -> 9.853 | AV4: =PT!AJ36/1000 -> 9.976
O5: SE | P5: =SE!D36/1000 -> 14.08 | Q5: =SE!E36/1000 -> 10.275 | R5: =SE!F36/1000 -> 12.949 | S5: =SE!G36/1000 -> 12.566 | T5: =SE!H36/1000 -> 11.008 | U5: =SE!I36/1000 -> 17.149 | V5: =SE!J36/1000 -> 11.002 | W5: =SE!K36/1000 -> 11.13 | X5: =SE!L36/1000 -> 10.88 | Y5: =SE!M36/1000 -> 11.25 | Z5: =SE!N36/1000 -> 8.942 | AA5: =SE!O36/1000 -> 7.192 | AB5: =SE!P36/1000 -> 7.99 | AC5: =SE!Q36/1000 -> 15.142 | AD5: =SE!R36/1000 -> 11.802 | AE5: =SE!S36/1000 -> 8.907 | AF5: =SE!T36/1000 -> 13.004 | AG5: =SE!U36/1000 -> 12.031 | AH5: =SE!V36/1000 -> 7.981 | AI5: =SE!W36/1000 -> 13.926 | AJ5: =SE!X36/1000 -> 16.964 | AK5: =SE!Y36/1000 -> 7.929 | AL5: =SE!Z36/1000 -> 24.061 | AM5: =SE!AA36/1000 -> 21.69 | AN5: =SE!AB36/1000 -> 21.159 | AO5: =SE!AC36/1000 -> 20.776 | AP5: =SE!AD36/1000 -> 20.283 | AQ5: =SE!AE36/1000 -> 19.793 | AR5: =SE!AF36/1000 -> 19.353 | AS5: =SE!AG36/1000 -> 18.868 | AT5: =SE!AH36/1000 -> 18.449 | AU5: =SE!AI36/1000 -> 17.994 | AV5: =SE!AJ36/1000 -> 17.544
O29: ="Total Employment by Status"&CHAR(13)&O30 -> Total Employment by Status Coal, oil & gas; Mining & related
O30: =FT!A63 -> Coal, oil & gas; Mining & related | P30: =P2 -> 1992 | Q30: 1993 | R30: 1994 | S30: 1995 | T30: 1996 | U30: 1997 | V30: 1998 | W30: 1999 | X30: 2000 | Y30: 2001 | Z30: 2002 | AA30: 2003 | AB30: 2004 | AC30: 2005 | AD30: 2006 | AE30: 2007 | AF30: 2008 | AG30: 2009 | AH30: 2010 | AI30: 2011 | AJ30: 2012 | AK30: 2013 | AL30: 2014 | AM30: 2015 | AN30: 2016 | AO30: 2017 | AP30: 2018 | AQ30: 2019 | AR30: 2020 | AS30: 2021 | AT30: 2022 | AU30: 2023 | AV30: 2024
O31: FT | P31: =FT!D64/1000 -> 5.034 | Q31: =FT!E64/1000 -> 3.928 | R31: =FT!F64/1000 -> 3.976 | S31: =FT!G64/1000 -> 2.93 | T31: =FT!H64/1000 -> 3.923 | U31: =FT!I64/1000 -> 3.869 | V31: =FT!J64/1000 -> 3.03 | W31: =FT!K64/1000 -> 5.278 | X31: =FT!L64/1000 -> 4.079 | Y31: =FT!M64/1000 -> 4.976 | Z31: =FT!N64/1000 -> 5.05 | AA31: =FT!O64/1000 -> 3.906 | AB31: =FT!P64/1000 -> 4.299 | AC31: =FT!Q64/1000 -> 3.906 | AD31: =FT!R64/1000 -> 3.961 | AE31: =FT!S64/1000 -> 3.957 | AF31: =FT!T64/1000 -> 4.033 | AG31: =FT!U64/1000 -> 5.304 | AH31: =FT!V64/1000 -> 2.033 | AI31: =FT!W64/1000 -> 3.987 | AJ31: =FT!X64/1000 -> 4.903 | AK31: =FT!Y64/1000 -> 5.108 | AL31: =FT!Z64/1000 -> 4.198 | AM31: =FT!AA64/1000 -> 5.822 | AN31: =FT!AB64/1000 -> 5.832 | AO31: =FT!AC64/1000 -> 5.756 | AP31: =FT!AD64/1000 -> 5.832 | AQ31: =FT!AE64/1000 -> 5.539 | AR31: =FT!AF64/1000 -> 5.266 | AS31: =FT!AG64/1000 -> 5.012 | AT31: =FT!AH64/1000 -> 4.778 | AU31: =FT!AI64/1000 -> 4.557 | AV31: =FT!AJ64/1000 -> 4.35
O32: PT | P32: =PT!D64/1000 -> 0 | Q32: =PT!E64/1000 -> 0.214 | R32: =PT!F64/1000 -> 0.198 | S32: =PT!G64/1000 -> 0.194 | T32: =PT!H64/1000 -> 0.197 | U32: =PT!I64/1000 -> 0.223 | V32: =PT!J64/1000 -> 0.255 | W32: =PT!K64/1000 -> 0.236 | X32: =PT!L64/1000 -> 0.252 | Y32: =PT!M64/1000 -> 0.3 | Z32: =PT!N64/1000 -> 0.27 | AA32: =PT!O64/1000 -> 0.305 | AB32: =PT!P64/1000 -> 0.307 | AC32: =PT!Q64/1000 -> 0.239 | AD32: =PT!R64/1000 -> 0.11 | AE32: =PT!S64/1000 -> 0.113 | AF32: =PT!T64/1000 -> 0.3 | AG32: =PT!U64/1000 -> 0.11 | AH32: =PT!V64/1000 -> 0.11 | AI32: =PT!W64/1000 -> 0.11 | AJ32: =PT!X64/1000 -> 0.109 | AK32: =PT!Y64/1000 -> 0.112 | AL32: =PT!Z64/1000 -> 0.11 | AM32: =PT!AA64/1000 -> 0.131 | AN32: =PT!AB64/1000 -> 0.138 | AO32: =PT!AC64/1000 -> 0.143 | AP32: =PT!AD64/1000 -> 0.151 | AQ32: =PT!AE64/1000 -> 0.152 | AR32: =PT!AF64/1000 -> 0.154 | AS32: =PT!AG64/1000 -> 0.155 | AT32: =PT!AH64/1000 -> 0.155 | AU32: =PT!AI64/1000 -> 0.156 | AV32: =PT!AJ64/1000 -> 0.157
O33: SE | P33: =SE!D64/1000 -> 0.009 | Q33: =SE!E64/1000 -> 0.009 | R33: =SE!F64/1000 -> 0.039 | S33: =SE!G64/1000 -> 0.019 | T33: =SE!H64/1000 -> 0.083 | U33: =SE!I64/1000 -> 0.112 | V33: =SE!J64/1000 -> 0.058 | W33: =SE!K64/1000 -> 0.001 | X33: =SE!L64/1000 -> 1.041 | Y33: =SE!M64/1000 -> 1.664 | Z33: =SE!N64/1000 -> 0.083 | AA33: =SE!O64/1000 -> 0.071 | AB33: =SE!P64/1000 -> 0.054 | AC33: =SE!Q64/1000 -> 0.103 | AD33: =SE!R64/1000 -> 0.001 | AE33: =SE!S64/1000 -> 0.001 | AF33: =SE!T64/1000 -> 1.055 | AG33: =SE!U64/1000 -> 0.103 | AH33: =SE!V64/1000 -> 0.89 | AI33: =SE!W64/1000 -> 0 | AJ33: =SE!X64/1000 -> 1.887 | AK33: =SE!Y64/1000 -> 2.438 | AL33: =SE!Z64/1000 -> 0.656 | AM33: =SE!AA64/1000 -> 0.812 | AN33: =SE!AB64/1000 -> 0.816 | AO33: =SE!AC64/1000 -> 0.815 | AP33: =SE!AD64/1000 -> 0.824 | AQ33: =SE!AE64/1000 -> 0.791 | AR33: =SE!AF64/1000 -> 0.762 | AS33: =SE!AG64/1000 -> 0.734 | AT33: =SE!AH64/1000 -> 0.707 | AU33: =SE!AI64/1000 -> 0.682 | AV33: =SE!AJ64/1000 -> 0.659
O51: ="Total Employment by Status"&CHAR(13)&O52 -> Total Employment by Status Food products
O52: =FT!A91 -> Food products | P52: =P30 -> 1992 | Q52: 1993 | R52: 1994 | S52: 1995 | T52: 1996 | U52: 1997 | V52: 1998 | W52: 1999 | X52: 2000 | Y52: 2001 | Z52: 2002 | AA52: 2003 | AB52: 2004 | AC52: 2005 | AD52: 2006 | AE52: 2007 | AF52: 2008 | AG52: 2009 | AH52: 2010 | AI52: 2011 | AJ52: 2012 | AK52: 2013 | AL52: 2014 | AM52: 2015 | AN52: 2016 | AO52: 2017 | AP52: 2018 | AQ52: 2019 | AR52: 2020 | AS52: 2021 | AT52: 2022 | AU52: 2023 | AV52: 2024
O53: FT | P53: =FT!D92/1000 -> 30.774 | Q53: =FT!E92/1000 -> 30.77 | R53: =FT!F92/1000 -> 29.084 | S53: =FT!G92/1000 -> 28.634 | T53: =FT!H92/1000 -> 23.66 | U53: =FT!I92/1000 -> 21.433 | V53: =FT!J92/1000 -> 26.677 | W53: =FT!K92/1000 -> 29.141 | X53: =FT!L92/1000 -> 27.454 | Y53: =FT!M92/1000 -> 26.049 | Z53: =FT!N92/1000 -> 24.892 | AA53: =FT!O92/1000 -> 23.899 | AB53: =FT!P92/1000 -> 23.03 | AC53: =FT!Q92/1000 -> 21.676 | AD53: =FT!R92/1000 -> 20.888 | AE53: =FT!S92/1000 -> 20.031 | AF53: =FT!T92/1000 -> 18.799 | AG53: =FT!U92/1000 -> 21.788 | AH53: =FT!V92/1000 -> 20.198 | AI53: =FT!W92/1000 -> 22.903 | AJ53: =FT!X92/1000 -> 19.534 | AK53: =FT!Y92/1000 -> 17.753 | AL53: =FT!Z92/1000 -> 18.116 | AM53: =FT!AA92/1000 -> 19.267 | AN53: =FT!AB92/1000 -> 19.364 | AO53: =FT!AC92/1000 -> 19.225 | AP53: =FT!AD92/1000 -> 19.046 | AQ53: =FT!AE92/1000 -> 18.878 | AR53: =FT!AF92/1000 -> 18.722 | AS53: =FT!AG92/1000 -> 18.539 | AT53: =FT!AH92/1000 -> 18.351 | AU53: =FT!AI92/1000 -> 18.147 | AV53: =FT!AJ92/1000 -> 17.927
O54: PT | P54: =PT!D92/1000 -> 12.683 | Q54: =PT!E92/1000 -> 10.276 | R54: =PT!F92/1000 -> 9.483 | S54: =PT!G92/1000 -> 9.388 | T54: =PT!H92/1000 -> 5.641 | U54: =PT!I92/1000 -> 6.94 | V54: =PT!J92/1000 -> 6.039 | W54: =PT!K92/1000 -> 3.521 | X54: =PT!L92/1000 -> 3.698 | Y54: =PT!M92/1000 -> 2.933 | Z54: =PT!N92/1000 -> 3.257 | AA54: =PT!O92/1000 -> 3.594 | AB54: =PT!P92/1000 -> 2.716 | AC54: =PT!Q92/1000 -> 2.524 | AD54: =PT!R92/1000 -> 2.077 | AE54: =PT!S92/1000 -> 1.869 | AF54: =PT!T92/1000 -> 2.235 | AG54: =PT!U92/1000 -> 2.813 | AH54: =PT!V92/1000 -> 1.882 | AI54: =PT!W92/1000 -> 5.337 | AJ54: =PT!X92/1000 -> 2.372 | AK54: =PT!Y92/1000 -> 1.284 | AL54: =PT!Z92/1000 -> 1.193 | AM54: =PT!AA92/1000 -> 1.268 | AN54: =PT!AB92/1000 -> 1.296 | AO54: =PT!AC92/1000 -> 1.307 | AP54: =PT!AD92/1000 -> 1.315 | AQ54: =PT!AE92/1000 -> 1.323 | AR54: =PT!AF92/1000 -> 1.332 | AS54: =PT!AG92/1000 -> 1.338 | AT54: =PT!AH92/1000 -> 1.344 | AU54: =PT!AI92/1000 -> 1.35 | AV54: =PT!AJ92/1000 -> 1.352
O55: SE | P55: =SE!D92/1000 -> 0.422 | Q55: =SE!E92/1000 -> 0.362 | R55: =SE!F92/1000 -> 0.495 | S55: =SE!G92/1000 -> 0.409 | T55: =SE!H92/1000 -> 0.522 | U55: =SE!I92/1000 -> 0.923 | V55: =SE!J92/1000 -> 0.945 | W55: =SE!K92/1000 -> 0.444 | X55: =SE!L92/1000 -> 0.318 | Y55: =SE!M92/1000 -> 0.669 | Z55: =SE!N92/1000 -> 0.564 | AA55: =SE!O92/1000 -> 0.112 | AB55: =SE!P92/1000 -> 1.214 | AC55: =SE!Q92/1000 -> 0.156 | AD55: =SE!R92/1000 -> 0.791 | AE55: =SE!S92/1000 -> 0.92 | AF55: =SE!T92/1000 -> 1.222 | AG55: =SE!U92/1000 -> 1.383 | AH55: =SE!V92/1000 -> 1.223 | AI55: =SE!W92/1000 -> 1.102 | AJ55: =SE!X92/1000 -> 1.725 | AK55: =SE!Y92/1000 -> 1.352 | AL55: =SE!Z92/1000 -> 1.808 | AM55: =SE!AA92/1000 -> 1.921 | AN55: =SE!AB92/1000 -> 1.931 | AO55: =SE!AC92/1000 -> 1.915 | AP55: =SE!AD92/1000 -> 1.896 | AQ55: =SE!AE92/1000 -> 1.878 | AR55: =SE!AF92/1000 -> 1.862 | AS55: =SE!AG92/1000 -> 1.844 | AT55: =SE!AH92/1000 -> 1.825 | AU55: =SE!AI92/1000 -> 1.805 | AV55: =SE!AJ92/1000 -> 1.784
O79: ="Total Employment by Status"&CHAR(13)&O80 -> Total Employment by Status Beverages & tobacco
O80: =FT!A119 -> Beverages & tobacco | P80: =P52 -> 1992 | Q80: 1993 | R80: 1994 | S80: 1995 | T80: 1996 | U80: 1997 | V80: 1998 | W80: 1999 | X80: 2000 | Y80: 2001 | Z80: 2002 | AA80: 2003 | AB80: 2004 | AC80: 2005 | AD80: 2006 | AE80: 2007 | AF80: 2008 | AG80: 2009 | AH80: 2010 | AI80: 2011 | AJ80: 2012 | AK80: 2013 | AL80: 2014 | AM80: 2015 | AN80: 2016 | AO80: 2017 | AP80: 2018 | AQ80: 2019 | AR80: 2020 | AS80: 2021 | AT80: 2022 | AU80: 2023 | AV80: 2024
O81: FT | P81: =FT!D120/1000 -> 4.416 | Q81: =FT!E120/1000 -> 4.46 | R81: =FT!F120/1000 -> 4.209 | S81: =FT!G120/1000 -> 4.136 | T81: =FT!H120/1000 -> 3.442 | U81: =FT!I120/1000 -> 3.065 | V81: =FT!J120/1000 -> 3.863 | W81: =FT!K120/1000 -> 4.464 | X81: =FT!L120/1000 -> 4.107 | Y81: =FT!M120/1000 -> 4.046 | Z81: =FT!N120/1000 -> 3.511 | AA81: =FT!O120/1000 -> 3.133 | AB81: =FT!P120/1000 -> 3.344 | AC81: =FT!Q120/1000 -> 3.574 | AD81: =FT!R120/1000 -> 4.068 | AE81: =FT!S120/1000 -> 3.043 | AF81: =FT!T120/1000 -> 2.12 | AG81: =FT!U120/1000 -> 1.805 | AH81: =FT!V120/1000 -> 1.589 | AI81: =FT!W120/1000 -> 1.387 | AJ81: =FT!X120/1000 -> 1.936 | AK81: =FT!Y120/1000 -> 1.432 | AL81: =FT!Z120/1000 -> 1.459 | AM81: =FT!AA120/1000 -> 1.551 | AN81: =FT!AB120/1000 -> 1.559 | AO81: =FT!AC120/1000 -> 1.548 | AP81: =FT!AD120/1000 -> 1.533 | AQ81: =FT!AE120/1000 -> 1.519 | AR81: =FT!AF120/1000 -> 1.506 | AS81: =FT!AG120/1000 -> 1.491 | AT81: =FT!AH120/1000 -> 1.475 | AU81: =FT!AI120/1000 -> 1.459 | AV81: =FT!AJ120/1000 -> 1.441
O82: PT | P82: =PT!D120/1000 -> 2.456 | Q82: =PT!E120/1000 -> 2.003 | R82: =PT!F120/1000 -> 1.874 | S82: =PT!G120/1000 -> 1.843 | T82: =PT!H120/1000 -> 1.087 | U82: =PT!I120/1000 -> 1.309 | V82: =PT!J120/1000 -> 1.142 | W82: =PT!K120/1000 -> 0.715 | X82: =PT!L120/1000 -> 0.775 | Y82: =PT!M120/1000 -> 0.606 | Z82: =PT!N120/1000 -> 0.6 | AA82: =PT!O120/1000 -> 0.538 | AB82: =PT!P120/1000 -> 0.509 | AC82: =PT!Q120/1000 -> 0.563 | AD82: =PT!R120/1000 -> 0.586 | AE82: =PT!S120/1000 -> 0.56 | AF82: =PT!T120/1000 -> 0.116 | AG82: =PT!U120/1000 -> 0.259 | AH82: =PT!V120/1000 -> 0.132 | AI82: =PT!W120/1000 -> 0.199 | AJ82: =PT!X120/1000 -> 0.885 | AK82: =PT!Y120/1000 -> 0.347 | AL82: =PT!Z120/1000 -> 0.329 | AM82: =PT!AA120/1000 -> 0.349 | AN82: =PT!AB120/1000 -> 0.356 | AO82: =PT!AC120/1000 -> 0.358 | AP82: =PT!AD120/1000 -> 0.359 | AQ82: =PT!AE120/1000 -> 0.361 | AR82: =PT!AF120/1000 -> 0.363 | AS82: =PT!AG120/1000 -> 0.364 | AT82: =PT!AH120/1000 -> 0.365 | AU82: =PT!AI120/1000 -> 0.366 | AV82: =PT!AJ120/1000 -> 0.365
O83: SE | P83: =SE!D120/1000 -> 0.072 | Q83: =SE!E120/1000 -> 0.061 | R83: =SE!F120/1000 -> 0.086 | S83: =SE!G120/1000 -> 0.071 | T83: =SE!H120/1000 -> 0.089 | U83: =SE!I120/1000 -> 0.151 | V83: =SE!J120/1000 -> 0.163 | W83: =SE!K120/1000 -> 0.076 | X83: =SE!L120/1000 -> 0.058 | Y83: =SE!M120/1000 -> 0.114 | Z83: =SE!N120/1000 -> 0.065 | AA83: =SE!O120/1000 -> 0.017 | AB83: =SE!P120/1000 -> 0.102 | AC83: =SE!Q120/1000 -> 0.044 | AD83: =SE!R120/1000 -> 0.178 | AE83: =SE!S120/1000 -> 0.165 | AF83: =SE!T120/1000 -> 0.151 | AG83: =SE!U120/1000 -> 0.067 | AH83: =SE!V120/1000 -> 0.09 | AI83: =SE!W120/1000 -> 0.05 | AJ83: =SE!X120/1000 -> 0.176 | AK83: =SE!Y120/1000 -> 0.126 | AL83: =SE!Z120/1000 -> 0.15 | AM83: =SE!AA120/1000 -> 0.158 | AN83: =SE!AB120/1000 -> 0.159 | AO83: =SE!AC120/1000 -> 0.158 | AP83: =SE!AD120/1000 -> 0.157 | AQ83: =SE!AE120/1000 -> 0.155 | AR83: =SE!AF120/1000 -> 0.154 | AS83: =SE!AG120/1000 -> 0.153 | AT83: =SE!AH120/1000 -> 0.151 | AU83: =SE!AI120/1000 -> 0.149 | AV83: =SE!AJ120/1000 -> 0.147
O101: ="Total Employment by Status"&CHAR(13)&O102 -> Total Employment by Status Textiles
O102: =FT!A147 -> Textiles | P102: =P80 -> 1992 | Q102: 1993 | R102: 1994 | S102: 1995 | T102: 1996 | U102: 1997 | V102: 1998 | W102: 1999 | X102: 2000 | Y102: 2001 | Z102: 2002 | AA102: 2003 | AB102: 2004 | AC102: 2005 | AD102: 2006 | AE102: 2007 | AF102: 2008 | AG102: 2009 | AH102: 2010 | AI102: 2011 | AJ102: 2012 | AK102: 2013 | AL102: 2014 | AM102: 2015 | AN102: 2016 | AO102: 2017 | AP102: 2018 | AQ102: 2019 | AR102: 2020 | AS102: 2021 | AT102: 2022 | AU102: 2023 | AV102: 2024
O103: FT | P103: =FT!D148/1000 -> 3.921 | Q103: =FT!E148/1000 -> 3.917 | R103: =FT!F148/1000 -> 4.087 | S103: =FT!G148/1000 -> 4.259 | T103: =FT!H148/1000 -> 3.613 | U103: =FT!I148/1000 -> 3.62 | V103: =FT!J148/1000 -> 4.324 | W103: =FT!K148/1000 -> 5.044 | X103: =FT!L148/1000 -> 4.565 | Y103: =FT!M148/1000 -> 4.102 | Z103: =FT!N148/1000 -> 3.849 | AA103: =FT!O148/1000 -> 3.472 | AB103: =FT!P148/1000 -> 3.131 | AC103: =FT!Q148/1000 -> 2.589 | AD103: =FT!R148/1000 -> 2.745 | AE103: =FT!S148/1000 -> 2.783 | AF103: =FT!T148/1000 -> 3.324 | AG103: =FT!U148/1000 -> 3.101 | AH103: =FT!V148/1000 -> 1.672 | AI103: =FT!W148/1000 -> 1.596 | AJ103: =FT!X148/1000 -> 0.917 | AK103: =FT!Y148/1000 -> 2.532 | AL103: =FT!Z148/1000 -> 2.508 | AM103: =FT!AA148/1000 -> 2.608 | AN103: =FT!AB148/1000 -> 2.658 | AO103: =FT!AC148/1000 -> 2.637 | AP103: =FT!AD148/1000 -> 2.573 | AQ103: =FT!AE148/1000 -> 2.512 | AR103: =FT!AF148/1000 -> 2.447 | AS103: =FT!AG148/1000 -> 2.385 | AT103: =FT!AH148/1000 -> 2.325 | AU103: =FT!AI148/1000 -> 2.262 | AV103: =FT!AJ148/1000 -> 2.197
O104: PT | P104: =PT!D148/1000 -> 0.272 | Q104: =PT!E148/1000 -> 0.272 | R104: =PT!F148/1000 -> 0.258 | S104: =PT!G148/1000 -> 0.26 | T104: =PT!H148/1000 -> 0.218 | U104: =PT!I148/1000 -> 0.261 | V104: =PT!J148/1000 -> 0.319 | W104: =PT!K148/1000 -> 0.223 | X104: =PT!L148/1000 -> 0.206 | Y104: =PT!M148/1000 -> 0.202 | Z104: =PT!N148/1000 -> 0.246 | AA104: =PT!O148/1000 -> 0.237 | AB104: =PT!P148/1000 -> 0.298 | AC104: =PT!Q148/1000 -> 0.24 | AD104: =PT!R148/1000 -> 0.189 | AE104: =PT!S148/1000 -> 0.42 | AF104: =PT!T148/1000 -> 0.383 | AG104: =PT!U148/1000 -> 0.754 | AH104: =PT!V148/1000 -> 0.643 | AI104: =PT!W148/1000 -> 0.444 | AJ104: =PT!X148/1000 -> 0.318 | AK104: =PT!Y148/1000 -> 0.465 | AL104: =PT!Z148/1000 -> 0.459 | AM104: =PT!AA148/1000 -> 0.477 | AN104: =PT!AB148/1000 -> 0.485 | AO104: =PT!AC148/1000 -> 0.479 | AP104: =PT!AD148/1000 -> 0.463 | AQ104: =PT!AE148/1000 -> 0.449 | AR104: =PT!AF148/1000 -> 0.433 | AS104: =PT!AG148/1000 -> 0.417 | AT104: =PT!AH148/1000 -> 0.403 | AU104: =PT!AI148/1000 -> 0.389 | AV104: =PT!AJ148/1000 -> 0.375
O105: SE | P105: =SE!D148/1000 -> 0.319 | Q105: =SE!E148/1000 -> 0.333 | R105: =SE!F148/1000 -> 0.356 | S105: =SE!G148/1000 -> 0.323 | T105: =SE!H148/1000 -> 0.31 | U105: =SE!I148/1000 -> 0.626 | V105: =SE!J148/1000 -> 0.932 | W105: =SE!K148/1000 -> 1.331 | X105: =SE!L148/1000 -> 0.308 | Y105: =SE!M148/1000 -> 0.664 | Z105: =SE!N148/1000 -> 1.274 | AA105: =SE!O148/1000 -> 0.848 | AB105: =SE!P148/1000 -> 0.713 | AC105: =SE!Q148/1000 -> 1.343 | AD105: =SE!R148/1000 -> 0.638 | AE105: =SE!S148/1000 -> 0.607 | AF105: =SE!T148/1000 -> 0.982 | AG105: =SE!U148/1000 -> 1.111 | AH105: =SE!V148/1000 -> 0.579 | AI105: =SE!W148/1000 -> 0.723 | AJ105: =SE!X148/1000 -> 0.668 | AK105: =SE!Y148/1000 -> 1.056 | AL105: =SE!Z148/1000 -> 2.247 | AM105: =SE!AA148/1000 -> 2.325 | AN105: =SE!AB148/1000 -> 2.34 | AO105: =SE!AC148/1000 -> 2.286 | AP105: =SE!AD148/1000 -> 2.196 | AQ105: =SE!AE148/1000 -> 2.104 | AR105: =SE!AF148/1000 -> 2.009 | AS105: =SE!AG148/1000 -> 1.918 | AT105: =SE!AH148/1000 -> 1.833 | AU105: =SE!AI148/1000 -> 1.753 | AV105: =SE!AJ148/1000 -> 1.678
... 36 more rows

Sheet Figure 6.x.1.3
AA4: These are linked to the chart titles.
AA5: DO NOT DELETE
AA9: ="Employment levels by gender and status, "&Table6.4.1.1!$A$3&"-"&Table6.4.1.1!$A$27&CHAR(13)&AA10 -> Employment levels by gender and status, 2004-2024 All industries
AA10: =All!A7 -> All industries
AA32: ="Employment levels by gender and status, "&Table6.4.1.1!$A$3&"-"&Table6.4.1.1!$A$27&CHAR(13)&AA33 -> Employment levels by gender and status, 2004-2024 Agriculture, etc
AA33: =All!A35 -> Agriculture, etc
AA60: ="Employment levels by gender and status, "&Table6.4.1.1!$A$3&"-"&Table6.4.1.1!$A$27&CHAR(13)&AA61 -> Employment levels by gender and status, 2004-2024 Coal, oil & gas; Mining & related
AA61: =All!A63 -> Coal, oil & gas; Mining & related
AA88: ="Employment levels by gender and status, "&Table6.4.1.1!$A$3&"-"&Table6.4.1.1!$A$27&CHAR(13)&AA89 -> Employment levels by gender and status, 2004-2024 Food products
AA89: =All!A91 -> Food products
AA116: ="Employment levels by gender and status, "&Table6.4.1.1!$A$3&"-"&Table6.4.1.1!$A$27&CHAR(13)&AA117 -> Employment levels by gender and status, 2004-2024 Beverages & tobacco
AA117: =All!A119 -> Beverages & tobacco
... 14 more rows

Sheet Figure 6.x.1.4
AA4: These are linked to the chart titles.
AA5: DO NOT DELETE
AA9: ="Employment shares by gender and status, "&Table6.4.1.1!$A$3&"-"&Table6.4.1.1!$A$27&CHAR(13)&AA10 -> Employment shares by gender and status, 2004-2024 All industries
AA10: =All!A7 -> All industries
AA32: ="Employment shares by gender and status, "&Table6.4.1.1!$A$3&"-"&Table6.4.1.1!$A$27&CHAR(13)&AA33 -> Employment shares by gender and status, 2004-2024 Agriculture, etc
AA33: =All!A35 -> Agriculture, etc
AA60: ="Employment shares by gender and status, "&Table6.4.1.1!$A$3&"-"&Table6.4.1.1!$A$27&CHAR(13)&AA61 -> Employment shares by gender and status, 2004-2024 Coal, oil & gas; Mining & related
AA61: =All!A63 -> Coal, oil & gas; Mining & related
AA88: ="Employment shares by gender and status, "&Table6.4.1.1!$A$3&"-"&Table6.4.1.1!$A$27&CHAR(13)&AA89 -> Employment shares by gender and status, 2004-2024 Food products
AA89: =All!A91 -> Food products
AA116: ="Employment shares by gender and status, "&Table6.4.1.1!$A$3&"-"&Table6.4.1.1!$A$27&CHAR(13)&AA117 -> Employment shares by gender and status, 2004-2024 Beverages & tobacco
AA117: =All!A119 -> Beverages & tobacco
... 14 more rows

Sheet Figure 6.x.1.5
AA2: These are linked to the chart titles.
AA3: DO NOT DELETE
AA4: ="Employment changes by gender and status, "&All!$K$7&"-"&Table6.4.1.1!A$27&", "&CHAR(13)&AA5 -> Employment changes by gender and status, 1999-2024, All industries
AA5: =All!A7 -> All industries
AA26: ="Employment changes by gender and status, "&All!$K$7&"-"&Table6.4.1.1!A$27&", "&CHAR(13)&AA27 -> Employment changes by gender and status, 1999-2024, Agriculture, etc
AA27: =All!A35 -> Agriculture, etc
AA48: ="Employment changes by gender and status, "&All!$K$7&"-"&Table6.4.1.1!A$27&", "&CHAR(13)&AA49 -> Employment changes by gender and status, 1999-2024, Coal, oil & gas; Mining & related
AA49: =All!A63 -> Coal, oil & gas; Mining & related
AA70: ="Employment changes by gender and status, "&All!$K$7&"-"&Table6.4.1.1!A$27&", "&CHAR(13)&AA71 -> Employment changes by gender and status, 1999-2024, Food products
AA71: =All!A91 -> Food products
AA92: ="Employment changes by gender and status, "&All!$K$7&"-"&Table6.4.1.1!A$27&", "&CHAR(13)&AA93 -> Employment changes by gender and status, 1999-2024, Beverages & tobacco
AA93: =All!A119 -> Beverages & tobacco
AA114: ="Employment changes by gender and status, "&All!$K$7&"-"&Table6.4.1.1!A$27&", "&CHAR(13)&AA115 -> Employment changes by gender and status, 1999-2024, Textiles
AA115: =All!A147 -> Textiles
... 26 more rows

Sheet Figure 6.x.1.6
P2: ="Occupational Composition, "&$Q$2&" - "&$U$2&CHAR(13)&All!A7 -> Occupational Composition, 2004 - 2024 All industries | Q2: =All!P7 -> 2004 | R2: =All!U7 -> 2009 | S2: =All!Z7 -> 2014 | T2: =All!AE7 -> 2019 | U2: =All!AJ7 -> 2024
P3: 1. Managers | Q3: =(All!P9+All!P10)/1000 -> 432.998355 | R3: =(All!U9+All!U10)/1000 -> 461.474583 | S3: =(All!Z9+All!Z10)/1000 -> 545.368172 | T3: =(All!AE9+All!AE10)/1000 -> 601.074361 | U3: =(All!AJ9+All!AJ10)/1000 -> 636.125585
P4: 2. Professional | Q4: =(All!P11+All!P12+All!P13+All!P14)/1000 -> 772.914191 | R4: =(All!U11+All!U12+All!U13+All!U14)/1000 -> 854.169004 | S4: =(All!Z11+All!Z12+All!Z13+All!Z14)/1000 -> 949.128926 | T4: =(All!AE11+All!AE12+All!AE13+All!AE14)/1000 -> 1028.119145 | U4: =(All!AJ11+All!AJ12+All!AJ13+All!AJ14)/1000 -> 1074.438172
P5: 3. Associate Prof. | Q5: =(All!P15+All!P16+All!P17+All!P18+All!P19)/1000 -> 596.479783 | R5: =(All!U15+All!U16+All!U17+All!U18+All!U19)/1000 -> 621.132526 | S5: =(All!Z15+All!Z16+All!Z17+All!Z18+All!Z19)/1000 -> 672.978371 | T5: =(All!AE15+All!AE16+All!AE17+All!AE18+All!AE19)/1000 -> 721.991629 | U5: =(All!AJ15+All!AJ16+All!AJ17+All!AJ18+All!AJ19)/1000 -> 747.355257
P6: 4. Administrative etc | Q6: =(All!P20+All!P21)/1000 -> 566.404074 | R6: =(All!U20+All!U21)/1000 -> 512.289456 | S6: =(All!Z20+All!Z21)/1000 -> 480.702249 | T6: =(All!AE20+All!AE21)/1000 -> 441.148967 | U6: =(All!AJ20+All!AJ21)/1000 -> 412.438606
P7: 5. Skilled Trades | Q7: =(All!P22+All!P23+All!P24+All!P25)/1000 -> 486.851666 | R7: =(All!U22+All!U23+All!U24+All!U25)/1000 -> 455.595545 | S7: =(All!Z22+All!Z23+All!Z24+All!Z25)/1000 -> 476.23332 | T7: =(All!AE22+All!AE23+All!AE24+All!AE25)/1000 -> 476.999383 | U7: =(All!AJ22+All!AJ23+All!AJ24+All!AJ25)/1000 -> 475.497575
P8: 6. Personal Service | Q8: =(All!P26+All!P27)/1000 -> 331.252568 | R8: =(All!U26+All!U27)/1000 -> 379.970682 | S8: =(All!Z26+All!Z27)/1000 -> 434.861106 | T8: =(All!AE26+All!AE27)/1000 -> 470.093135 | U8: =(All!AJ26+All!AJ27)/1000 -> 497.548213
P9: 7. Sales | Q9: =(All!P28+All!P29)/1000 -> 322.792545 | R9: =(All!U28+All!U29)/1000 -> 323.86073 | S9: =(All!Z28+All!Z29)/1000 -> 331.32675 | T9: =(All!AE28+All!AE29)/1000 -> 329.184514 | U9: =(All!AJ28+All!AJ29)/1000 -> 325.838207
P10: 8. Machine Operatives | Q10: =(All!P30+All!P31)/1000 -> 240.169577 | R10: =(All!U30+All!U31)/1000 -> 220.512811 | S10: =(All!Z30+All!Z31)/1000 -> 217.86474 | T10: =(All!AE30+All!AE31)/1000 -> 214.951779 | U10: =(All!AJ30+All!AJ31)/1000 -> 212.829158
P11: 9. Elementary | Q11: =(All!P32+All!P33)/1000 -> 510.787239 | R11: =(All!U32+All!U33)/1000 -> 484.346665 | S11: =(All!Z32+All!Z33)/1000 -> 500.127367 | T11: =(All!AE32+All!AE33)/1000 -> 510.861085 | U11: =(All!AJ32+All!AJ33)/1000 -> 521.56323
P24: ="Occupational Composition, "&$Q$2&" - "&$U$2&CHAR(13)&All!A35 -> Occupational Composition, 2004 - 2024 Agriculture, etc | Q24: =Q$2 -> 2004 | R24: =R$2 -> 2009 | S24: =S$2 -> 2014 | T24: =T$2 -> 2019 | U24: =U$2 -> 2024
P25: 1. Managers | Q25: =(All!P37+All!P38)/1000 -> 3.735066 | R25: =(All!U37+All!U38)/1000 -> 3.413855 | S25: =(All!Z37+All!Z38)/1000 -> 4.580684 | T25: =(All!AE37+All!AE38)/1000 -> 3.790491 | U25: =(All!AJ37+All!AJ38)/1000 -> 3.566909
P26: 2. Professional | Q26: =(All!P39+All!P40+All!P41+All!P42)/1000 -> 2.691803 | R26: =(All!U39+All!U40+All!U41+All!U42)/1000 -> 2.594575 | S26: =(All!Z39+All!Z40+All!Z41+All!Z42)/1000 -> 4.158157 | T26: =(All!AE39+All!AE40+All!AE41+All!AE42)/1000 -> 4.255745 | U26: =(All!AJ39+All!AJ40+All!AJ41+All!AJ42)/1000 -> 4.720017
P27: 3. Associate Prof. | Q27: =(All!P43+All!P44+All!P45+All!P46+All!P47)/1000 -> 1.851798 | R27: =(All!U43+All!U44+All!U45+All!U46+All!U47)/1000 -> 1.847591 | S27: =(All!Z43+All!Z44+All!Z45+All!Z46+All!Z47)/1000 -> 2.777706 | T27: =(All!AE43+All!AE44+All!AE45+All!AE46+All!AE47)/1000 -> 2.712172 | U27: =(All!AJ43+All!AJ44+All!AJ45+All!AJ46+All!AJ47)/1000 -> 2.936558
P28: 4. Administrative etc | Q28: =(All!P48+All!P49)/1000 -> 4.106075 | R28: =(All!U48+All!U49)/1000 -> 2.041225 | S28: =(All!Z48+All!Z49)/1000 -> 3.395503 | T28: =(All!AE48+All!AE49)/1000 -> 2.663301 | U28: =(All!AJ48+All!AJ49)/1000 -> 2.540036
P29: 5. Skilled Trades | Q29: =(All!P50+All!P51+All!P52+All!P53)/1000 -> 22.841448 | R29: =(All!U50+All!U51+All!U52+All!U53)/1000 -> 24.869126 | S29: =(All!Z50+All!Z51+All!Z52+All!Z53)/1000 -> 32.664941 | T29: =(All!AE50+All!AE51+All!AE52+All!AE53)/1000 -> 28.013383 | U29: =(All!AJ50+All!AJ51+All!AJ52+All!AJ53)/1000 -> 25.540102
P30: 6. Personal Service | Q30: =(All!P54+All!P55)/1000 -> 2.807632 | R30: =(All!U54+All!U55)/1000 -> 0.883438 | S30: =(All!Z54+All!Z55)/1000 -> 1.646153 | T30: =(All!AE54+All!AE55)/1000 -> 1.487116 | U30: =(All!AJ54+All!AJ55)/1000 -> 1.409874
P31: 7. Sales | Q31: =(All!P56+All!P57)/1000 -> 1.09844 | R31: =(All!U56+All!U57)/1000 -> 0.785259 | S31: =(All!Z56+All!Z57)/1000 -> 0.998573 | T31: =(All!AE56+All!AE57)/1000 -> 0.768141 | U31: =(All!AJ56+All!AJ57)/1000 -> 0.695288
P32: 8. Machine Operatives | Q32: =(All!P58+All!P59)/1000 -> 3.301604 | R32: =(All!U58+All!U59)/1000 -> 2.790677 | S32: =(All!Z58+All!Z59)/1000 -> 1.88246 | T32: =(All!AE58+All!AE59)/1000 -> 1.326117 | U32: =(All!AJ58+All!AJ59)/1000 -> 1.078186
P33: 9. Elementary | Q33: =(All!P60+All!P61)/1000 -> 10.172134 | R33: =(All!U60+All!U61)/1000 -> 6.811254 | S33: =(All!Z60+All!Z61)/1000 -> 5.906823 | T33: =(All!AE60+All!AE61)/1000 -> 4.278535 | U33: =(All!AJ60+All!AJ61)/1000 -> 3.459029
P46: ="Occupational Composition, "&$Q$2&" - "&$U$2&CHAR(13)&All!A63 -> Occupational Composition, 2004 - 2024 Coal, oil & gas; Mining & related | Q46: =Q$2 -> 2004 | R46: =R$2 -> 2009 | S46: =S$2 -> 2014 | T46: =T$2 -> 2019 | U46: =U$2 -> 2024
P47: 1. Managers | Q47: =(All!P65+All!P66)/1000 -> 0.575715 | R47: =(All!U65+All!U66)/1000 -> 0.870202 | S47: =(All!Z65+All!Z66)/1000 -> 0.941765 | T47: =(All!AE65+All!AE66)/1000 -> 1.317097 | U47: =(All!AJ65+All!AJ66)/1000 -> 1.111552
P48: 2. Professional | Q48: =(All!P67+All!P68+All!P69+All!P70)/1000 -> 0.637904 | R48: =(All!U67+All!U68+All!U69+All!U70)/1000 -> 0.767827 | S48: =(All!Z67+All!Z68+All!Z69+All!Z70)/1000 -> 0.597427 | T48: =(All!AE67+All!AE68+All!AE69+All!AE70)/1000 -> 0.767747 | U48: =(All!AJ67+All!AJ68+All!AJ69+All!AJ70)/1000 -> 0.556375
P49: 3. Associate Prof. | Q49: =(All!P71+All!P72+All!P73+All!P74+All!P75)/1000 -> 0.639022 | R49: =(All!U71+All!U72+All!U73+All!U74+All!U75)/1000 -> 0.705109 | S49: =(All!Z71+All!Z72+All!Z73+All!Z74+All!Z75)/1000 -> 0.670521 | T49: =(All!AE71+All!AE72+All!AE73+All!AE74+All!AE75)/1000 -> 0.906678 | U49: =(All!AJ71+All!AJ72+All!AJ73+All!AJ74+All!AJ75)/1000 -> 0.711014
P50: 4. Administrative etc | Q50: =(All!P76+All!P77)/1000 -> 0.834088 | R50: =(All!U76+All!U77)/1000 -> 0.797094 | S50: =(All!Z76+All!Z77)/1000 -> 0.633486 | T50: =(All!AE76+All!AE77)/1000 -> 0.786492 | U50: =(All!AJ76+All!AJ77)/1000 -> 0.582119
P51: 5. Skilled Trades | Q51: =(All!P78+All!P79+All!P80+All!P81)/1000 -> 0.532046 | R51: =(All!U78+All!U79+All!U80+All!U81)/1000 -> 0.904489 | S51: =(All!Z78+All!Z79+All!Z80+All!Z81)/1000 -> 0.907675 | T51: =(All!AE78+All!AE79+All!AE80+All!AE81)/1000 -> 1.096716 | U51: =(All!AJ78+All!AJ79+All!AJ80+All!AJ81)/1000 -> 0.862861
P52: 6. Personal Service | Q52: =(All!P82+All!P83)/1000 -> 0.075493 | R52: =(All!U82+All!U83)/1000 -> 0.056046 | S52: =(All!Z82+All!Z83)/1000 -> 0.043718 | T52: =(All!AE82+All!AE83)/1000 -> 0.063833 | U52: =(All!AJ82+All!AJ83)/1000 -> 0.054603
P53: 7. Sales | Q53: =(All!P84+All!P85)/1000 -> 0.195552 | R53: =(All!U84+All!U85)/1000 -> 0.207897 | S53: =(All!Z84+All!Z85)/1000 -> 0.196683 | T53: =(All!AE84+All!AE85)/1000 -> 0.254565 | U53: =(All!AJ84+All!AJ85)/1000 -> 0.205654
P54: 8. Machine Operatives | Q54: =(All!P86+All!P87)/1000 -> 0.989369 | R54: =(All!U86+All!U87)/1000 -> 1.049242 | S54: =(All!Z86+All!Z87)/1000 -> 0.815265 | T54: =(All!AE86+All!AE87)/1000 -> 1.082884 | U54: =(All!AJ86+All!AJ87)/1000 -> 0.910951
P55: 9. Elementary | Q55: =(All!P88+All!P89)/1000 -> 0.180812 | R55: =(All!U88+All!U89)/1000 -> 0.159094 | S55: =(All!Z88+All!Z89)/1000 -> 0.157461 | T55: =(All!AE88+All!AE89)/1000 -> 0.205988 | U55: =(All!AJ88+All!AJ89)/1000 -> 0.17087
P68: ="Occupational Composition, "&$Q$2&" - "&$U$2&CHAR(13)&All!A91 -> Occupational Composition, 2004 - 2024 Food products | Q68: =Q$2 -> 2004 | R68: =R$2 -> 2009 | S68: =S$2 -> 2014 | T68: =T$2 -> 2019 | U68: =U$2 -> 2024
P69: 1. Managers | Q69: =(All!P93+All!P94)/1000 -> 3.184087 | R69: =(All!U93+All!U94)/1000 -> 3.855869 | S69: =(All!Z93+All!Z94)/1000 -> 2.542821 | T69: =(All!AE93+All!AE94)/1000 -> 2.951093 | U69: =(All!AJ93+All!AJ94)/1000 -> 3.00494
P70: 2. Professional | Q70: =(All!P95+All!P96+All!P97+All!P98)/1000 -> 2.466254 | R70: =(All!U95+All!U96+All!U97+All!U98)/1000 -> 2.483757 | S70: =(All!Z95+All!Z96+All!Z97+All!Z98)/1000 -> 1.586173 | T70: =(All!AE95+All!AE96+All!AE97+All!AE98)/1000 -> 1.820305 | U70: =(All!AJ95+All!AJ96+All!AJ97+All!AJ98)/1000 -> 1.803963
P71: 3. Associate Prof. | Q71: =(All!P99+All!P100+All!P101+All!P102+All!P103)/1000 -> 3.347772 | R71: =(All!U99+All!U100+All!U101+All!U102+All!U103)/1000 -> 3.065578 | S71: =(All!Z99+All!Z100+All!Z101+All!Z102+All!Z103)/1000 -> 2.898142 | T71: =(All!AE99+All!AE100+All!AE101+All!AE102+All!AE103)/1000 -> 3.254109 | U71: =(All!AJ99+All!AJ100+All!AJ101+All!AJ102+All!AJ103)/1000 -> 3.245863
P72: 4. Administrative etc | Q72: =(All!P104+All!P105)/1000 -> 2.380547 | R72: =(All!U104+All!U105)/1000 -> 2.79549 | S72: =(All!Z104+All!Z105)/1000 -> 1.956007 | T72: =(All!AE104+All!AE105)/1000 -> 2.00495 | U72: =(All!AJ104+All!AJ105)/1000 -> 1.929539
P73: 5. Skilled Trades | Q73: =(All!P106+All!P107+All!P108+All!P109)/1000 -> 4.208916 | R73: =(All!U106+All!U107+All!U108+All!U109)/1000 -> 3.584698 | S73: =(All!Z106+All!Z107+All!Z108+All!Z109)/1000 -> 3.208773 | T73: =(All!AE106+All!AE107+All!AE108+All!AE109)/1000 -> 3.056524 | U73: =(All!AJ106+All!AJ107+All!AJ108+All!AJ109)/1000 -> 2.634363
P74: 6. Personal Service | Q74: =(All!P110+All!P111)/1000 -> 0.128969 | R74: =(All!U110+All!U111)/1000 -> 0.186693 | S74: =(All!Z110+All!Z111)/1000 -> 0.156363 | T74: =(All!AE110+All!AE111)/1000 -> 0.183787 | U74: =(All!AJ110+All!AJ111)/1000 -> 0.183424
P75: 7. Sales | Q75: =(All!P112+All!P113)/1000 -> 1.061796 | R75: =(All!U112+All!U113)/1000 -> 1.112432 | S75: =(All!Z112+All!Z113)/1000 -> 0.965226 | T75: =(All!AE112+All!AE113)/1000 -> 1.01307 | U75: =(All!AJ112+All!AJ113)/1000 -> 0.996391
P76: 8. Machine Operatives | Q76: =(All!P114+All!P115)/1000 -> 7.32835 | R76: =(All!U114+All!U115)/1000 -> 5.282821 | S76: =(All!Z114+All!Z115)/1000 -> 4.871464 | T76: =(All!AE114+All!AE115)/1000 -> 4.764189 | U76: =(All!AJ114+All!AJ115)/1000 -> 4.409934
P77: 9. Elementary | Q77: =(All!P116+All!P117)/1000 -> 2.853308 | R77: =(All!U116+All!U117)/1000 -> 3.616665 | S77: =(All!Z116+All!Z117)/1000 -> 2.932032 | T77: =(All!AE116+All!AE117)/1000 -> 3.030971 | U77: =(All!AJ116+All!AJ117)/1000 -> 2.854584
P90: ="Occupational Composition, "&$Q$2&" - "&$U$2&CHAR(13)&All!A119 -> Occupational Composition, 2004 - 2024 Beverages & tobacco | Q90: =Q$2 -> 2004 | R90: =R$2 -> 2009 | S90: =S$2 -> 2014 | T90: =T$2 -> 2019 | U90: =U$2 -> 2024
P91: 1. Managers | Q91: =(All!P121+All!P122)/1000 -> 0.523486 | R91: =(All!U121+All!U122)/1000 -> 0.278119 | S91: =(All!Z121+All!Z122)/1000 -> 0.257187 | T91: =(All!AE121+All!AE122)/1000 -> 0.294376 | U91: =(All!AJ121+All!AJ122)/1000 -> 0.302019
P92: 2. Professional | Q92: =(All!P123+All!P124+All!P125+All!P126)/1000 -> 0.56634 | R92: =(All!U123+All!U124+All!U125+All!U126)/1000 -> 0.33681 | S92: =(All!Z123+All!Z124+All!Z125+All!Z126)/1000 -> 0.31581 | T92: =(All!AE123+All!AE124+All!AE125+All!AE126)/1000 -> 0.357455 | U92: =(All!AJ123+All!AJ124+All!AJ125+All!AJ126)/1000 -> 0.355701
P93: 3. Associate Prof. | Q93: =(All!P127+All!P128+All!P129+All!P130+All!P131)/1000 -> 0.719001 | R93: =(All!U127+All!U128+All!U129+All!U130+All!U131)/1000 -> 0.437237 | S93: =(All!Z127+All!Z128+All!Z129+All!Z130+All!Z131)/1000 -> 0.40652 | T93: =(All!AE127+All!AE128+All!AE129+All!AE130+All!AE131)/1000 -> 0.453461 | U93: =(All!AJ127+All!AJ128+All!AJ129+All!AJ130+All!AJ131)/1000 -> 0.452195
P94: 4. Administrative etc | Q94: =(All!P132+All!P133)/1000 -> 0.326224 | R94: =(All!U132+All!U133)/1000 -> 0.16888 | S94: =(All!Z132+All!Z133)/1000 -> 0.160735 | T94: =(All!AE132+All!AE133)/1000 -> 0.1538 | U94: =(All!AJ132+All!AJ133)/1000 -> 0.142449
P95: 5. Skilled Trades | Q95: =(All!P134+All!P135+All!P136+All!P137)/1000 -> 0.400777 | R95: =(All!U134+All!U135+All!U136+All!U137)/1000 -> 0.202117 | S95: =(All!Z134+All!Z135+All!Z136+All!Z137)/1000 -> 0.157789 | T95: =(All!AE134+All!AE135+All!AE136+All!AE137)/1000 -> 0.160387 | U95: =(All!AJ134+All!AJ135+All!AJ136+All!AJ137)/1000 -> 0.152002
P96: 6. Personal Service | Q96: =(All!P138+All!P139)/1000 -> 0.106708 | R96: =(All!U138+All!U139)/1000 -> 0.081 | S96: =(All!Z138+All!Z139)/1000 -> 0.096644 | T96: =(All!AE138+All!AE139)/1000 -> 0.112729 | U96: =(All!AJ138+All!AJ139)/1000 -> 0.113911
P97: 7. Sales | Q97: =(All!P140+All!P141)/1000 -> 0.149178 | R97: =(All!U140+All!U141)/1000 -> 0.094706 | S97: =(All!Z140+All!Z141)/1000 -> 0.112442 | T97: =(All!AE140+All!AE141)/1000 -> 0.115841 | U97: =(All!AJ140+All!AJ141)/1000 -> 0.116828
P98: 8. Machine Operatives | Q98: =(All!P142+All!P143)/1000 -> 0.822331 | R98: =(All!U142+All!U143)/1000 -> 0.3518 | S98: =(All!Z142+All!Z143)/1000 -> 0.279376 | T98: =(All!AE142+All!AE143)/1000 -> 0.249578 | U98: =(All!AJ142+All!AJ143)/1000 -> 0.203148
P99: 9. Elementary | Q99: =(All!P144+All!P145)/1000 -> 0.340956 | R99: =(All!U144+All!U145)/1000 -> 0.180335 | S99: =(All!Z144+All!Z145)/1000 -> 0.151496 | T99: =(All!AE144+All!AE145)/1000 -> 0.137375 | U99: =(All!AJ144+All!AJ145)/1000 -> 0.114746
P112: ="Occupational Composition, "&$Q$2&" - "&$U$2&CHAR(13)&All!A147 -> Occupational Composition, 2004 - 2024 Textiles | Q112: =Q$2 -> 2004 | R112: =R$2 -> 2009 | S112: =S$2 -> 2014 | T112: =T$2 -> 2019 | U112: =U$2 -> 2024
P113: 1. Managers | Q113: =(All!P149+All!P150)/1000 -> 0.543123 | R113: =(All!U149+All!U150)/1000 -> 0.6423 | S113: =(All!Z149+All!Z150)/1000 -> 0.828758 | T113: =(All!AE149+All!AE150)/1000 -> 0.902727 | U113: =(All!AJ149+All!AJ150)/1000 -> 0.826443
P114: 2. Professional | Q114: =(All!P151+All!P152+All!P153+All!P154)/1000 -> 0.311602 | R114: =(All!U151+All!U152+All!U153+All!U154)/1000 -> 0.383221 | S114: =(All!Z151+All!Z152+All!Z153+All!Z154)/1000 -> 0.511984 | T114: =(All!AE151+All!AE152+All!AE153+All!AE154)/1000 -> 0.559118 | U114: =(All!AJ151+All!AJ152+All!AJ153+All!AJ154)/1000 -> 0.505789
P115: 3. Associate Prof. | Q115: =(All!P155+All!P156+All!P157+All!P158+All!P159)/1000 -> 0.569561 | R115: =(All!U155+All!U156+All!U157+All!U158+All!U159)/1000 -> 0.736475 | S115: =(All!Z155+All!Z156+All!Z157+All!Z158+All!Z159)/1000 -> 0.928853 | T115: =(All!AE155+All!AE156+All!AE157+All!AE158+All!AE159)/1000 -> 0.990265 | U115: =(All!AJ155+All!AJ156+All!AJ157+All!AJ158+All!AJ159)/1000 -> 0.896562
P116: 4. Administrative etc | Q116: =(All!P160+All!P161)/1000 -> 0.509394 | R116: =(All!U160+All!U161)/1000 -> 0.67928 | S116: =(All!Z160+All!Z161)/1000 -> 0.512494 | T116: =(All!AE160+All!AE161)/1000 -> 0.490283 | U116: =(All!AJ160+All!AJ161)/1000 -> 0.411141
P117: 5. Skilled Trades | Q117: =(All!P162+All!P163+All!P164+All!P165)/1000 -> 0.706688 | R117: =(All!U162+All!U163+All!U164+All!U165)/1000 -> 0.784984 | S117: =(All!Z162+All!Z163+All!Z164+All!Z165)/1000 -> 0.807758 | T117: =(All!AE162+All!AE163+All!AE164+All!AE165)/1000 -> 0.686797 | U117: =(All!AJ162+All!AJ163+All!AJ164+All!AJ165)/1000 -> 0.463036
P118: 6. Personal Service | Q118: =(All!P166+All!P167)/1000 -> 0.034846 | R118: =(All!U166+All!U167)/1000 -> 0.048653 | S118: =(All!Z166+All!Z167)/1000 -> 0.045177 | T118: =(All!AE166+All!AE167)/1000 -> 0.04924 | U118: =(All!AJ166+All!AJ167)/1000 -> 0.041524
P119: 7. Sales | Q119: =(All!P168+All!P169)/1000 -> 0.231255 | R119: =(All!U168+All!U169)/1000 -> 0.357131 | S119: =(All!Z168+All!Z169)/1000 -> 0.358616 | T119: =(All!AE168+All!AE169)/1000 -> 0.337141 | U119: =(All!AJ168+All!AJ169)/1000 -> 0.288142
P120: 8. Machine Operatives | Q120: =(All!P170+All!P171)/1000 -> 0.949345 | R120: =(All!U170+All!U171)/1000 -> 1.026137 | S120: =(All!Z170+All!Z171)/1000 -> 0.911461 | T120: =(All!AE170+All!AE171)/1000 -> 0.745519 | U120: =(All!AJ170+All!AJ171)/1000 -> 0.555199
P121: 9. Elementary | Q121: =(All!P172+All!P173)/1000 -> 0.286186 | R121: =(All!U172+All!U173)/1000 -> 0.307819 | S121: =(All!Z172+All!Z173)/1000 -> 0.3089 | T121: =(All!AE172+All!AE173)/1000 -> 0.303912 | U121: =(All!AJ172+All!AJ173)/1000 -> 0.262163
... 78 more rows

Sheet Table6.2.4
O1: thousands
A2: Industry 1 : Agriculture, etc | B2: =All!P7 -> 2004 | G2: =All!Z7 -> 2014 | L2: =All!AJ7 -> 2024
B3: Full-time | C3: Part-time | D3: Self-empl | E3: Total | G3: =B3 -> Full-time | H3: =C3 -> Part-time | I3: =D3 -> Self-empl | J3: =E3 -> Total | L3: =B3 -> Full-time | M3: =C3 -> Part-time | N3: =D3 -> Self-empl | O3: =E3 -> Total
A5: =All!A35 -> Agriculture, etc
A6: Female employment | B6: =FemalesFT!P36/1000 -> 6.681 | C6: =FemalesPT!P36/1000 -> 9.896 | D6: =FemalesSE!P36/1000 -> 1.035 | E6: =Females!P36/1000 -> 17.612 | G6: =FemalesFT!Z36/1000 -> 5.981 | H6: =FemalesPT!Z36/1000 -> 6.88 | I6: =FemalesSE!Z36/1000 -> 4.196 | J6: =Females!Z36/1000 -> 17.057 | L6: =FemalesFT!AJ36/1000 -> 5.411 | M6: =FemalesPT!AJ36/1000 -> 7.222 | N6: =FemalesSE!AJ36/1000 -> 3.28 | O6: =Females!AJ36/1000 -> 15.913
A7: Male employment | B7: =MalesFT!P36/1000 -> 25.953 | C7: =MalesPT!P36/1000 -> 2.086 | D7: =MalesSE!P36/1000 -> 6.955 | E7: =Males!P36/1000 -> 34.994 | G7: =MalesFT!Z36/1000 -> 18.091 | H7: =MalesPT!Z36/1000 -> 2.998 | I7: =MalesSE!Z36/1000 -> 19.865 | J7: =Males!Z36/1000 -> 40.954 | L7: =MalesFT!AJ36/1000 -> 13.015 | M7: =MalesPT!AJ36/1000 -> 2.754 | N7: =MalesSE!AJ36/1000 -> 14.264 | O7: =Males!AJ36/1000 -> 30.033
A8: Total employment | B8: =FT!P36/1000 -> 32.634 | C8: =PT!P36/1000 -> 11.982 | D8: =SE!P36/1000 -> 7.99 | E8: =All!P36/1000 -> 52.606 | G8: =FT!Z36/1000 -> 24.072 | H8: =PT!Z36/1000 -> 9.878 | I8: =SE!Z36/1000 -> 24.061 | J8: =All!Z36/1000 -> 58.011 | L8: =FT!AJ36/1000 -> 18.426 | M8: =PT!AJ36/1000 -> 9.976 | N8: =SE!AJ36/1000 -> 17.544 | O8: =All!AJ36/1000 -> 45.946
A12: Industry 2 : Mining and quarrying | B12: =$B$2 -> 2004 | G12: =$G$2 -> 2014 | L12: =$L$2 -> 2024
B13: Full-time | C13: Part-time | D13: Self-empl | E13: Total | G13: Full-time | H13: Part-time | I13: Self-empl | J13: Total | L13: Full-time | M13: Part-time | N13: Self-empl | O13: Total
A15: =All!A63 -> Coal, oil & gas; Mining & related
A16: Female employment | B16: =FemalesFT!P64/1000 -> 1.456 | C16: =FemalesPT!P64/1000 -> 0.195 | D16: =FemalesSE!P64/1000 -> 0.054 | E16: =Females!P64/1000 -> 1.705 | G16: =FemalesFT!Z64/1000 -> 1.157 | H16: =FemalesPT!Z64/1000 -> 0.001 | I16: =FemalesSE!Z64/1000 -> 0 | J16: =Females!Z64/1000 -> 1.158 | L16: =FemalesFT!AJ64/1000 -> 1.166 | M16: =FemalesPT!AJ64/1000 -> 0.001 | N16: =FemalesSE!AJ64/1000 -> 0 | O16: =Females!AJ64/1000 -> 1.167
A17: Male employment | B17: =MalesFT!P64/1000 -> 2.843 | C17: =MalesPT!P64/1000 -> 0.112 | D17: =MalesSE!P64/1000 -> 0 | E17: =Males!P64/1000 -> 2.955 | G17: =MalesFT!Z64/1000 -> 3.041 | H17: =MalesPT!Z64/1000 -> 0.109 | I17: =MalesSE!Z64/1000 -> 0.656 | J17: =Males!Z64/1000 -> 3.806 | L17: =MalesFT!AJ64/1000 -> 3.184 | M17: =MalesPT!AJ64/1000 -> 0.156 | N17: =MalesSE!AJ64/1000 -> 0.659 | O17: =Males!AJ64/1000 -> 3.999
A18: Total employment | B18: =FT!P64/1000 -> 4.299 | C18: =PT!P64/1000 -> 0.307 | D18: =SE!P64/1000 -> 0.054 | E18: =All!P64/1000 -> 4.66 | G18: =FT!Z64/1000 -> 4.198 | H18: =PT!Z64/1000 -> 0.11 | I18: =SE!Z64/1000 -> 0.656 | J18: =All!Z64/1000 -> 4.964 | L18: =FT!AJ64/1000 -> 4.35 | M18: =PT!AJ64/1000 -> 0.157 | N18: =SE!AJ64/1000 -> 0.659 | O18: =All!AJ64/1000 -> 5.166
A22: Industry 3 : Food drink & tobacco | B22: =$B$2 -> 2004 | G22: =$G$2 -> 2014 | L22: =$L$2 -> 2024
B23: Full-time | C23: Part-time | D23: Self-empl | E23: Total | G23: Full-time | H23: Part-time | I23: Self-empl | J23: Total | L23: Full-time | M23: Part-time | N23: Self-empl | O23: Total
A25: =All!A91 -> Food products
A26: Female employment | B26: =FemalesFT!P92/1000 -> 6.656 | C26: =FemalesPT!P92/1000 -> 1.716 | D26: =FemalesSE!P92/1000 -> 0.11 | E26: =Females!P92/1000 -> 8.482 | G26: =FemalesFT!Z92/1000 -> 5.459 | H26: =FemalesPT!Z92/1000 -> 0.886 | I26: =FemalesSE!Z92/1000 -> 1.463 | J26: =Females!Z92/1000 -> 7.808 | L26: =FemalesFT!AJ92/1000 -> 5.508 | M26: =FemalesPT!AJ92/1000 -> 0.935 | N26: =FemalesSE!AJ92/1000 -> 1.446 | O26: =Females!AJ92/1000 -> 7.889
A27: Male employment | B27: =MalesFT!P92/1000 -> 16.374 | C27: =MalesPT!P92/1000 -> 1 | D27: =MalesSE!P92/1000 -> 1.104 | E27: =Males!P92/1000 -> 18.478 | G27: =MalesFT!Z92/1000 -> 12.657 | H27: =MalesPT!Z92/1000 -> 0.307 | I27: =MalesSE!Z92/1000 -> 0.345 | J27: =Males!Z92/1000 -> 13.309 | L27: =MalesFT!AJ92/1000 -> 12.419 | M27: =MalesPT!AJ92/1000 -> 0.417 | N27: =MalesSE!AJ92/1000 -> 0.338 | O27: =Males!AJ92/1000 -> 13.174
A28: Total employment | B28: =FT!P92/1000 -> 23.03 | C28: =PT!P92/1000 -> 2.716 | D28: =SE!P92/1000 -> 1.214 | E28: =All!P92/1000 -> 26.96 | G28: =FT!Z92/1000 -> 18.116 | H28: =PT!Z92/1000 -> 1.193 | I28: =SE!Z92/1000 -> 1.808 | J28: =All!Z92/1000 -> 21.117 | L28: =FT!AJ92/1000 -> 17.927 | M28: =PT!AJ92/1000 -> 1.352 | N28: =SE!AJ92/1000 -> 1.784 | O28: =All!AJ92/1000 -> 21.063
A30: =All!A119 -> Beverages & tobacco
A31: Female employment | B31: =FemalesFT!P120/1000 -> 0.525 | C31: =FemalesPT!P120/1000 -> 0.31 | D31: =FemalesSE!P120/1000 -> 0.052 | E31: =Females!P120/1000 -> 0.887 | G31: =FemalesFT!Z120/1000 -> 0.331 | H31: =FemalesPT!Z120/1000 -> 0.266 | I31: =FemalesSE!Z120/1000 -> 0.111 | J31: =Females!Z120/1000 -> 0.708 | L31: =FemalesFT!AJ120/1000 -> 0.334 | M31: =FemalesPT!AJ120/1000 -> 0.28 | N31: =FemalesSE!AJ120/1000 -> 0.109 | O31: =Females!AJ120/1000 -> 0.723
A32: Male employment | B32: =MalesFT!P120/1000 -> 2.819 | C32: =MalesPT!P120/1000 -> 0.199 | D32: =MalesSE!P120/1000 -> 0.05 | E32: =Males!P120/1000 -> 3.068 | G32: =MalesFT!Z120/1000 -> 1.128 | H32: =MalesPT!Z120/1000 -> 0.063 | I32: =MalesSE!Z120/1000 -> 0.039 | J32: =Males!Z120/1000 -> 1.23 | L32: =MalesFT!AJ120/1000 -> 1.107 | M32: =MalesPT!AJ120/1000 -> 0.085 | N32: =MalesSE!AJ120/1000 -> 0.038 | O32: =Males!AJ120/1000 -> 1.23
A33: Total employment | B33: =FT!P120/1000 -> 3.344 | C33: =PT!P120/1000 -> 0.509 | D33: =SE!P120/1000 -> 0.102 | E33: =All!P120/1000 -> 3.955 | G33: =FT!Z120/1000 -> 1.459 | H33: =PT!Z120/1000 -> 0.329 | I33: =SE!Z120/1000 -> 0.15 | J33: =All!Z120/1000 -> 1.938 | L33: =FT!AJ120/1000 -> 1.441 | M33: =PT!AJ120/1000 -> 0.365 | N33: =SE!AJ120/1000 -> 0.147 | O33: =All!AJ120/1000 -> 1.953
A35: Industry 3 Total
A36: Female employment | B36: =B26+B31 -> 7.181 | C36: =C26+C31 -> 2.026 | D36: 0.162 | E36: 9.369 | G36: 5.79 | H36: 1.152 | I36: 1.574 | J36: 8.516 | L36: 5.842 | M36: 1.215 | N36: 1.555 | O36: 8.612
A37: Male employment | B37: =B27+B32 -> 19.193 | C37: 1.199 | D37: 1.154 | E37: 21.546 | G37: 13.785 | H37: 0.37 | I37: 0.384 | J37: 14.539 | L37: 13.526 | M37: 0.502 | N37: 0.376 | O37: 14.404
A38: Total employment | B38: =B28+B33 -> 26.374 | C38: 3.225 | D38: 1.316 | E38: 30.915 | G38: 19.575 | H38: 1.522 | I38: 1.958 | J38: 23.055 | L38: 19.368 | M38: 1.717 | N38: 1.931 | O38: 23.016
A42: Industry 4 : Engineering | B42: =$B$2 -> 2004 | G42: =$G$2 -> 2014 | L42: =$L$2 -> 2024
B43: Full-time | C43: Part-time | D43: Self-empl | E43: Total | G43: Full-time | H43: Part-time | I43: Self-empl | J43: Total | L43: Full-time | M43: Part-time | N43: Self-empl | O43: Total
A45: =All!A455 -> Computers, etc
A46: Female employment | B46: =FemalesFT!P456/1000 -> 7.449 | C46: =FemalesPT!P456/1000 -> 2.399 | D46: =FemalesSE!P456/1000 -> 0.042 | E46: =Females!P456/1000 -> 9.89 | G46: =FemalesFT!Z456/1000 -> 6.844 | H46: =FemalesPT!Z456/1000 -> 1.445 | I46: =FemalesSE!Z456/1000 -> 0.228 | J46: =Females!Z456/1000 -> 8.517 | L46: =FemalesFT!AJ456/1000 -> 4.513 | M46: =FemalesPT!AJ456/1000 -> 0.906 | N46: =FemalesSE!AJ456/1000 -> 0.166 | O46: =Females!AJ456/1000 -> 5.585
A47: Male employment | B47: =MalesFT!P456/1000 -> 25.872 | C47: =MalesPT!P456/1000 -> 0.817 | D47: =MalesSE!P456/1000 -> 3.294 | E47: =Males!P456/1000 -> 29.983 | G47: =MalesFT!Z456/1000 -> 24.196 | H47: =MalesPT!Z456/1000 -> 0.489 | I47: =MalesSE!Z456/1000 -> 0.961 | J47: =Males!Z456/1000 -> 25.646 | L47: =MalesFT!AJ456/1000 -> 14.992 | M47: =MalesPT!AJ456/1000 -> 0.349 | N47: =MalesSE!AJ456/1000 -> 0.695 | O47: =Males!AJ456/1000 -> 16.036
A48: Total employment | B48: =FT!P456/1000 -> 33.321 | C48: =PT!P456/1000 -> 3.216 | D48: =SE!P456/1000 -> 3.336 | E48: =All!P456/1000 -> 39.873 | G48: =FT!Z456/1000 -> 31.04 | H48: =PT!Z456/1000 -> 1.934 | I48: =SE!Z456/1000 -> 1.189 | J48: =All!Z456/1000 -> 34.163 | L48: =FT!AJ456/1000 -> 19.505 | M48: =PT!AJ456/1000 -> 1.255 | N48: =SE!AJ456/1000 -> 0.861 | O48: =All!AJ456/1000 -> 21.621
A50: =All!A483 -> Electrical equipment
A51: Female employment | B51: =FemalesFT!P484/1000 -> 2.261 | C51: =FemalesPT!P484/1000 -> 0.693 | D51: =FemalesSE!P484/1000 -> 0.078 | E51: =Females!P484/1000 -> 3.032 | G51: =FemalesFT!Z484/1000 -> 1.687 | H51: =FemalesPT!Z484/1000 -> 0.654 | I51: =FemalesSE!Z484/1000 -> 0.182 | J51: =Females!Z484/1000 -> 2.523 | L51: =FemalesFT!AJ484/1000 -> 1.564 | M51: =FemalesPT!AJ484/1000 -> 0.589 | N51: =FemalesSE!AJ484/1000 -> 0.165 | O51: =Females!AJ484/1000 -> 2.318
A52: Male employment | B52: =MalesFT!P484/1000 -> 8.437 | C52: =MalesPT!P484/1000 -> 0.152 | D52: =MalesSE!P484/1000 -> 0.128 | E52: =Males!P484/1000 -> 8.717 | G52: =MalesFT!Z484/1000 -> 6.601 | H52: =MalesPT!Z484/1000 -> 0.175 | I52: =MalesSE!Z484/1000 -> 0.391 | J52: =Males!Z484/1000 -> 7.167 | L52: =MalesFT!AJ484/1000 -> 5.704 | M52: =MalesPT!AJ484/1000 -> 0.228 | N52: =MalesSE!AJ484/1000 -> 0.341 | O52: =Males!AJ484/1000 -> 6.273
A53: Total employment | B53: =FT!P484/1000 -> 10.698 | C53: =PT!P484/1000 -> 0.845 | D53: =SE!P484/1000 -> 0.206 | E53: =All!P484/1000 -> 11.749 | G53: =FT!Z484/1000 -> 8.288 | H53: =PT!Z484/1000 -> 0.829 | I53: =SE!Z484/1000 -> 0.573 | J53: =All!Z484/1000 -> 9.69 | L53: =FT!AJ484/1000 -> 7.268 | M53: =PT!AJ484/1000 -> 0.817 | N53: =SE!AJ484/1000 -> 0.506 | O53: =All!AJ484/1000 -> 8.591
A55: =All!A511 -> Machinery, etc
A56: Female employment | B56: =FemalesFT!P512/1000 -> 3.665 | C56: =FemalesPT!P512/1000 -> 0.834 | D56: =FemalesSE!P512/1000 -> 0.301 | E56: =Females!P512/1000 -> 4.8 | G56: =FemalesFT!Z512/1000 -> 2.257 | H56: =FemalesPT!Z512/1000 -> 1.072 | I56: =FemalesSE!Z512/1000 -> 0.298 | J56: =Females!Z512/1000 -> 3.627 | L56: =FemalesFT!AJ512/1000 -> 1.42 | M56: =FemalesPT!AJ512/1000 -> 1.227 | N56: =FemalesSE!AJ512/1000 -> 0.322 | O56: =Females!AJ512/1000 -> 2.969
A57: Male employment | B57: =MalesFT!P512/1000 -> 22.303 | C57: =MalesPT!P512/1000 -> 0.905 | D57: =MalesSE!P512/1000 -> 0.808 | E57: =Males!P512/1000 -> 24.016 | G57: =MalesFT!Z512/1000 -> 15.428 | H57: =MalesPT!Z512/1000 -> 0.306 | I57: =MalesSE!Z512/1000 -> 0.963 | J57: =Males!Z512/1000 -> 16.697 | L57: =MalesFT!AJ512/1000 -> 9.464 | M57: =MalesPT!AJ512/1000 -> 0.461 | N57: =MalesSE!AJ512/1000 -> 0.931 | O57: =Males!AJ512/1000 -> 10.856
A58: Total employment | B58: =FT!P512/1000 -> 25.968 | C58: =PT!P512/1000 -> 1.739 | D58: =SE!P512/1000 -> 1.109 | E58: =All!P512/1000 -> 28.816 | G58: =FT!Z512/1000 -> 17.685 | H58: =PT!Z512/1000 -> 1.378 | I58: =SE!Z512/1000 -> 1.261 | J58: =All!Z512/1000 -> 20.324 | L58: =FT!AJ512/1000 -> 10.884 | M58: =PT!AJ512/1000 -> 1.688 | N58: =SE!AJ512/1000 -> 1.253 | O58: =All!AJ512/1000 -> 13.825
A60: Industry 4 Total
A61: Female employment | B61: =B46+B51+B56 -> 13.375 | C61: =C46+C51+C56 -> 3.926 | D61: 0.421 | E61: 17.722 | G61: =G46+G51+G56 -> 10.788 | H61: =H46+H51+H56 -> 3.171 | I61: 0.708 | J61: 14.667 | L61: =L46+L51+L56 -> 7.497 | M61: =M46+M51+M56 -> 2.722 | N61: 0.653 | O61: 10.872
A62: Male employment | B62: =B47+B52+B57 -> 56.612 | C62: 1.874 | D62: 4.23 | E62: 62.716 | G62: =G47+G52+G57 -> 46.225 | H62: 0.97 | I62: 2.315 | J62: 49.51 | L62: =L47+L52+L57 -> 30.16 | M62: 1.038 | N62: 1.967 | O62: 33.165
A63: Total employment | B63: 69.987 | C63: 5.8 | D63: 4.651 | E63: 80.438 | G63: 57.013 | H63: 4.141 | I63: 3.023 | J63: 64.177 | L63: 37.657 | M63: 3.76 | N63: 2.62 | O63: 44.037
A67: Industry 5 : Rest of manufacturing | B67: =$B$2 -> 2004 | G67: =$G$2 -> 2014 | L67: =$L$2 -> 2024
B68: Full-time | C68: Part-time | D68: Self-empl | E68: Total | G68: Full-time | H68: Part-time | I68: Self-empl | J68: Total | L68: Full-time | M68: Part-time | N68: Self-empl | O68: Total
A70: =All!A147 -> Textiles
A71: Female employment | B71: =FemalesFT!P148/1000 -> 1.253 | C71: =FemalesPT!P148/1000 -> 0.232 | D71: =FemalesSE!P148/1000 -> 0.491 | E71: =Females!P148/1000 -> 1.976 | G71: =FemalesFT!Z148/1000 -> 0.882 | H71: =FemalesPT!Z148/1000 -> 0.354 | I71: =FemalesSE!Z148/1000 -> 1.938 | J71: =Females!Z148/1000 -> 3.174 | L71: =FemalesFT!AJ148/1000 -> 0.76 | M71: =FemalesPT!AJ148/1000 -> 0.278 | N71: =FemalesSE!AJ148/1000 -> 1.439 | O71: =Females!AJ148/1000 -> 2.477
A72: Male employment | B72: =MalesFT!P148/1000 -> 1.878 | C72: =MalesPT!P148/1000 -> 0.066 | D72: =MalesSE!P148/1000 -> 0.222 | E72: =Males!P148/1000 -> 2.166 | G72: =MalesFT!Z148/1000 -> 1.626 | H72: =MalesPT!Z148/1000 -> 0.105 | I72: =MalesSE!Z148/1000 -> 0.309 | J72: =Males!Z148/1000 -> 2.04 | L72: =MalesFT!AJ148/1000 -> 1.437 | M72: =MalesPT!AJ148/1000 -> 0.097 | N72: =MalesSE!AJ148/1000 -> 0.239 | O72: =Males!AJ148/1000 -> 1.773
A73: Total employment | B73: =FT!P148/1000 -> 3.131 | C73: =PT!P148/1000 -> 0.298 | D73: =SE!P148/1000 -> 0.713 | E73: =All!P148/1000 -> 4.142 | G73: =FT!Z148/1000 -> 2.508 | H73: =PT!Z148/1000 -> 0.459 | I73: =SE!Z148/1000 -> 2.247 | J73: =All!Z148/1000 -> 5.214 | L73: =FT!AJ148/1000 -> 2.197 | M73: =PT!AJ148/1000 -> 0.375 | N73: =SE!AJ148/1000 -> 1.678 | O73: =All!AJ148/1000 -> 4.25
A75: =All!A175 -> Wearing apparel; Leather, etc
A76: Female employment | B76: =FemalesFT!P176/1000 -> 1.004 | C76: =FemalesPT!P176/1000 -> 0.23 | D76: =FemalesSE!P176/1000 -> 0.301 | E76: =Females!P176/1000 -> 1.535 | G76: =FemalesFT!Z176/1000 -> 0.412 | H76: =FemalesPT!Z176/1000 -> 0.051 | I76: =FemalesSE!Z176/1000 -> 0.34 | J76: =Females!Z176/1000 -> 0.803 | L76: =FemalesFT!AJ176/1000 -> 0.355 | M76: =FemalesPT!AJ176/1000 -> 0.04 | N76: =FemalesSE!AJ176/1000 -> 0.252 | O76: =Females!AJ176/1000 -> 0.647
A77: Male employment | B77: =MalesFT!P176/1000 -> 1.063 | C77: =MalesPT!P176/1000 -> 0.044 | D77: =MalesSE!P176/1000 -> 0.119 | E77: =Males!P176/1000 -> 1.226 | G77: =MalesFT!Z176/1000 -> 0.275 | H77: =MalesPT!Z176/1000 -> 0.008 | I77: =MalesSE!Z176/1000 -> 0.042 | J77: =Males!Z176/1000 -> 0.325 | L77: =MalesFT!AJ176/1000 -> 0.243 | M77: =MalesPT!AJ176/1000 -> 0.008 | N77: =MalesSE!AJ176/1000 -> 0.033 | O77: =Males!AJ176/1000 -> 0.284
A78: Total employment | B78: =FT!P176/1000 -> 2.067 | C78: =PT!P176/1000 -> 0.274 | D78: =SE!P176/1000 -> 0.42 | E78: =All!P176/1000 -> 2.761 | G78: =FT!Z176/1000 -> 0.687 | H78: =PT!Z176/1000 -> 0.059 | I78: =SE!Z176/1000 -> 0.382 | J78: =All!Z176/1000 -> 1.128 | L78: =FT!AJ176/1000 -> 0.598 | M78: =PT!AJ176/1000 -> 0.048 | N78: =SE!AJ176/1000 -> 0.285 | O78: =All!AJ176/1000 -> 0.931
A80: =All!A203 -> Wood, etc
A81: Female employment | B81: =FemalesFT!P204/1000 -> 1.615 | C81: =FemalesPT!P204/1000 -> 0.824 | D81: =FemalesSE!P204/1000 -> 0.087 | E81: =Females!P204/1000 -> 2.526 | G81: =FemalesFT!Z204/1000 -> 0.74 | H81: =FemalesPT!Z204/1000 -> 0.323 | I81: =FemalesSE!Z204/1000 -> 0.379 | J81: =Females!Z204/1000 -> 1.442 | L81: =FemalesFT!AJ204/1000 -> 0.724 | M81: =FemalesPT!AJ204/1000 -> 0.316 | N81: =FemalesSE!AJ204/1000 -> 0.329 | O81: =Females!AJ204/1000 -> 1.369
A82: Male employment | B82: =MalesFT!P204/1000 -> 6.107 | C82: =MalesPT!P204/1000 -> 0.22 | D82: =MalesSE!P204/1000 -> 0.732 | E82: =Males!P204/1000 -> 7.059 | G82: =MalesFT!Z204/1000 -> 5.224 | H82: =MalesPT!Z204/1000 -> 0.102 | I82: =MalesSE!Z204/1000 -> 0.894 | J82: =Males!Z204/1000 -> 6.22 | L82: =MalesFT!AJ204/1000 -> 4.621 | M82: =MalesPT!AJ204/1000 -> 0.16 | N82: =MalesSE!AJ204/1000 -> 0.762 | O82: =Males!AJ204/1000 -> 5.543
A83: Total employment | B83: =FT!P204/1000 -> 7.722 | C83: =PT!P204/1000 -> 1.044 | D83: =SE!P204/1000 -> 0.819 | E83: =All!P204/1000 -> 9.585 | G83: =FT!Z204/1000 -> 5.964 | H83: =PT!Z204/1000 -> 0.425 | I83: =SE!Z204/1000 -> 1.273 | J83: =All!Z204/1000 -> 7.662 | L83: =FT!AJ204/1000 -> 5.345 | M83: =PT!AJ204/1000 -> 0.476 | N83: =SE!AJ204/1000 -> 1.091 | O83: =All!AJ204/1000 -> 6.912
A85: =All!A231 -> Paper, etc
A86: Female employment | B86: =FemalesFT!P232/1000 -> 0.971 | C86: =FemalesPT!P232/1000 -> 0.137 | D86: =FemalesSE!P232/1000 -> 0.12 | E86: =Females!P232/1000 -> 1.228 | G86: =FemalesFT!Z232/1000 -> 0.471 | H86: =FemalesPT!Z232/1000 -> 0.029 | I86: =FemalesSE!Z232/1000 -> 0.373 | J86: =Females!Z232/1000 -> 0.873 | L86: =FemalesFT!AJ232/1000 -> 0.461 | M86: =FemalesPT!AJ232/1000 -> 0.028 | N86: =FemalesSE!AJ232/1000 -> 0.324 | O86: =Females!AJ232/1000 -> 0.813
A87: Male employment | B87: =MalesFT!P232/1000 -> 6.13 | C87: =MalesPT!P232/1000 -> 0.145 | D87: =MalesSE!P232/1000 -> 0.585 | E87: =Males!P232/1000 -> 6.86 | G87: =MalesFT!Z232/1000 -> 2.639 | H87: =MalesPT!Z232/1000 -> 0.043 | I87: =MalesSE!Z232/1000 -> 0.36 | J87: =Males!Z232/1000 -> 3.042 | L87: =MalesFT!AJ232/1000 -> 2.334 | M87: =MalesPT!AJ232/1000 -> 0.068 | N87: =MalesSE!AJ232/1000 -> 0.307 | O87: =Males!AJ232/1000 -> 2.709
A88: Total employment | B88: =FT!P232/1000 -> 7.101 | C88: =PT!P232/1000 -> 0.282 | D88: =SE!P232/1000 -> 0.705 | E88: =All!P232/1000 -> 8.088 | G88: =FT!Z232/1000 -> 3.11 | H88: =PT!Z232/1000 -> 0.072 | I88: =SE!Z232/1000 -> 0.733 | J88: =All!Z232/1000 -> 3.915 | L88: =FT!AJ232/1000 -> 2.795 | M88: =PT!AJ232/1000 -> 0.096 | N88: =SE!AJ232/1000 -> 0.631 | O88: =All!AJ232/1000 -> 3.522
A90: =All!A259 -> Printing & recording
A91: Female employment | B91: =FemalesFT!P260/1000 -> 7.276 | C91: =FemalesPT!P260/1000 -> 2.448 | D91: =FemalesSE!P260/1000 -> 2.528 | E91: =Females!P260/1000 -> 12.252 | G91: =FemalesFT!Z260/1000 -> 2.552 | H91: =FemalesPT!Z260/1000 -> 1.715 | I91: =FemalesSE!Z260/1000 -> 1.25 | J91: =Females!Z260/1000 -> 5.517 | L91: =FemalesFT!AJ260/1000 -> 2.478 | M91: =FemalesPT!AJ260/1000 -> 1.675 | N91: =FemalesSE!AJ260/1000 -> 1.146 | O91: =Females!AJ260/1000 -> 5.299
A92: Male employment | B92: =MalesFT!P260/1000 -> 13.735 | C92: =MalesPT!P260/1000 -> 0.745 | D92: =MalesSE!P260/1000 -> 1.105 | E92: =Males!P260/1000 -> 15.585 | G92: =MalesFT!Z260/1000 -> 8.725 | H92: =MalesPT!Z260/1000 -> 0.397 | I92: =MalesSE!Z260/1000 -> 1.181 | J92: =Males!Z260/1000 -> 10.303 | L92: =MalesFT!AJ260/1000 -> 7.862 | M92: =MalesPT!AJ260/1000 -> 0.571 | N92: =MalesSE!AJ260/1000 -> 1.076 | O92: =Males!AJ260/1000 -> 9.509
A93: Total employment | B93: =FT!P260/1000 -> 21.011 | C93: =PT!P260/1000 -> 3.193 | D93: =SE!P260/1000 -> 3.633 | E93: =All!P260/1000 -> 27.837 | G93: =FT!Z260/1000 -> 11.277 | H93: =PT!Z260/1000 -> 2.112 | I93: =SE!Z260/1000 -> 2.431 | J93: =All!Z260/1000 -> 15.82 | L93: =FT!AJ260/1000 -> 10.34 | M93: =PT!AJ260/1000 -> 2.246 | N93: =SE!AJ260/1000 -> 2.222 | O93: =All!AJ260/1000 -> 14.808
A95: =All!A287 -> Coke & refining; Chemicals,etc
A96: Female employment | B96: =FemalesFT!P288/1000 -> 7.771 | C96: =FemalesPT!P288/1000 -> 1.992 | D96: =FemalesSE!P288/1000 -> 0.654 | E96: =Females!P288/1000 -> 10.417 | G96: =FemalesFT!Z288/1000 -> 3.366 | H96: =FemalesPT!Z288/1000 -> 0.988 | I96: =FemalesSE!Z288/1000 -> 0.869 | J96: =Females!Z288/1000 -> 5.223 | L96: =FemalesFT!AJ288/1000 -> 4.101 | M96: =FemalesPT!AJ288/1000 -> 1.946 | N96: =FemalesSE!AJ288/1000 -> 1.131 | O96: =Females!AJ288/1000 -> 7.178
A97: Male employment | B97: =MalesFT!P288/1000 -> 16.717 | C97: =MalesPT!P288/1000 -> 0.506 | D97: =MalesSE!P288/1000 -> 0.692 | E97: =Males!P288/1000 -> 17.915 | G97: =MalesFT!Z288/1000 -> 8.834 | H97: =MalesPT!Z288/1000 -> 0.157 | I97: =MalesSE!Z288/1000 -> 0.57 | J97: =Males!Z288/1000 -> 9.561 | L97: =MalesFT!AJ288/1000 -> 11.985 | M97: =MalesPT!AJ288/1000 -> 0.331 | N97: =MalesSE!AJ288/1000 -> 0.529 | O97: =Males!AJ288/1000 -> 12.845
A98: Total employment | B98: =FT!P288/1000 -> 24.488 | C98: =PT!P288/1000 -> 2.498 | D98: =SE!P288/1000 -> 1.346 | E98: =All!P288/1000 -> 28.332 | G98: =FT!Z288/1000 -> 12.2 | H98: =PT!Z288/1000 -> 1.145 | I98: =SE!Z288/1000 -> 1.439 | J98: =All!Z288/1000 -> 14.784 | L98: =FT!AJ288/1000 -> 16.086 | M98: =PT!AJ288/1000 -> 2.277 | N98: =SE!AJ288/1000 -> 1.66 | O98: =All!AJ288/1000 -> 20.023
A100: =All!A315 -> Pharmaceuticals
A101: Female employment | B101: =FemalesFT!P316/1000 -> 5.539 | C101: =FemalesPT!P316/1000 -> 0.786 | D101: =FemalesSE!P316/1000 -> 0.239 | E101: =Females!P316/1000 -> 6.564 | G101: =FemalesFT!Z316/1000 -> 1.922 | H101: =FemalesPT!Z316/1000 -> 0.252 | I101: =FemalesSE!Z316/1000 -> 0.767 | J101: =Females!Z316/1000 -> 2.941 | L101: =FemalesFT!AJ316/1000 -> 1.624 | M101: =FemalesPT!AJ316/1000 -> 0.376 | N101: =FemalesSE!AJ316/1000 -> 0.775 | O101: =Females!AJ316/1000 -> 2.775
A102: Male employment | B102: =MalesFT!P316/1000 -> 10.655 | C102: =MalesPT!P316/1000 -> 0.191 | D102: =MalesSE!P316/1000 -> 0.337 | E102: =Males!P316/1000 -> 11.183 | G102: =MalesFT!Z316/1000 -> 3.676 | H102: =MalesPT!Z316/1000 -> 0.056 | I102: =MalesSE!Z316/1000 -> 0.947 | J102: =Males!Z316/1000 -> 4.679 | L102: =MalesFT!AJ316/1000 -> 2.004 | M102: =MalesPT!AJ316/1000 -> 0.08 | N102: =MalesSE!AJ316/1000 -> 0.969 | O102: =Males!AJ316/1000 -> 3.053
A103: Total employment | B103: =FT!P316/1000 -> 16.194 | C103: =PT!P316/1000 -> 0.977 | D103: =SE!P316/1000 -> 0.576 | E103: =All!P316/1000 -> 17.747 | G103: =FT!Z316/1000 -> 5.598 | H103: =PT!Z316/1000 -> 0.308 | I103: =SE!Z316/1000 -> 1.714 | J103: =All!Z316/1000 -> 7.62 | L103: =FT!AJ316/1000 -> 3.628 | M103: =PT!AJ316/1000 -> 0.456 | N103: =SE!AJ316/1000 -> 1.744 | O103: =All!AJ316/1000 -> 5.828
A105: =All!A343 -> Rubber & plastic
A106: Female employment | B106: =FemalesFT!P344/1000 -> 3.469 | C106: =FemalesPT!P344/1000 -> 1.21 | D106: =FemalesSE!P344/1000 -> 0.379 | E106: =Females!P344/1000 -> 5.058 | G106: =FemalesFT!Z344/1000 -> 2.296 | H106: =FemalesPT!Z344/1000 -> 0.546 | I106: =FemalesSE!Z344/1000 -> 1.246 | J106: =Females!Z344/1000 -> 4.088 | L106: =FemalesFT!AJ344/1000 -> 2.612 | M106: =FemalesPT!AJ344/1000 -> 0.457 | N106: =FemalesSE!AJ344/1000 -> 1.155 | O106: =Females!AJ344/1000 -> 4.224
A107: Male employment | B107: =MalesFT!P344/1000 -> 12.523 | C107: =MalesPT!P344/1000 -> 0.523 | D107: =MalesSE!P344/1000 -> 1.328 | E107: =Males!P344/1000 -> 14.374 | G107: =MalesFT!Z344/1000 -> 11.204 | H107: =MalesPT!Z344/1000 -> 0.143 | I107: =MalesSE!Z344/1000 -> 1.2 | J107: =Males!Z344/1000 -> 12.547 | L107: =MalesFT!AJ344/1000 -> 11.205 | M107: =MalesPT!AJ344/1000 -> 0.18 | N107: =MalesSE!AJ344/1000 -> 1.189 | O107: =Males!AJ344/1000 -> 12.574
A108: Total employment | B108: =FT!P344/1000 -> 15.992 | C108: =PT!P344/1000 -> 1.733 | D108: =SE!P344/1000 -> 1.707 | E108: =All!P344/1000 -> 19.432 | G108: =FT!Z344/1000 -> 13.5 | H108: =PT!Z344/1000 -> 0.689 | I108: =SE!Z344/1000 -> 2.446 | J108: =All!Z344/1000 -> 16.635 | L108: =FT!AJ344/1000 -> 13.817 | M108: =PT!AJ344/1000 -> 0.637 | N108: =SE!AJ344/1000 -> 2.344 | O108: =All!AJ344/1000 -> 16.798
A110: =All!A371 -> Other non-metallic
A111: Female employment | B111: =FemalesFT!P372/1000 -> 1.839 | C111: =FemalesPT!P372/1000 -> 0.464 | D111: =FemalesSE!P372/1000 -> 1.689 | E111: =Females!P372/1000 -> 3.992 | G111: =FemalesFT!Z372/1000 -> 0.448 | H111: =FemalesPT!Z372/1000 -> 0.155 | I111: =FemalesSE!Z372/1000 -> 0.28 | J111: =Females!Z372/1000 -> 0.883 | L111: =FemalesFT!AJ372/1000 -> 0.509 | M111: =FemalesPT!AJ372/1000 -> 0.13 | N111: =FemalesSE!AJ372/1000 -> 0.26 | O111: =Females!AJ372/1000 -> 0.899
A112: Male employment | B112: =MalesFT!P372/1000 -> 7.225 | C112: =MalesPT!P372/1000 -> 0.191 | D112: =MalesSE!P372/1000 -> 0.792 | E112: =Males!P372/1000 -> 8.208 | G112: =MalesFT!Z372/1000 -> 3.215 | H112: =MalesPT!Z372/1000 -> 0.049 | I112: =MalesSE!Z372/1000 -> 0.366 | J112: =Males!Z372/1000 -> 3.63 | L112: =MalesFT!AJ372/1000 -> 3.215 | M112: =MalesPT!AJ372/1000 -> 0.062 | N112: =MalesSE!AJ372/1000 -> 0.362 | O112: =Males!AJ372/1000 -> 3.639
A113: Total employment | B113: =FT!P372/1000 -> 9.064 | C113: =PT!P372/1000 -> 0.655 | D113: =SE!P372/1000 -> 2.481 | E113: =All!P372/1000 -> 12.2 | G113: =FT!Z372/1000 -> 3.663 | H113: =PT!Z372/1000 -> 0.204 | I113: =SE!Z372/1000 -> 0.646 | J113: =All!Z372/1000 -> 4.513 | L113: =FT!AJ372/1000 -> 3.724 | M113: =PT!AJ372/1000 -> 0.192 | N113: =SE!AJ372/1000 -> 0.622 | O113: =All!AJ372/1000 -> 4.538
A115: =All!A399 -> Basic metals
A116: Female employment | B116: =FemalesFT!P400/1000 -> 0.309 | C116: =FemalesPT!P400/1000 -> 0.034 | D116: =FemalesSE!P400/1000 -> 0.005 | E116: =Females!P400/1000 -> 0.348 | G116: =FemalesFT!Z400/1000 -> 0.319 | H116: =FemalesPT!Z400/1000 -> 0.122 | I116: =FemalesSE!Z400/1000 -> 0.023 | J116: =Females!Z400/1000 -> 0.464 | L116: =FemalesFT!AJ400/1000 -> 0.415 | M116: =FemalesPT!AJ400/1000 -> 0.12 | N116: =FemalesSE!AJ400/1000 -> 0.073 | O116: =Females!AJ400/1000 -> 0.608
A117: Male employment | B117: =MalesFT!P400/1000 -> 1.841 | C117: =MalesPT!P400/1000 -> 0.015 | D117: =MalesSE!P400/1000 -> 0.174 | E117: =Males!P400/1000 -> 2.03 | G117: =MalesFT!Z400/1000 -> 2.504 | H117: =MalesPT!Z400/1000 -> 0.059 | I117: =MalesSE!Z400/1000 -> 0.246 | J117: =Males!Z400/1000 -> 2.809 | L117: =MalesFT!AJ400/1000 -> 2.142 | M117: =MalesPT!AJ400/1000 -> 0.052 | N117: =MalesSE!AJ400/1000 -> 0.15 | O117: =Males!AJ400/1000 -> 2.344
A118: Total employment | B118: =FT!P400/1000 -> 2.15 | C118: =PT!P400/1000 -> 0.049 | D118: =SE!P400/1000 -> 0.179 | E118: =All!P400/1000 -> 2.378 | G118: =FT!Z400/1000 -> 2.823 | H118: =PT!Z400/1000 -> 0.181 | I118: =SE!Z400/1000 -> 0.269 | J118: =All!Z400/1000 -> 3.273 | L118: =FT!AJ400/1000 -> 2.557 | M118: =PT!AJ400/1000 -> 0.172 | N118: =SE!AJ400/1000 -> 0.223 | O118: =All!AJ400/1000 -> 2.952
A120: =All!A427 -> Metal products
A121: Female employment | B121: =FemalesFT!P428/1000 -> 3.815 | C121: =FemalesPT!P428/1000 -> 1.298 | D121: =FemalesSE!P428/1000 -> 0.118 | E121: =Females!P428/1000 -> 5.231 | G121: =FemalesFT!Z428/1000 -> 3.419 | H121: =FemalesPT!Z428/1000 -> 1.354 | I121: =FemalesSE!Z428/1000 -> 0.356 | J121: =Females!Z428/1000 -> 5.129 | L121: =FemalesFT!AJ428/1000 -> 3.066 | M121: =FemalesPT!AJ428/1000 -> 1.382 | N121: =FemalesSE!AJ428/1000 -> 0.18 | O121: =Females!AJ428/1000 -> 4.628
A122: Male employment | B122: =MalesFT!P428/1000 -> 25.96 | C122: =MalesPT!P428/1000 -> 0.333 | D122: =MalesSE!P428/1000 -> 2.432 | E122: =Males!P428/1000 -> 28.725 | G122: =MalesFT!Z428/1000 -> 29.559 | H122: =MalesPT!Z428/1000 -> 0.492 | I122: =MalesSE!Z428/1000 -> 2.675 | J122: =Males!Z428/1000 -> 32.726 | L122: =MalesFT!AJ428/1000 -> 24.143 | M122: =MalesPT!AJ428/1000 -> 0.406 | N122: =MalesSE!AJ428/1000 -> 3.259 | O122: =Males!AJ428/1000 -> 27.808
A123: Total employment | B123: =FT!P428/1000 -> 29.775 | C123: =PT!P428/1000 -> 1.631 | D123: =SE!P428/1000 -> 2.55 | E123: =All!P428/1000 -> 33.956 | G123: =FT!Z428/1000 -> 32.978 | H123: =PT!Z428/1000 -> 1.846 | I123: =SE!Z428/1000 -> 3.031 | J123: =All!Z428/1000 -> 37.855 | L123: =FT!AJ428/1000 -> 27.209 | M123: =PT!AJ428/1000 -> 1.788 | N123: =SE!AJ428/1000 -> 3.439 | O123: =All!AJ428/1000 -> 32.436
A125: =All!A539 -> Motor vehicles, etc
... 110 more rows

Sheet Table6.4.1.1
A1: Table 6.4.1.1 | B1: Employment Status
A2: All industries | E2: thousands | I2: Labels for graphs (DO NOT REMOVE!) | M2: - for :- | N2: Figure 6.x.1.3
A3: =All!P7 -> 2004 | N3: Figure 6.x.1.4
A4: Employment by Gender | B4: FT | C4: =I4 -> PT 2004 | D4: SE | E4: Total | I4: =CONCATENATE(" PT ",A3) -> PT 2004 | K4: =CONCATENATE(" PT ",All!$I$7,"-",RIGHT(TEXT(A3,"0"),2)) -> PT 1997-04 | N4: Figure 6.x.1.5
A5: Male employment | B5: =MalesFT!$P$8/1000 -> 1550.49 | C5: =MalesPT!$P$8/1000 -> 303.389 | D5: =MalesSE!$P$8/1000 -> 400.091 | E5: =Males!$P$8/1000 -> 2253.97
A6: Female employment | B6: =FemalesFT!$P$8/1000 -> 931.898 | C6: =FemalesPT!$P$8/1000 -> 907.776 | D6: =FemalesSE!$P$8/1000 -> 167.006 | E6: =Females!$P$8/1000 -> 2006.68
A7: Total employment | B7: =FT!$P$8/1000 -> 2482.388 | C7: =PT!$P$8/1000 -> 1211.165 | D7: =SE!$P$8/1000 -> 567.097 | E7: =All!$P$8/1000 -> 4260.65
A9: =All!U7 -> 2009
A10: Employment by Gender | B10: FT | C10: =I10 -> PT 2009 | D10: SE | E10: Total | I10: =CONCATENATE(" PT ",A9) -> PT 2009 | K10: =CONCATENATE(" PT ",A3,"-",RIGHT(TEXT(A9,"0"),2)) -> PT 2004-09
A11: Male employment | B11: =MalesFT!$U$8/1000 -> 1566.049 | C11: =MalesPT!$U$8/1000 -> 309.8 | D11: =MalesSE!$U$8/1000 -> 370.404 | E11: =Males!$U$8/1000 -> 2246.253
A12: Female employment | B12: =FemalesFT!$U$8/1000 -> 944.401 | C12: =FemalesPT!$U$8/1000 -> 928.609 | D12: =FemalesSE!$U$8/1000 -> 194.089 | E12: =Females!$U$8/1000 -> 2067.099
A13: Total employment | B13: =FT!$U$8/1000 -> 2510.45 | C13: =PT!$U$8/1000 -> 1238.409 | D13: =SE!$U$8/1000 -> 564.493 | E13: =All!$U$8/1000 -> 4313.352
A15: =All!Z7 -> 2014
A16: Employment by Gender | B16: FT | C16: =I16 -> PT 2014 | D16: SE | E16: Total | I16: =CONCATENATE(" PT ",A15) -> PT 2014 | K16: =CONCATENATE(" PT ",A9,"-",RIGHT(TEXT(A15,"0"),2)) -> PT 2009-14
A17: Male employment | B17: =MalesFT!$Z$8/1000 -> 1647.251 | C17: =MalesPT!$Z$8/1000 -> 348.835 | D17: =MalesSE!$Z$8/1000 -> 431.985 | E17: =Males!$Z$8/1000 -> 2428.071
A18: Female employment | B18: =FemalesFT!$Z$8/1000 -> 990.834 | C18: =FemalesPT!$Z$8/1000 -> 935.272 | D18: =FemalesSE!$Z$8/1000 -> 254.414 | E18: =Females!$Z$8/1000 -> 2180.52
A19: Total employment | B19: =FT!$Z$8/1000 -> 2638.085 | C19: =PT!$Z$8/1000 -> 1284.107 | D19: =SE!$Z$8/1000 -> 686.399 | E19: =All!$Z$8/1000 -> 4608.591
A21: =All!AE7 -> 2019
A22: Employment by Gender | B22: FT | C22: =I22 -> PT 2019 | D22: SE | E22: Total | I22: =CONCATENATE(" PT ",A21) -> PT 2019 | K22: =CONCATENATE(" PT ",A15,"-",RIGHT(TEXT(A21,"0"),2)) -> PT 2014-19
A23: Male employment | B23: =MalesFT!$AE$8/1000 -> 1707.242 | C23: =MalesPT!$AE$8/1000 -> 385.154 | D23: =MalesSE!$AE$8/1000 -> 439.25 | E23: =Males!$AE$8/1000 -> 2531.646
A24: Female employment | B24: =FemalesFT!$AE$8/1000 -> 1033.155 | C24: =FemalesPT!$AE$8/1000 -> 972.341 | D24: =FemalesSE!$AE$8/1000 -> 257.282 | E24: =Females!$AE$8/1000 -> 2262.778
A25: Total employment | B25: =FT!$AE$8/1000 -> 2740.397 | C25: =PT!$AE$8/1000 -> 1357.495 | D25: =SE!$AE$8/1000 -> 696.532 | E25: =All!$AE$8/1000 -> 4794.424
A27: =All!AJ7 -> 2024
A28: Employment by Gender | B28: FT | C28: =I28 -> PT 2024 | D28: SE | E28: Total | I28: =CONCATENATE(" PT ",A27) -> PT 2024 | K28: =CONCATENATE(" PT ",A21,"-",RIGHT(TEXT(A27,"0"),2)) -> PT 2019-24
A29: Male employment | B29: =MalesFT!$AJ$8/1000 -> 1718.365 | C29: =MalesPT!$AJ$8/1000 -> 421.337 | D29: =MalesSE!$AJ$8/1000 -> 433.298 | E29: =Males!$AJ$8/1000 -> 2573
A30: Female employment | B30: =FemalesFT!$AJ$8/1000 -> 1067.626 | C30: =FemalesPT!$AJ$8/1000 -> 1006.926 | D30: =FemalesSE!$AJ$8/1000 -> 256.082 | E30: =Females!$AJ$8/1000 -> 2330.634
A31: Total employment | B31: =FT!$AJ$8/1000 -> 2785.991 | C31: =PT!$AJ$8/1000 -> 1428.263 | D31: =SE!$AJ$8/1000 -> 689.38 | E31: =All!$AJ$8/1000 -> 4903.634
A34: Table 6.4.1.1 | B34: Employment Status
A35: =All!$A$35 -> Agriculture, etc | E35: =$E$2 -> thousands
A36: =A$3 -> 2004
A37: Employment by Gender | B37: FT | C37: PT | D37: SE | E37: Total
A38: Male employment | B38: =MalesFT!$P$36/1000 -> 25.953 | C38: =MalesPT!$P$36/1000 -> 2.086 | D38: =MalesSE!$P$36/1000 -> 6.955 | E38: =Males!$P$36/1000 -> 34.994
A39: Female employment | B39: =FemalesFT!$P$36/1000 -> 6.681 | C39: =FemalesPT!$P$36/1000 -> 9.896 | D39: =FemalesSE!$P$36/1000 -> 1.035 | E39: =Females!$P$36/1000 -> 17.612
A40: Total employment | B40: =FT!$P$36/1000 -> 32.634 | C40: =PT!$P$36/1000 -> 11.982 | D40: =SE!$P$36/1000 -> 7.99 | E40: =All!$P$36/1000 -> 52.606
A42: =A$9 -> 2009
A43: Employment by Gender | B43: FT | C43: PT | D43: SE | E43: Total
A44: Male employment | B44: =MalesFT!$U$36/1000 -> 24.692 | C44: =MalesPT!$U$36/1000 -> 3.19 | D44: =MalesSE!$U$36/1000 -> 8.919 | E44: =Males!$U$36/1000 -> 36.801
A45: Female employment | B45: =FemalesFT!$U$36/1000 -> 4.147 | C45: =FemalesPT!$U$36/1000 -> 1.977 | D45: =FemalesSE!$U$36/1000 -> 3.112 | E45: =Females!$U$36/1000 -> 9.236
A46: Total employment | B46: =FT!$U$36/1000 -> 28.839 | C46: =PT!$U$36/1000 -> 5.167 | D46: =SE!$U$36/1000 -> 12.031 | E46: =All!$U$36/1000 -> 46.037
A48: =A$15 -> 2014
A49: Employment by Gender | B49: FT | C49: PT | D49: SE | E49: Total
A50: Male employment | B50: =MalesFT!$Z$36/1000 -> 18.091 | C50: =MalesPT!$Z$36/1000 -> 2.998 | D50: =MalesSE!$Z$36/1000 -> 19.865 | E50: =Males!$Z$36/1000 -> 40.954
A51: Female employment | B51: =FemalesFT!$Z$36/1000 -> 5.981 | C51: =FemalesPT!$Z$36/1000 -> 6.88 | D51: =FemalesSE!$Z$36/1000 -> 4.196 | E51: =Females!$Z$36/1000 -> 17.057
A52: Total employment | B52: =FT!$Z$36/1000 -> 24.072 | C52: =PT!$Z$36/1000 -> 9.878 | D52: =SE!$Z$36/1000 -> 24.061 | E52: =All!$Z$36/1000 -> 58.011
A54: =A$21 -> 2019
A55: Employment by Gender | B55: FT | C55: PT | D55: SE | E55: Total
A56: Male employment | B56: =MalesFT!$AE$36/1000 -> 14.763 | C56: =MalesPT!$AE$36/1000 -> 2.728 | D56: =MalesSE!$AE$36/1000 -> 16.25 | E56: =Males!$AE$36/1000 -> 33.741
A57: Female employment | B57: =FemalesFT!$AE$36/1000 -> 5.372 | C57: =FemalesPT!$AE$36/1000 -> 6.639 | D57: =FemalesSE!$AE$36/1000 -> 3.543 | E57: =Females!$AE$36/1000 -> 15.554
A58: Total employment | B58: =FT!$AE$36/1000 -> 20.135 | C58: =PT!$AE$36/1000 -> 9.367 | D58: =SE!$AE$36/1000 -> 19.793 | E58: =All!$AE$36/1000 -> 49.295
A60: =A$27 -> 2024
A61: Employment by Gender | B61: FT | C61: PT | D61: SE | E61: Total
A62: Male employment | B62: =MalesFT!$AJ$36/1000 -> 13.015 | C62: =MalesPT!$AJ$36/1000 -> 2.754 | D62: =MalesSE!$AJ$36/1000 -> 14.264 | E62: =Males!$AJ$36/1000 -> 30.033
A63: Female employment | B63: =FemalesFT!$AJ$36/1000 -> 5.411 | C63: =FemalesPT!$AJ$36/1000 -> 7.222 | D63: =FemalesSE!$AJ$36/1000 -> 3.28 | E63: =Females!$AJ$36/1000 -> 15.913
A64: Total employment | B64: =FT!$AJ$36/1000 -> 18.426 | C64: =PT!$AJ$36/1000 -> 9.976 | D64: =SE!$AJ$36/1000 -> 17.544 | E64: =All!$AJ$36/1000 -> 45.946
A67: Table 6.4.1.1 | B67: Employment Status
A68: =All!$A$63 -> Coal, oil & gas; Mining & related | E68: =$E$2 -> thousands
A69: =A$3 -> 2004
A70: Employment by Gender | B70: FT | C70: PT | D70: SE | E70: Total
A71: Male employment | B71: =MalesFT!$P$64/1000 -> 2.843 | C71: =MalesPT!$P$64/1000 -> 0.112 | D71: =MalesSE!$P$64/1000 -> 0 | E71: =Males!$P$64/1000 -> 2.955
A72: Female employment | B72: =FemalesFT!$P$64/1000 -> 1.456 | C72: =FemalesPT!$P$64/1000 -> 0.195 | D72: =FemalesSE!$P$64/1000 -> 0.054 | E72: =Females!$P$64/1000 -> 1.705
A73: Total employment | B73: =FT!$P$64/1000 -> 4.299 | C73: =PT!$P$64/1000 -> 0.307 | D73: =SE!$P$64/1000 -> 0.054 | E73: =All!$P$64/1000 -> 4.66
A75: =A$9 -> 2009
A76: Employment by Gender | B76: FT | C76: PT | D76: SE | E76: Total
A77: Male employment | B77: =MalesFT!$U$64/1000 -> 3.888 | C77: =MalesPT!$U$64/1000 -> 0.109 | D77: =MalesSE!$U$64/1000 -> 0 | E77: =Males!$U$64/1000 -> 3.997
A78: Female employment | B78: =FemalesFT!$U$64/1000 -> 1.416 | C78: =FemalesPT!$U$64/1000 -> 0.001 | D78: =FemalesSE!$U$64/1000 -> 0.103 | E78: =Females!$U$64/1000 -> 1.52
A79: Total employment | B79: =FT!$U$64/1000 -> 5.304 | C79: =PT!$U$64/1000 -> 0.11 | D79: =SE!$U$64/1000 -> 0.103 | E79: =All!$U$64/1000 -> 5.517
A81: =A$15 -> 2014
A82: Employment by Gender | B82: FT | C82: PT | D82: SE | E82: Total
A83: Male employment | B83: =MalesFT!$Z$64/1000 -> 3.041 | C83: =MalesPT!$Z$64/1000 -> 0.109 | D83: =MalesSE!$Z$64/1000 -> 0.656 | E83: =Males!$Z$64/1000 -> 3.806
A84: Female employment | B84: =FemalesFT!$Z$64/1000 -> 1.157 | C84: =FemalesPT!$Z$64/1000 -> 0.001 | D84: =FemalesSE!$Z$64/1000 -> 0 | E84: =Females!$Z$64/1000 -> 1.158
A85: Total employment | B85: =FT!$Z$64/1000 -> 4.198 | C85: =PT!$Z$64/1000 -> 0.11 | D85: =SE!$Z$64/1000 -> 0.656 | E85: =All!$Z$64/1000 -> 4.964
A87: =A$21 -> 2019
A88: Employment by Gender | B88: FT | C88: PT | D88: SE | E88: Total
A89: Male employment | B89: =MalesFT!$AE$64/1000 -> 3.994 | C89: =MalesPT!$AE$64/1000 -> 0.151 | D89: =MalesSE!$AE$64/1000 -> 0.791 | E89: =Males!$AE$64/1000 -> 4.936
A90: Female employment | B90: =FemalesFT!$AE$64/1000 -> 1.545 | C90: =FemalesPT!$AE$64/1000 -> 0.001 | D90: =FemalesSE!$AE$64/1000 -> 0 | E90: =Females!$AE$64/1000 -> 1.546
A91: Total employment | B91: =FT!$AE$64/1000 -> 5.539 | C91: =PT!$AE$64/1000 -> 0.152 | D91: =SE!$AE$64/1000 -> 0.791 | E91: =All!$AE$64/1000 -> 6.482
A93: =A$27 -> 2024
A94: Employment by Gender | B94: FT | C94: PT | D94: SE | E94: Total
A95: Male employment | B95: =MalesFT!$AJ$64/1000 -> 3.184 | C95: =MalesPT!$AJ$64/1000 -> 0.156 | D95: =MalesSE!$AJ$64/1000 -> 0.659 | E95: =Males!$AJ$64/1000 -> 3.999
A96: Female employment | B96: =FemalesFT!$AJ$64/1000 -> 1.166 | C96: =FemalesPT!$AJ$64/1000 -> 0.001 | D96: =FemalesSE!$AJ$64/1000 -> 0 | E96: =Females!$AJ$64/1000 -> 1.167
A97: Total employment | B97: =FT!$AJ$64/1000 -> 4.35 | C97: =PT!$AJ$64/1000 -> 0.157 | D97: =SE!$AJ$64/1000 -> 0.659 | E97: =All!$AJ$64/1000 -> 5.166
A100: Table 6.4.1.1 | B100: Employment Status
A101: =All!$A$91 -> Food products | E101: =$E$2 -> thousands
A102: =A$3 -> 2004
A103: Employment by Gender | B103: FT | C103: PT | D103: SE | E103: Total
A104: Male employment | B104: =MalesFT!$P$92/1000 -> 16.374 | C104: =MalesPT!$P$92/1000 -> 1 | D104: =MalesSE!$P$92/1000 -> 1.104 | E104: =Males!$P$92/1000 -> 18.478
A105: Female employment | B105: =FemalesFT!$P$92/1000 -> 6.656 | C105: =FemalesPT!$P$92/1000 -> 1.716 | D105: =FemalesSE!$P$92/1000 -> 0.11 | E105: =Females!$P$92/1000 -> 8.482
A106: Total employment | B106: =FT!$P$92/1000 -> 23.03 | C106: =PT!$P$92/1000 -> 2.716 | D106: =SE!$P$92/1000 -> 1.214 | E106: =All!$P$92/1000 -> 26.96
A108: =A$9 -> 2009
A109: Employment by Gender | B109: FT | C109: PT | D109: SE | E109: Total
A110: Male employment | B110: =MalesFT!$U$92/1000 -> 14.464 | C110: =MalesPT!$U$92/1000 -> 0.528 | D110: =MalesSE!$U$92/1000 -> 0.45 | E110: =Males!$U$92/1000 -> 15.442
A111: Female employment | B111: =FemalesFT!$U$92/1000 -> 7.324 | C111: =FemalesPT!$U$92/1000 -> 2.285 | D111: =FemalesSE!$U$92/1000 -> 0.933 | E111: =Females!$U$92/1000 -> 10.542
A112: Total employment | B112: =FT!$U$92/1000 -> 21.788 | C112: =PT!$U$92/1000 -> 2.813 | D112: =SE!$U$92/1000 -> 1.383 | E112: =All!$U$92/1000 -> 25.984
A114: =A$15 -> 2014
A115: Employment by Gender | B115: FT | C115: PT | D115: SE | E115: Total
A116: Male employment | B116: =MalesFT!$Z$92/1000 -> 12.657 | C116: =MalesPT!$Z$92/1000 -> 0.307 | D116: =MalesSE!$Z$92/1000 -> 0.345 | E116: =Males!$Z$92/1000 -> 13.309
A117: Female employment | B117: =FemalesFT!$Z$92/1000 -> 5.459 | C117: =FemalesPT!$Z$92/1000 -> 0.886 | D117: =FemalesSE!$Z$92/1000 -> 1.463 | E117: =Females!$Z$92/1000 -> 7.808
A118: Total employment | B118: =FT!$Z$92/1000 -> 18.116 | C118: =PT!$Z$92/1000 -> 1.193 | D118: =SE!$Z$92/1000 -> 1.808 | E118: =All!$Z$92/1000 -> 21.117
A120: =A$21 -> 2019
A121: Employment by Gender | B121: FT | C121: PT | D121: SE | E121: Total
A122: Male employment | B122: =MalesFT!$AE$92/1000 -> 13.136 | C122: =MalesPT!$AE$92/1000 -> 0.373 | D122: =MalesSE!$AE$92/1000 -> 0.36 | E122: =Males!$AE$92/1000 -> 13.869
A123: Female employment | B123: =FemalesFT!$AE$92/1000 -> 5.742 | C123: =FemalesPT!$AE$92/1000 -> 0.95 | D123: =FemalesSE!$AE$92/1000 -> 1.518 | E123: =Females!$AE$92/1000 -> 8.21
A124: Total employment | B124: =FT!$AE$92/1000 -> 18.878 | C124: =PT!$AE$92/1000 -> 1.323 | D124: =SE!$AE$92/1000 -> 1.878 | E124: =All!$AE$92/1000 -> 22.079
... 124 more rows

Sheet Table6.4.1.3
A1: Table 6.4.1.3 | B1: Employment changes
A2: =All!$A$7 -> All industries | E2: thousands | I2: Labels for graphs (DO NOT REMOVE!)
A3: =All!K7&"-"&All!P7 -> 1999-2004
A4: Employment by Gender | B4: FT | C4: =I4 -> PT 1999 | D4: SE | E4: Total | I4: =CONCATENATE(" PT ",All!$K$7) -> PT 1999 | K4: =CONCATENATE(" SE -",RIGHT(TEXT(All!$P$7,"0"),2)) -> SE -04
A5: Male employment | B5: =(MalesFT!$P$8-MalesFT!$K$8)/1000 -> 31.396 | C5: =(MalesPT!$P$8-MalesPT!$K$8)/1000 -> 49.801 | D5: =(MalesSE!$P$8-MalesSE!$K$8)/1000 -> 46.213 | E5: =(Males!$P$8-Males!$K$8)/1000 -> 127.41
A6: Female employment | B6: =(FemalesFT!$P$8-FemalesFT!$K$8)/1000 -> 51.895 | C6: =(FemalesPT!$P$8-FemalesPT!$K$8)/1000 -> 48.757 | D6: =(FemalesSE!$P$8-FemalesSE!$K$8)/1000 -> -0.087 | E6: =(Females!$P$8-Females!$K$8)/1000 -> 100.565
A7: Total employment | B7: =(FT!$P$8-FT!$K$8)/1000 -> 83.291 | C7: =(PT!$P$8-PT!$K$8)/1000 -> 98.558 | D7: =(SE!$P$8-SE!$K$8)/1000 -> 46.126 | E7: =(All!$P$8-All!$K$8)/1000 -> 227.975
A9: =All!P7&"-"&All!U7 -> 2004-2009
A10: Employment by Gender | B10: FT | C10: =I10 -> PT 2004 | D10: =D4 -> SE | E10: Total | I10: =CONCATENATE(" PT ",All!$P$7) -> PT 2004 | K10: =CONCATENATE(" SE -",RIGHT(TEXT(All!$U$7,"0"),2)) -> SE -09
A11: Male employment | B11: =(MalesFT!$U$8-MalesFT!$P$8)/1000 -> 15.559 | C11: =(MalesPT!$U$8-MalesPT!$P$8)/1000 -> 6.411 | D11: =(MalesSE!$U$8-MalesSE!$P$8)/1000 -> -29.687 | E11: =(Males!$U$8-Males!$P$8)/1000 -> -7.717
A12: Female employment | B12: =(FemalesFT!$U$8-FemalesFT!$P$8)/1000 -> 12.503 | C12: =(FemalesPT!$U$8-FemalesPT!$P$8)/1000 -> 20.833 | D12: =(FemalesSE!$U$8-FemalesSE!$P$8)/1000 -> 27.083 | E12: =(Females!$U$8-Females!$P$8)/1000 -> 60.419
A13: Total employment | B13: =(FT!$U$8-FT!$P$8)/1000 -> 28.062 | C13: =(PT!$U$8-PT!$P$8)/1000 -> 27.244 | D13: =(SE!$U$8-SE!$P$8)/1000 -> -2.604 | E13: =(All!$U$8-All!$P$8)/1000 -> 52.702
A15: =All!U7&"-"&All!Z7 -> 2009-2014
A16: Employment by Gender | B16: FT | C16: =I16 -> PT 2009 | D16: =D10 -> SE | E16: Total | I16: =CONCATENATE(" PT ",All!$U$7) -> PT 2009 | K16: =CONCATENATE(" SE -",RIGHT(TEXT(All!$Z$7,"0"),2)) -> SE -14
A17: Male employment | B17: =(MalesFT!$Z$8-MalesFT!$U$8)/1000 -> 81.202 | C17: =(MalesPT!$Z$8-MalesPT!$U$8)/1000 -> 39.035 | D17: =(MalesSE!$Z$8-MalesSE!$U$8)/1000 -> 61.581 | E17: =(Males!$Z$8-Males!$U$8)/1000 -> 181.818
A18: Female employment | B18: =(FemalesFT!$Z$8-FemalesFT!$U$8)/1000 -> 46.433 | C18: =(FemalesPT!$Z$8-FemalesPT!$U$8)/1000 -> 6.663 | D18: =(FemalesSE!$Z$8-FemalesSE!$U$8)/1000 -> 60.325 | E18: =(Females!$Z$8-Females!$U$8)/1000 -> 113.421
A19: Total employment | B19: =(FT!$Z$8-FT!$U$8)/1000 -> 127.635 | C19: =(PT!$Z$8-PT!$U$8)/1000 -> 45.698 | D19: =(SE!$Z$8-SE!$U$8)/1000 -> 121.906 | E19: =(All!$Z$8-All!$U$8)/1000 -> 295.239
A21: =All!Z7&"-"&All!AE7 -> 2014-2019
A22: Employment by Gender | B22: FT | C22: =I22 -> PT 2014 | D22: =D16 -> SE | E22: Total | I22: =CONCATENATE(" PT ",All!$Z$7) -> PT 2014 | K22: =CONCATENATE(" SE -",RIGHT(TEXT(All!$AE$7,"0"),2)) -> SE -19
A23: Male employment | B23: =(MalesFT!$AE$8-MalesFT!$Z$8)/1000 -> 59.991 | C23: =(MalesPT!$AE$8-MalesPT!$Z$8)/1000 -> 36.319 | D23: =(MalesSE!$AE$8-MalesSE!$Z$8)/1000 -> 7.265 | E23: =(Males!$AE$8-Males!$Z$8)/1000 -> 103.575
A24: Female employment | B24: =(FemalesFT!$AE$8-FemalesFT!$Z$8)/1000 -> 42.321 | C24: =(FemalesPT!$AE$8-FemalesPT!$Z$8)/1000 -> 37.069 | D24: =(FemalesSE!$AE$8-FemalesSE!$Z$8)/1000 -> 2.868 | E24: =(Females!$AE$8-Females!$Z$8)/1000 -> 82.258
A25: Total employment | B25: =(FT!$AE$8-FT!$Z$8)/1000 -> 102.312 | C25: =(PT!$AE$8-PT!$Z$8)/1000 -> 73.388 | D25: =(SE!$AE$8-SE!$Z$8)/1000 -> 10.133 | E25: =(All!$AE$8-All!$Z$8)/1000 -> 185.833
A27: =All!AE7&"-"&All!AJ7 -> 2019-2024
A28: Employment by Gender | B28: FT | C28: =I28 -> PT 2019 | D28: SE | E28: Total | I28: =CONCATENATE(" PT ",All!$AE$7) -> PT 2019 | K28: =CONCATENATE(" SE -",RIGHT(TEXT(All!$AJ$7,"0"),2)) -> SE -24
A29: Male employment | B29: =(MalesFT!$AJ$8-MalesFT!$AE$8)/1000 -> 11.123 | C29: =(MalesPT!$AJ$8-MalesPT!$AE$8)/1000 -> 36.183 | D29: =(MalesSE!$AJ$8-MalesSE!$AE$8)/1000 -> -5.952 | E29: =(Males!$AJ$8-Males!$AE$8)/1000 -> 41.354
A30: Female employment | B30: =(FemalesFT!$AJ$8-FemalesFT!$AE$8)/1000 -> 34.471 | C30: =(FemalesPT!$AJ$8-FemalesPT!$AE$8)/1000 -> 34.585 | D30: =(FemalesSE!$AJ$8-FemalesSE!$AE$8)/1000 -> -1.2 | E30: =(Females!$AJ$8-Females!$AE$8)/1000 -> 67.856
A31: Total employment | B31: =(FT!$AJ$8-FT!$AE$8)/1000 -> 45.594 | C31: =(PT!$AJ$8-PT!$AE$8)/1000 -> 70.768 | D31: =(SE!$AJ$8-SE!$AE$8)/1000 -> -7.152 | E31: =(All!$AJ$8-All!$AE$8)/1000 -> 109.21
A34: Table 6.4.1.3 | B34: Employment changes
A35: =All!$A$35 -> Agriculture, etc | E35: =$E$2 -> thousands
A36: =A$3 -> 1999-2004
A37: Employment by Gender | B37: FT | C37: PT | D37: SE | E37: Total
A38: Male employment | B38: =(MalesFT!$P$36-MalesFT!$K$36)/1000 -> 3.915 | C38: =(MalesPT!$P$36-MalesPT!$K$36)/1000 -> 0.047 | D38: =(MalesSE!$P$36-MalesSE!$K$36)/1000 -> -2.055 | E38: =(Males!$P$36-Males!$K$36)/1000 -> 1.907
A39: Female employment | B39: =(FemalesFT!$P$36-FemalesFT!$K$36)/1000 -> -0.565 | C39: =(FemalesPT!$P$36-FemalesPT!$K$36)/1000 -> 2.872 | D39: =(FemalesSE!$P$36-FemalesSE!$K$36)/1000 -> -1.085 | E39: =(Females!$P$36-Females!$K$36)/1000 -> 1.222
A40: Total employment | B40: =(FT!$P$36-FT!$K$36)/1000 -> 3.35 | C40: =(PT!$P$36-PT!$K$36)/1000 -> 2.919 | D40: =(SE!$P$36-SE!$K$36)/1000 -> -3.14 | E40: =(All!$P$36-All!$K$36)/1000 -> 3.129
A42: =A$9 -> 2004-2009
A43: Employment by Gender | B43: FT | C43: PT | D43: SE | E43: Total
A44: Male employment | B44: =(MalesFT!$U$36-MalesFT!$P$36)/1000 -> -1.261 | C44: =(MalesPT!$U$36-MalesPT!$P$36)/1000 -> 1.104 | D44: =(MalesSE!$U$36-MalesSE!$P$36)/1000 -> 1.964 | E44: =(Males!$U$36-Males!$P$36)/1000 -> 1.807
A45: Female employment | B45: =(FemalesFT!$U$36-FemalesFT!$P$36)/1000 -> -2.534 | C45: =(FemalesPT!$U$36-FemalesPT!$P$36)/1000 -> -7.919 | D45: =(FemalesSE!$U$36-FemalesSE!$P$36)/1000 -> 2.077 | E45: =(Females!$U$36-Females!$P$36)/1000 -> -8.376
A46: Total employment | B46: =(FT!$U$36-FT!$P$36)/1000 -> -3.795 | C46: =(PT!$U$36-PT!$P$36)/1000 -> -6.815 | D46: =(SE!$U$36-SE!$P$36)/1000 -> 4.041 | E46: =(All!$U$36-All!$P$36)/1000 -> -6.569
A48: =A$15 -> 2009-2014
A49: Employment by Gender | B49: FT | C49: PT | D49: SE | E49: Total
A50: Male employment | B50: =(MalesFT!$Z$36-MalesFT!$U$36)/1000 -> -6.601 | C50: =(MalesPT!$Z$36-MalesPT!$U$36)/1000 -> -0.192 | D50: =(MalesSE!$Z$36-MalesSE!$U$36)/1000 -> 10.946 | E50: =(Males!$Z$36-Males!$U$36)/1000 -> 4.153
A51: Female employment | B51: =(FemalesFT!$Z$36-FemalesFT!$U$36)/1000 -> 1.834 | C51: =(FemalesPT!$Z$36-FemalesPT!$U$36)/1000 -> 4.903 | D51: =(FemalesSE!$Z$36-FemalesSE!$U$36)/1000 -> 1.084 | E51: =(Females!$Z$36-Females!$U$36)/1000 -> 7.821
A52: Total employment | B52: =(FT!$Z$36-FT!$U$36)/1000 -> -4.767 | C52: =(PT!$Z$36-PT!$U$36)/1000 -> 4.711 | D52: =(SE!$Z$36-SE!$U$36)/1000 -> 12.03 | E52: =(All!$Z$36-All!$U$36)/1000 -> 11.974
A54: =A$21 -> 2014-2019
A55: Employment by Gender | B55: FT | C55: PT | D55: SE | E55: Total
A56: Male employment | B56: =(MalesFT!$AE$36-MalesFT!$Z$36)/1000 -> -3.328 | C56: =(MalesPT!$AE$36-MalesPT!$Z$36)/1000 -> -0.27 | D56: =(MalesSE!$AE$36-MalesSE!$Z$36)/1000 -> -3.615 | E56: =(Males!$AE$36-Males!$Z$36)/1000 -> -7.213
A57: Female employment | B57: =(FemalesFT!$AE$36-FemalesFT!$Z$36)/1000 -> -0.609 | C57: =(FemalesPT!$AE$36-FemalesPT!$Z$36)/1000 -> -0.241 | D57: =(FemalesSE!$AE$36-FemalesSE!$Z$36)/1000 -> -0.653 | E57: =(Females!$AE$36-Females!$Z$36)/1000 -> -1.503
A58: Total employment | B58: =(FT!$AE$36-FT!$Z$36)/1000 -> -3.937 | C58: =(PT!$AE$36-PT!$Z$36)/1000 -> -0.511 | D58: =(SE!$AE$36-SE!$Z$36)/1000 -> -4.268 | E58: =(All!$AE$36-All!$Z$36)/1000 -> -8.716
A60: =A$27 -> 2019-2024
A61: Employment by Gender | B61: FT | C61: PT | D61: SE | E61: Total
A62: Male employment | B62: =(MalesFT!$AJ$36-MalesFT!$AE$36)/1000 -> -1.748 | C62: =(MalesPT!$AJ$36-MalesPT!$AE$36)/1000 -> 0.026 | D62: =(MalesSE!$AJ$36-MalesSE!$AE$36)/1000 -> -1.986 | E62: =(Males!$AJ$36-Males!$AE$36)/1000 -> -3.708
A63: Female employment | B63: =(FemalesFT!$AJ$36-FemalesFT!$AE$36)/1000 -> 0.039 | C63: =(FemalesPT!$AJ$36-FemalesPT!$AE$36)/1000 -> 0.583 | D63: =(FemalesSE!$AJ$36-FemalesSE!$AE$36)/1000 -> -0.263 | E63: =(Females!$AJ$36-Females!$AE$36)/1000 -> 0.359
A64: Total employment | B64: =(FT!$AJ$36-FT!$AE$36)/1000 -> -1.709 | C64: =(PT!$AJ$36-PT!$AE$36)/1000 -> 0.609 | D64: =(SE!$AJ$36-SE!$AE$36)/1000 -> -2.249 | E64: =(All!$AJ$36-All!$AE$36)/1000 -> -3.349
A67: Table 6.4.1.3 | B67: Employment changes
A68: =All!$A$63 -> Coal, oil & gas; Mining & related | E68: =$E$2 -> thousands
A69: =A$3 -> 1999-2004
A70: Employment by Gender | B70: FT | C70: PT | D70: SE | E70: Total
A71: Male employment | B71: =(MalesFT!$P$64-MalesFT!$K$64)/1000 -> -1.137 | C71: =(MalesPT!$P$64-MalesPT!$K$64)/1000 -> 0.002 | D71: =(MalesSE!$P$64-MalesSE!$K$64)/1000 -> -0.001 | E71: =(Males!$P$64-Males!$K$64)/1000 -> -1.136
A72: Female employment | B72: =(FemalesFT!$P$64-FemalesFT!$K$64)/1000 -> 0.158 | C72: =(FemalesPT!$P$64-FemalesPT!$K$64)/1000 -> 0.069 | D72: =(FemalesSE!$P$64-FemalesSE!$K$64)/1000 -> 0.054 | E72: =(Females!$P$64-Females!$K$64)/1000 -> 0.281
A73: Total employment | B73: =(FT!$P$64-FT!$K$64)/1000 -> -0.979 | C73: =(PT!$P$64-PT!$K$64)/1000 -> 0.071 | D73: =(SE!$P$64-SE!$K$64)/1000 -> 0.053 | E73: =(All!$P$64-All!$K$64)/1000 -> -0.855
A75: =A$9 -> 2004-2009
A76: Employment by Gender | B76: FT | C76: PT | D76: SE | E76: Total
A77: Male employment | B77: =(MalesFT!$U$64-MalesFT!$P$64)/1000 -> 1.045 | C77: =(MalesPT!$U$64-MalesPT!$P$64)/1000 -> -0.003 | D77: =(MalesSE!$U$64-MalesSE!$P$64)/1000 -> 0 | E77: =(Males!$U$64-Males!$P$64)/1000 -> 1.042
A78: Female employment | B78: =(FemalesFT!$U$64-FemalesFT!$P$64)/1000 -> -0.04 | C78: =(FemalesPT!$U$64-FemalesPT!$P$64)/1000 -> -0.194 | D78: =(FemalesSE!$U$64-FemalesSE!$P$64)/1000 -> 0.049 | E78: =(Females!$U$64-Females!$P$64)/1000 -> -0.185
A79: Total employment | B79: =(FT!$U$64-FT!$P$64)/1000 -> 1.005 | C79: =(PT!$U$64-PT!$P$64)/1000 -> -0.197 | D79: =(SE!$U$64-SE!$P$64)/1000 -> 0.049 | E79: =(All!$U$64-All!$P$64)/1000 -> 0.857
A81: =A$15 -> 2009-2014
A82: Employment by Gender | B82: FT | C82: PT | D82: SE | E82: Total
A83: Male employment | B83: =(MalesFT!$Z$64-MalesFT!$U$64)/1000 -> -0.847 | C83: =(MalesPT!$Z$64-MalesPT!$U$64)/1000 -> 0 | D83: =(MalesSE!$Z$64-MalesSE!$U$64)/1000 -> 0.656 | E83: =(Males!$Z$64-Males!$U$64)/1000 -> -0.191
A84: Female employment | B84: =(FemalesFT!$Z$64-FemalesFT!$U$64)/1000 -> -0.259 | C84: =(FemalesPT!$Z$64-FemalesPT!$U$64)/1000 -> 0 | D84: =(FemalesSE!$Z$64-FemalesSE!$U$64)/1000 -> -0.103 | E84: =(Females!$Z$64-Females!$U$64)/1000 -> -0.362
A85: Total employment | B85: =(FT!$Z$64-FT!$U$64)/1000 -> -1.106 | C85: =(PT!$Z$64-PT!$U$64)/1000 -> 0 | D85: =(SE!$Z$64-SE!$U$64)/1000 -> 0.553 | E85: =(All!$Z$64-All!$U$64)/1000 -> -0.553
A87: =A$21 -> 2014-2019
A88: Employment by Gender | B88: FT | C88: PT | D88: SE | E88: Total
A89: Male employment | B89: =(MalesFT!$AE$64-MalesFT!$Z$64)/1000 -> 0.953 | C89: =(MalesPT!$AE$64-MalesPT!$Z$64)/1000 -> 0.042 | D89: =(MalesSE!$AE$64-MalesSE!$Z$64)/1000 -> 0.135 | E89: =(Males!$AE$64-Males!$Z$64)/1000 -> 1.13
A90: Female employment | B90: =(FemalesFT!$AE$64-FemalesFT!$Z$64)/1000 -> 0.388 | C90: =(FemalesPT!$AE$64-FemalesPT!$Z$64)/1000 -> 0 | D90: =(FemalesSE!$AE$64-FemalesSE!$Z$64)/1000 -> 0 | E90: =(Females!$AE$64-Females!$Z$64)/1000 -> 0.388
A91: Total employment | B91: =(FT!$AE$64-FT!$Z$64)/1000 -> 1.341 | C91: =(PT!$AE$64-PT!$Z$64)/1000 -> 0.042 | D91: =(SE!$AE$64-SE!$Z$64)/1000 -> 0.135 | E91: =(All!$AE$64-All!$Z$64)/1000 -> 1.518
A93: =A$27 -> 2019-2024
A94: Employment by Gender | B94: FT | C94: PT | D94: SE | E94: Total
A95: Male employment | B95: =(MalesFT!$AJ$64-MalesFT!$AE$64)/1000 -> -0.81 | C95: =(MalesPT!$AJ$64-MalesPT!$AE$64)/1000 -> 0.005 | D95: =(MalesSE!$AJ$64-MalesSE!$AE$64)/1000 -> -0.132 | E95: =(Males!$AJ$64-Males!$AE$64)/1000 -> -0.937
A96: Female employment | B96: =(FemalesFT!$AJ$64-FemalesFT!$AE$64)/1000 -> -0.379 | C96: =(FemalesPT!$AJ$64-FemalesPT!$AE$64)/1000 -> 0 | D96: =(FemalesSE!$AJ$64-FemalesSE!$AE$64)/1000 -> 0 | E96: =(Females!$AJ$64-Females!$AE$64)/1000 -> -0.379
A97: Total employment | B97: =(FT!$AJ$64-FT!$AE$64)/1000 -> -1.189 | C97: =(PT!$AJ$64-PT!$AE$64)/1000 -> 0.005 | D97: =(SE!$AJ$64-SE!$AE$64)/1000 -> -0.132 | E97: =(All!$AJ$64-All!$AE$64)/1000 -> -1.316
A100: Table 6.4.1.3 | B100: Employment changes
A101: =All!$A$91 -> Food products | E101: =$E$2 -> thousands
A102: =A$3 -> 1999-2004
A103: Employment by Gender | B103: FT | C103: PT | D103: SE | E103: Total
A104: Male employment | B104: =(MalesFT!$P$92-MalesFT!$K$92)/1000 -> -3.763 | C104: =(MalesPT!$P$92-MalesPT!$K$92)/1000 -> 0.279 | D104: =(MalesSE!$P$92-MalesSE!$K$92)/1000 -> 0.72 | E104: =(Males!$P$92-Males!$K$92)/1000 -> -2.764
A105: Female employment | B105: =(FemalesFT!$P$92-FemalesFT!$K$92)/1000 -> -2.348 | C105: =(FemalesPT!$P$92-FemalesPT!$K$92)/1000 -> -1.084 | D105: =(FemalesSE!$P$92-FemalesSE!$K$92)/1000 -> 0.05 | E105: =(Females!$P$92-Females!$K$92)/1000 -> -3.382
A106: Total employment | B106: =(FT!$P$92-FT!$K$92)/1000 -> -6.111 | C106: =(PT!$P$92-PT!$K$92)/1000 -> -0.805 | D106: =(SE!$P$92-SE!$K$92)/1000 -> 0.77 | E106: =(All!$P$92-All!$K$92)/1000 -> -6.146
A108: =A$9 -> 2004-2009
A109: Employment by Gender | B109: FT | C109: PT | D109: SE | E109: Total
A110: Male employment | B110: =(MalesFT!$U$92-MalesFT!$P$92)/1000 -> -1.91 | C110: =(MalesPT!$U$92-MalesPT!$P$92)/1000 -> -0.472 | D110: =(MalesSE!$U$92-MalesSE!$P$92)/1000 -> -0.654 | E110: =(Males!$U$92-Males!$P$92)/1000 -> -3.036
A111: Female employment | B111: =(FemalesFT!$U$92-FemalesFT!$P$92)/1000 -> 0.668 | C111: =(FemalesPT!$U$92-FemalesPT!$P$92)/1000 -> 0.569 | D111: =(FemalesSE!$U$92-FemalesSE!$P$92)/1000 -> 0.823 | E111: =(Females!$U$92-Females!$P$92)/1000 -> 2.06
A112: Total employment | B112: =(FT!$U$92-FT!$P$92)/1000 -> -1.242 | C112: =(PT!$U$92-PT!$P$92)/1000 -> 0.097 | D112: =(SE!$U$92-SE!$P$92)/1000 -> 0.169 | E112: =(All!$U$92-All!$P$92)/1000 -> -0.976
A114: =A$15 -> 2009-2014
A115: Employment by Gender | B115: FT | C115: PT | D115: SE | E115: Total
A116: Male employment | B116: =(MalesFT!$Z$92-MalesFT!$U$92)/1000 -> -1.807 | C116: =(MalesPT!$Z$92-MalesPT!$U$92)/1000 -> -0.221 | D116: =(MalesSE!$Z$92-MalesSE!$U$92)/1000 -> -0.105 | E116: =(Males!$Z$92-Males!$U$92)/1000 -> -2.133
A117: Female employment | B117: =(FemalesFT!$Z$92-FemalesFT!$U$92)/1000 -> -1.865 | C117: =(FemalesPT!$Z$92-FemalesPT!$U$92)/1000 -> -1.399 | D117: =(FemalesSE!$Z$92-FemalesSE!$U$92)/1000 -> 0.53 | E117: =(Females!$Z$92-Females!$U$92)/1000 -> -2.734
A118: Total employment | B118: =(FT!$Z$92-FT!$U$92)/1000 -> -3.672 | C118: =(PT!$Z$92-PT!$U$92)/1000 -> -1.62 | D118: =(SE!$Z$92-SE!$U$92)/1000 -> 0.425 | E118: =(All!$Z$92-All!$U$92)/1000 -> -4.867
A120: =A$21 -> 2014-2019
A121: Employment by Gender | B121: FT | C121: PT | D121: SE | E121: Total
A122: Male employment | B122: =(MalesFT!$AE$92-MalesFT!$Z$92)/1000 -> 0.479 | C122: =(MalesPT!$AE$92-MalesPT!$Z$92)/1000 -> 0.066 | D122: =(MalesSE!$AE$92-MalesSE!$Z$92)/1000 -> 0.015 | E122: =(Males!$AE$92-Males!$Z$92)/1000 -> 0.56
A123: Female employment | B123: =(FemalesFT!$AE$92-FemalesFT!$Z$92)/1000 -> 0.283 | C123: =(FemalesPT!$AE$92-FemalesPT!$Z$92)/1000 -> 0.064 | D123: =(FemalesSE!$AE$92-FemalesSE!$Z$92)/1000 -> 0.055 | E123: =(Females!$AE$92-Females!$Z$92)/1000 -> 0.402
A124: Total employment | B124: =(FT!$AE$92-FT!$Z$92)/1000 -> 0.762 | C124: =(PT!$AE$92-PT!$Z$92)/1000 -> 0.13 | D124: =(SE!$AE$92-SE!$Z$92)/1000 -> 0.07 | E124: =(All!$AE$92-All!$Z$92)/1000 -> 0.962
... 124 more rows

Sheet Table6.4.1.4
A1: Table 6.4.1.4 | B1: =CONCATENATE("Occupational composition by gender, ",B2,"-",F2,"-",J2) -> Occupational composition by gender, 2004-2014-2024 | L1: thousands
A2: =All!A7 -> All industries | B2: =All!P7 -> 2004 | F2: =All!Z7 -> 2014 | J2: =All!AJ7 -> 2024
B3: Female | C3: Male | D3: Total | F3: Female | G3: Male | H3: Total | J3: Female | K3: Male | L3: Total
A4: Managers and Senior Officials | B4: =(Females!P9+Females!P10)/1000 -> 126.351045 | C4: =(Males!P9+Males!P10)/1000 -> 306.64731 | D4: =(All!P9+All!P10)/1000 -> 432.998355 | F4: =(Females!Z9+Females!Z10)/1000 -> 191.58293 | G4: =(Males!Z9+Males!Z10)/1000 -> 353.785242 | H4: =(All!Z9+All!Z10)/1000 -> 545.368172 | J4: =(Females!AJ9+Females!AJ10)/1000 -> 244.373064 | K4: =(Males!AJ9+Males!AJ10)/1000 -> 391.752521 | L4: =(All!AJ9+All!AJ10)/1000 -> 636.125585
A5: Professional occupations | B5: =(Females!P11+Females!P12+Females!P13+Females!P14)/1000 -> 349.763916 | C5: =(Males!P11+Males!P12+Males!P13+Males!P14)/1000 -> 423.150276 | D5: =(All!P11+All!P12+All!P13+All!P14)/1000 -> 772.914191 | F5: =(Females!Z11+Females!Z12+Females!Z13+Females!Z14)/1000 -> 447.072414 | G5: =(Males!Z11+Males!Z12+Males!Z13+Males!Z14)/1000 -> 502.056512 | H5: =(All!Z11+All!Z12+All!Z13+All!Z14)/1000 -> 949.128926 | J5: =(Females!AJ11+Females!AJ12+Females!AJ13+Females!AJ14)/1000 -> 530.152957 | K5: =(Males!AJ11+Males!AJ12+Males!AJ13+Males!AJ14)/1000 -> 544.285215 | L5: =(All!AJ11+All!AJ12+All!AJ13+All!AJ14)/1000 -> 1074.438172
A6: Associate Professional and Technical | B6: =(Females!P15+Females!P16+Females!P17+Females!P18+Females!P19)/1000 -> 232.269169 | C6: =(Males!P15+Males!P16+Males!P17+Males!P18+Males!P19)/1000 -> 364.210614 | D6: =(All!P15+All!P16+All!P17+All!P18+All!P19)/1000 -> 596.479783 | F6: =(Females!Z15+Females!Z16+Females!Z17+Females!Z18+Females!Z19)/1000 -> 284.029321 | G6: =(Males!Z15+Males!Z16+Males!Z17+Males!Z18+Males!Z19)/1000 -> 388.94905 | H6: =(All!Z15+All!Z16+All!Z17+All!Z18+All!Z19)/1000 -> 672.978371 | J6: =(Females!AJ15+Females!AJ16+Females!AJ17+Females!AJ18+Females!AJ19)/1000 -> 334.990276 | K6: =(Males!AJ15+Males!AJ16+Males!AJ17+Males!AJ18+Males!AJ19)/1000 -> 412.364979 | L6: =(All!AJ15+All!AJ16+All!AJ17+All!AJ18+All!AJ19)/1000 -> 747.355257
A7: Administrative and Secretarial | B7: =(Females!P20+Females!P21)/1000 -> 462.657453 | C7: =(Males!P20+Males!P21)/1000 -> 103.746621 | D7: =(All!P20+All!P21)/1000 -> 566.404074 | F7: =(Females!Z20+Females!Z21)/1000 -> 386.994885 | G7: =(Males!Z20+Males!Z21)/1000 -> 93.707364 | H7: =(All!Z20+All!Z21)/1000 -> 480.702249 | J7: =(Females!AJ20+Females!AJ21)/1000 -> 322.396998 | K7: =(Males!AJ20+Males!AJ21)/1000 -> 90.041607 | L7: =(All!AJ20+All!AJ21)/1000 -> 412.438606
A8: Skilled Trades Occupations | B8: =(Females!P22+Females!P23+Females!P24+Females!P25)/1000 -> 60.308843 | C8: =(Males!P22+Males!P23+Males!P24+Males!P25)/1000 -> 426.542823 | D8: =(All!P22+All!P23+All!P24+All!P25)/1000 -> 486.851666 | F8: =(Females!Z22+Females!Z23+Females!Z24+Females!Z25)/1000 -> 59.882525 | G8: =(Males!Z22+Males!Z23+Males!Z24+Males!Z25)/1000 -> 416.350794 | H8: =(All!Z22+All!Z23+All!Z24+All!Z25)/1000 -> 476.23332 | J8: =(Females!AJ22+Females!AJ23+Females!AJ24+Females!AJ25)/1000 -> 63.382764 | K8: =(Males!AJ22+Males!AJ23+Males!AJ24+Males!AJ25)/1000 -> 412.114811 | L8: =(All!AJ22+All!AJ23+All!AJ24+All!AJ25)/1000 -> 475.497575
A9: Personal Service Occupations | B9: =(Females!P26+Females!P27)/1000 -> 274.64377 | C9: =(Males!P26+Males!P27)/1000 -> 56.608798 | D9: =(All!P26+All!P27)/1000 -> 331.252568 | F9: =(Females!Z26+Females!Z27)/1000 -> 348.107597 | G9: =(Males!Z26+Males!Z27)/1000 -> 86.753508 | H9: =(All!Z26+All!Z27)/1000 -> 434.861106 | J9: =(Females!AJ26+Females!AJ27)/1000 -> 392.389179 | K9: =(Males!AJ26+Males!AJ27)/1000 -> 105.159034 | L9: =(All!AJ26+All!AJ27)/1000 -> 497.548213
A10: Sales and Customer Service Occupations | B10: =(Females!P28+Females!P29)/1000 -> 217.255357 | C10: =(Males!P28+Males!P29)/1000 -> 105.537188 | D10: =(All!P28+All!P29)/1000 -> 322.792545 | F10: =(Females!Z28+Females!Z29)/1000 -> 205.462941 | G10: =(Males!Z28+Males!Z29)/1000 -> 125.863809 | H10: =(All!Z28+All!Z29)/1000 -> 331.32675 | J10: =(Females!AJ28+Females!AJ29)/1000 -> 190.538595 | K10: =(Males!AJ28+Males!AJ29)/1000 -> 135.299612 | L10: =(All!AJ28+All!AJ29)/1000 -> 325.838207
A11: Machine and Transport Operatives | B11: =(Females!P30+Females!P31)/1000 -> 29.799374 | C11: =(Males!P30+Males!P31)/1000 -> 210.370203 | D11: =(All!P30+All!P31)/1000 -> 240.169577 | F11: =(Females!Z30+Females!Z31)/1000 -> 23.258877 | G11: =(Males!Z30+Males!Z31)/1000 -> 194.605863 | H11: =(All!Z30+All!Z31)/1000 -> 217.86474 | J11: =(Females!AJ30+Females!AJ31)/1000 -> 20.046147 | K11: =(Males!AJ30+Males!AJ31)/1000 -> 192.783011 | L11: =(All!AJ30+All!AJ31)/1000 -> 212.829158
A12: Elementary Occupations | B12: =(Females!P32+Females!P33)/1000 -> 253.631073 | C12: =(Males!P32+Males!P33)/1000 -> 257.156167 | D12: =(All!P32+All!P33)/1000 -> 510.787239 | F12: =(Females!Z32+Females!Z33)/1000 -> 234.128508 | G12: =(Males!Z32+Males!Z33)/1000 -> 265.998858 | H12: =(All!Z32+All!Z33)/1000 -> 500.127367 | J12: =(Females!AJ32+Females!AJ33)/1000 -> 232.364021 | K12: =(Males!AJ32+Males!AJ33)/1000 -> 289.199209 | L12: =(All!AJ32+All!AJ33)/1000 -> 521.56323
A13: Total | B13: =Females!P8/1000 -> 2006.68 | C13: =Males!P8/1000 -> 2253.97 | D13: =All!P8/1000 -> 4260.65 | F13: =Females!Z8/1000 -> 2180.52 | G13: =Males!Z8/1000 -> 2428.071 | H13: =All!Z8/1000 -> 4608.591 | J13: =Females!AJ8/1000 -> 2330.634 | K13: =Males!AJ8/1000 -> 2573 | L13: =All!AJ8/1000 -> 4903.634
A16: Table 6.4.1.4 | B16: =B$1 -> Occupational composition by gender, 2004-2014-2024 | L16: =$L$1 -> thousands
A17: =All!A35 -> Agriculture, etc | B17: =B$2 -> 2004 | F17: =F$2 -> 2014 | J17: =J$2 -> 2024
B18: Female | C18: Male | D18: Total | F18: Female | G18: Male | H18: Total | J18: Female | K18: Male | L18: Total
A19: Managers and Senior Officials | B19: =(Females!P37+Females!P38)/1000 -> 0.996174 | C19: =(Males!P37+Males!P38)/1000 -> 2.738894 | D19: =(All!P37+All!P38)/1000 -> 3.735066 | F19: =(Females!Z37+Females!Z38)/1000 -> 1.179675 | G19: =(Males!Z37+Males!Z38)/1000 -> 3.401008 | H19: =(All!Z37+All!Z38)/1000 -> 4.580684 | J19: =(Females!AJ37+Females!AJ38)/1000 -> 1.130472 | K19: =(Males!AJ37+Males!AJ38)/1000 -> 2.436439 | L19: =(All!AJ37+All!AJ38)/1000 -> 3.566909
A20: Professional occupations | B20: =(Females!P39+Females!P40+Females!P41+Females!P42)/1000 -> 0.760354 | C20: =(Males!P39+Males!P40+Males!P41+Males!P42)/1000 -> 1.931449 | D20: =(All!P39+All!P40+All!P41+All!P42)/1000 -> 2.691803 | F20: =(Females!Z39+Females!Z40+Females!Z41+Females!Z42)/1000 -> 1.016992 | G20: =(Males!Z39+Males!Z40+Males!Z41+Males!Z42)/1000 -> 3.141165 | H20: =(All!Z39+All!Z40+All!Z41+All!Z42)/1000 -> 4.158157 | J20: =(Females!AJ39+Females!AJ40+Females!AJ41+Females!AJ42)/1000 -> 1.246137 | K20: =(Males!AJ39+Males!AJ40+Males!AJ41+Males!AJ42)/1000 -> 3.473879 | L20: =(All!AJ39+All!AJ40+All!AJ41+All!AJ42)/1000 -> 4.720017
A21: Associate Professional and Technical | B21: =(Females!P43+Females!P44+Females!P45+Females!P46+Females!P47)/1000 -> 0.853989 | C21: =(Males!P43+Males!P44+Males!P45+Males!P46+Males!P47)/1000 -> 0.997808 | D21: =(All!P43+All!P44+All!P45+All!P46+All!P47)/1000 -> 1.851798 | F21: =(Females!Z43+Females!Z44+Females!Z45+Females!Z46+Females!Z47)/1000 -> 1.022863 | G21: =(Males!Z43+Males!Z44+Males!Z45+Males!Z46+Males!Z47)/1000 -> 1.754847 | H21: =(All!Z43+All!Z44+All!Z45+All!Z46+All!Z47)/1000 -> 2.777706 | J21: =(Females!AJ43+Females!AJ44+Females!AJ45+Females!AJ46+Females!AJ47)/1000 -> 1.113852 | K21: =(Males!AJ43+Males!AJ44+Males!AJ45+Males!AJ46+Males!AJ47)/1000 -> 1.822706 | L21: =(All!AJ43+All!AJ44+All!AJ45+All!AJ46+All!AJ47)/1000 -> 2.936558
A22: Administrative and Secretarial | B22: =(Females!P48+Females!P49)/1000 -> 3.686109 | C22: =(Males!P48+Males!P49)/1000 -> 0.419966 | D22: =(All!P48+All!P49)/1000 -> 4.106075 | F22: =(Females!Z48+Females!Z49)/1000 -> 2.862671 | G22: =(Males!Z48+Males!Z49)/1000 -> 0.532833 | H22: =(All!Z48+All!Z49)/1000 -> 3.395503 | J22: =(Females!AJ48+Females!AJ49)/1000 -> 2.062866 | K22: =(Males!AJ48+Males!AJ49)/1000 -> 0.477171 | L22: =(All!AJ48+All!AJ49)/1000 -> 2.540036
A23: Skilled Trades Occupations | B23: =(Females!P50+Females!P51+Females!P52+Females!P53)/1000 -> 4.567023 | C23: =(Males!P50+Males!P51+Males!P52+Males!P53)/1000 -> 18.274425 | D23: =(All!P50+All!P51+All!P52+All!P53)/1000 -> 22.841448 | F23: =(Females!Z50+Females!Z51+Females!Z52+Females!Z53)/1000 -> 7.095422 | G23: =(Males!Z50+Males!Z51+Males!Z52+Males!Z53)/1000 -> 25.569518 | H23: =(All!Z50+All!Z51+All!Z52+All!Z53)/1000 -> 32.664941 | J23: =(Females!AJ50+Females!AJ51+Females!AJ52+Females!AJ53)/1000 -> 7.082325 | K23: =(Males!AJ50+Males!AJ51+Males!AJ52+Males!AJ53)/1000 -> 18.457777 | L23: =(All!AJ50+All!AJ51+All!AJ52+All!AJ53)/1000 -> 25.540102
A24: Personal Service Occupations | B24: =(Females!P54+Females!P55)/1000 -> 2.53256 | C24: =(Males!P54+Males!P55)/1000 -> 0.275072 | D24: =(All!P54+All!P55)/1000 -> 2.807632 | F24: =(Females!Z54+Females!Z55)/1000 -> 1.136813 | G24: =(Males!Z54+Males!Z55)/1000 -> 0.50934 | H24: =(All!Z54+All!Z55)/1000 -> 1.646153 | J24: =(Females!AJ54+Females!AJ55)/1000 -> 1.059239 | K24: =(Males!AJ54+Males!AJ55)/1000 -> 0.350636 | L24: =(All!AJ54+All!AJ55)/1000 -> 1.409874
A25: Sales and Customer Service Occupations | B25: =(Females!P56+Females!P57)/1000 -> 0.690778 | C25: =(Males!P56+Males!P57)/1000 -> 0.407663 | D25: =(All!P56+All!P57)/1000 -> 1.09844 | F25: =(Females!Z56+Females!Z57)/1000 -> 0.579658 | G25: =(Males!Z56+Males!Z57)/1000 -> 0.418914 | H25: =(All!Z56+All!Z57)/1000 -> 0.998573 | J25: =(Females!AJ56+Females!AJ57)/1000 -> 0.487687 | K25: =(Males!AJ56+Males!AJ57)/1000 -> 0.207603 | L25: =(All!AJ56+All!AJ57)/1000 -> 0.695288
A26: Machine and Transport Operatives | B26: =(Females!P58+Females!P59)/1000 -> 0.491817 | C26: =(Males!P58+Males!P59)/1000 -> 2.809787 | D26: =(All!P58+All!P59)/1000 -> 3.301604 | F26: =(Females!Z58+Females!Z59)/1000 -> 0.367769 | G26: =(Males!Z58+Males!Z59)/1000 -> 1.514691 | H26: =(All!Z58+All!Z59)/1000 -> 1.88246 | J26: =(Females!AJ58+Females!AJ59)/1000 -> 0.217919 | K26: =(Males!AJ58+Males!AJ59)/1000 -> 0.860267 | L26: =(All!AJ58+All!AJ59)/1000 -> 1.078186
A27: Elementary Occupations | B27: =(Females!P60+Females!P61)/1000 -> 3.033198 | C27: =(Males!P60+Males!P61)/1000 -> 7.138936 | D27: =(All!P60+All!P61)/1000 -> 10.172134 | F27: =(Females!Z60+Females!Z61)/1000 -> 1.795137 | G27: =(Males!Z60+Males!Z61)/1000 -> 4.111685 | H27: =(All!Z60+All!Z61)/1000 -> 5.906823 | J27: =(Females!AJ60+Females!AJ61)/1000 -> 1.512506 | K27: =(Males!AJ60+Males!AJ61)/1000 -> 1.946523 | L27: =(All!AJ60+All!AJ61)/1000 -> 3.459029
A28: Total | B28: =Females!P36/1000 -> 17.612 | C28: =Males!P36/1000 -> 34.994 | D28: =All!P36/1000 -> 52.606 | F28: =Females!Z36/1000 -> 17.057 | G28: =Males!Z36/1000 -> 40.954 | H28: =All!Z36/1000 -> 58.011 | J28: =Females!AJ36/1000 -> 15.913 | K28: =Males!AJ36/1000 -> 30.033 | L28: =All!AJ36/1000 -> 45.946
A31: Table 6.4.1.4 | B31: =B$1 -> Occupational composition by gender, 2004-2014-2024 | L31: =$L$1 -> thousands
A32: =All!A63 -> Coal, oil & gas; Mining & related | B32: =B$2 -> 2004 | F32: =F$2 -> 2014 | J32: =J$2 -> 2024
B33: Female | C33: Male | D33: Total | F33: Female | G33: Male | H33: Total | J33: Female | K33: Male | L33: Total
A34: Managers and Senior Officials | B34: =(Females!P65+Females!P66)/1000 -> 0.149652 | C34: =(Males!P65+Males!P66)/1000 -> 0.426063 | D34: =(All!P65+All!P66)/1000 -> 0.575715 | F34: =(Females!Z65+Females!Z66)/1000 -> 0.145445 | G34: =(Males!Z65+Males!Z66)/1000 -> 0.79632 | H34: =(All!Z65+All!Z66)/1000 -> 0.941765 | J34: =(Females!AJ65+Females!AJ66)/1000 -> 0.179465 | K34: =(Males!AJ65+Males!AJ66)/1000 -> 0.932087 | L34: =(All!AJ65+All!AJ66)/1000 -> 1.111552
A35: Professional occupations | B35: =(Females!P67+Females!P68+Females!P69+Females!P70)/1000 -> 0.232487 | C35: =(Males!P67+Males!P68+Males!P69+Males!P70)/1000 -> 0.405418 | D35: =(All!P67+All!P68+All!P69+All!P70)/1000 -> 0.637904 | F35: =(Females!Z67+Females!Z68+Females!Z69+Females!Z70)/1000 -> 0.111942 | G35: =(Males!Z67+Males!Z68+Males!Z69+Males!Z70)/1000 -> 0.485486 | H35: =(All!Z67+All!Z68+All!Z69+All!Z70)/1000 -> 0.597427 | J35: =(Females!AJ67+Females!AJ68+Females!AJ69+Females!AJ70)/1000 -> 0.136022 | K35: =(Males!AJ67+Males!AJ68+Males!AJ69+Males!AJ70)/1000 -> 0.420353 | L35: =(All!AJ67+All!AJ68+All!AJ69+All!AJ70)/1000 -> 0.556375
A36: Associate Professional and Technical | B36: =(Females!P71+Females!P72+Females!P73+Females!P74+Females!P75)/1000 -> 0.292317 | C36: =(Males!P71+Males!P72+Males!P73+Males!P74+Males!P75)/1000 -> 0.346706 | D36: =(All!P71+All!P72+All!P73+All!P74+All!P75)/1000 -> 0.639022 | F36: =(Females!Z71+Females!Z72+Females!Z73+Females!Z74+Females!Z75)/1000 -> 0.250453 | G36: =(Males!Z71+Males!Z72+Males!Z73+Males!Z74+Males!Z75)/1000 -> 0.420068 | H36: =(All!Z71+All!Z72+All!Z73+All!Z74+All!Z75)/1000 -> 0.670521 | J36: =(Females!AJ71+Females!AJ72+Females!AJ73+Females!AJ74+Females!AJ75)/1000 -> 0.28341 | K36: =(Males!AJ71+Males!AJ72+Males!AJ73+Males!AJ74+Males!AJ75)/1000 -> 0.427603 | L36: =(All!AJ71+All!AJ72+All!AJ73+All!AJ74+All!AJ75)/1000 -> 0.711014
A37: Administrative and Secretarial | B37: =(Females!P76+Females!P77)/1000 -> 0.661212 | C37: =(Males!P76+Males!P77)/1000 -> 0.172875 | D37: =(All!P76+All!P77)/1000 -> 0.834088 | F37: =(Females!Z76+Females!Z77)/1000 -> 0.42169 | G37: =(Males!Z76+Males!Z77)/1000 -> 0.211795 | H37: =(All!Z76+All!Z77)/1000 -> 0.633486 | J37: =(Females!AJ76+Females!AJ77)/1000 -> 0.338927 | K37: =(Males!AJ76+Males!AJ77)/1000 -> 0.243193 | L37: =(All!AJ76+All!AJ77)/1000 -> 0.582119
A38: Skilled Trades Occupations | B38: =(Females!P78+Females!P79+Females!P80+Females!P81)/1000 -> 0.039706 | C38: =(Males!P78+Males!P79+Males!P80+Males!P81)/1000 -> 0.492341 | D38: =(All!P78+All!P79+All!P80+All!P81)/1000 -> 0.532046 | F38: =(Females!Z78+Females!Z79+Females!Z80+Females!Z81)/1000 -> 0.015774 | G38: =(Males!Z78+Males!Z79+Males!Z80+Males!Z81)/1000 -> 0.891901 | H38: =(All!Z78+All!Z79+All!Z80+All!Z81)/1000 -> 0.907675 | J38: =(Females!AJ78+Females!AJ79+Females!AJ80+Females!AJ81)/1000 -> 0.015752 | K38: =(Males!AJ78+Males!AJ79+Males!AJ80+Males!AJ81)/1000 -> 0.847111 | L38: =(All!AJ78+All!AJ79+All!AJ80+All!AJ81)/1000 -> 0.862861
A39: Personal Service Occupations | B39: =(Females!P82+Females!P83)/1000 -> 0.050064 | C39: =(Males!P82+Males!P83)/1000 -> 0.025429 | D39: =(All!P82+All!P83)/1000 -> 0.075493 | F39: =(Females!Z82+Females!Z83)/1000 -> 0.011888 | G39: =(Males!Z82+Males!Z83)/1000 -> 0.03183 | H39: =(All!Z82+All!Z83)/1000 -> 0.043718 | J39: =(Females!AJ82+Females!AJ83)/1000 -> 0.014614 | K39: =(Males!AJ82+Males!AJ83)/1000 -> 0.039991 | L39: =(All!AJ82+All!AJ83)/1000 -> 0.054603
A40: Sales and Customer Service Occupations | B40: =(Females!P84+Females!P85)/1000 -> 0.134168 | C40: =(Males!P84+Males!P85)/1000 -> 0.061384 | D40: =(All!P84+All!P85)/1000 -> 0.195552 | F40: =(Females!Z84+Females!Z85)/1000 -> 0.114676 | G40: =(Males!Z84+Males!Z85)/1000 -> 0.082007 | H40: =(All!Z84+All!Z85)/1000 -> 0.196683 | J40: =(Females!AJ84+Females!AJ85)/1000 -> 0.113298 | K40: =(Males!AJ84+Males!AJ85)/1000 -> 0.092357 | L40: =(All!AJ84+All!AJ85)/1000 -> 0.205654
A41: Machine and Transport Operatives | B41: =(Females!P86+Females!P87)/1000 -> 0.032351 | C41: =(Males!P86+Males!P87)/1000 -> 0.957018 | D41: =(All!P86+All!P87)/1000 -> 0.989369 | F41: =(Females!Z86+Females!Z87)/1000 -> 0.018455 | G41: =(Males!Z86+Males!Z87)/1000 -> 0.79681 | H41: =(All!Z86+All!Z87)/1000 -> 0.815265 | J41: =(Females!AJ86+Females!AJ87)/1000 -> 0.016129 | K41: =(Males!AJ86+Males!AJ87)/1000 -> 0.894822 | L41: =(All!AJ86+All!AJ87)/1000 -> 0.910951
A42: Elementary Occupations | B42: =(Females!P88+Females!P89)/1000 -> 0.113044 | C42: =(Males!P88+Males!P89)/1000 -> 0.067768 | D42: =(All!P88+All!P89)/1000 -> 0.180812 | F42: =(Females!Z88+Females!Z89)/1000 -> 0.067677 | G42: =(Males!Z88+Males!Z89)/1000 -> 0.089783 | H42: =(All!Z88+All!Z89)/1000 -> 0.157461 | J42: =(Females!AJ88+Females!AJ89)/1000 -> 0.069384 | K42: =(Males!AJ88+Males!AJ89)/1000 -> 0.101486 | L42: =(All!AJ88+All!AJ89)/1000 -> 0.17087
A43: Total | B43: =Females!P64/1000 -> 1.705 | C43: =Males!P64/1000 -> 2.955 | D43: =All!P64/1000 -> 4.66 | F43: =Females!Z64/1000 -> 1.158 | G43: =Males!Z64/1000 -> 3.806 | H43: =All!Z64/1000 -> 4.964 | J43: =Females!AJ64/1000 -> 1.167 | K43: =Males!AJ64/1000 -> 3.999 | L43: =All!AJ64/1000 -> 5.166
A46: Table 6.4.1.4 | B46: =B$1 -> Occupational composition by gender, 2004-2014-2024 | L46: =$L$1 -> thousands
A47: =All!A91 -> Food products | B47: =B$2 -> 2004 | F47: =F$2 -> 2014 | J47: =J$2 -> 2024
B48: Female | C48: Male | D48: Total | F48: Female | G48: Male | H48: Total | J48: Female | K48: Male | L48: Total
A49: Managers and Senior Officials | B49: =(Females!P93+Females!P94)/1000 -> 0.859812 | C49: =(Males!P93+Males!P94)/1000 -> 2.324275 | D49: =(All!P93+All!P94)/1000 -> 3.184087 | F49: =(Females!Z93+Females!Z94)/1000 -> 1.13008 | G49: =(Males!Z93+Males!Z94)/1000 -> 1.412741 | H49: =(All!Z93+All!Z94)/1000 -> 2.542821 | J49: =(Females!AJ93+Females!AJ94)/1000 -> 1.404804 | K49: =(Males!AJ93+Males!AJ94)/1000 -> 1.600136 | L49: =(All!AJ93+All!AJ94)/1000 -> 3.00494
A50: Professional occupations | B50: =(Females!P95+Females!P96+Females!P97+Females!P98)/1000 -> 0.79185 | C50: =(Males!P95+Males!P96+Males!P97+Males!P98)/1000 -> 1.674404 | D50: =(All!P95+All!P96+All!P97+All!P98)/1000 -> 2.466254 | F50: =(Females!Z95+Females!Z96+Females!Z97+Females!Z98)/1000 -> 0.70266 | G50: =(Males!Z95+Males!Z96+Males!Z97+Males!Z98)/1000 -> 0.883514 | H50: =(All!Z95+All!Z96+All!Z97+All!Z98)/1000 -> 1.586173 | J50: =(Females!AJ95+Females!AJ96+Females!AJ97+Females!AJ98)/1000 -> 0.842261 | K50: =(Males!AJ95+Males!AJ96+Males!AJ97+Males!AJ98)/1000 -> 0.961702 | L50: =(All!AJ95+All!AJ96+All!AJ97+All!AJ98)/1000 -> 1.803963
A51: Associate Professional and Technical | B51: =(Females!P99+Females!P100+Females!P101+Females!P102+Females!P103)/1000 -> 1.387666 | C51: =(Males!P99+Males!P100+Males!P101+Males!P102+Males!P103)/1000 -> 1.960106 | D51: =(All!P99+All!P100+All!P101+All!P102+All!P103)/1000 -> 3.347772 | F51: =(Females!Z99+Females!Z100+Females!Z101+Females!Z102+Females!Z103)/1000 -> 1.461704 | G51: =(Males!Z99+Males!Z100+Males!Z101+Males!Z102+Males!Z103)/1000 -> 1.436437 | H51: =(All!Z99+All!Z100+All!Z101+All!Z102+All!Z103)/1000 -> 2.898142 | J51: =(Females!AJ99+Females!AJ100+Females!AJ101+Females!AJ102+Females!AJ103)/1000 -> 1.693063 | K51: =(Males!AJ99+Males!AJ100+Males!AJ101+Males!AJ102+Males!AJ103)/1000 -> 1.552799 | L51: =(All!AJ99+All!AJ100+All!AJ101+All!AJ102+All!AJ103)/1000 -> 3.245863
A52: Administrative and Secretarial | B52: =(Females!P104+Females!P105)/1000 -> 1.738995 | C52: =(Males!P104+Males!P105)/1000 -> 0.641553 | D52: =(All!P104+All!P105)/1000 -> 2.380547 | F52: =(Females!Z104+Females!Z105)/1000 -> 1.200649 | G52: =(Males!Z104+Males!Z105)/1000 -> 0.755358 | H52: =(All!Z104+All!Z105)/1000 -> 1.956007 | J52: =(Females!AJ104+Females!AJ105)/1000 -> 1.174389 | K52: =(Males!AJ104+Males!AJ105)/1000 -> 0.755149 | L52: =(All!AJ104+All!AJ105)/1000 -> 1.929539
A53: Skilled Trades Occupations | B53: =(Females!P106+Females!P107+Females!P108+Females!P109)/1000 -> 0.750745 | C53: =(Males!P106+Males!P107+Males!P108+Males!P109)/1000 -> 3.458173 | D53: =(All!P106+All!P107+All!P108+All!P109)/1000 -> 4.208916 | F53: =(Females!Z106+Females!Z107+Females!Z108+Females!Z109)/1000 -> 1.115986 | G53: =(Males!Z106+Males!Z107+Males!Z108+Males!Z109)/1000 -> 2.092788 | H53: =(All!Z106+All!Z107+All!Z108+All!Z109)/1000 -> 3.208773 | J53: =(Females!AJ106+Females!AJ107+Females!AJ108+Females!AJ109)/1000 -> 0.761905 | K53: =(Males!AJ106+Males!AJ107+Males!AJ108+Males!AJ109)/1000 -> 1.87246 | L53: =(All!AJ106+All!AJ107+All!AJ108+All!AJ109)/1000 -> 2.634363
A54: Personal Service Occupations | B54: =(Females!P110+Females!P111)/1000 -> 0.062003 | C54: =(Males!P110+Males!P111)/1000 -> 0.066966 | D54: =(All!P110+All!P111)/1000 -> 0.128969 | F54: =(Females!Z110+Females!Z111)/1000 -> 0.088232 | G54: =(Males!Z110+Males!Z111)/1000 -> 0.068131 | H54: =(All!Z110+All!Z111)/1000 -> 0.156363 | J54: =(Females!AJ110+Females!AJ111)/1000 -> 0.105816 | K54: =(Males!AJ110+Males!AJ111)/1000 -> 0.077608 | L54: =(All!AJ110+All!AJ111)/1000 -> 0.183424
A55: Sales and Customer Service Occupations | B55: =(Females!P112+Females!P113)/1000 -> 0.52 | C55: =(Males!P112+Males!P113)/1000 -> 0.541796 | D55: =(All!P112+All!P113)/1000 -> 1.061796 | F55: =(Females!Z112+Females!Z113)/1000 -> 0.438013 | G55: =(Males!Z112+Males!Z113)/1000 -> 0.527213 | H55: =(All!Z112+All!Z113)/1000 -> 0.965226 | J55: =(Females!AJ112+Females!AJ113)/1000 -> 0.483478 | K55: =(Males!AJ112+Males!AJ113)/1000 -> 0.512913 | L55: =(All!AJ112+All!AJ113)/1000 -> 0.996391
A56: Machine and Transport Operatives | B56: =(Females!P114+Females!P115)/1000 -> 1.303872 | C56: =(Males!P114+Males!P115)/1000 -> 6.024478 | D56: =(All!P114+All!P115)/1000 -> 7.32835 | F56: =(Females!Z114+Females!Z115)/1000 -> 0.577033 | G56: =(Males!Z114+Males!Z115)/1000 -> 4.294431 | H56: =(All!Z114+All!Z115)/1000 -> 4.871464 | J56: =(Females!AJ114+Females!AJ115)/1000 -> 0.363152 | K56: =(Males!AJ114+Males!AJ115)/1000 -> 4.046782 | L56: =(All!AJ114+All!AJ115)/1000 -> 4.409934
A57: Elementary Occupations | B57: =(Females!P116+Females!P117)/1000 -> 1.067058 | C57: =(Males!P116+Males!P117)/1000 -> 1.78625 | D57: =(All!P116+All!P117)/1000 -> 2.853308 | F57: =(Females!Z116+Females!Z117)/1000 -> 1.093645 | G57: =(Males!Z116+Males!Z117)/1000 -> 1.838386 | H57: =(All!Z116+All!Z117)/1000 -> 2.932032 | J57: =(Females!AJ116+Females!AJ117)/1000 -> 1.060133 | K57: =(Males!AJ116+Males!AJ117)/1000 -> 1.794451 | L57: =(All!AJ116+All!AJ117)/1000 -> 2.854584
A58: Total | B58: =Females!P92/1000 -> 8.482 | C58: =Males!P92/1000 -> 18.478 | D58: =All!P92/1000 -> 26.96 | F58: =Females!Z92/1000 -> 7.808 | G58: =Males!Z92/1000 -> 13.309 | H58: =All!Z92/1000 -> 21.117 | J58: =Females!AJ92/1000 -> 7.889 | K58: =Males!AJ92/1000 -> 13.174 | L58: =All!AJ92/1000 -> 21.063
A61: Table 6.4.1.4 | B61: =B$1 -> Occupational composition by gender, 2004-2014-2024 | L61: =$L$1 -> thousands
A62: =All!A119 -> Beverages & tobacco | B62: =B$2 -> 2004 | F62: =F$2 -> 2014 | J62: =J$2 -> 2024
B63: Female | C63: Male | D63: Total | F63: Female | G63: Male | H63: Total | J63: Female | K63: Male | L63: Total
A64: Managers and Senior Officials | B64: =(Females!P121+Females!P122)/1000 -> 0.059884 | C64: =(Males!P121+Males!P122)/1000 -> 0.463602 | D64: =(All!P121+All!P122)/1000 -> 0.523486 | F64: =(Females!Z121+Females!Z122)/1000 -> 0.039758 | G64: =(Males!Z121+Males!Z122)/1000 -> 0.217429 | H64: =(All!Z121+All!Z122)/1000 -> 0.257187 | J64: =(Females!AJ121+Females!AJ122)/1000 -> 0.043834 | K64: =(Males!AJ121+Males!AJ122)/1000 -> 0.258184 | L64: =(All!AJ121+All!AJ122)/1000 -> 0.302019
A65: Professional occupations | B65: =(Females!P123+Females!P124+Females!P125+Females!P126)/1000 -> 0.088323 | C65: =(Males!P123+Males!P124+Males!P125+Males!P126)/1000 -> 0.478017 | D65: =(All!P123+All!P124+All!P125+All!P126)/1000 -> 0.56634 | F65: =(Females!Z123+Females!Z124+Females!Z125+Females!Z126)/1000 -> 0.083865 | G65: =(Males!Z123+Males!Z124+Males!Z125+Males!Z126)/1000 -> 0.231946 | H65: =(All!Z123+All!Z124+All!Z125+All!Z126)/1000 -> 0.31581 | J65: =(Females!AJ123+Females!AJ124+Females!AJ125+Females!AJ126)/1000 -> 0.096605 | K65: =(Males!AJ123+Males!AJ124+Males!AJ125+Males!AJ126)/1000 -> 0.259098 | L65: =(All!AJ123+All!AJ124+All!AJ125+All!AJ126)/1000 -> 0.355701
A66: Associate Professional and Technical | B66: =(Females!P127+Females!P128+Females!P129+Females!P130+Females!P131)/1000 -> 0.186088 | C66: =(Males!P127+Males!P128+Males!P129+Males!P130+Males!P131)/1000 -> 0.532913 | D66: =(All!P127+All!P128+All!P129+All!P130+All!P131)/1000 -> 0.719001 | F66: =(Females!Z127+Females!Z128+Females!Z129+Females!Z130+Females!Z131)/1000 -> 0.162851 | G66: =(Males!Z127+Males!Z128+Males!Z129+Males!Z130+Males!Z131)/1000 -> 0.24367 | H66: =(All!Z127+All!Z128+All!Z129+All!Z130+All!Z131)/1000 -> 0.40652 | J66: =(Females!AJ127+Females!AJ128+Females!AJ129+Females!AJ130+Females!AJ131)/1000 -> 0.187674 | K66: =(Males!AJ127+Males!AJ128+Males!AJ129+Males!AJ130+Males!AJ131)/1000 -> 0.26452 | L66: =(All!AJ127+All!AJ128+All!AJ129+All!AJ130+All!AJ131)/1000 -> 0.452195
A67: Administrative and Secretarial | B67: =(Females!P132+Females!P133)/1000 -> 0.201991 | C67: =(Males!P132+Males!P133)/1000 -> 0.124233 | D67: =(All!P132+All!P133)/1000 -> 0.326224 | F67: =(Females!Z132+Females!Z133)/1000 -> 0.133061 | G67: =(Males!Z132+Males!Z133)/1000 -> 0.027674 | H67: =(All!Z132+All!Z133)/1000 -> 0.160735 | J67: =(Females!AJ132+Females!AJ133)/1000 -> 0.114636 | K67: =(Males!AJ132+Males!AJ133)/1000 -> 0.027814 | L67: =(All!AJ132+All!AJ133)/1000 -> 0.142449
A68: Skilled Trades Occupations | B68: =(Females!P134+Females!P135+Females!P136+Females!P137)/1000 -> 0.029094 | C68: =(Males!P134+Males!P135+Males!P136+Males!P137)/1000 -> 0.371684 | D68: =(All!P134+All!P135+All!P136+All!P137)/1000 -> 0.400777 | F68: =(Females!Z134+Females!Z135+Females!Z136+Females!Z137)/1000 -> 0.023546 | G68: =(Males!Z134+Males!Z135+Males!Z136+Males!Z137)/1000 -> 0.134243 | H68: =(All!Z134+All!Z135+All!Z136+All!Z137)/1000 -> 0.157789 | J68: =(Females!AJ134+Females!AJ135+Females!AJ136+Females!AJ137)/1000 -> 0.021666 | K68: =(Males!AJ134+Males!AJ135+Males!AJ136+Males!AJ137)/1000 -> 0.130336 | L68: =(All!AJ134+All!AJ135+All!AJ136+All!AJ137)/1000 -> 0.152002
A69: Personal Service Occupations | B69: =(Females!P138+Females!P139)/1000 -> 0.080957 | C69: =(Males!P138+Males!P139)/1000 -> 0.025751 | D69: =(All!P138+All!P139)/1000 -> 0.106708 | F69: =(Females!Z138+Females!Z139)/1000 -> 0.082607 | G69: =(Males!Z138+Males!Z139)/1000 -> 0.014037 | H69: =(All!Z138+All!Z139)/1000 -> 0.096644 | J69: =(Females!AJ138+Females!AJ139)/1000 -> 0.094027 | K69: =(Males!AJ138+Males!AJ139)/1000 -> 0.019885 | L69: =(All!AJ138+All!AJ139)/1000 -> 0.113911
A70: Sales and Customer Service Occupations | B70: =(Females!P140+Females!P141)/1000 -> 0.054333 | C70: =(Males!P140+Males!P141)/1000 -> 0.094844 | D70: =(All!P140+All!P141)/1000 -> 0.149178 | F70: =(Females!Z140+Females!Z141)/1000 -> 0.050017 | G70: =(Males!Z140+Males!Z141)/1000 -> 0.062425 | H70: =(All!Z140+All!Z141)/1000 -> 0.112442 | J70: =(Females!AJ140+Females!AJ141)/1000 -> 0.049935 | K70: =(Males!AJ140+Males!AJ141)/1000 -> 0.066893 | L70: =(All!AJ140+All!AJ141)/1000 -> 0.116828
A71: Machine and Transport Operatives | B71: =(Females!P142+Females!P143)/1000 -> 0.062051 | C71: =(Males!P142+Males!P143)/1000 -> 0.760281 | D71: =(All!P142+All!P143)/1000 -> 0.822331 | F71: =(Females!Z142+Females!Z143)/1000 -> 0.04388 | G71: =(Males!Z142+Males!Z143)/1000 -> 0.235497 | H71: =(All!Z142+All!Z143)/1000 -> 0.279376 | J71: =(Females!AJ142+Females!AJ143)/1000 -> 0.029548 | K71: =(Males!AJ142+Males!AJ143)/1000 -> 0.173599 | L71: =(All!AJ142+All!AJ143)/1000 -> 0.203148
A72: Elementary Occupations | B72: =(Females!P144+Females!P145)/1000 -> 0.124281 | C72: =(Males!P144+Males!P145)/1000 -> 0.216675 | D72: =(All!P144+All!P145)/1000 -> 0.340956 | F72: =(Females!Z144+Females!Z145)/1000 -> 0.088414 | G72: =(Males!Z144+Males!Z145)/1000 -> 0.063082 | H72: =(All!Z144+All!Z145)/1000 -> 0.151496 | J72: =(Females!AJ144+Females!AJ145)/1000 -> 0.085076 | K72: =(Males!AJ144+Males!AJ145)/1000 -> 0.02967 | L72: =(All!AJ144+All!AJ145)/1000 -> 0.114746
A73: Total | B73: =Females!P120/1000 -> 0.887 | C73: =Males!P120/1000 -> 3.068 | D73: =All!P120/1000 -> 3.955 | F73: =Females!Z120/1000 -> 0.708 | G73: =Males!Z120/1000 -> 1.23 | H73: =All!Z120/1000 -> 1.938 | J73: =Females!AJ120/1000 -> 0.723 | K73: =Males!AJ120/1000 -> 1.23 | L73: =All!AJ120/1000 -> 1.953
A76: Table 6.4.1.4 | B76: =B$1 -> Occupational composition by gender, 2004-2014-2024 | L76: =$L$1 -> thousands
A77: =All!A147 -> Textiles | B77: =B$2 -> 2004 | F77: =F$2 -> 2014 | J77: =J$2 -> 2024
B78: Female | C78: Male | D78: Total | F78: Female | G78: Male | H78: Total | J78: Female | K78: Male | L78: Total
A79: Managers and Senior Officials | B79: =(Females!P149+Females!P150)/1000 -> 0.150135 | C79: =(Males!P149+Males!P150)/1000 -> 0.392988 | D79: =(All!P149+All!P150)/1000 -> 0.543123 | F79: =(Females!Z149+Females!Z150)/1000 -> 0.382377 | G79: =(Males!Z149+Males!Z150)/1000 -> 0.446381 | H79: =(All!Z149+All!Z150)/1000 -> 0.828758 | J79: =(Females!AJ149+Females!AJ150)/1000 -> 0.395346 | K79: =(Males!AJ149+Males!AJ150)/1000 -> 0.431096 | L79: =(All!AJ149+All!AJ150)/1000 -> 0.826443
A80: Professional occupations | B80: =(Females!P151+Females!P152+Females!P153+Females!P154)/1000 -> 0.106414 | C80: =(Males!P151+Males!P152+Males!P153+Males!P154)/1000 -> 0.205188 | D80: =(All!P151+All!P152+All!P153+All!P154)/1000 -> 0.311602 | F80: =(Females!Z151+Females!Z152+Females!Z153+Females!Z154)/1000 -> 0.295642 | G80: =(Males!Z151+Males!Z152+Males!Z153+Males!Z154)/1000 -> 0.216342 | H80: =(All!Z151+All!Z152+All!Z153+All!Z154)/1000 -> 0.511984 | J80: =(Females!AJ151+Females!AJ152+Females!AJ153+Females!AJ154)/1000 -> 0.298238 | K80: =(Males!AJ151+Males!AJ152+Males!AJ153+Males!AJ154)/1000 -> 0.207551 | L80: =(All!AJ151+All!AJ152+All!AJ153+All!AJ154)/1000 -> 0.505789
A81: Associate Professional and Technical | B81: =(Females!P155+Females!P156+Females!P157+Females!P158+Females!P159)/1000 -> 0.290197 | C81: =(Males!P155+Males!P156+Males!P157+Males!P158+Males!P159)/1000 -> 0.279364 | D81: =(All!P155+All!P156+All!P157+All!P158+All!P159)/1000 -> 0.569561 | F81: =(Females!Z155+Females!Z156+Females!Z157+Females!Z158+Females!Z159)/1000 -> 0.659156 | G81: =(Males!Z155+Males!Z156+Males!Z157+Males!Z158+Males!Z159)/1000 -> 0.269698 | H81: =(All!Z155+All!Z156+All!Z157+All!Z158+All!Z159)/1000 -> 0.928853 | J81: =(Females!AJ155+Females!AJ156+Females!AJ157+Females!AJ158+Females!AJ159)/1000 -> 0.64768 | K81: =(Males!AJ155+Males!AJ156+Males!AJ157+Males!AJ158+Males!AJ159)/1000 -> 0.248882 | L81: =(All!AJ155+All!AJ156+All!AJ157+All!AJ158+All!AJ159)/1000 -> 0.896562
A82: Administrative and Secretarial | B82: =(Females!P160+Females!P161)/1000 -> 0.410761 | C82: =(Males!P160+Males!P161)/1000 -> 0.098632 | D82: =(All!P160+All!P161)/1000 -> 0.509394 | F82: =(Females!Z160+Females!Z161)/1000 -> 0.384357 | G82: =(Males!Z160+Males!Z161)/1000 -> 0.128136 | H82: =(All!Z160+All!Z161)/1000 -> 0.512494 | J82: =(Females!AJ160+Females!AJ161)/1000 -> 0.295231 | K82: =(Males!AJ160+Males!AJ161)/1000 -> 0.11591 | L82: =(All!AJ160+All!AJ161)/1000 -> 0.411141
A83: Skilled Trades Occupations | B83: =(Females!P162+Females!P163+Females!P164+Females!P165)/1000 -> 0.2729 | C83: =(Males!P162+Males!P163+Males!P164+Males!P165)/1000 -> 0.433789 | D83: =(All!P162+All!P163+All!P164+All!P165)/1000 -> 0.706688 | F83: =(Females!Z162+Females!Z163+Females!Z164+Females!Z165)/1000 -> 0.455612 | G83: =(Males!Z162+Males!Z163+Males!Z164+Males!Z165)/1000 -> 0.352145 | H83: =(All!Z162+All!Z163+All!Z164+All!Z165)/1000 -> 0.807758 | J83: =(Females!AJ162+Females!AJ163+Females!AJ164+Females!AJ165)/1000 -> 0.20064 | K83: =(Males!AJ162+Males!AJ163+Males!AJ164+Males!AJ165)/1000 -> 0.262395 | L83: =(All!AJ162+All!AJ163+All!AJ164+All!AJ165)/1000 -> 0.463036
A84: Personal Service Occupations | B84: =(Females!P166+Females!P167)/1000 -> 0.031215 | C84: =(Males!P166+Males!P167)/1000 -> 0.003631 | D84: =(All!P166+All!P167)/1000 -> 0.034846 | F84: =(Females!Z166+Females!Z167)/1000 -> 0.041366 | G84: =(Males!Z166+Males!Z167)/1000 -> 0.00381 | H84: =(All!Z166+All!Z167)/1000 -> 0.045177 | J84: =(Females!AJ166+Females!AJ167)/1000 -> 0.037814 | K84: =(Males!AJ166+Males!AJ167)/1000 -> 0.003711 | L84: =(All!AJ166+All!AJ167)/1000 -> 0.041524
A85: Sales and Customer Service Occupations | B85: =(Females!P168+Females!P169)/1000 -> 0.131029 | C85: =(Males!P168+Males!P169)/1000 -> 0.100225 | D85: =(All!P168+All!P169)/1000 -> 0.231255 | F85: =(Females!Z168+Females!Z169)/1000 -> 0.232475 | G85: =(Males!Z168+Males!Z169)/1000 -> 0.126141 | H85: =(All!Z168+All!Z169)/1000 -> 0.358616 | J85: =(Females!AJ168+Females!AJ169)/1000 -> 0.184597 | K85: =(Males!AJ168+Males!AJ169)/1000 -> 0.103545 | L85: =(All!AJ168+All!AJ169)/1000 -> 0.288142
A86: Machine and Transport Operatives | B86: =(Females!P170+Females!P171)/1000 -> 0.483959 | C86: =(Males!P170+Males!P171)/1000 -> 0.465386 | D86: =(All!P170+All!P171)/1000 -> 0.949345 | F86: =(Females!Z170+Females!Z171)/1000 -> 0.59279 | G86: =(Males!Z170+Males!Z171)/1000 -> 0.318672 | H86: =(All!Z170+All!Z171)/1000 -> 0.911461 | J86: =(Females!AJ170+Females!AJ171)/1000 -> 0.309354 | K86: =(Males!AJ170+Males!AJ171)/1000 -> 0.245845 | L86: =(All!AJ170+All!AJ171)/1000 -> 0.555199
A87: Elementary Occupations | B87: =(Females!P172+Females!P173)/1000 -> 0.099391 | C87: =(Males!P172+Males!P173)/1000 -> 0.186794 | D87: =(All!P172+All!P173)/1000 -> 0.286186 | F87: =(Females!Z172+Females!Z173)/1000 -> 0.130226 | G87: =(Males!Z172+Males!Z173)/1000 -> 0.178675 | H87: =(All!Z172+All!Z173)/1000 -> 0.3089 | J87: =(Females!AJ172+Females!AJ173)/1000 -> 0.108101 | K87: =(Males!AJ172+Males!AJ173)/1000 -> 0.154063 | L87: =(All!AJ172+All!AJ173)/1000 -> 0.262163
A88: Total | B88: =Females!P148/1000 -> 1.976 | C88: =Males!P148/1000 -> 2.166 | D88: =All!P148/1000 -> 4.142 | F88: =Females!Z148/1000 -> 3.174 | G88: =Males!Z148/1000 -> 2.04 | H88: =All!Z148/1000 -> 5.214 | J88: =Females!AJ148/1000 -> 2.477 | K88: =Males!AJ148/1000 -> 1.773 | L88: =All!AJ148/1000 -> 4.25
A91: Table 6.4.1.4 | B91: =B$1 -> Occupational composition by gender, 2004-2014-2024 | L91: =$L$1 -> thousands
A92: =All!A175 -> Wearing apparel; Leather, etc | B92: =B$2 -> 2004 | F92: =F$2 -> 2014 | J92: =J$2 -> 2024
B93: Female | C93: Male | D93: Total | F93: Female | G93: Male | H93: Total | J93: Female | K93: Male | L93: Total
A94: Managers and Senior Officials | B94: =(Females!P177+Females!P178)/1000 -> 0.137921 | C94: =(Males!P177+Males!P178)/1000 -> 0.279538 | D94: =(All!P177+All!P178)/1000 -> 0.41746 | F94: =(Females!Z177+Females!Z178)/1000 -> 0.1052 | G94: =(Males!Z177+Males!Z178)/1000 -> 0.074579 | H94: =(All!Z177+All!Z178)/1000 -> 0.179779 | J94: =(Females!AJ177+Females!AJ178)/1000 -> 0.084512 | K94: =(Males!AJ177+Males!AJ178)/1000 -> 0.075506 | L94: =(All!AJ177+All!AJ178)/1000 -> 0.160019
A95: Professional occupations | B95: =(Females!P179+Females!P180+Females!P181+Females!P182)/1000 -> 0.113166 | C95: =(Males!P179+Males!P180+Males!P181+Males!P182)/1000 -> 0.16104 | D95: =(All!P179+All!P180+All!P181+All!P182)/1000 -> 0.274206 | F95: =(Females!Z179+Females!Z180+Females!Z181+Females!Z182)/1000 -> 0.073132 | G95: =(Males!Z179+Males!Z180+Males!Z181+Males!Z182)/1000 -> 0.051804 | H95: =(All!Z179+All!Z180+All!Z181+All!Z182)/1000 -> 0.124937 | J95: =(Females!AJ179+Females!AJ180+Females!AJ181+Females!AJ182)/1000 -> 0.083214 | K95: =(Males!AJ179+Males!AJ180+Males!AJ181+Males!AJ182)/1000 -> 0.053 | L95: =(All!AJ179+All!AJ180+All!AJ181+All!AJ182)/1000 -> 0.136212
A96: Associate Professional and Technical | B96: =(Females!P183+Females!P184+Females!P185+Females!P186+Females!P187)/1000 -> 0.26407 | C96: =(Males!P183+Males!P184+Males!P185+Males!P186+Males!P187)/1000 -> 0.164628 | D96: =(All!P183+All!P184+All!P185+All!P186+All!P187)/1000 -> 0.428699 | F96: =(Females!Z183+Females!Z184+Females!Z185+Females!Z186+Females!Z187)/1000 -> 0.198481 | G96: =(Males!Z183+Males!Z184+Males!Z185+Males!Z186+Males!Z187)/1000 -> 0.037688 | H96: =(All!Z183+All!Z184+All!Z185+All!Z186+All!Z187)/1000 -> 0.23617 | J96: =(Females!AJ183+Females!AJ184+Females!AJ185+Females!AJ186+Females!AJ187)/1000 -> 0.177864 | K96: =(Males!AJ183+Males!AJ184+Males!AJ185+Males!AJ186+Males!AJ187)/1000 -> 0.035403 | L96: =(All!AJ183+All!AJ184+All!AJ185+All!AJ186+All!AJ187)/1000 -> 0.213266
A97: Administrative and Secretarial | B97: =(Females!P188+Females!P189)/1000 -> 0.368287 | C97: =(Males!P188+Males!P189)/1000 -> 0.075633 | D97: =(All!P188+All!P189)/1000 -> 0.443919 | F97: =(Females!Z188+Females!Z189)/1000 -> 0.193609 | G97: =(Males!Z188+Males!Z189)/1000 -> 0.015847 | H97: =(All!Z188+All!Z189)/1000 -> 0.209456 | J97: =(Females!AJ188+Females!AJ189)/1000 -> 0.136347 | K97: =(Males!AJ188+Males!AJ189)/1000 -> 0.012358 | L97: =(All!AJ188+All!AJ189)/1000 -> 0.148704
A98: Skilled Trades Occupations | B98: =(Females!P190+Females!P191+Females!P192+Females!P193)/1000 -> 0.155613 | C98: =(Males!P190+Males!P191+Males!P192+Males!P193)/1000 -> 0.133803 | D98: =(All!P190+All!P191+All!P192+All!P193)/1000 -> 0.289417 | F98: =(Females!Z190+Females!Z191+Females!Z192+Females!Z193)/1000 -> 0.080152 | G98: =(Males!Z190+Males!Z191+Males!Z192+Males!Z193)/1000 -> 0.02999 | H98: =(All!Z190+All!Z191+All!Z192+All!Z193)/1000 -> 0.110144 | J98: =(Females!AJ190+Females!AJ191+Females!AJ192+Females!AJ193)/1000 -> 0.03378 | K98: =(Males!AJ190+Males!AJ191+Males!AJ192+Males!AJ193)/1000 -> 0.023769 | L98: =(All!AJ190+All!AJ191+All!AJ192+All!AJ193)/1000 -> 0.05755
A99: Personal Service Occupations | B99: =(Females!P194+Females!P195)/1000 -> 0.014388 | C99: =(Males!P194+Males!P195)/1000 -> 0.007308 | D99: =(All!P194+All!P195)/1000 -> 0.021697 | F99: =(Females!Z194+Females!Z195)/1000 -> 0.006483 | G99: =(Males!Z194+Males!Z195)/1000 -> 0.005628 | H99: =(All!Z194+All!Z195)/1000 -> 0.012111 | J99: =(Females!AJ194+Females!AJ195)/1000 -> 0.024209 | K99: =(Males!AJ194+Males!AJ195)/1000 -> 0.006827 | L99: =(All!AJ194+All!AJ195)/1000 -> 0.031036
A100: Sales and Customer Service Occupations | B100: =(Females!P196+Females!P197)/1000 -> 0.109595 | C100: =(Males!P196+Males!P197)/1000 -> 0.039477 | D100: =(All!P196+All!P197)/1000 -> 0.149072 | F100: =(Females!Z196+Females!Z197)/1000 -> 0.061043 | G100: =(Males!Z196+Males!Z197)/1000 -> 0.008433 | H100: =(All!Z196+All!Z197)/1000 -> 0.069476 | J100: =(Females!AJ196+Females!AJ197)/1000 -> 0.048421 | K100: =(Males!AJ196+Males!AJ197)/1000 -> 0.007253 | L100: =(All!AJ196+All!AJ197)/1000 -> 0.055674
A101: Machine and Transport Operatives | B101: =(Females!P198+Females!P199)/1000 -> 0.281862 | C101: =(Males!P198+Males!P199)/1000 -> 0.178567 | D101: =(All!P198+All!P199)/1000 -> 0.460429 | F101: =(Females!Z198+Females!Z199)/1000 -> 0.041382 | G101: =(Males!Z198+Males!Z199)/1000 -> 0.03338 | H101: =(All!Z198+All!Z199)/1000 -> 0.074763 | J101: =(Females!AJ198+Females!AJ199)/1000 -> 0.014576 | K101: =(Males!AJ198+Males!AJ199)/1000 -> 0.026113 | L101: =(All!AJ198+All!AJ199)/1000 -> 0.040689
A102: Elementary Occupations | B102: =(Females!P200+Females!P201)/1000 -> 0.090096 | C102: =(Males!P200+Males!P201)/1000 -> 0.186006 | D102: =(All!P200+All!P201)/1000 -> 0.276102 | F102: =(Females!Z200+Females!Z201)/1000 -> 0.043515 | G102: =(Males!Z200+Males!Z201)/1000 -> 0.06765 | H102: =(All!Z200+All!Z201)/1000 -> 0.111165 | J102: =(Females!AJ200+Females!AJ201)/1000 -> 0.044079 | K102: =(Males!AJ200+Males!AJ201)/1000 -> 0.043773 | L102: =(All!AJ200+All!AJ201)/1000 -> 0.087851
A103: Total | B103: =Females!P176/1000 -> 1.535 | C103: =Males!P176/1000 -> 1.226 | D103: =All!P176/1000 -> 2.761 | F103: =Females!Z176/1000 -> 0.803 | G103: =Males!Z176/1000 -> 0.325 | H103: =All!Z176/1000 -> 1.128 | J103: =Females!AJ176/1000 -> 0.647 | K103: =Males!AJ176/1000 -> 0.284 | L103: =All!AJ176/1000 -> 0.931
A106: Table 6.4.1.4 | B106: =B$1 -> Occupational composition by gender, 2004-2014-2024 | L106: =$L$1 -> thousands
A107: =All!A203 -> Wood, etc | B107: =B$2 -> 2004 | F107: =F$2 -> 2014 | J107: =J$2 -> 2024
B108: Female | C108: Male | D108: Total | F108: Female | G108: Male | H108: Total | J108: Female | K108: Male | L108: Total
A109: Managers and Senior Officials | B109: =(Females!P205+Females!P206)/1000 -> 0.214713 | C109: =(Males!P205+Males!P206)/1000 -> 0.855654 | D109: =(All!P205+All!P206)/1000 -> 1.070367 | F109: =(Females!Z205+Females!Z206)/1000 -> 0.299405 | G109: =(Males!Z205+Males!Z206)/1000 -> 0.628328 | H109: =(All!Z205+All!Z206)/1000 -> 0.927732 | J109: =(Females!AJ205+Females!AJ206)/1000 -> 0.312209 | K109: =(Males!AJ205+Males!AJ206)/1000 -> 0.623588 | L109: =(All!AJ205+All!AJ206)/1000 -> 0.935797
A110: Professional occupations | B110: =(Females!P207+Females!P208+Females!P209+Females!P210)/1000 -> 0.209623 | C110: =(Males!P207+Males!P208+Males!P209+Males!P210)/1000 -> 0.382422 | D110: =(All!P207+All!P208+All!P209+All!P210)/1000 -> 0.592045 | F110: =(Females!Z207+Females!Z208+Females!Z209+Females!Z210)/1000 -> 0.138806 | G110: =(Males!Z207+Males!Z208+Males!Z209+Males!Z210)/1000 -> 0.304492 | H110: =(All!Z207+All!Z208+All!Z209+All!Z210)/1000 -> 0.443299 | J110: =(Females!AJ207+Females!AJ208+Females!AJ209+Females!AJ210)/1000 -> 0.152544 | K110: =(Males!AJ207+Males!AJ208+Males!AJ209+Males!AJ210)/1000 -> 0.304097 | L110: =(All!AJ207+All!AJ208+All!AJ209+All!AJ210)/1000 -> 0.456642
A111: Associate Professional and Technical | B111: =(Females!P211+Females!P212+Females!P213+Females!P214+Females!P215)/1000 -> 0.336573 | C111: =(Males!P211+Males!P212+Males!P213+Males!P214+Males!P215)/1000 -> 0.735369 | D111: =(All!P211+All!P212+All!P213+All!P214+All!P215)/1000 -> 1.071942 | F111: =(Females!Z211+Females!Z212+Females!Z213+Females!Z214+Females!Z215)/1000 -> 0.201566 | G111: =(Males!Z211+Males!Z212+Males!Z213+Males!Z214+Males!Z215)/1000 -> 0.792995 | H111: =(All!Z211+All!Z212+All!Z213+All!Z214+All!Z215)/1000 -> 0.994561 | J111: =(Females!AJ211+Females!AJ212+Females!AJ213+Females!AJ214+Females!AJ215)/1000 -> 0.212311 | K111: =(Males!AJ211+Males!AJ212+Males!AJ213+Males!AJ214+Males!AJ215)/1000 -> 0.784802 | L111: =(All!AJ211+All!AJ212+All!AJ213+All!AJ214+All!AJ215)/1000 -> 0.997113
A112: Administrative and Secretarial | B112: =(Females!P216+Females!P217)/1000 -> 1.011498 | C112: =(Males!P216+Males!P217)/1000 -> 0.137314 | D112: =(All!P216+All!P217)/1000 -> 1.148812 | F112: =(Females!Z216+Females!Z217)/1000 -> 0.383113 | G112: =(Males!Z216+Males!Z217)/1000 -> 0.095792 | H112: =(All!Z216+All!Z217)/1000 -> 0.478905 | J112: =(Females!AJ216+Females!AJ217)/1000 -> 0.305157 | K112: =(Males!AJ216+Males!AJ217)/1000 -> 0.086748 | L112: =(All!AJ216+All!AJ217)/1000 -> 0.391904
A113: Skilled Trades Occupations | B113: =(Females!P218+Females!P219+Females!P220+Females!P221)/1000 -> 0.25525 | C113: =(Males!P218+Males!P219+Males!P220+Males!P221)/1000 -> 2.851372 | D113: =(All!P218+All!P219+All!P220+All!P221)/1000 -> 3.106623 | F113: =(Females!Z218+Females!Z219+Females!Z220+Females!Z221)/1000 -> 0.193583 | G113: =(Males!Z218+Males!Z219+Males!Z220+Males!Z221)/1000 -> 2.455748 | H113: =(All!Z218+All!Z219+All!Z220+All!Z221)/1000 -> 2.649332 | J113: =(Females!AJ218+Females!AJ219+Females!AJ220+Females!AJ221)/1000 -> 0.189542 | K113: =(Males!AJ218+Males!AJ219+Males!AJ220+Males!AJ221)/1000 -> 2.124052 | L113: =(All!AJ218+All!AJ219+All!AJ220+All!AJ221)/1000 -> 2.313594
A114: Personal Service Occupations | B114: =(Females!P222+Females!P223)/1000 -> 0.068212 | C114: =(Males!P222+Males!P223)/1000 -> 0.032064 | D114: =(All!P222+All!P223)/1000 -> 0.100275 | F114: =(Females!Z222+Females!Z223)/1000 -> 0.034192 | G114: =(Males!Z222+Males!Z223)/1000 -> 0.031667 | H114: =(All!Z222+All!Z223)/1000 -> 0.065858 | J114: =(Females!AJ222+Females!AJ223)/1000 -> 0.03143 | K114: =(Males!AJ222+Males!AJ223)/1000 -> 0.035803 | L114: =(All!AJ222+All!AJ223)/1000 -> 0.067233
A115: Sales and Customer Service Occupations | B115: =(Females!P224+Females!P225)/1000 -> 0.127716 | C115: =(Males!P224+Males!P225)/1000 -> 0.108265 | D115: =(All!P224+All!P225)/1000 -> 0.235981 | F115: =(Females!Z224+Females!Z225)/1000 -> 0.073801 | G115: =(Males!Z224+Males!Z225)/1000 -> 0.092352 | H115: =(All!Z224+All!Z225)/1000 -> 0.166152 | J115: =(Females!AJ224+Females!AJ225)/1000 -> 0.069175 | K115: =(Males!AJ224+Males!AJ225)/1000 -> 0.081155 | L115: =(All!AJ224+All!AJ225)/1000 -> 0.150331
A116: Machine and Transport Operatives | B116: =(Females!P226+Females!P227)/1000 -> 0.151914 | C116: =(Males!P226+Males!P227)/1000 -> 1.539794 | D116: =(All!P226+All!P227)/1000 -> 1.691707 | F116: =(Females!Z226+Females!Z227)/1000 -> 0.028884 | G116: =(Males!Z226+Males!Z227)/1000 -> 1.412197 | H116: =(All!Z226+All!Z227)/1000 -> 1.441081 | J116: =(Females!AJ226+Females!AJ227)/1000 -> 0.015646 | K116: =(Males!AJ226+Males!AJ227)/1000 -> 1.167912 | L116: =(All!AJ226+All!AJ227)/1000 -> 1.183558
A117: Elementary Occupations | B117: =(Females!P228+Females!P229)/1000 -> 0.1505 | C117: =(Males!P228+Males!P229)/1000 -> 0.416747 | D117: =(All!P228+All!P229)/1000 -> 0.567247 | F117: =(Females!Z228+Females!Z229)/1000 -> 0.08865 | G117: =(Males!Z228+Males!Z229)/1000 -> 0.40643 | H117: =(All!Z228+All!Z229)/1000 -> 0.495079 | J117: =(Females!AJ228+Females!AJ229)/1000 -> 0.080984 | K117: =(Males!AJ228+Males!AJ229)/1000 -> 0.334842 | L117: =(All!AJ228+All!AJ229)/1000 -> 0.415827
A118: Total | B118: =Females!P204/1000 -> 2.526 | C118: =Males!P204/1000 -> 7.059 | D118: =All!P204/1000 -> 9.585 | F118: =Females!Z204/1000 -> 1.442 | G118: =Males!Z204/1000 -> 6.22 | H118: =All!Z204/1000 -> 7.662 | J118: =Females!AJ204/1000 -> 1.369 | K118: =Males!AJ204/1000 -> 5.543 | L118: =All!AJ204/1000 -> 6.912
A121: Table 6.4.1.4 | B121: =B$1 -> Occupational composition by gender, 2004-2014-2024 | L121: =$L$1 -> thousands
A122: =All!A231 -> Paper, etc | B122: =B$2 -> 2004 | F122: =F$2 -> 2014 | J122: =J$2 -> 2024
B123: Female | C123: Male | D123: Total | F123: Female | G123: Male | H123: Total | J123: Female | K123: Male | L123: Total
A124: Managers and Senior Officials | B124: =(Females!P233+Females!P234)/1000 -> 0.131537 | C124: =(Males!P233+Males!P234)/1000 -> 1.078884 | D124: =(All!P233+All!P234)/1000 -> 1.210421 | F124: =(Females!Z233+Females!Z234)/1000 -> 0.112856 | G124: =(Males!Z233+Males!Z234)/1000 -> 0.673416 | H124: =(All!Z233+All!Z234)/1000 -> 0.786272 | J124: =(Females!AJ233+Females!AJ234)/1000 -> 0.11832 | K124: =(Males!AJ233+Males!AJ234)/1000 -> 0.732869 | L124: =(All!AJ233+All!AJ234)/1000 -> 0.851189
A125: Professional occupations | B125: =(Females!P235+Females!P236+Females!P237+Females!P238)/1000 -> 0.108796 | C125: =(Males!P235+Males!P236+Males!P237+Males!P238)/1000 -> 0.782516 | D125: =(All!P235+All!P236+All!P237+All!P238)/1000 -> 0.891311 | F125: =(Females!Z235+Females!Z236+Females!Z237+Females!Z238)/1000 -> 0.123297 | G125: =(Males!Z235+Males!Z236+Males!Z237+Males!Z238)/1000 -> 0.427768 | H125: =(All!Z235+All!Z236+All!Z237+All!Z238)/1000 -> 0.551065 | J125: =(Females!AJ235+Females!AJ236+Females!AJ237+Females!AJ238)/1000 -> 0.125492 | K125: =(Males!AJ235+Males!AJ236+Males!AJ237+Males!AJ238)/1000 -> 0.449274 | L125: =(All!AJ235+All!AJ236+All!AJ237+All!AJ238)/1000 -> 0.574765
... 134 more rows

Sheet Table6.4.1.5
A1: Table 6.4.1.5 | B1: =CONCATENATE("Occupational composition by gender, ",B2,"-",G2,"-",L2) -> Occupational composition by gender, 2004-2014-2024 | O1: thousands
A2: =All!A7 -> All industries | B2: =All!P7 -> 2004 | G2: =All!Z7 -> 2014 | L2: =All!AJ7 -> 2024
B3: Full-time | C3: Part-time | D3: Self-empl | E3: Total | G3: =B3 -> Full-time | H3: =C3 -> Part-time | I3: =D3 -> Self-empl | J3: =E3 -> Total | L3: =B3 -> Full-time | M3: =C3 -> Part-time | N3: =D3 -> Self-empl | O3: =E3 -> Total
A4: Managers and Senior Officials | B4: =(FT!P9+FT!P10)/1000 -> 327.109455 | C4: =(PT!P9+PT!P10)/1000 -> 31.833726 | D4: =(SE!P9+SE!P10)/1000 -> 74.055173 | E4: =(All!P9+All!P10)/1000 -> 432.998355 | G4: =(FT!Z9+FT!Z10)/1000 -> 407.463363 | H4: =(PT!Z9+PT!Z10)/1000 -> 55.710748 | I4: =(SE!Z9+SE!Z10)/1000 -> 82.19406 | J4: =(All!Z9+All!Z10)/1000 -> 545.368172 | L4: =(FT!AJ9+FT!AJ10)/1000 -> 478.650163 | M4: =(PT!AJ9+PT!AJ10)/1000 -> 75.637886 | N4: =(SE!AJ9+SE!AJ10)/1000 -> 81.837536 | O4: =(All!AJ9+All!AJ10)/1000 -> 636.125585
A5: Professional occupations | B5: =(FT!P11+FT!P12+FT!P13+FT!P14)/1000 -> 491.094441 | C5: =(PT!P11+PT!P12+PT!P13+PT!P14)/1000 -> 152.18261 | D5: =(SE!P11+SE!P12+SE!P13+SE!P14)/1000 -> 129.637142 | E5: =(All!P11+All!P12+All!P13+All!P14)/1000 -> 772.914191 | G5: =(FT!Z11+FT!Z12+FT!Z13+FT!Z14)/1000 -> 592.046936 | H5: =(PT!Z11+PT!Z12+PT!Z13+PT!Z14)/1000 -> 185.938569 | I5: =(SE!Z11+SE!Z12+SE!Z13+SE!Z14)/1000 -> 171.143422 | J5: =(All!Z11+All!Z12+All!Z13+All!Z14)/1000 -> 949.128926 | L5: =(FT!AJ11+FT!AJ12+FT!AJ13+FT!AJ14)/1000 -> 662.580972 | M5: =(PT!AJ11+PT!AJ12+PT!AJ13+PT!AJ14)/1000 -> 235.386185 | N5: =(SE!AJ11+SE!AJ12+SE!AJ13+SE!AJ14)/1000 -> 176.471016 | O5: =(All!AJ11+All!AJ12+All!AJ13+All!AJ14)/1000 -> 1074.438172
A6: Associate Professional and Technical | B6: =(FT!P15+FT!P16+FT!P17+FT!P18+FT!P19)/1000 -> 415.741286 | C6: =(PT!P15+PT!P16+PT!P17+PT!P18+PT!P19)/1000 -> 87.881995 | D6: =(SE!P15+SE!P16+SE!P17+SE!P18+SE!P19)/1000 -> 92.856503 | E6: =(All!P15+All!P16+All!P17+All!P18+All!P19)/1000 -> 596.479783 | G6: =(FT!Z15+FT!Z16+FT!Z17+FT!Z18+FT!Z19)/1000 -> 445.369055 | H6: =(PT!Z15+PT!Z16+PT!Z17+PT!Z18+PT!Z19)/1000 -> 106.209088 | I6: =(SE!Z15+SE!Z16+SE!Z17+SE!Z18+SE!Z19)/1000 -> 121.400227 | J6: =(All!Z15+All!Z16+All!Z17+All!Z18+All!Z19)/1000 -> 672.978371 | L6: =(FT!AJ15+FT!AJ16+FT!AJ17+FT!AJ18+FT!AJ19)/1000 -> 489.87513 | M6: =(PT!AJ15+PT!AJ16+PT!AJ17+PT!AJ18+PT!AJ19)/1000 -> 129.597985 | N6: =(SE!AJ15+SE!AJ16+SE!AJ17+SE!AJ18+SE!AJ19)/1000 -> 127.882141 | O6: =(All!AJ15+All!AJ16+All!AJ17+All!AJ18+All!AJ19)/1000 -> 747.355257
A7: Administrative and Secretarial | B7: =(FT!P20+FT!P21)/1000 -> 317.772509 | C7: =(PT!P20+PT!P21)/1000 -> 224.88685 | D7: =(SE!P20+SE!P21)/1000 -> 23.744715 | E7: =(All!P20+All!P21)/1000 -> 566.404074 | G7: =(FT!Z20+FT!Z21)/1000 -> 261.577487 | H7: =(PT!Z20+PT!Z21)/1000 -> 190.850364 | I7: =(SE!Z20+SE!Z21)/1000 -> 28.274398 | J7: =(All!Z20+All!Z21)/1000 -> 480.702249 | L7: =(FT!AJ20+FT!AJ21)/1000 -> 224.851449 | M7: =(PT!AJ20+PT!AJ21)/1000 -> 163.702101 | N7: =(SE!AJ20+SE!AJ21)/1000 -> 23.885056 | O7: =(All!AJ20+All!AJ21)/1000 -> 412.438606
A8: Skilled Trades Occupations | B8: =(FT!P22+FT!P23+FT!P24+FT!P25)/1000 -> 293.581559 | C8: =(PT!P22+PT!P23+PT!P24+PT!P25)/1000 -> 47.873617 | D8: =(SE!P22+SE!P23+SE!P24+SE!P25)/1000 -> 145.396489 | E8: =(All!P22+All!P23+All!P24+All!P25)/1000 -> 486.851666 | G8: =(FT!Z22+FT!Z23+FT!Z24+FT!Z25)/1000 -> 267.529306 | H8: =(PT!Z22+PT!Z23+PT!Z24+PT!Z25)/1000 -> 50.002182 | I8: =(SE!Z22+SE!Z23+SE!Z24+SE!Z25)/1000 -> 158.701833 | J8: =(All!Z22+All!Z23+All!Z24+All!Z25)/1000 -> 476.23332 | L8: =(FT!AJ22+FT!AJ23+FT!AJ24+FT!AJ25)/1000 -> 258.943131 | M8: =(PT!AJ22+PT!AJ23+PT!AJ24+PT!AJ25)/1000 -> 53.778985 | N8: =(SE!AJ22+SE!AJ23+SE!AJ24+SE!AJ25)/1000 -> 162.775458 | O8: =(All!AJ22+All!AJ23+All!AJ24+All!AJ25)/1000 -> 475.497575
A9: Personal Service Occupations | B9: =(FT!P26+FT!P27)/1000 -> 133.794725 | C9: =(PT!P26+PT!P27)/1000 -> 164.645601 | D9: =(SE!P26+SE!P27)/1000 -> 32.812242 | E9: =(All!P26+All!P27)/1000 -> 331.252568 | G9: =(FT!Z26+FT!Z27)/1000 -> 181.739202 | H9: =(PT!Z26+PT!Z27)/1000 -> 206.145619 | I9: =(SE!Z26+SE!Z27)/1000 -> 46.976285 | J9: =(All!Z26+All!Z27)/1000 -> 434.861106 | L9: =(FT!AJ26+FT!AJ27)/1000 -> 201.473404 | M9: =(PT!AJ26+PT!AJ27)/1000 -> 250.037836 | N9: =(SE!AJ26+SE!AJ27)/1000 -> 46.036973 | O9: =(All!AJ26+All!AJ27)/1000 -> 497.548213
A10: Sales and Customer Service Occupations | B10: =(FT!P28+FT!P29)/1000 -> 118.287194 | C10: =(PT!P28+PT!P29)/1000 -> 193.830302 | D10: =(SE!P28+SE!P29)/1000 -> 10.67505 | E10: =(All!P28+All!P29)/1000 -> 322.792545 | G10: =(FT!Z28+FT!Z29)/1000 -> 127.424007 | H10: =(PT!Z28+PT!Z29)/1000 -> 188.180114 | I10: =(SE!Z28+SE!Z29)/1000 -> 15.72263 | J10: =(All!Z28+All!Z29)/1000 -> 331.32675 | L10: =(FT!AJ28+FT!AJ29)/1000 -> 116.468526 | M10: =(PT!AJ28+PT!AJ29)/1000 -> 196.50339 | N10: =(SE!AJ28+SE!AJ29)/1000 -> 12.866289 | O10: =(All!AJ28+All!AJ29)/1000 -> 325.838207
A11: Machine and Transport Operatives | B11: =(FT!P30+FT!P31)/1000 -> 173.559417 | C11: =(PT!P30+PT!P31)/1000 -> 27.593481 | D11: =(SE!P30+SE!P31)/1000 -> 39.01668 | E11: =(All!P30+All!P31)/1000 -> 240.169577 | G11: =(FT!Z30+FT!Z31)/1000 -> 148.572466 | H11: =(PT!Z30+PT!Z31)/1000 -> 28.929191 | I11: =(SE!Z30+SE!Z31)/1000 -> 40.363083 | J11: =(All!Z30+All!Z31)/1000 -> 217.86474 | L11: =(FT!AJ30+FT!AJ31)/1000 -> 141.331075 | M11: =(PT!AJ30+PT!AJ31)/1000 -> 35.341328 | N11: =(SE!AJ30+SE!AJ31)/1000 -> 36.156756 | O11: =(All!AJ30+All!AJ31)/1000 -> 212.829158
A12: Elementary Occupations | B12: =(FT!P32+FT!P33)/1000 -> 211.447416 | C12: =(PT!P32+PT!P33)/1000 -> 280.436817 | D12: =(SE!P32+SE!P33)/1000 -> 18.903006 | E12: =(All!P32+All!P33)/1000 -> 510.787239 | G12: =(FT!Z32+FT!Z33)/1000 -> 206.363177 | H12: =(PT!Z32+PT!Z33)/1000 -> 272.141127 | I12: =(SE!Z32+SE!Z33)/1000 -> 21.623063 | J12: =(All!Z32+All!Z33)/1000 -> 500.127367 | L12: =(FT!AJ32+FT!AJ33)/1000 -> 211.81715 | M12: =(PT!AJ32+PT!AJ33)/1000 -> 288.277303 | N12: =(SE!AJ32+SE!AJ33)/1000 -> 21.468776 | O12: =(All!AJ32+All!AJ33)/1000 -> 521.56323
A13: Total | B13: =FT!P8/1000 -> 2482.388 | C13: =PT!P8/1000 -> 1211.165 | D13: =SE!P8/1000 -> 567.097 | E13: =All!P8/1000 -> 4260.65 | G13: =FT!Z8/1000 -> 2638.085 | H13: =PT!Z8/1000 -> 1284.107 | I13: =SE!Z8/1000 -> 686.399 | J13: =All!Z8/1000 -> 4608.591 | L13: =FT!AJ8/1000 -> 2785.991 | M13: =PT!AJ8/1000 -> 1428.263 | N13: =SE!AJ8/1000 -> 689.38 | O13: =All!AJ8/1000 -> 4903.634
A16: Table 6.4.1.5 | B16: =CONCATENATE("Occupational composition by gender, ",B17,"-",G17,"-",L17) -> Occupational composition by gender, 2004-2014-2024 | O16: thousands
A17: =All!A35 -> Agriculture, etc | B17: =B$2 -> 2004 | G17: =G$2 -> 2014 | L17: =L$2 -> 2024
B18: Full-time | C18: Part-time | D18: Self-empl | E18: Total | G18: =B18 -> Full-time | H18: =C18 -> Part-time | I18: =D18 -> Self-empl | J18: =E18 -> Total | L18: =B18 -> Full-time | M18: =C18 -> Part-time | N18: =D18 -> Self-empl | O18: =E18 -> Total
A19: Managers and Senior Officials | B19: =(FT!P37+FT!P38)/1000 -> 2.843309 | C19: =(PT!P37+PT!P38)/1000 -> 0.38861 | D19: =(SE!P37+SE!P38)/1000 -> 0.503148 | E19: =(All!P37+All!P38)/1000 -> 3.735066 | G19: =(FT!Z37+FT!Z38)/1000 -> 2.081104 | H19: =(PT!Z37+PT!Z38)/1000 -> 0.657903 | I19: =(SE!Z37+SE!Z38)/1000 -> 1.841676 | J19: =(All!Z37+All!Z38)/1000 -> 4.580684 | L19: =(FT!AJ37+FT!AJ38)/1000 -> 1.583158 | M19: =(PT!AJ37+PT!AJ38)/1000 -> 0.792507 | N19: =(SE!AJ37+SE!AJ38)/1000 -> 1.191245 | O19: =(All!AJ37+All!AJ38)/1000 -> 3.566909
A20: Professional occupations | B20: =(FT!P39+FT!P40+FT!P41+FT!P42)/1000 -> 1.880374 | C20: =(PT!P39+PT!P40+PT!P41+PT!P42)/1000 -> 0.301683 | D20: =(SE!P39+SE!P40+SE!P41+SE!P42)/1000 -> 0.509746 | E20: =(All!P39+All!P40+All!P41+All!P42)/1000 -> 2.691803 | G20: =(FT!Z39+FT!Z40+FT!Z41+FT!Z42)/1000 -> 1.456005 | H20: =(PT!Z39+PT!Z40+PT!Z41+PT!Z42)/1000 -> 0.797362 | I20: =(SE!Z39+SE!Z40+SE!Z41+SE!Z42)/1000 -> 1.904791 | J20: =(All!Z39+All!Z40+All!Z41+All!Z42)/1000 -> 4.158157 | L20: =(FT!AJ39+FT!AJ40+FT!AJ41+FT!AJ42)/1000 -> 1.35735 | M20: =(PT!AJ39+PT!AJ40+PT!AJ41+PT!AJ42)/1000 -> 1.202298 | N20: =(SE!AJ39+SE!AJ40+SE!AJ41+SE!AJ42)/1000 -> 2.16037 | O20: =(All!AJ39+All!AJ40+All!AJ41+All!AJ42)/1000 -> 4.720017
A21: Associate Professional and Technical | B21: =(FT!P43+FT!P44+FT!P45+FT!P46+FT!P47)/1000 -> 1.353882 | C21: =(PT!P43+PT!P44+PT!P45+PT!P46+PT!P47)/1000 -> 0.277764 | D21: =(SE!P43+SE!P44+SE!P45+SE!P46+SE!P47)/1000 -> 0.220152 | E21: =(All!P43+All!P44+All!P45+All!P46+All!P47)/1000 -> 1.851798 | G21: =(FT!Z43+FT!Z44+FT!Z45+FT!Z46+FT!Z47)/1000 -> 1.389227 | H21: =(PT!Z43+PT!Z44+PT!Z45+PT!Z46+PT!Z47)/1000 -> 0.629169 | I21: =(SE!Z43+SE!Z44+SE!Z45+SE!Z46+SE!Z47)/1000 -> 0.759311 | J21: =(All!Z43+All!Z44+All!Z45+All!Z46+All!Z47)/1000 -> 2.777706 | L21: =(FT!AJ43+FT!AJ44+FT!AJ45+FT!AJ46+FT!AJ47)/1000 -> 1.19507 | M21: =(PT!AJ43+PT!AJ44+PT!AJ45+PT!AJ46+PT!AJ47)/1000 -> 0.912438 | N21: =(SE!AJ43+SE!AJ44+SE!AJ45+SE!AJ46+SE!AJ47)/1000 -> 0.82905 | O21: =(All!AJ43+All!AJ44+All!AJ45+All!AJ46+All!AJ47)/1000 -> 2.936558
A22: Administrative and Secretarial | B22: =(FT!P48+FT!P49)/1000 -> 1.602728 | C22: =(PT!P48+PT!P49)/1000 -> 2.394903 | D22: =(SE!P48+SE!P49)/1000 -> 0.108445 | E22: =(All!P48+All!P49)/1000 -> 4.106075 | G22: =(FT!Z48+FT!Z49)/1000 -> 1.20534 | H22: =(PT!Z48+PT!Z49)/1000 -> 1.873192 | I22: =(SE!Z48+SE!Z49)/1000 -> 0.316973 | J22: =(All!Z48+All!Z49)/1000 -> 3.395503 | L22: =(FT!AJ48+FT!AJ49)/1000 -> 0.733933 | M22: =(PT!AJ48+PT!AJ49)/1000 -> 1.574028 | N22: =(SE!AJ48+SE!AJ49)/1000 -> 0.232075 | O22: =(All!AJ48+All!AJ49)/1000 -> 2.540036
A23: Skilled Trades Occupations | B23: =(FT!P50+FT!P51+FT!P52+FT!P53)/1000 -> 13.587957 | C23: =(PT!P50+PT!P51+PT!P52+PT!P53)/1000 -> 3.407865 | D23: =(SE!P50+SE!P51+SE!P52+SE!P53)/1000 -> 5.845625 | E23: =(All!P50+All!P51+All!P52+All!P53)/1000 -> 22.841448 | G23: =(FT!Z50+FT!Z51+FT!Z52+FT!Z53)/1000 -> 11.304795 | H23: =(PT!Z50+PT!Z51+PT!Z52+PT!Z53)/1000 -> 3.48093 | I23: =(SE!Z50+SE!Z51+SE!Z52+SE!Z53)/1000 -> 17.879216 | J23: =(All!Z50+All!Z51+All!Z52+All!Z53)/1000 -> 32.664941 | L23: =(FT!AJ50+FT!AJ51+FT!AJ52+FT!AJ53)/1000 -> 9.459972 | M23: =(PT!AJ50+PT!AJ51+PT!AJ52+PT!AJ53)/1000 -> 3.60121 | N23: =(SE!AJ50+SE!AJ51+SE!AJ52+SE!AJ53)/1000 -> 12.478919 | O23: =(All!AJ50+All!AJ51+All!AJ52+All!AJ53)/1000 -> 25.540102
A24: Personal Service Occupations | B24: =(FT!P54+FT!P55)/1000 -> 1.0262 | C24: =(PT!P54+PT!P55)/1000 -> 1.676461 | D24: =(SE!P54+SE!P55)/1000 -> 0.104969 | E24: =(All!P54+All!P55)/1000 -> 2.807632 | G24: =(FT!Z54+FT!Z55)/1000 -> 0.684696 | H24: =(PT!Z54+PT!Z55)/1000 -> 0.631899 | I24: =(SE!Z54+SE!Z55)/1000 -> 0.329557 | J24: =(All!Z54+All!Z55)/1000 -> 1.646153 | L24: =(FT!AJ54+FT!AJ55)/1000 -> 0.579637 | M24: =(PT!AJ54+PT!AJ55)/1000 -> 0.626903 | N24: =(SE!AJ54+SE!AJ55)/1000 -> 0.203334 | O24: =(All!AJ54+All!AJ55)/1000 -> 1.409874
A25: Sales and Customer Service Occupations | B25: =(FT!P56+FT!P57)/1000 -> 0.471441 | C25: =(PT!P56+PT!P57)/1000 -> 0.591952 | D25: =(SE!P56+SE!P57)/1000 -> 0.035047 | E25: =(All!P56+All!P57)/1000 -> 1.09844 | G25: =(FT!Z56+FT!Z57)/1000 -> 0.424995 | H25: =(PT!Z56+PT!Z57)/1000 -> 0.475769 | I25: =(SE!Z56+SE!Z57)/1000 -> 0.097809 | J25: =(All!Z56+All!Z57)/1000 -> 0.998573 | L25: =(FT!AJ56+FT!AJ57)/1000 -> 0.291948 | M25: =(PT!AJ56+PT!AJ57)/1000 -> 0.349111 | N25: =(SE!AJ56+SE!AJ57)/1000 -> 0.054231 | O25: =(All!AJ56+All!AJ57)/1000 -> 0.695288
A26: Machine and Transport Operatives | B26: =(FT!P58+FT!P59)/1000 -> 2.758874 | C26: =(PT!P58+PT!P59)/1000 -> 0.404873 | D26: =(SE!P58+SE!P59)/1000 -> 0.137857 | E26: =(All!P58+All!P59)/1000 -> 3.301604 | G26: =(FT!Z58+FT!Z59)/1000 -> 1.495754 | H26: =(PT!Z58+PT!Z59)/1000 -> 0.244788 | I26: =(SE!Z58+SE!Z59)/1000 -> 0.141917 | J26: =(All!Z58+All!Z59)/1000 -> 1.88246 | L26: =(FT!AJ58+FT!AJ59)/1000 -> 0.837348 | M26: =(PT!AJ58+PT!AJ59)/1000 -> 0.176461 | N26: =(SE!AJ58+SE!AJ59)/1000 -> 0.064376 | O26: =(All!AJ58+All!AJ59)/1000 -> 1.078186
A27: Elementary Occupations | B27: =(FT!P60+FT!P61)/1000 -> 7.109236 | C27: =(PT!P60+PT!P61)/1000 -> 2.537887 | D27: =(SE!P60+SE!P61)/1000 -> 0.52501 | E27: =(All!P60+All!P61)/1000 -> 10.172134 | G27: =(FT!Z60+FT!Z61)/1000 -> 4.030083 | H27: =(PT!Z60+PT!Z61)/1000 -> 1.08699 | I27: =(SE!Z60+SE!Z61)/1000 -> 0.789749 | J27: =(All!Z60+All!Z61)/1000 -> 5.906823 | L27: =(FT!AJ60+FT!AJ61)/1000 -> 2.387583 | M27: =(PT!AJ60+PT!AJ61)/1000 -> 0.741045 | N27: =(SE!AJ60+SE!AJ61)/1000 -> 0.330401 | O27: =(All!AJ60+All!AJ61)/1000 -> 3.459029
A28: Total | B28: =FT!P36/1000 -> 32.634 | C28: =PT!P36/1000 -> 11.982 | D28: =SE!P36/1000 -> 7.99 | E28: =All!P36/1000 -> 52.606 | G28: =FT!Z36/1000 -> 24.072 | H28: =PT!Z36/1000 -> 9.878 | I28: =SE!Z36/1000 -> 24.061 | J28: =All!Z36/1000 -> 58.011 | L28: =FT!AJ36/1000 -> 18.426 | M28: =PT!AJ36/1000 -> 9.976 | N28: =SE!AJ36/1000 -> 17.544 | O28: =All!AJ36/1000 -> 45.946
A31: Table 6.4.1.5 | B31: =CONCATENATE("Occupational composition by gender, ",B32,"-",G32,"-",L32) -> Occupational composition by gender, 2004-2014-2024 | O31: thousands
A32: =All!A63 -> Coal, oil & gas; Mining & related | B32: =B$2 -> 2004 | G32: =G$2 -> 2014 | L32: =L$2 -> 2024
B33: Full-time | C33: Part-time | D33: Self-empl | E33: Total | G33: =B33 -> Full-time | H33: =C33 -> Part-time | I33: =D33 -> Self-empl | J33: =E33 -> Total | L33: =B33 -> Full-time | M33: =C33 -> Part-time | N33: =D33 -> Self-empl | O33: =E33 -> Total
A34: Managers and Senior Officials | B34: =(FT!P65+FT!P66)/1000 -> 0.548155 | C34: =(PT!P65+PT!P66)/1000 -> 0.01954 | D34: =(SE!P65+SE!P66)/1000 -> 0.008021 | E34: =(All!P65+All!P66)/1000 -> 0.575715 | G34: =(FT!Z65+FT!Z66)/1000 -> 0.79542 | H34: =(PT!Z65+PT!Z66)/1000 -> 0.006271 | I34: =(SE!Z65+SE!Z66)/1000 -> 0.140074 | J34: =(All!Z65+All!Z66)/1000 -> 0.941765 | L34: =(FT!AJ65+FT!AJ66)/1000 -> 0.914938 | M34: =(PT!AJ65+PT!AJ66)/1000 -> 0.009316 | N34: =(SE!AJ65+SE!AJ66)/1000 -> 0.187298 | O34: =(All!AJ65+All!AJ66)/1000 -> 1.111552
A35: Professional occupations | B35: =(FT!P67+FT!P68+FT!P69+FT!P70)/1000 -> 0.551566 | C35: =(PT!P67+PT!P68+PT!P69+PT!P70)/1000 -> 0.07204 | D35: =(SE!P67+SE!P68+SE!P69+SE!P70)/1000 -> 0.014297 | E35: =(All!P67+All!P68+All!P69+All!P70)/1000 -> 0.637904 | G35: =(FT!Z67+FT!Z68+FT!Z69+FT!Z70)/1000 -> 0.473646 | H35: =(PT!Z67+PT!Z68+PT!Z69+PT!Z70)/1000 -> 0.018116 | I35: =(SE!Z67+SE!Z68+SE!Z69+SE!Z70)/1000 -> 0.105665 | J35: =(All!Z67+All!Z68+All!Z69+All!Z70)/1000 -> 0.597427 | L35: =(FT!AJ67+FT!AJ68+FT!AJ69+FT!AJ70)/1000 -> 0.466892 | M35: =(PT!AJ67+PT!AJ68+PT!AJ69+PT!AJ70)/1000 -> 0.024723 | N35: =(SE!AJ67+SE!AJ68+SE!AJ69+SE!AJ70)/1000 -> 0.064761 | O35: =(All!AJ67+All!AJ68+All!AJ69+All!AJ70)/1000 -> 0.556375
A36: Associate Professional and Technical | B36: =(FT!P71+FT!P72+FT!P73+FT!P74+FT!P75)/1000 -> 0.603517 | C36: =(PT!P71+PT!P72+PT!P73+PT!P74+PT!P75)/1000 -> 0.026116 | D36: =(SE!P71+SE!P72+SE!P73+SE!P74+SE!P75)/1000 -> 0.009389 | E36: =(All!P71+All!P72+All!P73+All!P74+All!P75)/1000 -> 0.639022 | G36: =(FT!Z71+FT!Z72+FT!Z73+FT!Z74+FT!Z75)/1000 -> 0.573729 | H36: =(PT!Z71+PT!Z72+PT!Z73+PT!Z74+PT!Z75)/1000 -> 0.009408 | I36: =(SE!Z71+SE!Z72+SE!Z73+SE!Z74+SE!Z75)/1000 -> 0.087383 | J36: =(All!Z71+All!Z72+All!Z73+All!Z74+All!Z75)/1000 -> 0.670521 | L36: =(FT!AJ71+FT!AJ72+FT!AJ73+FT!AJ74+FT!AJ75)/1000 -> 0.641301 | M36: =(PT!AJ71+PT!AJ72+PT!AJ73+PT!AJ74+PT!AJ75)/1000 -> 0.012659 | N36: =(SE!AJ71+SE!AJ72+SE!AJ73+SE!AJ74+SE!AJ75)/1000 -> 0.057053 | O36: =(All!AJ71+All!AJ72+All!AJ73+All!AJ74+All!AJ75)/1000 -> 0.711014
A37: Administrative and Secretarial | B37: =(FT!P76+FT!P77)/1000 -> 0.779514 | C37: =(PT!P76+PT!P77)/1000 -> 0.049654 | D37: =(SE!P76+SE!P77)/1000 -> 0.004919 | E37: =(All!P76+All!P77)/1000 -> 0.834088 | G37: =(FT!Z76+FT!Z77)/1000 -> 0.605945 | H37: =(PT!Z76+PT!Z77)/1000 -> 0.006351 | I37: =(SE!Z76+SE!Z77)/1000 -> 0.021189 | J37: =(All!Z76+All!Z77)/1000 -> 0.633486 | L37: =(FT!AJ76+FT!AJ77)/1000 -> 0.546608 | M37: =(PT!AJ76+PT!AJ77)/1000 -> 0.009594 | N37: =(SE!AJ76+SE!AJ77)/1000 -> 0.025918 | O37: =(All!AJ76+All!AJ77)/1000 -> 0.582119
A38: Skilled Trades Occupations | B38: =(FT!P78+FT!P79+FT!P80+FT!P81)/1000 -> 0.50924 | C38: =(PT!P78+PT!P79+PT!P80+PT!P81)/1000 -> 0.018421 | D38: =(SE!P78+SE!P79+SE!P80+SE!P81)/1000 -> 0.004386 | E38: =(All!P78+All!P79+All!P80+All!P81)/1000 -> 0.532046 | G38: =(FT!Z78+FT!Z79+FT!Z80+FT!Z81)/1000 -> 0.742927 | H38: =(PT!Z78+PT!Z79+PT!Z80+PT!Z81)/1000 -> 0.010865 | I38: =(SE!Z78+SE!Z79+SE!Z80+SE!Z81)/1000 -> 0.153882 | J38: =(All!Z78+All!Z79+All!Z80+All!Z81)/1000 -> 0.907675 | L38: =(FT!AJ78+FT!AJ79+FT!AJ80+FT!AJ81)/1000 -> 0.717488 | M38: =(PT!AJ78+PT!AJ79+PT!AJ80+PT!AJ81)/1000 -> 0.022166 | N38: =(SE!AJ78+SE!AJ79+SE!AJ80+SE!AJ81)/1000 -> 0.123207 | O38: =(All!AJ78+All!AJ79+All!AJ80+All!AJ81)/1000 -> 0.862861
A39: Personal Service Occupations | B39: =(FT!P82+FT!P83)/1000 -> 0.030966 | C39: =(PT!P82+PT!P83)/1000 -> 0.036621 | D39: =(SE!P82+SE!P83)/1000 -> 0.007906 | E39: =(All!P82+All!P83)/1000 -> 0.075493 | G39: =(FT!Z82+FT!Z83)/1000 -> 0.028436 | H39: =(PT!Z82+PT!Z83)/1000 -> 0.009543 | I39: =(SE!Z82+SE!Z83)/1000 -> 0.005739 | J39: =(All!Z82+All!Z83)/1000 -> 0.043718 | L39: =(FT!AJ82+FT!AJ83)/1000 -> 0.034638 | M39: =(PT!AJ82+PT!AJ83)/1000 -> 0.01333 | N39: =(SE!AJ82+SE!AJ83)/1000 -> 0.006635 | O39: =(All!AJ82+All!AJ83)/1000 -> 0.054603
A40: Sales and Customer Service Occupations | B40: =(FT!P84+FT!P85)/1000 -> 0.157223 | C40: =(PT!P84+PT!P85)/1000 -> 0.036383 | D40: =(SE!P84+SE!P85)/1000 -> 0.001945 | E40: =(All!P84+All!P85)/1000 -> 0.195552 | G40: =(FT!Z84+FT!Z85)/1000 -> 0.177875 | H40: =(PT!Z84+PT!Z85)/1000 -> 0.011128 | I40: =(SE!Z84+SE!Z85)/1000 -> 0.00768 | J40: =(All!Z84+All!Z85)/1000 -> 0.196683 | L40: =(FT!AJ84+FT!AJ85)/1000 -> 0.184455 | M40: =(PT!AJ84+PT!AJ85)/1000 -> 0.012107 | N40: =(SE!AJ84+SE!AJ85)/1000 -> 0.009092 | O40: =(All!AJ84+All!AJ85)/1000 -> 0.205654
A41: Machine and Transport Operatives | B41: =(FT!P86+FT!P87)/1000 -> 0.976032 | C41: =(PT!P86+PT!P87)/1000 -> 0.012352 | D41: =(SE!P86+SE!P87)/1000 -> 0.000984 | E41: =(All!P86+All!P87)/1000 -> 0.989369 | G41: =(FT!Z86+FT!Z87)/1000 -> 0.684807 | H41: =(PT!Z86+PT!Z87)/1000 -> 0.024267 | I41: =(SE!Z86+SE!Z87)/1000 -> 0.106192 | J41: =(All!Z86+All!Z87)/1000 -> 0.815265 | L41: =(FT!AJ86+FT!AJ87)/1000 -> 0.724599 | M41: =(PT!AJ86+PT!AJ87)/1000 -> 0.038676 | N41: =(SE!AJ86+SE!AJ87)/1000 -> 0.147677 | O41: =(All!AJ86+All!AJ87)/1000 -> 0.910951
A42: Elementary Occupations | B42: =(FT!P88+FT!P89)/1000 -> 0.142788 | C42: =(PT!P88+PT!P89)/1000 -> 0.035872 | D42: =(SE!P88+SE!P89)/1000 -> 0.002152 | E42: =(All!P88+All!P89)/1000 -> 0.180812 | G42: =(FT!Z88+FT!Z89)/1000 -> 0.115212 | H42: =(PT!Z88+PT!Z89)/1000 -> 0.014053 | I42: =(SE!Z88+SE!Z89)/1000 -> 0.028196 | J42: =(All!Z88+All!Z89)/1000 -> 0.157461 | L42: =(FT!AJ88+FT!AJ89)/1000 -> 0.119082 | M42: =(PT!AJ88+PT!AJ89)/1000 -> 0.014429 | N42: =(SE!AJ88+SE!AJ89)/1000 -> 0.037358 | O42: =(All!AJ88+All!AJ89)/1000 -> 0.17087
A43: Total | B43: =FT!P64/1000 -> 4.299 | C43: =PT!P64/1000 -> 0.307 | D43: =SE!P64/1000 -> 0.054 | E43: =All!P64/1000 -> 4.66 | G43: =FT!Z64/1000 -> 4.198 | H43: =PT!Z64/1000 -> 0.11 | I43: =SE!Z64/1000 -> 0.656 | J43: =All!Z64/1000 -> 4.964 | L43: =FT!AJ64/1000 -> 4.35 | M43: =PT!AJ64/1000 -> 0.157 | N43: =SE!AJ64/1000 -> 0.659 | O43: =All!AJ64/1000 -> 5.166
A46: Table 6.4.1.5 | B46: =CONCATENATE("Occupational composition by gender, ",B47,"-",G47,"-",L47) -> Occupational composition by gender, 2004-2014-2024 | O46: thousands
A47: =All!A91 -> Food products | B47: =B$2 -> 2004 | G47: =G$2 -> 2014 | L47: =L$2 -> 2024
B48: Full-time | C48: Part-time | D48: Self-empl | E48: Total | G48: =B48 -> Full-time | H48: =C48 -> Part-time | I48: =D48 -> Self-empl | J48: =E48 -> Total | L48: =B48 -> Full-time | M48: =C48 -> Part-time | N48: =D48 -> Self-empl | O48: =E48 -> Total
A49: Managers and Senior Officials | B49: =(FT!P93+FT!P94)/1000 -> 2.678543 | C49: =(PT!P93+PT!P94)/1000 -> 0.179631 | D49: =(SE!P93+SE!P94)/1000 -> 0.325913 | E49: =(All!P93+All!P94)/1000 -> 3.184087 | G49: =(FT!Z93+FT!Z94)/1000 -> 2.200632 | H49: =(PT!Z93+PT!Z94)/1000 -> 0.079333 | I49: =(SE!Z93+SE!Z94)/1000 -> 0.262856 | J49: =(All!Z93+All!Z94)/1000 -> 2.542821 | L49: =(FT!AJ93+FT!AJ94)/1000 -> 2.597474 | M49: =(PT!AJ93+PT!AJ94)/1000 -> 0.113858 | N49: =(SE!AJ93+SE!AJ94)/1000 -> 0.293608 | O49: =(All!AJ93+All!AJ94)/1000 -> 3.00494
A50: Professional occupations | B50: =(FT!P95+FT!P96+FT!P97+FT!P98)/1000 -> 2.179692 | C50: =(PT!P95+PT!P96+PT!P97+PT!P98)/1000 -> 0.094471 | D50: =(SE!P95+SE!P96+SE!P97+SE!P98)/1000 -> 0.192092 | E50: =(All!P95+All!P96+All!P97+All!P98)/1000 -> 2.466254 | G50: =(FT!Z95+FT!Z96+FT!Z97+FT!Z98)/1000 -> 1.31268 | H50: =(PT!Z95+PT!Z96+PT!Z97+PT!Z98)/1000 -> 0.038674 | I50: =(SE!Z95+SE!Z96+SE!Z97+SE!Z98)/1000 -> 0.234819 | J50: =(All!Z95+All!Z96+All!Z97+All!Z98)/1000 -> 1.586173 | L50: =(FT!AJ95+FT!AJ96+FT!AJ97+FT!AJ98)/1000 -> 1.476413 | M50: =(PT!AJ95+PT!AJ96+PT!AJ97+PT!AJ98)/1000 -> 0.050629 | N50: =(SE!AJ95+SE!AJ96+SE!AJ97+SE!AJ98)/1000 -> 0.276921 | O50: =(All!AJ95+All!AJ96+All!AJ97+All!AJ98)/1000 -> 1.803963
A51: Associate Professional and Technical | B51: =(FT!P99+FT!P100+FT!P101+FT!P102+FT!P103)/1000 -> 2.994819 | C51: =(PT!P99+PT!P100+PT!P101+PT!P102+PT!P103)/1000 -> 0.216154 | D51: =(SE!P99+SE!P100+SE!P101+SE!P102+SE!P103)/1000 -> 0.136799 | E51: =(All!P99+All!P100+All!P101+All!P102+All!P103)/1000 -> 3.347772 | G51: =(FT!Z99+FT!Z100+FT!Z101+FT!Z102+FT!Z103)/1000 -> 2.649017 | H51: =(PT!Z99+PT!Z100+PT!Z101+PT!Z102+PT!Z103)/1000 -> 0.097454 | I51: =(SE!Z99+SE!Z100+SE!Z101+SE!Z102+SE!Z103)/1000 -> 0.151674 | J51: =(All!Z99+All!Z100+All!Z101+All!Z102+All!Z103)/1000 -> 2.898142 | L51: =(FT!AJ99+FT!AJ100+FT!AJ101+FT!AJ102+FT!AJ103)/1000 -> 2.959065 | M51: =(PT!AJ99+PT!AJ100+PT!AJ101+PT!AJ102+PT!AJ103)/1000 -> 0.122764 | N51: =(SE!AJ99+SE!AJ100+SE!AJ101+SE!AJ102+SE!AJ103)/1000 -> 0.164034 | O51: =(All!AJ99+All!AJ100+All!AJ101+All!AJ102+All!AJ103)/1000 -> 3.245863
A52: Administrative and Secretarial | B52: =(FT!P104+FT!P105)/1000 -> 1.879834 | C52: =(PT!P104+PT!P105)/1000 -> 0.465127 | D52: =(SE!P104+SE!P105)/1000 -> 0.035586 | E52: =(All!P104+All!P105)/1000 -> 2.380547 | G52: =(FT!Z104+FT!Z105)/1000 -> 1.632449 | H52: =(PT!Z104+PT!Z105)/1000 -> 0.205597 | I52: =(SE!Z104+SE!Z105)/1000 -> 0.11796 | J52: =(All!Z104+All!Z105)/1000 -> 1.956007 | L52: =(FT!AJ104+FT!AJ105)/1000 -> 1.617967 | M52: =(PT!AJ104+PT!AJ105)/1000 -> 0.205868 | N52: =(SE!AJ104+SE!AJ105)/1000 -> 0.105704 | O52: =(All!AJ104+All!AJ105)/1000 -> 1.929539
A53: Skilled Trades Occupations | B53: =(FT!P106+FT!P107+FT!P108+FT!P109)/1000 -> 3.542149 | C53: =(PT!P106+PT!P107+PT!P108+PT!P109)/1000 -> 0.275337 | D53: =(SE!P106+SE!P107+SE!P108+SE!P109)/1000 -> 0.391431 | E53: =(All!P106+All!P107+All!P108+All!P109)/1000 -> 4.208916 | G53: =(FT!Z106+FT!Z107+FT!Z108+FT!Z109)/1000 -> 2.547952 | H53: =(PT!Z106+PT!Z107+PT!Z108+PT!Z109)/1000 -> 0.070786 | I53: =(SE!Z106+SE!Z107+SE!Z108+SE!Z109)/1000 -> 0.590036 | J53: =(All!Z106+All!Z107+All!Z108+All!Z109)/1000 -> 3.208773 | L53: =(FT!AJ106+FT!AJ107+FT!AJ108+FT!AJ109)/1000 -> 2.122633 | M53: =(PT!AJ106+PT!AJ107+PT!AJ108+PT!AJ109)/1000 -> 0.052874 | N53: =(SE!AJ106+SE!AJ107+SE!AJ108+SE!AJ109)/1000 -> 0.458857 | O53: =(All!AJ106+All!AJ107+All!AJ108+All!AJ109)/1000 -> 2.634363
A54: Personal Service Occupations | B54: =(FT!P110+FT!P111)/1000 -> 0.093665 | C54: =(PT!P110+PT!P111)/1000 -> 0.028627 | D54: =(SE!P110+SE!P111)/1000 -> 0.006676 | E54: =(All!P110+All!P111)/1000 -> 0.128969 | G54: =(FT!Z110+FT!Z111)/1000 -> 0.102048 | H54: =(PT!Z110+PT!Z111)/1000 -> 0.020513 | I54: =(SE!Z110+SE!Z111)/1000 -> 0.033801 | J54: =(All!Z110+All!Z111)/1000 -> 0.156363 | L54: =(FT!AJ110+FT!AJ111)/1000 -> 0.115035 | M54: =(PT!AJ110+PT!AJ111)/1000 -> 0.028243 | N54: =(SE!AJ110+SE!AJ111)/1000 -> 0.040146 | O54: =(All!AJ110+All!AJ111)/1000 -> 0.183424
A55: Sales and Customer Service Occupations | B55: =(FT!P112+FT!P113)/1000 -> 0.667507 | C55: =(PT!P112+PT!P113)/1000 -> 0.37405 | D55: =(SE!P112+SE!P113)/1000 -> 0.020239 | E55: =(All!P112+All!P113)/1000 -> 1.061796 | G55: =(FT!Z112+FT!Z113)/1000 -> 0.666155 | H55: =(PT!Z112+PT!Z113)/1000 -> 0.240761 | I55: =(SE!Z112+SE!Z113)/1000 -> 0.058309 | J55: =(All!Z112+All!Z113)/1000 -> 0.965226 | L55: =(FT!AJ112+FT!AJ113)/1000 -> 0.664495 | M55: =(PT!AJ112+PT!AJ113)/1000 -> 0.270637 | N55: =(SE!AJ112+SE!AJ113)/1000 -> 0.061259 | O55: =(All!AJ112+All!AJ113)/1000 -> 0.996391
A56: Machine and Transport Operatives | B56: =(FT!P114+FT!P115)/1000 -> 6.59128 | C56: =(PT!P114+PT!P115)/1000 -> 0.642584 | D56: =(SE!P114+SE!P115)/1000 -> 0.094487 | E56: =(All!P114+All!P115)/1000 -> 7.32835 | G56: =(FT!Z114+FT!Z115)/1000 -> 4.445585 | H56: =(PT!Z114+PT!Z115)/1000 -> 0.142941 | I56: =(SE!Z114+SE!Z115)/1000 -> 0.282937 | J56: =(All!Z114+All!Z115)/1000 -> 4.871464 | L56: =(FT!AJ114+FT!AJ115)/1000 -> 3.969721 | M56: =(PT!AJ114+PT!AJ115)/1000 -> 0.150581 | N56: =(SE!AJ114+SE!AJ115)/1000 -> 0.289632 | O56: =(All!AJ114+All!AJ115)/1000 -> 4.409934
A57: Elementary Occupations | B57: =(FT!P116+FT!P117)/1000 -> 2.402511 | C57: =(PT!P116+PT!P117)/1000 -> 0.440019 | D57: =(SE!P116+SE!P117)/1000 -> 0.010779 | E57: =(All!P116+All!P117)/1000 -> 2.853308 | G57: =(FT!Z116+FT!Z117)/1000 -> 2.559483 | H57: =(PT!Z116+PT!Z117)/1000 -> 0.296941 | I57: =(SE!Z116+SE!Z117)/1000 -> 0.075608 | J57: =(All!Z116+All!Z117)/1000 -> 2.932032 | L57: =(FT!AJ116+FT!AJ117)/1000 -> 2.404197 | M57: =(PT!AJ116+PT!AJ117)/1000 -> 0.356548 | N57: =(SE!AJ116+SE!AJ117)/1000 -> 0.093838 | O57: =(All!AJ116+All!AJ117)/1000 -> 2.854584
A58: Total | B58: =FT!P92/1000 -> 23.03 | C58: =PT!P92/1000 -> 2.716 | D58: =SE!P92/1000 -> 1.214 | E58: =All!P92/1000 -> 26.96 | G58: =FT!Z92/1000 -> 18.116 | H58: =PT!Z92/1000 -> 1.193 | I58: =SE!Z92/1000 -> 1.808 | J58: =All!Z92/1000 -> 21.117 | L58: =FT!AJ92/1000 -> 17.927 | M58: =PT!AJ92/1000 -> 1.352 | N58: =SE!AJ92/1000 -> 1.784 | O58: =All!AJ92/1000 -> 21.063
A61: Table 6.4.1.5 | B61: =CONCATENATE("Occupational composition by gender, ",B62,"-",G62,"-",L62) -> Occupational composition by gender, 2004-2014-2024 | O61: thousands
A62: =All!A119 -> Beverages & tobacco | B62: =B$2 -> 2004 | G62: =G$2 -> 2014 | L62: =L$2 -> 2024
B63: Full-time | C63: Part-time | D63: Self-empl | E63: Total | G63: =B63 -> Full-time | H63: =C63 -> Part-time | I63: =D63 -> Self-empl | J63: =E63 -> Total | L63: =B63 -> Full-time | M63: =C63 -> Part-time | N63: =D63 -> Self-empl | O63: =E63 -> Total
A64: Managers and Senior Officials | B64: =(FT!P121+FT!P122)/1000 -> 0.480485 | C64: =(PT!P121+PT!P122)/1000 -> 0.030852 | D64: =(SE!P121+SE!P122)/1000 -> 0.012148 | E64: =(All!P121+All!P122)/1000 -> 0.523486 | G64: =(FT!Z121+FT!Z122)/1000 -> 0.206628 | H64: =(PT!Z121+PT!Z122)/1000 -> 0.033693 | I64: =(SE!Z121+SE!Z122)/1000 -> 0.016866 | J64: =(All!Z121+All!Z122)/1000 -> 0.257187 | L64: =(FT!AJ121+FT!AJ122)/1000 -> 0.233855 | M64: =(PT!AJ121+PT!AJ122)/1000 -> 0.050953 | N64: =(SE!AJ121+SE!AJ122)/1000 -> 0.017211 | O64: =(All!AJ121+All!AJ122)/1000 -> 0.302019
A65: Professional occupations | B65: =(FT!P123+FT!P124+FT!P125+FT!P126)/1000 -> 0.497586 | C65: =(PT!P123+PT!P124+PT!P125+PT!P126)/1000 -> 0.037287 | D65: =(SE!P123+SE!P124+SE!P125+SE!P126)/1000 -> 0.031467 | E65: =(All!P123+All!P124+All!P125+All!P126)/1000 -> 0.56634 | G65: =(FT!Z123+FT!Z124+FT!Z125+FT!Z126)/1000 -> 0.250843 | H65: =(PT!Z123+PT!Z124+PT!Z125+PT!Z126)/1000 -> 0.023184 | I65: =(SE!Z123+SE!Z124+SE!Z125+SE!Z126)/1000 -> 0.041782 | J65: =(All!Z123+All!Z124+All!Z125+All!Z126)/1000 -> 0.31581 | L65: =(FT!AJ123+FT!AJ124+FT!AJ125+FT!AJ126)/1000 -> 0.285285 | M65: =(PT!AJ123+PT!AJ124+PT!AJ125+PT!AJ126)/1000 -> 0.028305 | N65: =(SE!AJ123+SE!AJ124+SE!AJ125+SE!AJ126)/1000 -> 0.04211 | O65: =(All!AJ123+All!AJ124+All!AJ125+All!AJ126)/1000 -> 0.355701
A66: Associate Professional and Technical | B66: =(FT!P127+FT!P128+FT!P129+FT!P130+FT!P131)/1000 -> 0.626444 | C66: =(PT!P127+PT!P128+PT!P129+PT!P130+PT!P131)/1000 -> 0.079381 | D66: =(SE!P127+SE!P128+SE!P129+SE!P130+SE!P131)/1000 -> 0.013174 | E66: =(All!P127+All!P128+All!P129+All!P130+All!P131)/1000 -> 0.719001 | G66: =(FT!Z127+FT!Z128+FT!Z129+FT!Z130+FT!Z131)/1000 -> 0.32812 | H66: =(PT!Z127+PT!Z128+PT!Z129+PT!Z130+PT!Z131)/1000 -> 0.057319 | I66: =(SE!Z127+SE!Z128+SE!Z129+SE!Z130+SE!Z131)/1000 -> 0.021082 | J66: =(All!Z127+All!Z128+All!Z129+All!Z130+All!Z131)/1000 -> 0.40652 | L66: =(FT!AJ127+FT!AJ128+FT!AJ129+FT!AJ130+FT!AJ131)/1000 -> 0.363826 | M66: =(PT!AJ127+PT!AJ128+PT!AJ129+PT!AJ130+PT!AJ131)/1000 -> 0.067323 | N66: =(SE!AJ127+SE!AJ128+SE!AJ129+SE!AJ130+SE!AJ131)/1000 -> 0.021046 | O66: =(All!AJ127+All!AJ128+All!AJ129+All!AJ130+All!AJ131)/1000 -> 0.452195
A67: Administrative and Secretarial | B67: =(FT!P132+FT!P133)/1000 -> 0.243307 | C67: =(PT!P132+PT!P133)/1000 -> 0.077394 | D67: =(SE!P132+SE!P133)/1000 -> 0.005523 | E67: =(All!P132+All!P133)/1000 -> 0.326224 | G67: =(FT!Z132+FT!Z133)/1000 -> 0.082529 | H67: =(PT!Z132+PT!Z133)/1000 -> 0.069162 | I67: =(SE!Z132+SE!Z133)/1000 -> 0.009043 | J67: =(All!Z132+All!Z133)/1000 -> 0.160735 | L67: =(FT!AJ132+FT!AJ133)/1000 -> 0.068796 | M67: =(PT!AJ132+PT!AJ133)/1000 -> 0.066218 | N67: =(SE!AJ132+SE!AJ133)/1000 -> 0.007436 | O67: =(All!AJ132+All!AJ133)/1000 -> 0.142449
A68: Skilled Trades Occupations | B68: =(FT!P134+FT!P135+FT!P136+FT!P137)/1000 -> 0.357789 | C68: =(PT!P134+PT!P135+PT!P136+PT!P137)/1000 -> 0.030893 | D68: =(SE!P134+SE!P135+SE!P136+SE!P137)/1000 -> 0.012097 | E68: =(All!P134+All!P135+All!P136+All!P137)/1000 -> 0.400777 | G68: =(FT!Z134+FT!Z135+FT!Z136+FT!Z137)/1000 -> 0.137508 | H68: =(PT!Z134+PT!Z135+PT!Z136+PT!Z137)/1000 -> 0.006543 | I68: =(SE!Z134+SE!Z135+SE!Z136+SE!Z137)/1000 -> 0.013738 | J68: =(All!Z134+All!Z135+All!Z136+All!Z137)/1000 -> 0.157789 | L68: =(FT!AJ134+FT!AJ135+FT!AJ136+FT!AJ137)/1000 -> 0.133329 | M68: =(PT!AJ134+PT!AJ135+PT!AJ136+PT!AJ137)/1000 -> 0.005367 | N68: =(SE!AJ134+SE!AJ135+SE!AJ136+SE!AJ137)/1000 -> 0.013307 | O68: =(All!AJ134+All!AJ135+All!AJ136+All!AJ137)/1000 -> 0.152002
A69: Personal Service Occupations | B69: =(FT!P138+FT!P139)/1000 -> 0.060438 | C69: =(PT!P138+PT!P139)/1000 -> 0.036891 | D69: =(SE!P138+SE!P139)/1000 -> 0.009379 | E69: =(All!P138+All!P139)/1000 -> 0.106708 | G69: =(FT!Z138+FT!Z139)/1000 -> 0.048624 | H69: =(PT!Z138+PT!Z139)/1000 -> 0.030014 | I69: =(SE!Z138+SE!Z139)/1000 -> 0.018008 | J69: =(All!Z138+All!Z139)/1000 -> 0.096644 | L69: =(FT!AJ138+FT!AJ139)/1000 -> 0.06166 | M69: =(PT!AJ138+PT!AJ139)/1000 -> 0.035817 | N69: =(SE!AJ138+SE!AJ139)/1000 -> 0.016434 | O69: =(All!AJ138+All!AJ139)/1000 -> 0.113911
A70: Sales and Customer Service Occupations | B70: =(FT!P140+FT!P141)/1000 -> 0.105887 | C70: =(PT!P140+PT!P141)/1000 -> 0.037871 | D70: =(SE!P140+SE!P141)/1000 -> 0.005419 | E70: =(All!P140+All!P141)/1000 -> 0.149178 | G70: =(FT!Z140+FT!Z141)/1000 -> 0.051348 | H70: =(PT!Z140+PT!Z141)/1000 -> 0.045774 | I70: =(SE!Z140+SE!Z141)/1000 -> 0.015319 | J70: =(All!Z140+All!Z141)/1000 -> 0.112442 | L70: =(FT!AJ140+FT!AJ141)/1000 -> 0.044051 | M70: =(PT!AJ140+PT!AJ141)/1000 -> 0.056018 | N70: =(SE!AJ140+SE!AJ141)/1000 -> 0.016759 | O70: =(All!AJ140+All!AJ141)/1000 -> 0.116828
A71: Machine and Transport Operatives | B71: =(FT!P142+FT!P143)/1000 -> 0.738001 | C71: =(PT!P142+PT!P143)/1000 -> 0.074535 | D71: =(SE!P142+SE!P143)/1000 -> 0.009795 | E71: =(All!P142+All!P143)/1000 -> 0.822331 | G71: =(FT!Z142+FT!Z143)/1000 -> 0.253644 | H71: =(PT!Z142+PT!Z143)/1000 -> 0.018961 | I71: =(SE!Z142+SE!Z143)/1000 -> 0.006772 | J71: =(All!Z142+All!Z143)/1000 -> 0.279376 | L71: =(FT!AJ142+FT!AJ143)/1000 -> 0.183365 | M71: =(PT!AJ142+PT!AJ143)/1000 -> 0.014158 | N71: =(SE!AJ142+SE!AJ143)/1000 -> 0.005625 | O71: =(All!AJ142+All!AJ143)/1000 -> 0.203148
A72: Elementary Occupations | B72: =(FT!P144+FT!P145)/1000 -> 0.234061 | C72: =(PT!P144+PT!P145)/1000 -> 0.103896 | D72: =(SE!P144+SE!P145)/1000 -> 0.002999 | E72: =(All!P144+All!P145)/1000 -> 0.340956 | G72: =(FT!Z144+FT!Z145)/1000 -> 0.099756 | H72: =(PT!Z144+PT!Z145)/1000 -> 0.044349 | I72: =(SE!Z144+SE!Z145)/1000 -> 0.007391 | J72: =(All!Z144+All!Z145)/1000 -> 0.151496 | L72: =(FT!AJ144+FT!AJ145)/1000 -> 0.066832 | M72: =(PT!AJ144+PT!AJ145)/1000 -> 0.040843 | N72: =(SE!AJ144+SE!AJ145)/1000 -> 0.007071 | O72: =(All!AJ144+All!AJ145)/1000 -> 0.114746
A73: Total | B73: =FT!P120/1000 -> 3.344 | C73: =PT!P120/1000 -> 0.509 | D73: =SE!P120/1000 -> 0.102 | E73: =All!P120/1000 -> 3.955 | G73: =FT!Z120/1000 -> 1.459 | H73: =PT!Z120/1000 -> 0.329 | I73: =SE!Z120/1000 -> 0.15 | J73: =All!Z120/1000 -> 1.938 | L73: =FT!AJ120/1000 -> 1.441 | M73: =PT!AJ120/1000 -> 0.365 | N73: =SE!AJ120/1000 -> 0.147 | O73: =All!AJ120/1000 -> 1.953
A76: Table 6.4.1.5 | B76: =CONCATENATE("Occupational composition by gender, ",B77,"-",G77,"-",L77) -> Occupational composition by gender, 2004-2014-2024 | O76: thousands
A77: =All!A147 -> Textiles | B77: =B$2 -> 2004 | G77: =G$2 -> 2014 | L77: =L$2 -> 2024
B78: Full-time | C78: Part-time | D78: Self-empl | E78: Total | G78: =B78 -> Full-time | H78: =C78 -> Part-time | I78: =D78 -> Self-empl | J78: =E78 -> Total | L78: =B78 -> Full-time | M78: =C78 -> Part-time | N78: =D78 -> Self-empl | O78: =E78 -> Total
A79: Managers and Senior Officials | B79: =(FT!P149+FT!P150)/1000 -> 0.420533 | C79: =(PT!P149+PT!P150)/1000 -> 0.016464 | D79: =(SE!P149+SE!P150)/1000 -> 0.106127 | E79: =(All!P149+All!P150)/1000 -> 0.543123 | G79: =(FT!Z149+FT!Z150)/1000 -> 0.433312 | H79: =(PT!Z149+PT!Z150)/1000 -> 0.029811 | I79: =(SE!Z149+SE!Z150)/1000 -> 0.365636 | J79: =(All!Z149+All!Z150)/1000 -> 0.828758 | L79: =(FT!AJ149+FT!AJ150)/1000 -> 0.452854 | M79: =(PT!AJ149+PT!AJ150)/1000 -> 0.032824 | N79: =(SE!AJ149+SE!AJ150)/1000 -> 0.340764 | O79: =(All!AJ149+All!AJ150)/1000 -> 0.826443
A80: Professional occupations | B80: =(FT!P151+FT!P152+FT!P153+FT!P154)/1000 -> 0.240351 | C80: =(PT!P151+PT!P152+PT!P153+PT!P154)/1000 -> 0.013379 | D80: =(SE!P151+SE!P152+SE!P153+SE!P154)/1000 -> 0.057872 | E80: =(All!P151+All!P152+All!P153+All!P154)/1000 -> 0.311602 | G80: =(FT!Z151+FT!Z152+FT!Z153+FT!Z154)/1000 -> 0.237865 | H80: =(PT!Z151+PT!Z152+PT!Z153+PT!Z154)/1000 -> 0.024767 | I80: =(SE!Z151+SE!Z152+SE!Z153+SE!Z154)/1000 -> 0.249351 | J80: =(All!Z151+All!Z152+All!Z153+All!Z154)/1000 -> 0.511984 | L80: =(FT!AJ151+FT!AJ152+FT!AJ153+FT!AJ154)/1000 -> 0.246627 | M80: =(PT!AJ151+PT!AJ152+PT!AJ153+PT!AJ154)/1000 -> 0.02613 | N80: =(SE!AJ151+SE!AJ152+SE!AJ153+SE!AJ154)/1000 -> 0.233033 | O80: =(All!AJ151+All!AJ152+All!AJ153+All!AJ154)/1000 -> 0.505789
A81: Associate Professional and Technical | B81: =(FT!P155+FT!P156+FT!P157+FT!P158+FT!P159)/1000 -> 0.419461 | C81: =(PT!P155+PT!P156+PT!P157+PT!P158+PT!P159)/1000 -> 0.026011 | D81: =(SE!P155+SE!P156+SE!P157+SE!P158+SE!P159)/1000 -> 0.12409 | E81: =(All!P155+All!P156+All!P157+All!P158+All!P159)/1000 -> 0.569561 | G81: =(FT!Z155+FT!Z156+FT!Z157+FT!Z158+FT!Z159)/1000 -> 0.356837 | H81: =(PT!Z155+PT!Z156+PT!Z157+PT!Z158+PT!Z159)/1000 -> 0.052052 | I81: =(SE!Z155+SE!Z156+SE!Z157+SE!Z158+SE!Z159)/1000 -> 0.519963 | J81: =(All!Z155+All!Z156+All!Z157+All!Z158+All!Z159)/1000 -> 0.928853 | L81: =(FT!AJ155+FT!AJ156+FT!AJ157+FT!AJ158+FT!AJ159)/1000 -> 0.366071 | M81: =(PT!AJ155+PT!AJ156+PT!AJ157+PT!AJ158+PT!AJ159)/1000 -> 0.051825 | N81: =(SE!AJ155+SE!AJ156+SE!AJ157+SE!AJ158+SE!AJ159)/1000 -> 0.478667 | O81: =(All!AJ155+All!AJ156+All!AJ157+All!AJ158+All!AJ159)/1000 -> 0.896562
A82: Administrative and Secretarial | B82: =(FT!P160+FT!P161)/1000 -> 0.416267 | C82: =(PT!P160+PT!P161)/1000 -> 0.076165 | D82: =(SE!P160+SE!P161)/1000 -> 0.016962 | E82: =(All!P160+All!P161)/1000 -> 0.509394 | G82: =(FT!Z160+FT!Z161)/1000 -> 0.349465 | H82: =(PT!Z160+PT!Z161)/1000 -> 0.086976 | I82: =(SE!Z160+SE!Z161)/1000 -> 0.076052 | J82: =(All!Z160+All!Z161)/1000 -> 0.512494 | L82: =(FT!AJ160+FT!AJ161)/1000 -> 0.283894 | M82: =(PT!AJ160+PT!AJ161)/1000 -> 0.062718 | N82: =(SE!AJ160+SE!AJ161)/1000 -> 0.06453 | O82: =(All!AJ160+All!AJ161)/1000 -> 0.411141
A83: Skilled Trades Occupations | B83: =(FT!P162+FT!P163+FT!P164+FT!P165)/1000 -> 0.459156 | C83: =(PT!P162+PT!P163+PT!P164+PT!P165)/1000 -> 0.02963 | D83: =(SE!P162+SE!P163+SE!P164+SE!P165)/1000 -> 0.217904 | E83: =(All!P162+All!P163+All!P164+All!P165)/1000 -> 0.706688 | G83: =(FT!Z162+FT!Z163+FT!Z164+FT!Z165)/1000 -> 0.340371 | H83: =(PT!Z162+PT!Z163+PT!Z164+PT!Z165)/1000 -> 0.034282 | I83: =(SE!Z162+SE!Z163+SE!Z164+SE!Z165)/1000 -> 0.433105 | J83: =(All!Z162+All!Z163+All!Z164+All!Z165)/1000 -> 0.807758 | L83: =(FT!AJ162+FT!AJ163+FT!AJ164+FT!AJ165)/1000 -> 0.250018 | M83: =(PT!AJ162+PT!AJ163+PT!AJ164+PT!AJ165)/1000 -> 0.024614 | N83: =(SE!AJ162+SE!AJ163+SE!AJ164+SE!AJ165)/1000 -> 0.188403 | O83: =(All!AJ162+All!AJ163+All!AJ164+All!AJ165)/1000 -> 0.463036
A84: Personal Service Occupations | B84: =(FT!P166+FT!P167)/1000 -> 0.026308 | C84: =(PT!P166+PT!P167)/1000 -> 0.001639 | D84: =(SE!P166+SE!P167)/1000 -> 0.006899 | E84: =(All!P166+All!P167)/1000 -> 0.034846 | G84: =(FT!Z166+FT!Z167)/1000 -> 0.016629 | H84: =(PT!Z166+PT!Z167)/1000 -> 0.003096 | I84: =(SE!Z166+SE!Z167)/1000 -> 0.025451 | J84: =(All!Z166+All!Z167)/1000 -> 0.045177 | L84: =(FT!AJ166+FT!AJ167)/1000 -> 0.016998 | M84: =(PT!AJ166+PT!AJ167)/1000 -> 0.003408 | N84: =(SE!AJ166+SE!AJ167)/1000 -> 0.021118 | O84: =(All!AJ166+All!AJ167)/1000 -> 0.041524
A85: Sales and Customer Service Occupations | B85: =(FT!P168+FT!P169)/1000 -> 0.142388 | C85: =(PT!P168+PT!P169)/1000 -> 0.047054 | D85: =(SE!P168+SE!P169)/1000 -> 0.041814 | E85: =(All!P168+All!P169)/1000 -> 0.231255 | G85: =(FT!Z168+FT!Z169)/1000 -> 0.128161 | H85: =(PT!Z168+PT!Z169)/1000 -> 0.082946 | I85: =(SE!Z168+SE!Z169)/1000 -> 0.147508 | J85: =(All!Z168+All!Z169)/1000 -> 0.358616 | L85: =(FT!AJ168+FT!AJ169)/1000 -> 0.107542 | M85: =(PT!AJ168+PT!AJ169)/1000 -> 0.070732 | N85: =(SE!AJ168+SE!AJ169)/1000 -> 0.109868 | O85: =(All!AJ168+All!AJ169)/1000 -> 0.288142
A86: Machine and Transport Operatives | B86: =(FT!P170+FT!P171)/1000 -> 0.762343 | C86: =(PT!P170+PT!P171)/1000 -> 0.064964 | D86: =(SE!P170+SE!P171)/1000 -> 0.122039 | E86: =(All!P170+All!P171)/1000 -> 0.949345 | G86: =(FT!Z170+FT!Z171)/1000 -> 0.44865 | H86: =(PT!Z170+PT!Z171)/1000 -> 0.10428 | I86: =(SE!Z170+SE!Z171)/1000 -> 0.358531 | J86: =(All!Z170+All!Z171)/1000 -> 0.911461 | L86: =(FT!AJ170+FT!AJ171)/1000 -> 0.304683 | M86: =(PT!AJ170+PT!AJ171)/1000 -> 0.065951 | N86: =(SE!AJ170+SE!AJ171)/1000 -> 0.184565 | O86: =(All!AJ170+All!AJ171)/1000 -> 0.555199
A87: Elementary Occupations | B87: =(FT!P172+FT!P173)/1000 -> 0.244195 | C87: =(PT!P172+PT!P173)/1000 -> 0.022694 | D87: =(SE!P172+SE!P173)/1000 -> 0.019297 | E87: =(All!P172+All!P173)/1000 -> 0.286186 | G87: =(FT!Z172+FT!Z173)/1000 -> 0.19671 | H87: =(PT!Z172+PT!Z173)/1000 -> 0.040788 | I87: =(SE!Z172+SE!Z173)/1000 -> 0.071403 | J87: =(All!Z172+All!Z173)/1000 -> 0.3089 | L87: =(FT!AJ172+FT!AJ173)/1000 -> 0.168312 | M87: =(PT!AJ172+PT!AJ173)/1000 -> 0.036798 | N87: =(SE!AJ172+SE!AJ173)/1000 -> 0.057052 | O87: =(All!AJ172+All!AJ173)/1000 -> 0.262163
A88: Total | B88: =FT!P148/1000 -> 3.131 | C88: =PT!P148/1000 -> 0.298 | D88: =SE!P148/1000 -> 0.713 | E88: =All!P148/1000 -> 4.142 | G88: =FT!Z148/1000 -> 2.508 | H88: =PT!Z148/1000 -> 0.459 | I88: =SE!Z148/1000 -> 2.247 | J88: =All!Z148/1000 -> 5.214 | L88: =FT!AJ148/1000 -> 2.197 | M88: =PT!AJ148/1000 -> 0.375 | N88: =SE!AJ148/1000 -> 1.678 | O88: =All!AJ148/1000 -> 4.25
A91: Table 6.4.1.5 | B91: =CONCATENATE("Occupational composition by gender, ",B92,"-",G92,"-",L92) -> Occupational composition by gender, 2004-2014-2024 | O91: thousands
A92: =All!A175 -> Wearing apparel; Leather, etc | B92: =B$2 -> 2004 | G92: =G$2 -> 2014 | L92: =L$2 -> 2024
B93: Full-time | C93: Part-time | D93: Self-empl | E93: Total | G93: =B93 -> Full-time | H93: =C93 -> Part-time | I93: =D93 -> Self-empl | J93: =E93 -> Total | L93: =B93 -> Full-time | M93: =C93 -> Part-time | N93: =D93 -> Self-empl | O93: =E93 -> Total
A94: Managers and Senior Officials | B94: =(FT!P177+FT!P178)/1000 -> 0.355714 | C94: =(PT!P177+PT!P178)/1000 -> 0.014767 | D94: =(SE!P177+SE!P178)/1000 -> 0.046979 | E94: =(All!P177+All!P178)/1000 -> 0.41746 | G94: =(FT!Z177+FT!Z178)/1000 -> 0.113849 | H94: =(PT!Z177+PT!Z178)/1000 -> 0.00421 | I94: =(SE!Z177+SE!Z178)/1000 -> 0.06172 | J94: =(All!Z177+All!Z178)/1000 -> 0.179779 | L94: =(FT!AJ177+FT!AJ178)/1000 -> 0.098549 | M94: =(PT!AJ177+PT!AJ178)/1000 -> 0.004225 | N94: =(SE!AJ177+SE!AJ178)/1000 -> 0.057245 | O94: =(All!AJ177+All!AJ178)/1000 -> 0.160019
A95: Professional occupations | B95: =(FT!P179+FT!P180+FT!P181+FT!P182)/1000 -> 0.232604 | C95: =(PT!P179+PT!P180+PT!P181+PT!P182)/1000 -> 0.009356 | D95: =(SE!P179+SE!P180+SE!P181+SE!P182)/1000 -> 0.032246 | E95: =(All!P179+All!P180+All!P181+All!P182)/1000 -> 0.274206 | G95: =(FT!Z179+FT!Z180+FT!Z181+FT!Z182)/1000 -> 0.079535 | H95: =(PT!Z179+PT!Z180+PT!Z181+PT!Z182)/1000 -> 0.002684 | I95: =(SE!Z179+SE!Z180+SE!Z181+SE!Z182)/1000 -> 0.042718 | J95: =(All!Z179+All!Z180+All!Z181+All!Z182)/1000 -> 0.124937 | L95: =(FT!AJ179+FT!AJ180+FT!AJ181+FT!AJ182)/1000 -> 0.09607 | M95: =(PT!AJ179+PT!AJ180+PT!AJ181+PT!AJ182)/1000 -> 0.002753 | N95: =(SE!AJ179+SE!AJ180+SE!AJ181+SE!AJ182)/1000 -> 0.037388 | O95: =(All!AJ179+All!AJ180+All!AJ181+All!AJ182)/1000 -> 0.136212
A96: Associate Professional and Technical | B96: =(FT!P183+FT!P184+FT!P185+FT!P186+FT!P187)/1000 -> 0.321393 | C96: =(PT!P183+PT!P184+PT!P185+PT!P186+PT!P187)/1000 -> 0.027829 | D96: =(SE!P183+SE!P184+SE!P185+SE!P186+SE!P187)/1000 -> 0.079476 | E96: =(All!P183+All!P184+All!P185+All!P186+All!P187)/1000 -> 0.428699 | G96: =(FT!Z183+FT!Z184+FT!Z185+FT!Z186+FT!Z187)/1000 -> 0.11952 | H96: =(PT!Z183+PT!Z184+PT!Z185+PT!Z186+PT!Z187)/1000 -> 0.009562 | I96: =(SE!Z183+SE!Z184+SE!Z185+SE!Z186+SE!Z187)/1000 -> 0.107088 | J96: =(All!Z183+All!Z184+All!Z185+All!Z186+All!Z187)/1000 -> 0.23617 | L96: =(FT!AJ183+FT!AJ184+FT!AJ185+FT!AJ186+FT!AJ187)/1000 -> 0.111561 | M96: =(PT!AJ183+PT!AJ184+PT!AJ185+PT!AJ186+PT!AJ187)/1000 -> 0.010098 | N96: =(SE!AJ183+SE!AJ184+SE!AJ185+SE!AJ186+SE!AJ187)/1000 -> 0.091607 | O96: =(All!AJ183+All!AJ184+All!AJ185+All!AJ186+All!AJ187)/1000 -> 0.213266
A97: Administrative and Secretarial | B97: =(FT!P188+FT!P189)/1000 -> 0.366965 | C97: =(PT!P188+PT!P189)/1000 -> 0.058969 | D97: =(SE!P188+SE!P189)/1000 -> 0.017986 | E97: =(All!P188+All!P189)/1000 -> 0.443919 | G97: =(FT!Z188+FT!Z189)/1000 -> 0.168988 | H97: =(PT!Z188+PT!Z189)/1000 -> 0.015628 | I97: =(SE!Z188+SE!Z189)/1000 -> 0.02484 | J97: =(All!Z188+All!Z189)/1000 -> 0.209456 | L97: =(FT!AJ188+FT!AJ189)/1000 -> 0.117745 | M97: =(PT!AJ188+PT!AJ189)/1000 -> 0.01152 | N97: =(SE!AJ188+SE!AJ189)/1000 -> 0.019438 | O97: =(All!AJ188+All!AJ189)/1000 -> 0.148704
A98: Skilled Trades Occupations | B98: =(FT!P190+FT!P191+FT!P192+FT!P193)/1000 -> 0.129884 | C98: =(PT!P190+PT!P191+PT!P192+PT!P193)/1000 -> 0.017912 | D98: =(SE!P190+SE!P191+SE!P192+SE!P193)/1000 -> 0.141621 | E98: =(All!P190+All!P191+All!P192+All!P193)/1000 -> 0.289417 | G98: =(FT!Z190+FT!Z191+FT!Z192+FT!Z193)/1000 -> 0.030374 | H98: =(PT!Z190+PT!Z191+PT!Z192+PT!Z193)/1000 -> 0.002603 | I98: =(SE!Z190+SE!Z191+SE!Z192+SE!Z193)/1000 -> 0.077166 | J98: =(All!Z190+All!Z191+All!Z192+All!Z193)/1000 -> 0.110144 | L98: =(FT!AJ190+FT!AJ191+FT!AJ192+FT!AJ193)/1000 -> 0.02363 | M98: =(PT!AJ190+PT!AJ191+PT!AJ192+PT!AJ193)/1000 -> 0.001999 | N98: =(SE!AJ190+SE!AJ191+SE!AJ192+SE!AJ193)/1000 -> 0.031919 | O98: =(All!AJ190+All!AJ191+All!AJ192+All!AJ193)/1000 -> 0.05755
A99: Personal Service Occupations | B99: =(FT!P194+FT!P195)/1000 -> 0.014224 | C99: =(PT!P194+PT!P195)/1000 -> 0.002192 | D99: =(SE!P194+SE!P195)/1000 -> 0.005282 | E99: =(All!P194+All!P195)/1000 -> 0.021697 | G99: =(FT!Z194+FT!Z195)/1000 -> 0.007281 | H99: =(PT!Z194+PT!Z195)/1000 -> 0.000516 | I99: =(SE!Z194+SE!Z195)/1000 -> 0.004313 | J99: =(All!Z194+All!Z195)/1000 -> 0.012111 | L99: =(FT!AJ194+FT!AJ195)/1000 -> 0.027406 | M99: =(PT!AJ194+PT!AJ195)/1000 -> 0.000527 | N99: =(SE!AJ194+SE!AJ195)/1000 -> 0.003102 | O99: =(All!AJ194+All!AJ195)/1000 -> 0.031036
A100: Sales and Customer Service Occupations | B100: =(FT!P196+FT!P197)/1000 -> 0.087797 | C100: =(PT!P196+PT!P197)/1000 -> 0.046621 | D100: =(SE!P196+SE!P197)/1000 -> 0.014654 | E100: =(All!P196+All!P197)/1000 -> 0.149072 | G100: =(FT!Z196+FT!Z197)/1000 -> 0.038216 | H100: =(PT!Z196+PT!Z197)/1000 -> 0.011894 | I100: =(SE!Z196+SE!Z197)/1000 -> 0.019365 | J100: =(All!Z196+All!Z197)/1000 -> 0.069476 | L100: =(FT!AJ196+FT!AJ197)/1000 -> 0.032057 | M100: =(PT!AJ196+PT!AJ197)/1000 -> 0.008433 | N100: =(SE!AJ196+SE!AJ197)/1000 -> 0.015184 | O100: =(All!AJ196+All!AJ197)/1000 -> 0.055674
A101: Machine and Transport Operatives | B101: =(FT!P198+FT!P199)/1000 -> 0.32326 | C101: =(PT!P198+PT!P199)/1000 -> 0.07197 | D101: =(SE!P198+SE!P199)/1000 -> 0.0652 | E101: =(All!P198+All!P199)/1000 -> 0.460429 | G101: =(FT!Z198+FT!Z199)/1000 -> 0.043703 | H101: =(PT!Z198+PT!Z199)/1000 -> 0.006744 | I101: =(SE!Z198+SE!Z199)/1000 -> 0.024315 | J101: =(All!Z198+All!Z199)/1000 -> 0.074763 | L101: =(FT!AJ198+FT!AJ199)/1000 -> 0.022798 | M101: =(PT!AJ198+PT!AJ199)/1000 -> 0.003921 | N101: =(SE!AJ198+SE!AJ199)/1000 -> 0.013971 | O101: =(All!AJ198+All!AJ199)/1000 -> 0.040689
A102: Elementary Occupations | B102: =(FT!P200+FT!P201)/1000 -> 0.235159 | C102: =(PT!P200+PT!P201)/1000 -> 0.024384 | D102: =(SE!P200+SE!P201)/1000 -> 0.016559 | E102: =(All!P200+All!P201)/1000 -> 0.276102 | G102: =(FT!Z200+FT!Z201)/1000 -> 0.085533 | H102: =(PT!Z200+PT!Z201)/1000 -> 0.005156 | I102: =(SE!Z200+SE!Z201)/1000 -> 0.020475 | J102: =(All!Z200+All!Z201)/1000 -> 0.111165 | L102: =(FT!AJ200+FT!AJ201)/1000 -> 0.068184 | M102: =(PT!AJ200+PT!AJ201)/1000 -> 0.004524 | N102: =(SE!AJ200+SE!AJ201)/1000 -> 0.015143 | O102: =(All!AJ200+All!AJ201)/1000 -> 0.087851
A103: Total | B103: =FT!P176/1000 -> 2.067 | C103: =PT!P176/1000 -> 0.274 | D103: =SE!P176/1000 -> 0.42 | E103: =All!P176/1000 -> 2.761 | G103: =FT!Z176/1000 -> 0.687 | H103: =PT!Z176/1000 -> 0.059 | I103: =SE!Z176/1000 -> 0.382 | J103: =All!Z176/1000 -> 1.128 | L103: =FT!AJ176/1000 -> 0.598 | M103: =PT!AJ176/1000 -> 0.048 | N103: =SE!AJ176/1000 -> 0.285 | O103: =All!AJ176/1000 -> 0.931
A106: Table 6.4.1.5 | B106: =CONCATENATE("Occupational composition by gender, ",B107,"-",G107,"-",L107) -> Occupational composition by gender, 2004-2014-2024 | O106: thousands
A107: =All!A203 -> Wood, etc | B107: =B$2 -> 2004 | G107: =G$2 -> 2014 | L107: =L$2 -> 2024
B108: Full-time | C108: Part-time | D108: Self-empl | E108: Total | G108: =B108 -> Full-time | H108: =C108 -> Part-time | I108: =D108 -> Self-empl | J108: =E108 -> Total | L108: =B108 -> Full-time | M108: =C108 -> Part-time | N108: =D108 -> Self-empl | O108: =E108 -> Total
A109: Managers and Senior Officials | B109: =(FT!P205+FT!P206)/1000 -> 0.926146 | C109: =(PT!P205+PT!P206)/1000 -> 0.053058 | D109: =(SE!P205+SE!P206)/1000 -> 0.091165 | E109: =(All!P205+All!P206)/1000 -> 1.070367 | G109: =(FT!Z205+FT!Z206)/1000 -> 0.709479 | H109: =(PT!Z205+PT!Z206)/1000 -> 0.025004 | I109: =(SE!Z205+SE!Z206)/1000 -> 0.193249 | J109: =(All!Z205+All!Z206)/1000 -> 0.927732 | L109: =(FT!AJ205+FT!AJ206)/1000 -> 0.727589 | M109: =(PT!AJ205+PT!AJ206)/1000 -> 0.03513 | N109: =(SE!AJ205+SE!AJ206)/1000 -> 0.173078 | O109: =(All!AJ205+All!AJ206)/1000 -> 0.935797
A110: Professional occupations | B110: =(FT!P207+FT!P208+FT!P209+FT!P210)/1000 -> 0.505819 | C110: =(PT!P207+PT!P208+PT!P209+PT!P210)/1000 -> 0.042436 | D110: =(SE!P207+SE!P208+SE!P209+SE!P210)/1000 -> 0.043789 | E110: =(All!P207+All!P208+All!P209+All!P210)/1000 -> 0.592045 | G110: =(FT!Z207+FT!Z208+FT!Z209+FT!Z210)/1000 -> 0.363526 | H110: =(PT!Z207+PT!Z208+PT!Z209+PT!Z210)/1000 -> 0.018501 | I110: =(SE!Z207+SE!Z208+SE!Z209+SE!Z210)/1000 -> 0.061271 | J110: =(All!Z207+All!Z208+All!Z209+All!Z210)/1000 -> 0.443299 | L110: =(FT!AJ207+FT!AJ208+FT!AJ209+FT!AJ210)/1000 -> 0.376103 | M110: =(PT!AJ207+PT!AJ208+PT!AJ209+PT!AJ210)/1000 -> 0.025511 | N110: =(SE!AJ207+SE!AJ208+SE!AJ209+SE!AJ210)/1000 -> 0.055028 | O110: =(All!AJ207+All!AJ208+All!AJ209+All!AJ210)/1000 -> 0.456642
A111: Associate Professional and Technical | B111: =(FT!P211+FT!P212+FT!P213+FT!P214+FT!P215)/1000 -> 0.954436 | C111: =(PT!P211+PT!P212+PT!P213+PT!P214+PT!P215)/1000 -> 0.056413 | D111: =(SE!P211+SE!P212+SE!P213+SE!P214+SE!P215)/1000 -> 0.061094 | E111: =(All!P211+All!P212+All!P213+All!P214+All!P215)/1000 -> 1.071942 | G111: =(FT!Z211+FT!Z212+FT!Z213+FT!Z214+FT!Z215)/1000 -> 0.886869 | H111: =(PT!Z211+PT!Z212+PT!Z213+PT!Z214+PT!Z215)/1000 -> 0.026288 | I111: =(SE!Z211+SE!Z212+SE!Z213+SE!Z214+SE!Z215)/1000 -> 0.081404 | J111: =(All!Z211+All!Z212+All!Z213+All!Z214+All!Z215)/1000 -> 0.994561 | L111: =(FT!AJ211+FT!AJ212+FT!AJ213+FT!AJ214+FT!AJ215)/1000 -> 0.885479 | M111: =(PT!AJ211+PT!AJ212+PT!AJ213+PT!AJ214+PT!AJ215)/1000 -> 0.035312 | N111: =(SE!AJ211+SE!AJ212+SE!AJ213+SE!AJ214+SE!AJ215)/1000 -> 0.076322 | O111: =(All!AJ211+All!AJ212+All!AJ213+All!AJ214+All!AJ215)/1000 -> 0.997113
A112: Administrative and Secretarial | B112: =(FT!P216+FT!P217)/1000 -> 0.646008 | C112: =(PT!P216+PT!P217)/1000 -> 0.468378 | D112: =(SE!P216+SE!P217)/1000 -> 0.034426 | E112: =(All!P216+All!P217)/1000 -> 1.148812 | G112: =(FT!Z216+FT!Z217)/1000 -> 0.20892 | H112: =(PT!Z216+PT!Z217)/1000 -> 0.180442 | I112: =(SE!Z216+SE!Z217)/1000 -> 0.089542 | J112: =(All!Z216+All!Z217)/1000 -> 0.478905 | L112: =(FT!AJ216+FT!AJ217)/1000 -> 0.173064 | M112: =(PT!AJ216+PT!AJ217)/1000 -> 0.155716 | N112: =(SE!AJ216+SE!AJ217)/1000 -> 0.063124 | O112: =(All!AJ216+All!AJ217)/1000 -> 0.391904
A113: Skilled Trades Occupations | B113: =(FT!P218+FT!P219+FT!P220+FT!P221)/1000 -> 2.473681 | C113: =(PT!P218+PT!P219+PT!P220+PT!P221)/1000 -> 0.169932 | D113: =(SE!P218+SE!P219+SE!P220+SE!P221)/1000 -> 0.463009 | E113: =(All!P218+All!P219+All!P220+All!P221)/1000 -> 3.106623 | G113: =(FT!Z218+FT!Z219+FT!Z220+FT!Z221)/1000 -> 1.883064 | H113: =(PT!Z218+PT!Z219+PT!Z220+PT!Z221)/1000 -> 0.070021 | I113: =(SE!Z218+SE!Z219+SE!Z220+SE!Z221)/1000 -> 0.696247 | J113: =(All!Z218+All!Z219+All!Z220+All!Z221)/1000 -> 2.649332 | L113: =(FT!AJ218+FT!AJ219+FT!AJ220+FT!AJ221)/1000 -> 1.616808 | M113: =(PT!AJ218+PT!AJ219+PT!AJ220+PT!AJ221)/1000 -> 0.096627 | N113: =(SE!AJ218+SE!AJ219+SE!AJ220+SE!AJ221)/1000 -> 0.600158 | O113: =(All!AJ218+All!AJ219+All!AJ220+All!AJ221)/1000 -> 2.313594
A114: Personal Service Occupations | B114: =(FT!P222+FT!P223)/1000 -> 0.057929 | C114: =(PT!P222+PT!P223)/1000 -> 0.036495 | D114: =(SE!P222+SE!P223)/1000 -> 0.005851 | E114: =(All!P222+All!P223)/1000 -> 0.100275 | G114: =(FT!Z222+FT!Z223)/1000 -> 0.038946 | H114: =(PT!Z222+PT!Z223)/1000 -> 0.009794 | I114: =(SE!Z222+SE!Z223)/1000 -> 0.017117 | J114: =(All!Z222+All!Z223)/1000 -> 0.065858 | L114: =(FT!AJ222+FT!AJ223)/1000 -> 0.04287 | M114: =(PT!AJ222+PT!AJ223)/1000 -> 0.01073 | N114: =(SE!AJ222+SE!AJ223)/1000 -> 0.013633 | O114: =(All!AJ222+All!AJ223)/1000 -> 0.067233
A115: Sales and Customer Service Occupations | B115: =(FT!P224+FT!P225)/1000 -> 0.175793 | C115: =(PT!P224+PT!P225)/1000 -> 0.049957 | D115: =(SE!P224+SE!P225)/1000 -> 0.010231 | E115: =(All!P224+All!P225)/1000 -> 0.235981 | G115: =(FT!Z224+FT!Z225)/1000 -> 0.127677 | H115: =(PT!Z224+PT!Z225)/1000 -> 0.024583 | I115: =(SE!Z224+SE!Z225)/1000 -> 0.013892 | J115: =(All!Z224+All!Z225)/1000 -> 0.166152 | L115: =(FT!AJ224+FT!AJ225)/1000 -> 0.110882 | M115: =(PT!AJ224+PT!AJ225)/1000 -> 0.028347 | N115: =(SE!AJ224+SE!AJ225)/1000 -> 0.011101 | O115: =(All!AJ224+All!AJ225)/1000 -> 0.150331
A116: Machine and Transport Operatives | B116: =(FT!P226+FT!P227)/1000 -> 1.539071 | C116: =(PT!P226+PT!P227)/1000 -> 0.087925 | D116: =(SE!P226+SE!P227)/1000 -> 0.064711 | E116: =(All!P226+All!P227)/1000 -> 1.691707 | G116: =(FT!Z226+FT!Z227)/1000 -> 1.341955 | H116: =(PT!Z226+PT!Z227)/1000 -> 0.03397 | I116: =(SE!Z226+SE!Z227)/1000 -> 0.065156 | J116: =(All!Z226+All!Z227)/1000 -> 1.441081 | L116: =(FT!AJ226+FT!AJ227)/1000 -> 1.080606 | M116: =(PT!AJ226+PT!AJ227)/1000 -> 0.046413 | N116: =(SE!AJ226+SE!AJ227)/1000 -> 0.056539 | O116: =(All!AJ226+All!AJ227)/1000 -> 1.183558
A117: Elementary Occupations | B117: =(FT!P228+FT!P229)/1000 -> 0.443119 | C117: =(PT!P228+PT!P229)/1000 -> 0.079404 | D117: =(SE!P228+SE!P229)/1000 -> 0.044724 | E117: =(All!P228+All!P229)/1000 -> 0.567247 | G117: =(FT!Z228+FT!Z229)/1000 -> 0.403562 | H117: =(PT!Z228+PT!Z229)/1000 -> 0.036397 | I117: =(SE!Z228+SE!Z229)/1000 -> 0.055121 | J117: =(All!Z228+All!Z229)/1000 -> 0.495079 | L117: =(FT!AJ228+FT!AJ229)/1000 -> 0.331597 | M117: =(PT!AJ228+PT!AJ229)/1000 -> 0.042214 | N117: =(SE!AJ228+SE!AJ229)/1000 -> 0.042016 | O117: =(All!AJ228+All!AJ229)/1000 -> 0.415827
A118: Total | B118: =FT!P204/1000 -> 7.722 | C118: =PT!P204/1000 -> 1.044 | D118: =SE!P204/1000 -> 0.819 | E118: =All!P204/1000 -> 9.585 | G118: =FT!Z204/1000 -> 5.964 | H118: =PT!Z204/1000 -> 0.425 | I118: =SE!Z204/1000 -> 1.273 | J118: =All!Z204/1000 -> 7.662 | L118: =FT!AJ204/1000 -> 5.345 | M118: =PT!AJ204/1000 -> 0.476 | N118: =SE!AJ204/1000 -> 1.091 | O118: =All!AJ204/1000 -> 6.912
A121: Table 6.4.1.5 | B121: =CONCATENATE("Occupational composition by gender, ",B122,"-",G122,"-",L122) -> Occupational composition by gender, 2004-2014-2024 | O121: thousands
A122: =All!A231 -> Paper, etc | B122: =B$2 -> 2004 | G122: =G$2 -> 2014 | L122: =L$2 -> 2024
B123: Full-time | C123: Part-time | D123: Self-empl | E123: Total | G123: =B123 -> Full-time | H123: =C123 -> Part-time | I123: =D123 -> Self-empl | J123: =E123 -> Total | L123: =B123 -> Full-time | M123: =C123 -> Part-time | N123: =D123 -> Self-empl | O123: =E123 -> Total
A124: Managers and Senior Officials | B124: =(FT!P233+FT!P234)/1000 -> 1.020727 | C124: =(PT!P233+PT!P234)/1000 -> 0.021708 | D124: =(SE!P233+SE!P234)/1000 -> 0.167986 | E124: =(All!P233+All!P234)/1000 -> 1.210421 | G124: =(FT!Z233+FT!Z234)/1000 -> 0.635204 | H124: =(PT!Z233+PT!Z234)/1000 -> 0.006378 | I124: =(SE!Z233+SE!Z234)/1000 -> 0.14469 | J124: =(All!Z233+All!Z234)/1000 -> 0.786272 | L124: =(FT!AJ233+FT!AJ234)/1000 -> 0.714506 | M124: =(PT!AJ233+PT!AJ234)/1000 -> 0.009661 | N124: =(SE!AJ233+SE!AJ234)/1000 -> 0.127023 | O124: =(All!AJ233+All!AJ234)/1000 -> 0.851189
A125: Professional occupations | B125: =(FT!P235+FT!P236+FT!P237+FT!P238)/1000 -> 0.775228 | C125: =(PT!P235+PT!P236+PT!P237+PT!P238)/1000 -> 0.016241 | D125: =(SE!P235+SE!P236+SE!P237+SE!P238)/1000 -> 0.099842 | E125: =(All!P235+All!P236+All!P237+All!P238)/1000 -> 0.891311 | G125: =(FT!Z235+FT!Z236+FT!Z237+FT!Z238)/1000 -> 0.423047 | H125: =(PT!Z235+PT!Z236+PT!Z237+PT!Z238)/1000 -> 0.005424 | I125: =(SE!Z235+SE!Z236+SE!Z237+SE!Z238)/1000 -> 0.122594 | J125: =(All!Z235+All!Z236+All!Z237+All!Z238)/1000 -> 0.551065 | L125: =(FT!AJ235+FT!AJ236+FT!AJ237+FT!AJ238)/1000 -> 0.453952 | M125: =(PT!AJ235+PT!AJ236+PT!AJ237+PT!AJ238)/1000 -> 0.008334 | N125: =(SE!AJ235+SE!AJ236+SE!AJ237+SE!AJ238)/1000 -> 0.112479 | O125: =(All!AJ235+All!AJ236+All!AJ237+All!AJ238)/1000 -> 0.574765
... 134 more rows

Sheet Table 6.x.3
A1: Table 6.0.4 | B1: Changing Composition of Employment by Occupation
B2: =names!A3 -> All industries | H2: =D4&" - "&F4 -> 2014 - 2024
A3: SOC2010 Major Groups | H3: Net | I3: Replacement | J3: Total
A4: Employment Levels (000s) | B4: =All!F1183 -> 1994 | C4: =All!P1183 -> 2004 | D4: =All!Z1183 -> 2014 | E4: =All!AE1183 -> 2019 | F4: =All!AJ1183 -> 2024 | H4: Change | I4: Demands | J4: Requirement
A5: 1. Managers and Senior Officials | B5: =(All!F9+All!F10)/1000 -> 314.404853 | C5: =(All!P9+All!P10)/1000 -> 432.998355 | D5: =(All!Z9+All!Z10)/1000 -> 545.368172 | E5: =(All!AE9+All!AE10)/1000 -> 601.074361 | F5: =(All!AJ9+All!AJ10)/1000 -> 636.125585 | H5: =F5-D5 -> 90.757413 | I5: =D5*I17/100 -> 230.4903733 | J5: =I5+H5 -> 321.2477863
A6: 2. Professional Occupations | B6: =(All!F11+All!F12+All!F13+All!F14)/1000 -> 609.502361 | C6: =(All!P11+All!P12+All!P13+All!P14)/1000 -> 772.914191 | D6: =(All!Z11+All!Z12+All!Z13+All!Z14)/1000 -> 949.128926 | E6: =(All!AE11+All!AE12+All!AE13+All!AE14)/1000 -> 1028.119145 | F6: =(All!AJ11+All!AJ12+All!AJ13+All!AJ14)/1000 -> 1074.438172 | H6: 125.309246 | I6: 373.8757126 | J6: 499.1849586
A7: 3. Associate Professional and Technical Occupations | B7: =(All!F15+All!F16+All!F17+All!F18+All!F19)/1000 -> 480.743372 | C7: =(All!P15+All!P16+All!P17+All!P18+All!P19)/1000 -> 596.479783 | D7: =(All!Z15+All!Z16+All!Z17+All!Z18+All!Z19)/1000 -> 672.978371 | E7: =(All!AE15+All!AE16+All!AE17+All!AE18+All!AE19)/1000 -> 721.991629 | F7: =(All!AJ15+All!AJ16+All!AJ17+All!AJ18+All!AJ19)/1000 -> 747.355257 | H7: 74.376886 | I7: 250.6730595 | J7: 325.0499455
A8: 4. Administrative, Clerical and Secretarial Occupations | B8: =(All!F20+All!F21)/1000 -> 595.30277 | C8: =(All!P20+All!P21)/1000 -> 566.404074 | D8: =(All!Z20+All!Z21)/1000 -> 480.702249 | E8: =(All!AE20+All!AE21)/1000 -> 441.148967 | F8: =(All!AJ20+All!AJ21)/1000 -> 412.438606 | H8: -68.263643 | I8: 203.0337779 | J8: 134.7701349
A9: 5. Skilled Trades Occupations | B9: =(All!F22+All!F23+All!F24+All!F25)/1000 -> 468.083587 | C9: =(All!P22+All!P23+All!P24+All!P25)/1000 -> 486.851666 | D9: =(All!Z22+All!Z23+All!Z24+All!Z25)/1000 -> 476.23332 | E9: =(All!AE22+All!AE23+All!AE24+All!AE25)/1000 -> 476.999383 | F9: =(All!AJ22+All!AJ23+All!AJ24+All!AJ25)/1000 -> 475.497575 | H9: -0.735745 | I9: 174.9553561 | J9: 174.2196111
A10: 6. Personal Service Occupations | B10: =(All!F26+All!F27)/1000 -> 236.794848 | C10: =(All!P26+All!P27)/1000 -> 331.252568 | D10: =(All!Z26+All!Z27)/1000 -> 434.861106 | E10: =(All!AE26+All!AE27)/1000 -> 470.093135 | F10: =(All!AJ26+All!AJ27)/1000 -> 497.548213 | H10: 62.687107 | I10: 192.7853823 | J10: 255.4724893
A11: 7. Sales and Customer Service Occupations | B11: =(All!F28+All!F29)/1000 -> 280.971233 | C11: =(All!P28+All!P29)/1000 -> 322.792545 | D11: =(All!Z28+All!Z29)/1000 -> 331.32675 | E11: =(All!AE28+All!AE29)/1000 -> 329.184514 | F11: =(All!AJ28+All!AJ29)/1000 -> 325.838207 | H11: -5.488543 | I11: 117.933263 | J11: 112.44472
A12: 8. Transport and Machine Operatives | B12: =(All!F30+All!F31)/1000 -> 243.570159 | C12: =(All!P30+All!P31)/1000 -> 240.169577 | D12: =(All!Z30+All!Z31)/1000 -> 217.86474 | E12: =(All!AE30+All!AE31)/1000 -> 214.951779 | F12: =(All!AJ30+All!AJ31)/1000 -> 212.829158 | H12: -5.035582 | I12: 85.26227885 | J12: 80.22669685
A13: 9. Elementary Occupations | B13: =(All!F32+All!F33)/1000 -> 444.272816 | C13: =(All!P32+All!P33)/1000 -> 510.787239 | D13: =(All!Z32+All!Z33)/1000 -> 500.127367 | E13: =(All!AE32+All!AE33)/1000 -> 510.861085 | F13: =(All!AJ32+All!AJ33)/1000 -> 521.56323 | H13: 21.435863 | I13: 201.5639666 | J13: 222.9998296
A14: Total | B14: =All!F8/1000 -> 3673.646 | C14: =All!P8/1000 -> 4260.65 | D14: =All!Z8/1000 -> 4608.591 | E14: =All!AE8/1000 -> 4794.424 | F14: =All!AJ8/1000 -> 4903.634 | H14: 295.043 | I14: =SUM(I5:I13) -> 1830.57317 | J14: 2125.61617
A16: Percentage Shares | B16: =B$4 -> 1994 | C16: =C$4 -> 2004 | D16: =D$4 -> 2014 | E16: =E$4 -> 2019 | F16: =F$4 -> 2024 | H16: Percentage Changes
A17: 1. Managers and Senior Officials | B17: =IF(B14>0,B5/B14*100,0) -> 8.558387308 | C17: =IF(C14>0,C5/C14*100,0) -> 10.16272998 | D17: =IF(D14>0,D5/D14*100,0) -> 11.83372905 | E17: =IF(E14>0,E5/E14*100,0) -> 12.53694627 | F17: =IF(F14>0,F5/F14*100,0) -> 12.97253394 | H17: =IF(D5>0,H5/D5*100,0) -> 16.64149425 | I17: 42.26326088 | J17: =IF(D5>0,J5/D5*100,0) -> 58.90475513
A18: 2. Professional Occupations | B18: =IF(B14>0,B6/B14*100,0) -> 16.59121105 | C18: =IF(C14>0,C6/C14*100,0) -> 18.14075765 | D18: =IF(D14>0,D6/D14*100,0) -> 20.59477454 | E18: =IF(E14>0,E6/E14*100,0) -> 21.4440597 | F18: =IF(F14>0,F6/F14*100,0) -> 21.91105968 | H18: 13.20255263 | I18: 39.39145698 | J18: 52.59400961
A19: 3. Associate Professional and Technical Occupations | B19: =IF(B14>0,B7/B14*100,0) -> 13.08627375 | C19: =IF(C14>0,C7/C14*100,0) -> 13.99973673 | D19: =IF(D14>0,D7/D14*100,0) -> 14.60269247 | E19: =IF(E14>0,E7/E14*100,0) -> 15.05898579 | F19: =IF(F14>0,F7/F14*100,0) -> 15.24084499 | H19: 11.05189843 | I19: 37.24830846 | J19: 48.30020689
A20: 4. Administrative, Clerical and Secretarial Occupations | B20: =IF(B14>0,B8/B14*100,0) -> 16.20468521 | C20: =IF(C14>0,C8/C14*100,0) -> 13.29384188 | D20: =IF(D14>0,D8/D14*100,0) -> 10.43056867 | E20: =IF(E14>0,E8/E14*100,0) -> 9.201292314 | F20: =IF(F14>0,F8/F14*100,0) -> 8.410876627 | H20: -14.20081623 | I20: 42.23691034 | J20: 28.03609411
A21: 5. Skilled Trades Occupations | B21: =IF(B14>0,B9/B14*100,0) -> 12.74166283 | C21: =IF(C14>0,C9/C14*100,0) -> 11.42669935 | D21: =IF(D14>0,D9/D14*100,0) -> 10.33359914 | E21: =IF(E14>0,E9/E14*100,0) -> 9.949044619 | F21: =IF(F14>0,F9/F14*100,0) -> 9.696840649 | H21: -0.15449255 | I21: 36.73731946 | J21: 36.58282691
A22: 6. Personal Service Occupations | B22: =IF(B14>0,B10/B14*100,0) -> 6.445772075 | C22: =IF(C14>0,C10/C14*100,0) -> 7.774695598 | D22: =IF(D14>0,D10/D14*100,0) -> 9.435879773 | E22: =IF(E14>0,E10/E14*100,0) -> 9.804997117 | F22: =IF(F14>0,F10/F14*100,0) -> 10.14652017 | H22: 14.41543199 | I22: 44.33263395 | J22: 58.74806594
A23: 7. Sales and Customer Service Occupations | B23: =IF(B14>0,B11/B14*100,0) -> 7.64829363 | C23: =IF(C14>0,C11/C14*100,0) -> 7.576133806 | D23: =IF(D14>0,D11/D14*100,0) -> 7.189328582 | E23: =IF(E14>0,E11/E14*100,0) -> 6.865986696 | F23: =IF(F14>0,F11/F14*100,0) -> 6.644831303 | H23: -1.656534826 | I23: 35.59424736 | J23: 33.93771253
A24: 8. Transport and Machine Operatives | B24: =IF(B14>0,B12/B14*100,0) -> 6.63020223 | C24: =IF(C14>0,C12/C14*100,0) -> 5.636923404 | D24: =IF(D14>0,D12/D14*100,0) -> 4.727361139 | E24: =IF(E14>0,E12/E14*100,0) -> 4.483370244 | F24: =IF(F14>0,F12/F14*100,0) -> 4.340233345 | H24: -2.311334087 | I24: 39.135419 | J24: 36.82408491
A25: 9. Elementary Occupations | B25: =IF(B14>0,B13/B14*100,0) -> 12.0935119 | C25: =IF(C14>0,C13/C14*100,0) -> 11.98848155 | D25: =IF(D14>0,D13/D14*100,0) -> 10.85206665 | E25: =IF(E14>0,E13/E14*100,0) -> 10.6553172 | F25: =IF(F14>0,F13/F14*100,0) -> 10.63625935 | H25: 4.286080789 | I25: 40.3025269 | J25: 44.58860769
A26: Total | B26: =IF(B14>0,B14/B14*100,0) -> 100 | C26: =IF(C14>0,C14/C14*100,0) -> 100 | D26: =IF(D14>0,D14/D14*100,0) -> 100 | E26: =IF(E14>0,E14/E14*100,0) -> 100 | F26: =IF(F14>0,F14/F14*100,0) -> 100 | H26: 6.402021789 | I26: 39.72088584 | J26: 46.12290763
A27: =CELL("filename",$A$1) -> R:\Research Info\Individual research project info\Working Futures_ CG data task\South East\[75SE_South_East.xlsm]Table 6.x.3
A29: Table 6.1.4 | B29: Changing Composition of Employment by Occupation
B30: =names!A4 -> Agriculture, etc | H30: =D32&" - "&F32 -> 2014 - 2024
A31: SOC2010 Major Groups | H31: Net | I31: Replacement | J31: Total
A32: Employment Levels (000s) | B32: =B$4 -> 1994 | C32: =C$4 -> 2004 | D32: =D$4 -> 2014 | E32: =E$4 -> 2019 | F32: =F$4 -> 2024 | H32: Change | I32: Demands | J32: Requirement
A33: 1. Managers and Senior Officials | B33: =(All!F37+All!F38)/1000 -> 4.45695 | C33: =(All!P37+All!P38)/1000 -> 3.735066 | D33: =(All!Z37+All!Z38)/1000 -> 4.580684 | E33: =(All!AE37+All!AE38)/1000 -> 3.790491 | F33: =(All!AJ37+All!AJ38)/1000 -> 3.566909 | H33: =F33-D33 -> -1.013775 | I33: =D33*I45/100 -> 1.615236263 | J33: =I33+H33 -> 0.6014612629
A34: 2. Professional Occupations | B34: =(All!F39+All!F40+All!F41+All!F42)/1000 -> 2.626027 | C34: =(All!P39+All!P40+All!P41+All!P42)/1000 -> 2.691803 | D34: =(All!Z39+All!Z40+All!Z41+All!Z42)/1000 -> 4.158157 | E34: =(All!AE39+All!AE40+All!AE41+All!AE42)/1000 -> 4.255745 | F34: =(All!AJ39+All!AJ40+All!AJ41+All!AJ42)/1000 -> 4.720017 | H34: 0.56186 | I34: 1.544463673 | J34: 2.106323673
A35: 3. Associate Professional and Technical Occupations | B35: =(All!F43+All!F44+All!F45+All!F46+All!F47)/1000 -> 1.755013 | C35: =(All!P43+All!P44+All!P45+All!P46+All!P47)/1000 -> 1.851798 | D35: =(All!Z43+All!Z44+All!Z45+All!Z46+All!Z47)/1000 -> 2.777706 | E35: =(All!AE43+All!AE44+All!AE45+All!AE46+All!AE47)/1000 -> 2.712172 | F35: =(All!AJ43+All!AJ44+All!AJ45+All!AJ46+All!AJ47)/1000 -> 2.936558 | H35: 0.158852 | I35: 0.9463883529 | J35: 1.105240353
A36: 4. Administrative, Clerical and Secretarial Occupations | B36: =(All!F48+All!F49)/1000 -> 4.183073 | C36: =(All!P48+All!P49)/1000 -> 4.106075 | D36: =(All!Z48+All!Z49)/1000 -> 3.395503 | E36: =(All!AE48+All!AE49)/1000 -> 2.663301 | F36: =(All!AJ48+All!AJ49)/1000 -> 2.540036 | H36: -0.855467 | I36: 1.277556859 | J36: 0.4220898589
A37: 5. Skilled Trades Occupations | B37: =(All!F50+All!F51+All!F52+All!F53)/1000 -> 20.267516 | C37: =(All!P50+All!P51+All!P52+All!P53)/1000 -> 22.841448 | D37: =(All!Z50+All!Z51+All!Z52+All!Z53)/1000 -> 32.664941 | E37: =(All!AE50+All!AE51+All!AE52+All!AE53)/1000 -> 28.013383 | F37: =(All!AJ50+All!AJ51+All!AJ52+All!AJ53)/1000 -> 25.540102 | H37: -7.124839 | I37: 15.81854808 | J37: 8.693709078
A38: 6. Personal Service Occupations | B38: =(All!F54+All!F55)/1000 -> 2.540211 | C38: =(All!P54+All!P55)/1000 -> 2.807632 | D38: =(All!Z54+All!Z55)/1000 -> 1.646153 | E38: =(All!AE54+All!AE55)/1000 -> 1.487116 | F38: =(All!AJ54+All!AJ55)/1000 -> 1.409874 | H38: -0.236279 | I38: 0.5891423849 | J38: 0.3528633849
A39: 7. Sales and Customer Service Occupations | B39: =(All!F56+All!F57)/1000 -> 1.086205 | C39: =(All!P56+All!P57)/1000 -> 1.09844 | D39: =(All!Z56+All!Z57)/1000 -> 0.998573 | E39: =(All!AE56+All!AE57)/1000 -> 0.768141 | F39: =(All!AJ56+All!AJ57)/1000 -> 0.695288 | H39: -0.303285 | I39: 0.2864236764 | J39: -0.01686132358
A40: 8. Transport and Machine Operatives | B40: =(All!F58+All!F59)/1000 -> 3.725857 | C40: =(All!P58+All!P59)/1000 -> 3.301604 | D40: =(All!Z58+All!Z59)/1000 -> 1.88246 | E40: =(All!AE58+All!AE59)/1000 -> 1.326117 | F40: =(All!AJ58+All!AJ59)/1000 -> 1.078186 | H40: -0.804274 | I40: 0.5515235802 | J40: -0.2527504198
A41: 9. Elementary Occupations | B41: =(All!F60+All!F61)/1000 -> 11.758146 | C41: =(All!P60+All!P61)/1000 -> 10.172134 | D41: =(All!Z60+All!Z61)/1000 -> 5.906823 | E41: =(All!AE60+All!AE61)/1000 -> 4.278535 | F41: =(All!AJ60+All!AJ61)/1000 -> 3.459029 | H41: -2.447794 | I41: 1.624206859 | J41: -0.8235871414
A42: Total | B42: =All!F36/1000 -> 52.399 | C42: =All!P36/1000 -> 52.606 | D42: =All!Z36/1000 -> 58.011 | E42: =All!AE36/1000 -> 49.295 | F42: =All!AJ36/1000 -> 45.946 | H42: -12.065 | I42: =SUM(I33:I41) -> 24.25348973 | J42: 12.18848973
A44: Percentage Shares | B44: =B$4 -> 1994 | C44: =C$4 -> 2004 | D44: =D$4 -> 2014 | E44: =E$4 -> 2019 | F44: =F$4 -> 2024 | H44: Percentage Changes
A45: 1. Managers and Senior Officials | B45: =IF(B42>0,B33/B42*100,0) -> 8.505792095 | C45: =IF(C42>0,C33/C42*100,0) -> 7.100076037 | D45: =IF(D42>0,D33/D42*100,0) -> 7.896233473 | E45: =IF(E42>0,E33/E42*100,0) -> 7.689402576 | F45: =IF(F42>0,F33/F42*100,0) -> 7.763263396 | H45: =IF(D33>0,H33/D33*100,0) -> -22.1315201 | I45: 35.26190113 | J45: =IF(D33>0,J33/D33*100,0) -> 13.13038103
A46: 2. Professional Occupations | B46: =IF(B42>0,B34/B42*100,0) -> 5.01159755 | C46: =IF(C42>0,C34/C42*100,0) -> 5.116912519 | D46: =IF(D42>0,D34/D42*100,0) -> 7.167876782 | E46: =IF(E42>0,E34/E42*100,0) -> 8.633218379 | F46: =IF(F42>0,F34/F42*100,0) -> 10.27296609 | H46: 13.51223631 | I46: 37.14298602 | J46: 50.65522233
A47: 3. Associate Professional and Technical Occupations | B47: =IF(B42>0,B35/B42*100,0) -> 3.349325369 | C47: =IF(C42>0,C35/C42*100,0) -> 3.520126982 | D47: =IF(D42>0,D35/D42*100,0) -> 4.788240161 | E47: =IF(E42>0,E35/E42*100,0) -> 5.501921087 | F47: =IF(F42>0,F35/F42*100,0) -> 6.391324598 | H47: 5.718819774 | I47: 34.07086109 | J47: 39.78968087
A48: 4. Administrative, Clerical and Secretarial Occupations | B48: =IF(B42>0,B36/B42*100,0) -> 7.98311609 | C48: =IF(C42>0,C36/C42*100,0) -> 7.805335893 | D48: =IF(D42>0,D36/D42*100,0) -> 5.853205427 | E48: =IF(E42>0,E36/E42*100,0) -> 5.402781215 | F48: =IF(F42>0,F36/F42*100,0) -> 5.528307143 | H48: -25.19411704 | I48: 37.62496628 | J48: 12.43084924
A49: 5. Skilled Trades Occupations | B49: =IF(B42>0,B37/B42*100,0) -> 38.6792038 | C49: =IF(C42>0,C37/C42*100,0) -> 43.41985325 | D49: =IF(D42>0,D37/D42*100,0) -> 56.30818465 | E49: =IF(E42>0,E37/E42*100,0) -> 56.82804138 | F49: =IF(F42>0,F37/F42*100,0) -> 55.58721543 | H49: -21.81188388 | I49: 48.42668498 | J49: 26.6148011
A50: 6. Personal Service Occupations | B50: =IF(B42>0,B38/B42*100,0) -> 4.847823432 | C50: =IF(C42>0,C38/C42*100,0) -> 5.337094628 | D50: =IF(D42>0,D38/D42*100,0) -> 2.837656651 | E50: =IF(E42>0,E38/E42*100,0) -> 3.016768435 | F50: =IF(F42>0,F38/F42*100,0) -> 3.068545684 | H50: -14.35340457 | I50: 35.78904178 | J50: 21.4356372
A51: 7. Sales and Customer Service Occupations | B51: =IF(B42>0,B39/B42*100,0) -> 2.072949865 | C51: =IF(C42>0,C39/C42*100,0) -> 2.088050793 | D51: =IF(D42>0,D39/D42*100,0) -> 1.721351123 | E51: =IF(E42>0,E39/E42*100,0) -> 1.558253373 | F51: =IF(F42>0,F39/F42*100,0) -> 1.513272102 | H51: -30.37184062 | I51: 28.68329871 | J51: -1.688541907
A52: 8. Transport and Machine Operatives | B52: =IF(B42>0,B40/B42*100,0) -> 7.11054982 | C52: =IF(C42>0,C40/C42*100,0) -> 6.276097784 | D52: =IF(D42>0,D40/D42*100,0) -> 3.245005258 | E52: =IF(E42>0,E40/E42*100,0) -> 2.690165331 | F52: =IF(F42>0,F40/F42*100,0) -> 2.346637357 | H52: -42.72462629 | I52: 29.29802387 | J52: -13.42660241
A53: 9. Elementary Occupations | B53: =IF(B42>0,B41/B42*100,0) -> 22.43963816 | C53: =IF(C42>0,C41/C42*100,0) -> 19.33645212 | D53: =IF(D42>0,D41/D42*100,0) -> 10.18224647 | E53: =IF(E42>0,E41/E42*100,0) -> 8.679450249 | F53: =IF(F42>0,F41/F42*100,0) -> 7.528466025 | H53: -41.44011087 | I53: 27.49713101 | J53: -13.94297986
A54: Total | B54: =IF(B42>0,B42/B42*100,0) -> 100 | C54: =IF(C42>0,C42/C42*100,0) -> 100 | D54: =IF(D42>0,D42/D42*100,0) -> 100 | E54: =IF(E42>0,E42/E42*100,0) -> 100 | F54: =IF(F42>0,F42/F42*100,0) -> 100 | H54: -20.79777973 | I54: 41.80843234 | J54: 21.01065268
A55: =$A$27 -> R:\Research Info\Individual research project info\Working Futures_ CG data task\South East\[75SE_South_East.xlsm]Table 6.x.3
A57: Table 6.2.4 | B57: Changing Composition of Employment by Occupation
B58: =names!A5 -> Coal, oil & gas; Mining & related | H58: =D60&" - "&F60 -> 2014 - 2024
A59: SOC2010 Major Groups | H59: Net | I59: Replacement | J59: Total
A60: Employment Levels (000s) | B60: =B$4 -> 1994 | C60: =C$4 -> 2004 | D60: =D$4 -> 2014 | E60: =E$4 -> 2019 | F60: =F$4 -> 2024 | H60: Change | I60: Demands | J60: Requirement
A61: 1. Managers and Senior Officials | B61: =(All!F65+All!F66)/1000 -> 0.520136 | C61: =(All!P65+All!P66)/1000 -> 0.575715 | D61: =(All!Z65+All!Z66)/1000 -> 0.941765 | E61: =(All!AE65+All!AE66)/1000 -> 1.317097 | F61: =(All!AJ65+All!AJ66)/1000 -> 1.111552 | H61: =F61-D61 -> 0.169787 | I61: =D61*I73/100 -> 0.43228734 | J61: =I61+H61 -> 0.60207434
A62: 2. Professional Occupations | B62: =(All!F67+All!F68+All!F69+All!F70)/1000 -> 0.912917 | C62: =(All!P67+All!P68+All!P69+All!P70)/1000 -> 0.637904 | D62: =(All!Z67+All!Z68+All!Z69+All!Z70)/1000 -> 0.597427 | E62: =(All!AE67+All!AE68+All!AE69+All!AE70)/1000 -> 0.767747 | F62: =(All!AJ67+All!AJ68+All!AJ69+All!AJ70)/1000 -> 0.556375 | H62: -0.041052 | I62: 0.2416382658 | J62: 0.2005862658
A63: 3. Associate Professional and Technical Occupations | B63: =(All!F71+All!F72+All!F73+All!F74+All!F75)/1000 -> 0.735424 | C63: =(All!P71+All!P72+All!P73+All!P74+All!P75)/1000 -> 0.639022 | D63: =(All!Z71+All!Z72+All!Z73+All!Z74+All!Z75)/1000 -> 0.670521 | E63: =(All!AE71+All!AE72+All!AE73+All!AE74+All!AE75)/1000 -> 0.906678 | F63: =(All!AJ71+All!AJ72+All!AJ73+All!AJ74+All!AJ75)/1000 -> 0.711014 | H63: 0.040493 | I63: 0.2959581075 | J63: 0.3364511075
A64: 4. Administrative, Clerical and Secretarial Occupations | B64: =(All!F76+All!F77)/1000 -> 0.227309 | C64: =(All!P76+All!P77)/1000 -> 0.834088 | D64: =(All!Z76+All!Z77)/1000 -> 0.633486 | E64: =(All!AE76+All!AE77)/1000 -> 0.786492 | F64: =(All!AJ76+All!AJ77)/1000 -> 0.582119 | H64: -0.051367 | I64: 0.3228539457 | J64: 0.2714869457
A65: 5. Skilled Trades Occupations | B65: =(All!F78+All!F79+All!F80+All!F81)/1000 -> 0.572255 | C65: =(All!P78+All!P79+All!P80+All!P81)/1000 -> 0.532046 | D65: =(All!Z78+All!Z79+All!Z80+All!Z81)/1000 -> 0.907675 | E65: =(All!AE78+All!AE79+All!AE80+All!AE81)/1000 -> 1.096716 | F65: =(All!AJ78+All!AJ79+All!AJ80+All!AJ81)/1000 -> 0.862861 | H65: -0.044814 | I65: 0.3539340443 | J65: 0.3091200443
A66: 6. Personal Service Occupations | B66: =(All!F82+All!F83)/1000 -> 0.034541 | C66: =(All!P82+All!P83)/1000 -> 0.075493 | D66: =(All!Z82+All!Z83)/1000 -> 0.043718 | E66: =(All!AE82+All!AE83)/1000 -> 0.063833 | F66: =(All!AJ82+All!AJ83)/1000 -> 0.054603 | H66: 0.010885 | I66: 0.02509226008 | J66: 0.03597726008
A67: 7. Sales and Customer Service Occupations | B67: =(All!F84+All!F85)/1000 -> 0.059523 | C67: =(All!P84+All!P85)/1000 -> 0.195552 | D67: =(All!Z84+All!Z85)/1000 -> 0.196683 | E67: =(All!AE84+All!AE85)/1000 -> 0.254565 | F67: =(All!AJ84+All!AJ85)/1000 -> 0.205654 | H67: 0.008971 | I67: 0.08318691924 | J67: 0.09215791924
A68: 8. Transport and Machine Operatives | B68: =(All!F86+All!F87)/1000 -> 1.048288 | C68: =(All!P86+All!P87)/1000 -> 0.989369 | D68: =(All!Z86+All!Z87)/1000 -> 0.815265 | E68: =(All!AE86+All!AE87)/1000 -> 1.082884 | F68: =(All!AJ86+All!AJ87)/1000 -> 0.910951 | H68: 0.095686 | I68: 0.367110365 | J68: 0.462796365
A69: 9. Elementary Occupations | B69: =(All!F88+All!F89)/1000 -> 0.102606 | C69: =(All!P88+All!P89)/1000 -> 0.180812 | D69: =(All!Z88+All!Z89)/1000 -> 0.157461 | E69: =(All!AE88+All!AE89)/1000 -> 0.205988 | F69: =(All!AJ88+All!AJ89)/1000 -> 0.17087 | H69: 0.013409 | I69: 0.07589939815 | J69: 0.08930839815
A70: Total | B70: =All!F64/1000 -> 4.213 | C70: =All!P64/1000 -> 4.66 | D70: =All!Z64/1000 -> 4.964 | E70: =All!AE64/1000 -> 6.482 | F70: =All!AJ64/1000 -> 5.166 | H70: 0.202 | I70: =SUM(I61:I69) -> 2.197960646 | J70: 2.399960646
A72: Percentage Shares | B72: =B$4 -> 1994 | C72: =C$4 -> 2004 | D72: =D$4 -> 2014 | E72: =E$4 -> 2019 | F72: =F$4 -> 2024 | H72: Percentage Changes
A73: 1. Managers and Senior Officials | B73: =IF(B70>0,B61/B70*100,0) -> 12.34597674 | C73: =IF(C70>0,C61/C70*100,0) -> 12.35439914 | D73: =IF(D70>0,D61/D70*100,0) -> 18.97189766 | E73: =IF(E70>0,E61/E70*100,0) -> 20.3192996 | F73: =IF(F70>0,F61/F70*100,0) -> 21.51668602 | H73: =IF(D61>0,H61/D61*100,0) -> 18.02859524 | I73: 45.90182689 | J73: =IF(D61>0,J61/D61*100,0) -> 63.93042213
A74: 2. Professional Occupations | B74: =IF(B70>0,B62/B70*100,0) -> 21.66904818 | C74: =IF(C70>0,C62/C70*100,0) -> 13.68892704 | D74: =IF(D70>0,D62/D70*100,0) -> 12.03519339 | E74: =IF(E70>0,E62/E70*100,0) -> 11.84429189 | F74: =IF(F70>0,F62/F70*100,0) -> 10.76993806 | H74: -6.871467142 | I74: 40.44649234 | J74: 33.5750252
A75: 3. Associate Professional and Technical Occupations | B75: =IF(B70>0,B63/B70*100,0) -> 17.45606456 | C75: =IF(C70>0,C63/C70*100,0) -> 13.71291845 | D75: =IF(D70>0,D63/D70*100,0) -> 13.50767526 | E75: =IF(E70>0,E63/E70*100,0) -> 13.98762728 | F75: =IF(F70>0,F63/F70*100,0) -> 13.7633372 | H75: 6.039035317 | I75: 44.13852922 | J75: 50.17756453
A76: 4. Administrative, Clerical and Secretarial Occupations | B76: =IF(B70>0,B64/B70*100,0) -> 5.395418941 | C76: =IF(C70>0,C64/C70*100,0) -> 17.89888412 | D76: =IF(D70>0,D64/D70*100,0) -> 12.76160355 | E76: =IF(E70>0,E64/E70*100,0) -> 12.13347732 | F76: =IF(F70>0,F64/F70*100,0) -> 11.26827333 | H76: -8.108624342 | I76: 50.96465362 | J76: 42.85602928
A77: 5. Skilled Trades Occupations | B77: =IF(B70>0,B65/B70*100,0) -> 13.58307619 | C77: =IF(C70>0,C65/C70*100,0) -> 11.41729614 | D77: =IF(D70>0,D65/D70*100,0) -> 18.2851531 | E77: =IF(E70>0,E65/E70*100,0) -> 16.91940759 | F77: =IF(F70>0,F65/F70*100,0) -> 16.70269067 | H77: -4.937229735 | I77: 38.99347721 | J77: 34.05624748
A78: 6. Personal Service Occupations | B78: =IF(B70>0,B66/B70*100,0) -> 0.8198670781 | C78: =IF(C70>0,C66/C70*100,0) -> 1.620021459 | D78: =IF(D70>0,D66/D70*100,0) -> 0.8807010475 | E78: =IF(E70>0,E66/E70*100,0) -> 0.9847732181 | F78: =IF(F70>0,F66/F70*100,0) -> 1.056968641 | H78: 24.89821126 | I78: 57.39571819 | J78: 82.29392945
A79: 7. Sales and Customer Service Occupations | B79: =IF(B70>0,B67/B70*100,0) -> 1.412841206 | C79: =IF(C70>0,C67/C70*100,0) -> 4.19639485 | D79: =IF(D70>0,D67/D70*100,0) -> 3.962187752 | E79: =IF(E70>0,E67/E70*100,0) -> 3.927260105 | F79: =IF(F70>0,F67/F70*100,0) -> 3.980913666 | H79: 4.561146617 | I79: 42.29492088 | J79: 46.8560675
A80: 8. Transport and Machine Operatives | B80: =IF(B70>0,B68/B70*100,0) -> 24.88222169 | C80: =IF(C70>0,C68/C70*100,0) -> 21.23109442 | D80: =IF(D70>0,D68/D70*100,0) -> 16.42354956 | E80: =IF(E70>0,E68/E70*100,0) -> 16.70601666 | F80: =IF(F70>0,F68/F70*100,0) -> 17.63358498 | H80: 11.73679724 | I80: 45.02957504 | J80: 56.76637228
A81: 9. Elementary Occupations | B81: =IF(B70>0,B69/B70*100,0) -> 2.435461666 | C81: =IF(C70>0,C69/C70*100,0) -> 3.880085837 | D81: =IF(D70>0,D69/D70*100,0) -> 3.172058824 | E81: =IF(E70>0,E69/E70*100,0) -> 3.177846344 | F81: =IF(F70>0,F69/F70*100,0) -> 3.307588076 | H81: 8.515759458 | I81: 48.20202981 | J81: 56.71778926
A82: Total | B82: =IF(B70>0,B70/B70*100,0) -> 100 | C82: =IF(C70>0,C70/C70*100,0) -> 100 | D82: =IF(D70>0,D70/D70*100,0) -> 100 | E82: =IF(E70>0,E70/E70*100,0) -> 100 | F82: =IF(F70>0,F70/F70*100,0) -> 100 | H82: 4.069298952 | I82: 44.27800601 | J82: 48.34731357
A83: =$A$27 -> R:\Research Info\Individual research project info\Working Futures_ CG data task\South East\[75SE_South_East.xlsm]Table 6.x.3
A85: Table 6.3.4 | B85: Changing Composition of Employment by Occupation
B86: =names!A6 -> Food products | H86: =D88&" - "&F88 -> 2014 - 2024
A87: SOC2010 Major Groups | H87: Net | I87: Replacement | J87: Total
A88: Employment Levels (000s) | B88: =B$4 -> 1994 | C88: =C$4 -> 2004 | D88: =D$4 -> 2014 | E88: =E$4 -> 2019 | F88: =F$4 -> 2024 | H88: Change | I88: Demands | J88: Requirement
A89: 1. Managers and Senior Officials | B89: =(All!F93+All!F94)/1000 -> 2.558639 | C89: =(All!P93+All!P94)/1000 -> 3.184087 | D89: =(All!Z93+All!Z94)/1000 -> 2.542821 | E89: =(All!AE93+All!AE94)/1000 -> 2.951093 | F89: =(All!AJ93+All!AJ94)/1000 -> 3.00494 | H89: =F89-D89 -> 0.462119 | I89: =D89*I101/100 -> 1.093203741 | J89: =I89+H89 -> 1.555322741
A90: 2. Professional Occupations | B90: =(All!F95+All!F96+All!F97+All!F98)/1000 -> 2.380013 | C90: =(All!P95+All!P96+All!P97+All!P98)/1000 -> 2.466254 | D90: =(All!Z95+All!Z96+All!Z97+All!Z98)/1000 -> 1.586173 | E90: =(All!AE95+All!AE96+All!AE97+All!AE98)/1000 -> 1.820305 | F90: =(All!AJ95+All!AJ96+All!AJ97+All!AJ98)/1000 -> 1.803963 | H90: 0.21779 | I90: 0.612718118 | J90: 0.830508118
A91: 3. Associate Professional and Technical Occupations | B91: =(All!F99+All!F100+All!F101+All!F102+All!F103)/1000 -> 3.722319 | C91: =(All!P99+All!P100+All!P101+All!P102+All!P103)/1000 -> 3.347772 | D91: =(All!Z99+All!Z100+All!Z101+All!Z102+All!Z103)/1000 -> 2.898142 | E91: =(All!AE99+All!AE100+All!AE101+All!AE102+All!AE103)/1000 -> 3.254109 | F91: =(All!AJ99+All!AJ100+All!AJ101+All!AJ102+All!AJ103)/1000 -> 3.245863 | H91: 0.347721 | I91: 1.118980283 | J91: 1.466701283
A92: 4. Administrative, Clerical and Secretarial Occupations | B92: =(All!F104+All!F105)/1000 -> 5.028932 | C92: =(All!P104+All!P105)/1000 -> 2.380547 | D92: =(All!Z104+All!Z105)/1000 -> 1.956007 | E92: =(All!AE104+All!AE105)/1000 -> 2.00495 | F92: =(All!AJ104+All!AJ105)/1000 -> 1.929539 | H92: -0.026468 | I92: 0.8395949587 | J92: 0.8131269587
A93: 5. Skilled Trades Occupations | B93: =(All!F106+All!F107+All!F108+All!F109)/1000 -> 6.009413 | C93: =(All!P106+All!P107+All!P108+All!P109)/1000 -> 4.208916 | D93: =(All!Z106+All!Z107+All!Z108+All!Z109)/1000 -> 3.208773 | E93: =(All!AE106+All!AE107+All!AE108+All!AE109)/1000 -> 3.056524 | F93: =(All!AJ106+All!AJ107+All!AJ108+All!AJ109)/1000 -> 2.634363 | H93: -0.57441 | I93: 1.213409631 | J93: 0.638999631
A94: 6. Personal Service Occupations | B94: =(All!F110+All!F111)/1000 -> 0.182725 | C94: =(All!P110+All!P111)/1000 -> 0.128969 | D94: =(All!Z110+All!Z111)/1000 -> 0.156363 | E94: =(All!AE110+All!AE111)/1000 -> 0.183787 | F94: =(All!AJ110+All!AJ111)/1000 -> 0.183424 | H94: 0.027061 | I94: 0.07799715143 | J94: 0.1050581514
A95: 7. Sales and Customer Service Occupations | B95: =(All!F112+All!F113)/1000 -> 1.612947 | C95: =(All!P112+All!P113)/1000 -> 1.061796 | D95: =(All!Z112+All!Z113)/1000 -> 0.965226 | E95: =(All!AE112+All!AE113)/1000 -> 1.01307 | F95: =(All!AJ112+All!AJ113)/1000 -> 0.996391 | H95: 0.031165 | I95: 0.3367164537 | J95: 0.3678814537
A96: 8. Transport and Machine Operatives | B96: =(All!F114+All!F115)/1000 -> 12.063812 | C96: =(All!P114+All!P115)/1000 -> 7.32835 | D96: =(All!Z114+All!Z115)/1000 -> 4.871464 | E96: =(All!AE114+All!AE115)/1000 -> 4.764189 | F96: =(All!AJ114+All!AJ115)/1000 -> 4.409934 | H96: -0.46153 | I96: 1.653958508 | J96: 1.192428508
A97: 9. Elementary Occupations | B97: =(All!F116+All!F117)/1000 -> 5.503201 | C97: =(All!P116+All!P117)/1000 -> 2.853308 | D97: =(All!Z116+All!Z117)/1000 -> 2.932032 | E97: =(All!AE116+All!AE117)/1000 -> 3.030971 | F97: =(All!AJ116+All!AJ117)/1000 -> 2.854584 | H97: -0.077448 | I97: 1.124355986 | J97: 1.046907986
A98: Total | B98: =All!F92/1000 -> 39.062 | C98: =All!P92/1000 -> 26.96 | D98: =All!Z92/1000 -> 21.117 | E98: =All!AE92/1000 -> 22.079 | F98: =All!AJ92/1000 -> 21.063 | H98: -0.054 | I98: =SUM(I89:I97) -> 8.070934831 | J98: 8.016934831
A100: Percentage Shares | B100: =B$4 -> 1994 | C100: =C$4 -> 2004 | D100: =D$4 -> 2014 | E100: =E$4 -> 2019 | F100: =F$4 -> 2024 | H100: Percentage Changes
A101: 1. Managers and Senior Officials | B101: =IF(B98>0,B89/B98*100,0) -> 6.550199683 | C101: =IF(C98>0,C89/C98*100,0) -> 11.81041172 | D101: =IF(D98>0,D89/D98*100,0) -> 12.04158261 | E101: =IF(E98>0,E89/E98*100,0) -> 13.36606277 | F101: =IF(F98>0,F89/F98*100,0) -> 14.26643878 | H101: =IF(D89>0,H89/D89*100,0) -> 18.17347741 | I101: 42.99176943 | J101: =IF(D89>0,J89/D89*100,0) -> 61.16524684
A102: 2. Professional Occupations | B102: =IF(B98>0,B90/B98*100,0) -> 6.092911269 | C102: =IF(C98>0,C90/C98*100,0) -> 9.147826409 | D102: =IF(D98>0,D90/D98*100,0) -> 7.51135578 | E102: =IF(E98>0,E90/E98*100,0) -> 8.244508356 | F102: =IF(F98>0,F90/F98*100,0) -> 8.564606181 | H102: 13.73053255 | I102: 38.62870683 | J102: 52.35923938
A103: 3. Associate Professional and Technical Occupations | B103: =IF(B98>0,B91/B98*100,0) -> 9.529258615 | C103: =IF(C98>0,C91/C98*100,0) -> 12.41755193 | D103: =IF(D98>0,D91/D98*100,0) -> 13.72421272 | E103: =IF(E98>0,E91/E98*100,0) -> 14.73848 | F103: =IF(F98>0,F91/F98*100,0) -> 15.4102597 | H103: 11.99806635 | I103: 38.61026419 | J103: 50.60833054
A104: 4. Administrative, Clerical and Secretarial Occupations | B104: =IF(B98>0,B92/B98*100,0) -> 12.87423071 | C104: =IF(C98>0,C92/C98*100,0) -> 8.829922107 | D104: =IF(D98>0,D92/D98*100,0) -> 9.262712507 | E104: =IF(E98>0,E92/E98*100,0) -> 9.080800761 | F104: =IF(F98>0,F92/F98*100,0) -> 9.160798557 | H104: -1.353164892 | I104: 42.92392403 | J104: 41.57075914
A105: 5. Skilled Trades Occupations | B105: =IF(B98>0,B93/B98*100,0) -> 15.3842942 | C105: =IF(C98>0,C93/C98*100,0) -> 15.61170623 | D105: =IF(D98>0,D93/D98*100,0) -> 15.19521239 | E105: =IF(E98>0,E93/E98*100,0) -> 13.84357987 | F105: =IF(F98>0,F93/F98*100,0) -> 12.50706452 | H105: -17.90123515 | I105: 37.81537775 | J105: 19.9141426
A106: 6. Personal Service Occupations | B106: =IF(B98>0,B94/B98*100,0) -> 0.4677819876 | C106: =IF(C98>0,C94/C98*100,0) -> 0.4783716617 | D106: =IF(D98>0,D94/D98*100,0) -> 0.7404602927 | E106: =IF(E98>0,E94/E98*100,0) -> 0.832406359 | F106: =IF(F98>0,F94/F98*100,0) -> 0.8708351137 | H106: 17.30652392 | I106: 49.88210218 | J106: 67.1886261
A107: 7. Sales and Customer Service Occupations | B107: =IF(B98>0,B95/B98*100,0) -> 4.129197174 | C107: =IF(C98>0,C95/C98*100,0) -> 3.938412463 | D107: =IF(D98>0,D95/D98*100,0) -> 4.570848132 | E107: =IF(E98>0,E95/E98*100,0) -> 4.588387155 | F107: =IF(F98>0,F95/F98*100,0) -> 4.730527465 | H107: 3.228777509 | I107: 34.88472686 | J107: 38.11350437
A108: 8. Transport and Machine Operatives | B108: =IF(B98>0,B96/B98*100,0) -> 30.88375403 | C108: =IF(C98>0,C96/C98*100,0) -> 27.18230712 | D108: =IF(D98>0,D96/D98*100,0) -> 23.06892077 | E108: =IF(E98>0,E96/E98*100,0) -> 21.5779202 | F108: =IF(F98>0,F96/F98*100,0) -> 20.93687509 | H108: -9.474153971 | I108: 33.95198051 | J108: 24.47782654
A109: 9. Elementary Occupations | B109: =IF(B98>0,B97/B98*100,0) -> 14.08837489 | C109: =IF(C98>0,C97/C98*100,0) -> 10.58348665 | D109: =IF(D98>0,D97/D98*100,0) -> 13.88469953 | E109: =IF(E98>0,E97/E98*100,0) -> 13.72784546 | F109: =IF(F98>0,F97/F98*100,0) -> 13.55259934 | H109: -2.641444568 | I109: 38.34732999 | J109: 35.70588542
A110: Total | B110: =IF(B98>0,B98/B98*100,0) -> 100 | C110: =IF(C98>0,C98/C98*100,0) -> 100 | D110: =IF(D98>0,D98/D98*100,0) -> 100 | E110: =IF(E98>0,E98/E98*100,0) -> 100 | F110: =IF(F98>0,F98/F98*100,0) -> 100 | H110: -0.2557181418 | I110: 38.22008121 | J110: 37.9643644
A111: =$A$27 -> R:\Research Info\Individual research project info\Working Futures_ CG data task\South East\[75SE_South_East.xlsm]Table 6.x.3
A113: Table 6.4.4 | B113: Changing Composition of Employment by Occupation
B114: =names!A7 -> Beverages and tobacco | H114: =D116&" - "&F116 -> 2014 - 2024
A115: SOC2010 Major Groups | H115: Net | I115: Replacement | J115: Total
A116: Employment Levels (000s) | B116: =B$4 -> 1994 | C116: =C$4 -> 2004 | D116: =D$4 -> 2014 | E116: =E$4 -> 2019 | F116: =F$4 -> 2024 | H116: Change | I116: Demands | J116: Requirement
A117: 1. Managers and Senior Officials | B117: =(All!F121+All!F122)/1000 -> 0.613723 | C117: =(All!P121+All!P122)/1000 -> 0.523486 | D117: =(All!Z121+All!Z122)/1000 -> 0.257187 | E117: =(All!AE121+All!AE122)/1000 -> 0.294376 | F117: =(All!AJ121+All!AJ122)/1000 -> 0.302019 | H117: =F117-D117 -> 0.044832 | I117: =D117*I129/100 -> 0.1041301734 | J117: =I117+H117 -> 0.1489621734
A118: 2. Professional Occupations | B118: =(All!F123+All!F124+All!F125+All!F126)/1000 -> 0.730698 | C118: =(All!P123+All!P124+All!P125+All!P126)/1000 -> 0.56634 | D118: =(All!Z123+All!Z124+All!Z125+All!Z126)/1000 -> 0.31581 | E118: =(All!AE123+All!AE124+All!AE125+All!AE126)/1000 -> 0.357455 | F118: =(All!AJ123+All!AJ124+All!AJ125+All!AJ126)/1000 -> 0.355701 | H118: 0.039891 | I118: 0.1216314637 | J118: 0.1615224637
A119: 3. Associate Professional and Technical Occupations | B119: =(All!F127+All!F128+All!F129+All!F130+All!F131)/1000 -> 1.032098 | C119: =(All!P127+All!P128+All!P129+All!P130+All!P131)/1000 -> 0.719001 | D119: =(All!Z127+All!Z128+All!Z129+All!Z130+All!Z131)/1000 -> 0.40652 | E119: =(All!AE127+All!AE128+All!AE129+All!AE130+All!AE131)/1000 -> 0.453461 | F119: =(All!AJ127+All!AJ128+All!AJ129+All!AJ130+All!AJ131)/1000 -> 0.452195 | H119: 0.045675 | I119: 0.1507641876 | J119: 0.1964391876
A120: 4. Administrative, Clerical and Secretarial Occupations | B120: =(All!F132+All!F133)/1000 -> 0.87643 | C120: =(All!P132+All!P133)/1000 -> 0.326224 | D120: =(All!Z132+All!Z133)/1000 -> 0.160735 | E120: =(All!AE132+All!AE133)/1000 -> 0.1538 | F120: =(All!AJ132+All!AJ133)/1000 -> 0.142449 | H120: -0.018286 | I120: 0.07187313897 | J120: 0.05358713897
A121: 5. Skilled Trades Occupations | B121: =(All!F134+All!F135+All!F136+All!F137)/1000 -> 0.523442 | C121: =(All!P134+All!P135+All!P136+All!P137)/1000 -> 0.400777 | D121: =(All!Z134+All!Z135+All!Z136+All!Z137)/1000 -> 0.157789 | E121: =(All!AE134+All!AE135+All!AE136+All!AE137)/1000 -> 0.160387 | F121: =(All!AJ134+All!AJ135+All!AJ136+All!AJ137)/1000 -> 0.152002 | H121: -0.005787 | I121: 0.05648356009 | J121: 0.05069656009
A122: 6. Personal Service Occupations | B122: =(All!F138+All!F139)/1000 -> 0.214749 | C122: =(All!P138+All!P139)/1000 -> 0.106708 | D122: =(All!Z138+All!Z139)/1000 -> 0.096644 | E122: =(All!AE138+All!AE139)/1000 -> 0.112729 | F122: =(All!AJ138+All!AJ139)/1000 -> 0.113911 | H122: 0.017267 | I122: 0.04563985732 | J122: 0.06290685732
A123: 7. Sales and Customer Service Occupations | B123: =(All!F140+All!F141)/1000 -> 0.200029 | C123: =(All!P140+All!P141)/1000 -> 0.149178 | D123: =(All!Z140+All!Z141)/1000 -> 0.112442 | E123: =(All!AE140+All!AE141)/1000 -> 0.115841 | F123: =(All!AJ140+All!AJ141)/1000 -> 0.116828 | H123: 0.004386 | I123: 0.03815569441 | J123: 0.04254169441
A124: 8. Transport and Machine Operatives | B124: =(All!F142+All!F143)/1000 -> 1.204123 | C124: =(All!P142+All!P143)/1000 -> 0.822331 | D124: =(All!Z142+All!Z143)/1000 -> 0.279376 | E124: =(All!AE142+All!AE143)/1000 -> 0.249578 | F124: =(All!AJ142+All!AJ143)/1000 -> 0.203148 | H124: -0.076228 | I124: 0.08836273144 | J124: 0.01213473144
A125: 9. Elementary Occupations | B125: =(All!F144+All!F145)/1000 -> 0.773707 | C125: =(All!P144+All!P145)/1000 -> 0.340956 | D125: =(All!Z144+All!Z145)/1000 -> 0.151496 | E125: =(All!AE144+All!AE145)/1000 -> 0.137375 | F125: =(All!AJ144+All!AJ145)/1000 -> 0.114746 | H125: -0.03675 | I125: 0.05876068177 | J125: 0.02201068177
... 146 more rows

Sheet RD Charts(Occupations)
Z2: Values for the charts are written here by program RD_VBtab6x3PGeneratorWF5.xlsm
C4: ="Components of Replacement Demand, "&Z9&", "&AA9 -> Components of Replacement Demand, All occupations, 2014- 2024
Z9: All occupations | AA9: 2014- 2024
Z10: periods | AA10: 2014- 2015 | AB10: 2015- 2016 | AC10: 2016- 2017 | AD10: 2017- 2018 | AE10: 2018- 2019 | AF10: 2019- 2020 | AG10: 2020- 2021 | AH10: 2021- 2022 | AI10: 2022- 2023 | AJ10: 2023- 2024
Z11: labels
Z12: Expansion demand | AA12: 76.053998 | AB12: 41.922005 | AC12: 28.639992 | AD12: 20.805006 | AE12: 18.411996 | AF12: 20.546004 | AG12: 19.729001 | AH12: 22.271987 | AI12: 23.514012 | AJ12: 23.149004
Z13: Replacement demand | AA13: 177.3987871 | AB13: 180.0978902 | AC13: 181.5466892 | AD13: 182.4939403 | AE13: 183.1530206 | AF13: 183.7427024 | AG13: 184.4281865 | AH13: 185.0822193 | AI13: 185.835188 | AJ13: 186.794547
Z14: Net requirement | AA14: 253.4527851 | AB14: 222.0198952 | AC14: 210.1866812 | AD14: 203.2989463 | AE14: 201.5650166 | AF14: 204.2887064 | AG14: 204.1571875 | AH14: 207.3542063 | AI14: 209.3492 | AJ14: 209.943551
C29: ="Components of Replacement Demand, "&Z34&", "&AA34 -> Components of Replacement Demand, Corporate managers and directors, 2014- 2024
Z34: Corporate managers and directors | AA34: 2014- 2024
Z35: periods | AA35: 2014- 2015 | AB35: 2015- 2016 | AC35: 2016- 2017 | AD35: 2017- 2018 | AE35: 2018- 2019 | AF35: 2019- 2020 | AG35: 2020- 2021 | AH35: 2021- 2022 | AI35: 2022- 2023 | AJ35: 2023- 2024
Z36: labels
Z37: Expansion demand | AA37: 13.71911 | AB37: 8.651874 | AC37: 7.450741 | AD37: 6.525989 | AE37: 6.076505 | AF37: 6.108626 | AG37: 6.837155 | AH37: 7.016323 | AI37: 1.981336 | AJ37: 1.925177
Z38: Replacement demand | AA38: 13.02939426 | AB38: 13.5196642 | AC38: 13.83398696 | AD38: 14.106693 | AE38: 14.3482019 | AF38: 14.57401234 | AG38: 14.80115588 | AH38: 15.05570348 | AI38: 15.31658032 | AJ38: 15.38945141
Z39: Net requirement | AA39: 26.74850426 | AB39: 22.1715382 | AC39: 21.28472796 | AD39: 20.632682 | AE39: 20.4247069 | AF39: 20.68263834 | AG39: 21.63831088 | AH39: 22.07202648 | AI39: 17.29791632 | AJ39: 17.31462841
C54: ="Components of Replacement Demand, "&Z59&", "&AA59 -> Components of Replacement Demand, Other managers and proprietors, 2014- 2024
Z59: Other managers and proprietors | AA59: 2014- 2024
Z60: periods | AA60: 2014- 2015 | AB60: 2015- 2016 | AC60: 2016- 2017 | AD60: 2017- 2018 | AE60: 2018- 2019 | AF60: 2019- 2020 | AG60: 2020- 2021 | AH60: 2021- 2022 | AI60: 2022- 2023 | AJ60: 2023- 2024
Z61: labels
Z62: Expansion demand | AA62: 5.583788 | AB62: 2.484942 | AC62: 1.905631 | AD62: 1.629854 | AE62: 1.677751 | AF62: 1.812764 | AG62: 2.788247 | AH62: 3.050418 | AI62: 1.773016 | AJ62: 1.758165
Z63: Replacement demand | AA63: 8.039183298 | AB63: 8.311692556 | AC63: 8.431753992 | AD63: 8.524540869 | AE63: 8.604886173 | AF63: 8.68755265 | AG63: 8.77667974 | AH63: 8.915710145 | AI63: 9.067724167 | AJ63: 9.155806811
Z64: Net requirement | AA64: 13.6229713 | AB64: 10.79663456 | AC64: 10.33738499 | AD64: 10.15439487 | AE64: 10.28263717 | AF64: 10.50031665 | AG64: 11.56492674 | AH64: 11.96612815 | AI64: 10.84074017 | AJ64: 10.91397181
C79: ="Components of Replacement Demand, "&Z84&", "&AA84 -> Components of Replacement Demand, Science, research, engineering and technology professionals, 2014- 2024
Z84: Science, research, engineering and technology professionals | AA84: 2014- 2024
Z85: periods | AA85: 2014- 2015 | AB85: 2015- 2016 | AC85: 2016- 2017 | AD85: 2017- 2018 | AE85: 2018- 2019 | AF85: 2019- 2020 | AG85: 2020- 2021 | AH85: 2021- 2022 | AI85: 2022- 2023 | AJ85: 2023- 2024
Z86: labels
Z87: Expansion demand | AA87: 9.232029 | AB87: 5.61124 | AC87: 4.534987 | AD87: 3.366072 | AE87: 3.036225 | AF87: 3.008742 | AG87: 3.010694 | AH87: 3.135066 | AI87: 1.166018 | AJ87: 1.126309
Z88: Replacement demand | AA88: 8.659906604 | AB88: 8.92884418 | AC88: 9.095305889 | AD88: 9.231004963 | AE88: 9.333776137 | AF88: 9.427272291 | AG88: 9.520138141 | AH88: 9.613716621 | AI88: 9.710919875 | AJ88: 9.746338228
Z89: Net requirement | AA89: 17.8919356 | AB89: 14.54008418 | AC89: 13.63029289 | AD89: 12.59707696 | AE89: 12.37000114 | AF89: 12.43601429 | AG89: 12.53083214 | AH89: 12.74878262 | AI89: 10.87693787 | AJ89: 10.87264723
C104: ="Components of Replacement Demand, "&Z109&", "&AA109 -> Components of Replacement Demand, Health professionals, 2014- 2024
Z109: Health professionals | AA109: 2014- 2024
Z110: periods | AA110: 2014- 2015 | AB110: 2015- 2016 | AC110: 2016- 2017 | AD110: 2017- 2018 | AE110: 2018- 2019 | AF110: 2019- 2020 | AG110: 2020- 2021 | AH110: 2021- 2022 | AI110: 2022- 2023 | AJ110: 2023- 2024
Z111: labels
Z112: Expansion demand | AA112: 3.259134 | AB112: 2.020377 | AC112: 2.32311 | AD112: 3.041979 | AE112: 2.018134 | AF112: 1.917063 | AG112: 2.612314 | AH112: 2.773714 | AI112: 0.246877 | AJ112: 0.248248
Z113: Replacement demand | AA113: 6.195925294 | AB113: 6.322677871 | AC113: 6.402295578 | AD113: 6.493357156 | AE113: 6.612304778 | AF113: 6.69245881 | AG113: 6.768807623 | AH113: 6.871640297 | AI113: 6.980623586 | AJ113: 6.990984272
Z114: Net requirement | AA114: 9.455059294 | AB114: 8.343054871 | AC114: 8.725405578 | AD114: 9.535336156 | AE114: 8.630438778 | AF114: 8.60952181 | AG114: 9.381121623 | AH114: 9.645354297 | AI114: 7.227500586 | AJ114: 7.239232272
... 48 more rows

Sheet Figure 7.1
DA1: Data is written here by the initial setup process (module DataQ) and the appropriate occupation copied to BL347 when an occupation is selected | DO1: Values written here on occupation list 'click'
AT2: Chart titles - do not delete. | AZ2: When an occupation is selected, data for that occupation is written here. | DO2: Replacement Demand etc 2010-2020 for selected occupation | DX2: Males | DY2: -- (as % 2010) -- | EA2: Females
F3: Click on an occupation from the list and the charts will be customised for that occupation | BB3: Chart data | CJ3: Employment by broad ind sector for current occupation | DA3: Emp x qualification for occupation 1 for every industry | DQ3: job openings | DR3: replacement | DS3: net change | DW3: Ex dem | DX3: RD | DZ3: Ex dem | EA3: RD
AT4: Share of all occupations, 1994-2024 | BB4: Shares of total employment for selected occupation for every sector | CJ4: (obviously not reproduced for every industry - that wouldn't make sense) | DA4: 2012 | DB4: =LEFT(names!$D$4,4) -> QCF8 | DC4: =LEFT(names!$D$5,4) -> QCF7 | DD4: =LEFT(names!$D$6,4) -> QCF6 | DE4: =LEFT(names!$D$7,4) -> QCF5 | DF4: =LEFT(names!$D$8,4) -> QCF4 | DG4: =LEFT(names!$D$9,4) -> QCF3 | DH4: =LEFT(names!$D$10,4) -> QCF2 | DI4: =LEFT(names!$D$11,4) -> QCF1 | DJ4: =LEFT(names!$D$12,7) -> No Qual | DO4: All industries | DP4: Females | DQ4: 186.3315459 | DR4: 121.1373909 | DS4: 65.194155 | DW4: 16.44645223 | DX4: 32.33393789 | DZ4: 28.64685793 | EA4: 43.06564131
AT5: Replacement demand, 2014-2024 | BB5: 1994 | BC5: 1995 | BD5: 1996 | BE5: 1997 | BF5: 1998 | BG5: 1999 | BH5: 2000 | BI5: 2001 | BJ5: 2002 | BK5: 2003 | BL5: 2004 | BM5: 2005 | BN5: 2006 | BO5: 2007 | BP5: 2008 | BQ5: 2009 | BR5: 2010 | BS5: 2011 | BT5: 2012 | BU5: 2013 | BV5: 2014 | BW5: 2015 | BX5: 2016 | BY5: 2017 | BZ5: 2018 | CA5: 2019 | CB5: 2020 | CC5: 2021 | CD5: 2022 | CE5: 2023 | CF5: 2024 | CJ5: Industries, 2012 | DA5: All industries | DB5: 4418.019703 | DC5: 36069.59359 | DD5: 99857.85113 | DE5: 20477.72319 | DF5: 30305.03824 | DG5: 67748.17425 | DH5: 54460.46684 | DI5: 36061.34746 | DJ5: 5271.912986 | DP5: Males | DQ5: 523.9503032 | DR5: 406.2365572 | DS5: 117.713746 | DW5: 9.372266515 | DX5: 38.11491921 | DZ5: 4.76224199 | EA5: 47.62828221
AT6: Employment by gender and status, 2014 | AZ6: All industries | BA6: males | BB6: 80.07054504 | BC6: 79.40882405 | BD6: 78.96831103 | BE6: 78.83927787 | BF6: 78.66780923 | BG6: 78.8985809 | BH6: 78.38011153 | BI6: 77.72509504 | BJ6: 77.22054591 | BK6: 76.78235173 | BL6: 76.79248207 | BM6: 78.19840662 | BN6: 77.55804276 | BO6: 77.19685408 | BP6: 77.46239357 | BQ6: 77.62406428 | BR6: 78.05796331 | BS6: 78.2549943 | BT6: 77.74412046 | BU6: 77.46661354 | BV6: 77.31829321 | BW6: 77.18200643 | BX6: 77.05681929 | BY6: 76.93517674 | BZ6: 76.77458608 | CA6: 76.59148189 | CB6: 76.39382236 | CC6: 76.19421587 | CD6: 75.99674244 | CE6: 76.19421587 | CF6: 75.99674244 | CK6: 41176.984 | DA6: Agriculture, etc | DB6: 18.20733918 | DC6: 68.95386848 | DD6: 186.682235 | DE6: 8.466801145 | DF6: 80.98310072 | DG6: 153.5736425 | DH6: 128.9562837 | DI6: 75.04249541 | DJ6: 3.891521182 | DO6: Agriculture, etc | DP6: Females | DQ6: 0.7687191219 | DR6: 0.5019761219 | DS6: 0.266743 | DW6: 16.1663655 | DX6: 28.7046654 | DZ6: 26.62853437 | EA6: 39.24537257
AT7: Qualification shares, 2014 | BA7: females | BB7: 19.92945496 | BC7: 20.59117595 | BD7: 21.03168897 | BE7: 21.16072213 | BF7: 21.33219077 | BG7: 21.1014191 | BH7: 21.61988847 | BI7: 22.27490496 | BJ7: 22.77945409 | BK7: 23.21764827 | BL7: 23.20751793 | BM7: 21.80159338 | BN7: 22.44195724 | BO7: 22.80314592 | BP7: 22.53760643 | BQ7: 22.37593572 | BR7: 21.94203669 | BS7: 21.7450057 | BT7: 22.25587954 | BU7: 22.53338646 | BV7: 22.68170679 | BW7: 22.81799357 | BX7: 22.94318071 | BY7: 23.06482326 | BZ7: 23.22541392 | CA7: 23.40851811 | CB7: 23.60617764 | CC7: 23.80578413 | CD7: 24.00325756 | CE7: 23.80578413 | CF7: 24.00325756 | CK7: 226831.339 | DA7: Coal, oil and gas | DB7: 0 | DC7: 274.5521152 | DD7: 213.7200325 | DE7: 82.17572382 | DF7: 54.54286837 | DG7: 152.3613613 | DH7: 238.1606635 | DI7: 75.55365192 | DJ7: 9.550593073 | DP7: Males | DQ7: 1.780455555 | DR7: 1.778658555 | DS7: 0.001797 | DW7: 9.710670724 | DX7: 34.52005166 | DZ7: 9.367810641 | EA7: 45.64390242
AZ8: Agriculture, etc | BA8: males | BB8: 83.52862934 | BC8: 82.1162976 | BD8: 84.37255215 | BE8: 86.44613904 | BF8: 86.3394242 | BG8: 85.72487876 | BH8: 81.77131433 | BI8: 84.9545587 | BJ8: 83.05075782 | BK8: 85.39023921 | BL8: 86.49992921 | BM8: 84.6736904 | BN8: 86.5541991 | BO8: 79.48128599 | BP8: 83.62655699 | BQ8: 85.34730852 | BR8: 81.03838052 | BS8: 87.11084307 | BT8: 79.64591994 | BU8: 78.92998329 | BV8: 78.44375698 | BW8: 77.95137225 | BX8: 77.35826608 | BY8: 76.80349223 | BZ8: 76.51766995 | CA8: 76.28531017 | CB8: 76.06800447 | CC8: 75.85530201 | CD8: 75.57581596 | CE8: 75.85530201 | CF8: 75.57581596 | CK8: 119903.643 | DA8: Other mining | DB8: 0 | DC8: 188.8134614 | DD8: 718.9058882 | DE8: 162.9336969 | DF8: 173.5986306 | DG8: 328.741873 | DH8: 296.2490779 | DI8: 146.5311606 | DJ8: 29.93515189 | DO8: Coal, oil and gas | DP8: Females | DQ8: 0.0610603979 | DR8: 0.0622093979 | DS8: -0.001149 | DW8: 4.034236021 | DX8: 36.85389384 | DZ8: 19.72584153 | EA8: 47.92804911
BA9: females | BB9: 16.47137066 | BC9: 17.8837024 | BD9: 15.62744785 | BE9: 13.55386096 | BF9: 13.6605758 | BG9: 14.27512124 | BH9: 18.22867364 | BI9: 15.04545464 | BJ9: 16.94924218 | BK9: 14.60976079 | BL9: 13.50005847 | BM9: 15.3263096 | BN9: 13.4458009 | BO9: 20.51871401 | BP9: 16.37344301 | BQ9: 14.65269148 | BR9: 18.96163161 | BS9: 12.88915693 | BT9: 20.35408006 | BU9: 21.07001671 | BV9: 21.55624302 | BW9: 22.04862775 | BX9: 22.64173392 | BY9: 23.19650777 | BZ9: 23.48233005 | CA9: 23.71468983 | CB9: 23.93199553 | CC9: 24.14469799 | CD9: 24.42419778 | CE9: 24.14469799 | CF9: 24.42419778 | CK9: 167037.562 | DA9: Mining support | DB9: 0 | DC9: 10.78288568 | DD9: 53.68285013 | DE9: 14.91009122 | DF9: 20.76376728 | DG9: 32.63629236 | DH9: 41.77501351 | DI9: 18.55908655 | DJ9: 3.011281904 | DP9: Males | DQ9: -0.155940457 | DR9: 0.742674543 | DS9: -0.898615 | DW9: 11.3916492 | DX9: 34.56867237 | DZ9: 25.29520329 | EA9: 46.42393718
B10: To navigate to the charts for a particular | AZ10: Coal, oil and gas | BA10: males | BB10: 95.82032502 | BC10: 96.3111119 | BD10: 96.58473775 | BE10: 96.45008565 | BF10: 96.88442741 | BG10: 96.50331909 | BH10: 95.29824258 | BI10: 95.46803929 | BJ10: 94.65771461 | BK10: 93.36773083 | BL10: 94.30742544 | BM10: 95.82047576 | BN10: 94.5858068 | BO10: 94.57275388 | BP10: 93.70460362 | BQ10: 91.80923852 | BR10: 93.40768253 | BS10: 93.14724488 | BT10: 93.81798144 | BU10: 93.30418989 | BV10: 92.67591414 | BW10: 92.28653019 | BX10: 91.77266998 | BY10: 91.14530787 | BZ10: 90.66192488 | CA10: 90.11926162 | CB10: 89.71201407 | CC10: 89.32107062 | CD10: 88.76968183 | CE10: 89.32107062 | CF10: 88.76968183 | CK10: 793249.406 | DA10: Food products | DB10: 8.184428095 | DC10: 48.34350998 | DD10: 150.5017506 | DE10: 37.73218736 | DF10: 73.06599068 | DG10: 103.6856757 | DH10: 78.00928725 | DI10: 57.59095552 | DJ10: 17.08317523 | DO10: Other mining | DP10: Females | DQ10: 0.05302458816 | DR10: 0.06209558816 | DS10: -0.009071 | DW10: 9.640963711 | DX10: 28.32200613 | DZ10: -1.084924056 | EA10: 40.10666833
B11: industry, click on the list and then | BA11: females | BB11: 4.179674984 | BC11: 3.688904194 | BD11: 3.415262247 | BE11: 3.549914352 | BF11: 3.11555089 | BG11: 3.49665838 | BH11: 4.70175742 | BI11: 4.531960707 | BJ11: 5.342285392 | BK11: 6.632269168 | BL11: 5.692574557 | BM11: 4.179493481 | BN11: 5.414193204 | BO11: 5.427246125 | BP11: 6.295361429 | BQ11: 8.190761481 | BR11: 6.59231747 | BS11: 6.852727955 | BT11: 6.182018565 | BU11: 6.695846087 | BV11: 7.324085863 | BW11: 7.713469813 | BX11: 8.227330015 | BY11: 8.854692127 | BZ11: 9.338075124 | CA11: 9.880738381 | CB11: 10.28798593 | CC11: 10.67898578 | CD11: 11.23031817 | CE11: 10.67898578 | CF11: 11.23031817 | CK11: 223247.15 | DA11: Beverages and tobacco | DB11: 2.273318156 | DC11: 12.29513691 | DD11: 32.3541904 | DE11: 10.03604057 | DF11: 11.97050878 | DG11: 20.40850176 | DH11: 16.84367529 | DI11: 11.86471443 | DJ11: 3.265630459 | DP11: Males | DQ11: 0.2703502149 | DR11: 0.2540782149 | DS11: 0.016272 | DW11: 12.14022355 | DX11: 29.3738464 | DZ11: 12.9163257 | EA11: 41.62224763
B12: click the button | AZ12: Other mining | BA12: males | BB12: 92.27514886 | BC12: 92.90332396 | BD12: 92.31738074 | BE12: 94.37049577 | BF12: 96.44045601 | BG12: 90.42791635 | BH12: 88.42237925 | BI12: 83.60884662 | BJ12: 85.99327085 | BK12: 82.79149109 | BL12: 79.91562951 | BM12: 83.95921238 | BN12: 77.15953749 | BO12: 82.85756607 | BP12: 86.49280281 | BQ12: 86.44802395 | BR12: 87.31560324 | BS12: 80.98464261 | BT12: 80.75485822 | BU12: 80.81932134 | BV12: 80.63688257 | BW12: 80.53950258 | BX12: 80.52700078 | BY12: 80.62999359 | BZ12: 80.8681659 | CA12: 81.08551287 | CB12: 81.28727109 | CC12: 81.49328089 | CD12: 81.70248425 | CE12: 81.49328089 | CF12: 81.70248425 | DA12: Textiles | DB12: 12.33909246 | DC12: 70.79836052 | DD12: 200.5962852 | DE12: 37.61611568 | DF12: 102.0686401 | DG12: 139.9552637 | DH12: 113.0486053 | DI12: 74.84471525 | DJ12: 15.26178249 | DO12: Mining support | DP12: Females | DQ12: 0.1462126824 | DR12: 0.1326516824 | DS12: 0.013561 | DW12: -7.021478225 | DX12: 24.51626922 | DZ12: 49.74495341 | EA12: 35.63498738
B13: Ctrl-Home will return you here. | BA13: females | BB13: 7.724851144 | BC13: 7.09667604 | BD13: 7.682619258 | BE13: 5.629504233 | BF13: 3.559614358 | BG13: 9.572083654 | BH13: 11.57762075 | BI13: 16.39107984 | BJ13: 14.00672915 | BK13: 17.20843221 | BL13: 20.08437049 | BM13: 16.04078762 | BN13: 22.84036112 | BO13: 17.14243393 | BP13: 13.50727489 | BQ13: 13.55197605 | BR13: 12.68447946 | BS13: 19.01535739 | BT13: 19.24524186 | BU13: 19.18067866 | BV13: 19.36311743 | BW13: 19.46049742 | BX13: 19.47299922 | BY13: 19.37000641 | BZ13: 19.1318341 | CA13: 18.91448713 | CB13: 18.71272891 | CC13: 18.5068207 | CD13: 18.29751575 | CE13: 18.5068207 | CF13: 18.29751575 | DA13: Wearing apparel | DB13: 6.821165835 | DC13: 45.2813528 | DD13: 133.9534902 | DE13: 23.87653817 | DF13: 78.05296687 | DG13: 102.6222787 | DH13: 81.06526764 | DI13: 52.45792779 | DJ13: 10.84540419 | DP13: Males | DQ13: 1.66454795 | DR13: 1.31806595 | DS13: 0.346482 | DW13: 26.84572256 | DX13: 29.94868471 | DZ13: 16.08853816 | EA13: 40.37318816
G14: Charts all refer to the selected occupation - current selection is :- | AZ14: Mining support | BA14: males | BB14: 95.32591831 | BC14: 95.36128285 | BD14: 95.43156456 | BE14: 96.26632804 | BF14: 95.70097351 | BG14: 95.37986537 | BH14: 95.53549489 | BI14: 90.04423785 | BJ14: 91.37953328 | BK14: 92.97034326 | BL14: 90.97208345 | BM14: 95.23685086 | BN14: 94.11840958 | BO14: 91.92997785 | BP14: 90.23284577 | BQ14: 95.20327578 | BR14: 94.00421508 | BS14: 94.37423177 | BT14: 90.55083197 | BU14: 90.710021 | BV14: 90.85041258 | BW14: 90.95267763 | BX14: 91.27652252 | BY14: 91.18430321 | BZ14: 91.26890529 | CA14: 91.34960988 | CB14: 91.31842829 | CC14: 91.26915887 | CD14: 91.25904345 | CE14: 91.26915887 | CF14: 91.25904345 | DA14: Leather, etc | DB14: 26.55155614 | DC14: 168.3730295 | DD14: 488.2546975 | DE14: 92.08193024 | DF14: 268.9971683 | DG14: 358.9259656 | DH14: 288.8509087 | DI14: 171.2359056 | DJ14: 29.7096342 | DO14: Food products | DP14: Females | DQ14: 2.137103264 | DR14: 1.153736264 | DS14: 0.983367 | DW14: 10.01456366 | DX14: 31.59551349 | DZ14: 26.62670104 | EA14: 42.69691049
BA15: females | BB15: 4.674081693 | BC15: 4.638717146 | BD15: 4.568435441 | BE15: 3.733671964 | BF15: 4.29902649 | BG15: 4.620134629 | BH15: 4.464505112 | BI15: 9.95576215 | BJ15: 8.620466721 | BK15: 7.029656743 | BL15: 9.027916546 | BM15: 4.763149138 | BN15: 5.881590417 | BO15: 8.070022146 | BP15: 9.767154234 | BQ15: 4.796724219 | BR15: 5.995784915 | BS15: 5.625793512 | BT15: 9.449168027 | BU15: 9.289978996 | BV15: 9.149610234 | BW15: 9.047322372 | BX15: 8.723477476 | BY15: 8.815696793 | BZ15: 8.731094711 | CA15: 8.650390121 | CB15: 8.681571712 | CC15: 8.730841131 | CD15: 8.740956553 | CE15: 8.730841131 | CF15: 8.740956553 | DA15: Wood and cork | DB15: 32.47654195 | DC15: 191.9749352 | DD15: 510.4893476 | DE15: 109.5564223 | DF15: 242.9237607 | DG15: 338.5292065 | DH15: 280.3641824 | DI15: 155.6984071 | DJ15: 21.73437478 | DP15: Males | DQ15: 4.215809249 | DR15: 2.646089249 | DS15: 1.56972 | DW15: 2.657811079 | DX15: 29.31891312 | DZ15: -8.289034631 | EA15: 42.13414284
B16: 21 Science, research, engineering and technology professionals | AZ16: Food products | BA16: males | BB16: 66.5170833 | BC16: 67.1328615 | BD16: 67.06149135 | BE16: 67.52969961 | BF16: 68.45509836 | BG16: 66.61265444 | BH16: 69.94823782 | BI16: 74.34980923 | BJ16: 74.95924201 | BK16: 76.07176026 | BL16: 70.05988618 | BM16: 68.10709194 | BN16: 75.28155791 | BO16: 72.67348087 | BP16: 72.69717788 | BQ16: 71.87140395 | BR16: 67.80790549 | BS16: 81.55861769 | BT16: 70.12246986 | BU16: 70.05796559 | BV16: 69.8259744 | BW16: 69.62058406 | BX16: 69.44681874 | BY16: 69.29197955 | BZ16: 69.08726015 | CA16: 68.89480726 | CB16: 68.69115621 | CC16: 68.50670726 | CD16: 68.30998942 | CE16: 68.50670726 | CF16: 68.30998942 | CK16: 6.146258 | DA16: Paper, etc | DB16: 12.05600628 | DC16: 75.42751783 | DD16: 209.0910265 | DE16: 42.64728608 | DF16: 107.8816965 | DG16: 146.3417619 | DH16: 119.7115893 | DI16: 71.6547289 | DJ16: 11.9469788 | DO16: Beverages and tobacco | DP16: Females | DQ16: 0.1927955123 | DR16: 0.1321485123 | DS16: 0.060647 | DW16: 8.846898747 | DX16: 41.16089809 | DZ16: -29.44797713 | EA16: 47.9680203
BA17: females | BB17: 33.48290728 | BC17: 32.8671385 | BD17: 32.93850865 | BE17: 32.47030039 | BF17: 31.5448927 | BG17: 33.38734556 | BH17: 30.05176218 | BI17: 25.65019077 | BJ17: 25.04075799 | BK17: 23.92823974 | BL17: 29.94011382 | BM17: 31.89290806 | BN17: 24.71843566 | BO17: 27.32651913 | BP17: 27.30281589 | BQ17: 28.12859605 | BR17: 32.19208843 | BS17: 18.44138231 | BT17: 29.87753014 | BU17: 29.94203441 | BV17: 30.1740256 | BW17: 30.37941594 | BX17: 30.55317304 | BY17: 30.70801247 | BZ17: 30.91274761 | CA17: 31.10519274 | CB17: 31.30884379 | CC17: 31.49329274 | CD17: 31.69001058 | CE17: 31.49329274 | CF17: 31.69001058 | CK17: 96.381274 | DA17: Printing and recording | DB17: 29.81793026 | DC17: 188.6904981 | DD17: 522.9123201 | DE17: 101.9747151 | DF17: 276.4771447 | DG17: 360.0538582 | DH17: 289.3942064 | DI17: 166.1572575 | DJ17: 25.89372172 | DP17: Males | DQ17: 1.614412531 | DR17: 0.922917531 | DS17: 0.691495 | DW17: -9.728911476 | DX17: 39.27068156 | DZ17: -17.90852638 | EA17: 50.7603827
J18: All industries | AZ18: Beverages and tobacco | BA18: males | BB18: 90.74396228 | BC18: 90.45256356 | BD18: 90.06366465 | BE18: 89.74556412 | BF18: 89.92807596 | BG18: 87.14801002 | BH18: 86.14592212 | BI18: 84.75018304 | BJ18: 83.91423868 | BK18: 82.78644578 | BL18: 81.16884966 | BM18: 84.57909786 | BN18: 84.94746233 | BO18: 84.67068696 | BP18: 84.41365012 | BQ18: 85.05686799 | BR18: 85.61785033 | BS18: 84.11143131 | BT18: 87.33534234 | BU18: 87.44462577 | BV18: 87.5023794 | BW18: 87.51371148 | BX18: 87.57222374 | BY18: 87.68038935 | BZ18: 87.72005406 | CA18: 87.90039614 | CB18: 88.02802852 | CC18: 88.15449083 | CD18: 88.34754143 | CE18: 88.15449083 | CF18: 88.34754143 | CK18: 27.539895 | DA18: Coke and petroleum | DB18: 9.907293406 | DC18: 69.02220033 | DD18: 196.3384177 | DE18: 35.01186675 | DF18: 115.194989 | DG18: 144.922384 | DH18: 112.4557121 | DI18: 63.37648935 | DJ18: 9.623896534 | DO18: Textiles | DP18: Females | DQ18: 0.5499088954 | DR18: 0.2241888954 | DS18: 0.32572 | DW18: -11.44655611 | DX18: 30.77581019 | DZ18: -27.90960157 | EA18: 43.10099261
BA19: females | BB19: 9.256037721 | BC19: 9.547436442 | BD19: 9.936335351 | BE19: 10.25447025 | BF19: 10.07192404 | BG19: 12.85198998 | BH19: 13.85407788 | BI19: 15.24981696 | BJ19: 16.08576132 | BK19: 17.21355422 | BL19: 18.83115034 | BM19: 15.42090214 | BN19: 15.05253767 | BO19: 15.32927737 | BP19: 15.58634988 | BQ19: 14.9431006 | BR19: 14.38218135 | BS19: 15.88860824 | BT19: 12.66465766 | BU19: 12.55537423 | BV19: 12.4976206 | BW19: 12.48628852 | BX19: 12.42777626 | BY19: 12.31961065 | BZ19: 12.27994594 | CA19: 12.09960386 | CB19: 11.97194474 | CC19: 11.84550917 | CD19: 11.65243323 | CE19: 11.84550917 | CF19: 11.65243323 | CK19: 28.223715 | DA19: Chemicals, etc | DB19: 4.255191302 | DC19: 27.21050959 | DD19: 85.86957955 | DE19: 14.40941238 | DF19: 50.15970919 | DG19: 62.76321038 | DH19: 47.77857834 | DI19: 31.50779004 | DJ19: 6.454543857 | DP19: Males | DQ19: 0.7022578083 | DR19: 0.5744898083 | DS19: 0.127768 | DW19: 7.151409519 | DX19: 30.94506425 | DZ19: 23.37931467 | EA19: 43.25168803
AZ20: Textiles | BA20: males | BB20: 77.16972515 | BC20: 74.5941277 | BD20: 73.16773117 | BE20: 70.96006722 | BF20: 70.25194657 | BG20: 68.08184134 | BH20: 70.85182531 | BI20: 78.1820892 | BJ20: 74.31580908 | BK20: 71.92460118 | BL20: 72.86017152 | BM20: 77.29017647 | BN20: 75.04965013 | BO20: 72.72423874 | BP20: 75.76792987 | BQ20: 74.06907966 | BR20: 73.56756586 | BS20: 73.73279038 | BT20: 73.52584458 | BU20: 73.31283522 | BV20: 72.45570499 | BW20: 71.6044106 | BX20: 70.61366602 | BY20: 69.69782115 | BZ20: 68.80104755 | CA20: 68.03377934 | CB20: 67.1088331 | CC20: 66.26866663 | CD20: 65.48355445 | CE20: 66.26866663 | CF20: 65.48355445 | CK20: 15.188286 | DA20: Pharmaceuticals | DB20: 69.09181264 | DC20: 440.4272941 | DD20: 1367.432444 | DE20: 237.1237307 | DF20: 753.2011495 | DG20: 969.7068846 | DH20: 752.2843025 | DI20: 480.8720001 | DJ20: 94.71496215 | DO20: Wearing apparel | DP20: Females | DQ20: -0.01061283477 | DR20: 0.1426091652 | DS20: -0.153222 | DW20: -14.19510593 | DX20: 29.77399679 | DZ20: -38.87161354 | EA20: 41.80801052
BA21: females | BB21: 22.83027485 | BC21: 25.4058723 | BD21: 26.83226883 | BE21: 29.03990556 | BF21: 29.74805343 | BG21: 31.91818557 | BH21: 29.14817469 | BI21: 21.81793615 | BJ21: 25.68419092 | BK21: 28.0754272 | BL21: 27.13982848 | BM21: 22.70982353 | BN21: 24.95034987 | BO21: 27.27576126 | BP21: 24.23207013 | BQ21: 25.93092034 | BR21: 26.43243414 | BS21: 26.26720962 | BT21: 26.47419814 | BU21: 26.68716478 | BV21: 27.54429501 | BW21: 28.3955894 | BX21: 29.38633398 | BY21: 30.30217885 | BZ21: 31.19895245 | CA21: 31.96618404 | CB21: 32.8911669 | CC21: 33.73133337 | CD21: 34.51644555 | CE21: 33.73133337 | CF21: 34.51644555 | CK21: -0.684651 | DA21: Rubber and plastic | DB21: 79.43151528 | DC21: 602.2646305 | DD21: 1640.590268 | DE21: 282.1349667 | DF21: 833.7240172 | DG21: 1203.944869 | DH21: 847.1137883 | DI21: 407.0810402 | DJ21: 79.67414285 | DP21: Males | DQ21: 0.06250245674 | DR21: 0.07904845674 | DS21: -0.016546 | DW21: 50.79930329 | DX21: 27.24188006 | DZ21: 18.48072611 | EA21: 39.4834001
AZ22: Wearing apparel | BA22: males | BB22: 28.68719176 | BC22: 29.24399676 | BD22: 31.02442486 | BE22: 31.32110359 | BF22: 32.9942138 | BG22: 34.00506561 | BH22: 42.0176745 | BI22: 68.48852552 | BJ22: 68.75922384 | BK22: 65.81610247 | BL22: 63.68422643 | BM22: 63.76333195 | BN22: 64.67532303 | BO22: 55.5097251 | BP22: 63.80430154 | BQ22: 50.59463679 | BR22: 44.6763517 | BS22: 49.4842783 | BT22: 39.62372623 | BU22: 36.64603853 | BV22: 36.58813836 | BW22: 36.92099684 | BX22: 37.64111811 | BY22: 37.72311012 | BZ22: 38.36861842 | CA22: 39.77755725 | CB22: 41.70207485 | CC22: 43.57062184 | CD22: 45.33775208 | CE22: 43.57062184 | CF22: 45.33775208 | DA22: Other non-metallic | DB22: 22.33840437 | DC22: 160.9865086 | DD22: 450.1333345 | DE22: 76.65144783 | DF22: 228.9395139 | DG22: 331.3662445 | DH22: 239.5235544 | DI22: 126.4110488 | DJ22: 22.94836129 | DO22: Leather, etc | DP22: Females | DQ22: 0.0219046842 | DR22: 0.0192736842 | DS22: 0.002631 | DW22: 11.481574 | DX22: 36.23657762 | DZ22: 1.16626638 | EA22: 49.35325316
BA23: females | BB23: 71.31280824 | BC23: 70.75600324 | BD23: 68.97555205 | BE23: 68.67889641 | BF23: 67.0057862 | BG23: 65.99493439 | BH23: 57.98230328 | BI23: 31.51145477 | BJ23: 31.24077616 | BK23: 34.18389753 | BL23: 36.31577357 | BM23: 36.23666805 | BN23: 35.32462829 | BO23: 44.49033322 | BP23: 36.19563528 | BQ23: 49.40536321 | BR23: 55.3236483 | BS23: 50.5157217 | BT23: 60.37640124 | BU23: 63.35396147 | BV23: 63.41186164 | BW23: 63.07885343 | BX23: 62.35888189 | BY23: 62.27704807 | BZ23: 61.63138158 | CA23: 60.22244275 | CB23: 58.29792515 | CC23: 56.42937816 | CD23: 54.66224792 | CE23: 56.42937816 | CF23: 54.66224792 | DA23: Basic metals | DB23: 51.45116156 | DC23: 312.4690511 | DD23: 911.0363254 | DE23: 153.179495 | DF23: 479.095512 | DG23: 656.1392759 | DH23: 501.5907201 | DI23: 238.0127614 | DJ23: 49.39406408 | DP23: Males | DQ23: 0.04141611708 | DR23: 0.04784311708 | DS23: -0.006427 | DW23: 7.984849334 | DX23: 24.27686307 | DZ23: -3.83617877 | EA23: 37.8935252
AZ24: Leather, etc | BA24: males | BB24: 74.93780547 | BC24: 72.98329991 | BD24: 72.79845017 | BE24: 71.46329096 | BF24: 71.24105455 | BG24: 68.32519271 | BH24: 77.51881027 | BI24: 85.57969767 | BJ24: 82.57775036 | BK24: 82.43041225 | BL24: 80.08759575 | BM24: 82.6461987 | BN24: 79.61806869 | BO24: 76.29878878 | BP24: 77.49820097 | BQ24: 77.69322227 | BR24: 79.35587468 | BS24: 71.9414 | BT24: 72.16102649 | BU24: 72.29959272 | BV24: 71.77399886 | BW24: 71.40073165 | BX24: 71.19320178 | BY24: 70.83737439 | BZ24: 70.87248993 | CA24: 70.62460019 | CB24: 70.16232738 | CC24: 69.80324938 | CD24: 69.95298006 | CE24: 69.80324938 | CF24: 69.95298006 | DA24: Metal products | DB24: 17.47998859 | DC24: 115.7400355 | DD24: 349.2251295 | DE24: 60.84421131 | DF24: 202.7763205 | DG24: 256.9208581 | DH24: 201.4230245 | DI24: 127.4099347 | DJ24: 24.08563396 | DO24: Wood and cork | DP24: Females | DQ24: 0.002789231401 | DR24: 0.0517062314 | DS24: -0.048917 | DW24: 35.15879142 | DX24: 20.77198112 | DZ24: 17.88830149 | EA24: 35.30435213
BA25: females | BB25: 25.06219453 | BC25: 27.01681384 | BD25: 27.20143499 | BE25: 28.53659112 | BF25: 28.75894545 | BG25: 31.67480729 | BH25: 22.48118973 | BI25: 14.42042623 | BJ25: 17.42224964 | BK25: 17.56976219 | BL25: 19.91240425 | BM25: 17.3538013 | BN25: 20.38193131 | BO25: 23.70089045 | BP25: 22.50179903 | BQ25: 22.30677773 | BR25: 20.64412532 | BS25: 28.0586 | BT25: 27.83897351 | BU25: 27.70088984 | BV25: 28.22600114 | BW25: 28.59926835 | BX25: 28.80679822 | BY25: 29.16262561 | BZ25: 29.12751007 | CA25: 29.37589957 | CB25: 29.83767262 | CC25: 30.19625948 | CD25: 30.04701994 | CE25: 30.19625948 | CF25: 30.04701994 | CK25: Base year level | DA25: Computer, etc | DB25: 18.04701396 | DC25: 130.8576142 | DD25: 379.8368543 | DE25: 68.06496171 | DF25: 226.4065317 | DG25: 276.6213331 | DH25: 213.4687318 | DI25: 116.1359472 | DJ25: 15.02227341 | DP25: Males | DQ25: 0.4775647962 | DR25: 0.3755917962 | DS25: 0.101973 | DW25: -15.09977571 | DX25: 29.99081043 | DZ25: -39.438946 | EA25: 41.65407433
AZ26: Wood and cork | BA26: males | BB26: 91.07110365 | BC26: 90.71827688 | BD26: 91.3167075 | BE26: 90.14362628 | BF26: 89.1745897 | BG26: 91.63724476 | BH26: 89.27160511 | BI26: 84.65617543 | BJ26: 86.61329435 | BK26: 87.07575998 | BL26: 87.94319251 | BM26: 88.1660772 | BN26: 88.03516889 | BO26: 90.23358668 | BP26: 85.09113815 | BQ26: 84.44682415 | BR26: 85.91235933 | BS26: 84.89361394 | BT26: 87.91658062 | BU26: 87.88731299 | BV26: 87.97711492 | BW26: 88.10201176 | BX26: 88.3515108 | BY26: 88.58925963 | BZ26: 88.83528091 | CA26: 89.62637945 | CB26: 90.53770018 | CC26: 91.29761623 | CD26: 92.02193843 | CE26: 91.29761623 | CF26: 92.02193843 | CK26: 2012 | DA26: Electrical equipment | DB26: 7.466360038 | DC26: 43.34196662 | DD26: 137.3013518 | DE26: 23.7557933 | DF26: 72.99636793 | DG26: 98.10532221 | DH26: 74.94298892 | DI26: 50.4294869 | DJ26: 10.93086471 | DO26: Paper, etc | DP26: Females | DQ26: 0.2657291757 | DR26: 0.1420101757 | DS26: 0.123719 | DW26: 8.321701516 | DX26: 37.62633014 | DZ26: 16.18806061 | EA26: 47.62372213
BA27: females | BB27: 8.928896351 | BC27: 9.281781254 | BD27: 8.683348705 | BE27: 9.856373722 | BF27: 10.8254103 | BG27: 8.362755236 | BH27: 10.72839489 | BI27: 15.34382457 | BJ27: 13.38670565 | BK27: 12.92424002 | BL27: 12.05680749 | BM27: 11.8339228 | BN27: 11.96483111 | BO27: 9.766413323 | BP27: 14.90886185 | BQ27: 15.55322606 | BR27: 14.08764067 | BS27: 15.10638606 | BT27: 12.08341938 | BU27: 12.11268701 | BV27: 12.02288508 | BW27: 11.89798824 | BX27: 11.64841325 | BY27: 11.41066476 | BZ27: 11.16471909 | CA27: 10.37362055 | CB27: 9.462299815 | CC27: 8.702383771 | CD27: 7.978134722 | CE27: 8.702383771 | CF27: 7.978134722 | CK27: 1878259.585 | DA27: Machinery n.e.c. | DB27: 35.24169627 | DC27: 184.5277582 | DD27: 480.2709146 | DE27: 105.7295456 | DF27: 213.4933708 | DG27: 313.6557217 | DH27: 257.7036883 | DI27: 161.7461457 | DJ27: 30.02003467 | DP27: Males | DQ27: 0.6006276851 | DR27: 0.7099516851 | DS27: -0.109324 | DW27: -6.777363694 | DX27: 28.99591485 | DZ27: 10.01913932 | EA27: 41.74011747
AZ28: Paper, etc | BA28: males | BB28: 79.23332889 | BC28: 79.18351631 | BD28: 79.16357589 | BE28: 78.27293531 | BF28: 80.28865072 | BG28: 82.43969381 | BH28: 79.12410686 | BI28: 82.220129 | BJ28: 82.44319276 | BK28: 82.4353806 | BL28: 85.13151544 | BM28: 81.21587148 | BN28: 81.88822813 | BO28: 82.55702099 | BP28: 82.25123291 | BQ28: 82.3055324 | BR28: 83.13094722 | BS28: 85.63370267 | BT28: 84.76230355 | BU28: 84.29592981 | BV28: 83.80485462 | BW28: 83.48685527 | BX28: 82.92229854 | BY28: 82.35830226 | BZ28: 81.90439063 | CA28: 81.1789429 | CB28: 80.49239529 | CC28: 79.94116489 | CD28: 79.2240256 | CE28: 79.94116489 | CF28: 79.2240256 | CK28: 7417568.277 | DA28: Motor vehicles, etc | DB28: 40.01135532 | DC28: 230.9781397 | DD28: 799.0331683 | DE28: 124.7260342 | DF28: 462.3888421 | DG28: 600.9106317 | DH28: 457.2317044 | DI28: 352.0247848 | DJ28: 91.47024997 | DO28: Printing and recording | DP28: Females | DQ28: 0.03195356574 | DR28: 0.2380195657 | DS28: -0.206066 | DW28: 20.50411155 | DX28: 29.20383484 | DZ28: -13.07615903 | EA28: 43.44601236
BA29: females | BB29: 20.76667111 | BC29: 20.81648369 | BD29: 20.83642411 | BE29: 21.72706469 | BF29: 19.71134928 | BG29: 17.56030619 | BH29: 20.87589314 | BI29: 17.779871 | BJ29: 17.55680724 | BK29: 17.56459789 | BL29: 14.86848456 | BM29: 18.78412852 | BN29: 18.11177187 | BO29: 17.44297901 | BP29: 17.74876709 | BQ29: 17.6944676 | BR29: 16.86905278 | BS29: 14.36629733 | BT29: 15.23769645 | BU29: 15.70407019 | BV29: 16.19514538 | BW29: 16.51314473 | BX29: 17.07770146 | BY29: 17.64169774 | BZ29: 18.09564756 | CA29: 18.82109523 | CB29: 19.50756687 | CC29: 20.05879748 | CD29: 20.7759744 | CE29: 20.05879748 | CF29: 20.7759744 | CK29: 5973784.73 | DA29: Other transport equipment | DB29: 23.5706652 | DC29: 248.4729725 | DD29: 533.1368378 | DE29: 106.2856809 | DF29: 258.8583139 | DG29: 303.6857434 | DH29: 67.83935444 | DI29: 131.1138502 | DJ29: 7.330989096 | DP29: Males | DQ29: 1.581332091 | DR29: 2.165892091 | DS29: -0.58456 | DV29: All occs | DW29: 7.258293363 | DX29: 31.36931632 | DZ29: 5.098813149 | EA29: 42.69230701 | EB29: not currently used
AZ30: Printing and recording | BA30: males | BB30: 79.77661842 | BC30: 79.39545746 | BD30: 79.26921218 | BE30: 79.48829474 | BF30: 77.44120533 | BG30: 77.29300613 | BH30: 77.20456864 | BI30: 82.48901675 | BJ30: 83.03804708 | BK30: 81.9273841 | BL30: 82.00811132 | BM30: 77.72330604 | BN30: 81.92966863 | BO30: 80.59804217 | BP30: 85.96603519 | BQ30: 83.2738496 | BR30: 83.79647929 | BS30: 87.18859378 | BT30: 90.25143365 | BU30: 90.23295054 | BV30: 90.27650736 | BW30: 90.30641863 | BX30: 90.55264102 | BY30: 90.88024523 | BZ30: 91.22173781 | CA30: 91.49991472 | CB30: 91.84532402 | CC30: 92.02861915 | CD30: 92.20115974 | CE30: 92.02861915 | CF30: 92.20115974 | CK30: 6685148.396 | DA30: Furniture | DB30: 9.415806982 | DC30: 128.3233491 | DD30: 287.8189012 | DE30: 8.716839396 | DF30: 73.73317447 | DG30: 0 | DH30: 85.86978921 | DI30: 85.17971844 | DJ30: 36.96969915 | DO30: Coke and petroleum | DP30: Females | DQ30: 0.1199802127 | DR30: 0.05527221266 | DS30: 0.064708
BA31: females | BB31: 20.22339281 | BC31: 20.60454254 | BD31: 20.73078782 | BE31: 20.51170526 | BF31: 22.55880606 | BG31: 22.70699387 | BH31: 22.79544236 | BI31: 17.51098325 | BJ31: 16.96194256 | BK31: 18.0726159 | BL31: 17.99188868 | BM31: 22.27670763 | BN31: 18.07033137 | BO31: 19.40195783 | BP31: 14.03396481 | BQ31: 16.7261504 | BR31: 16.20352071 | BS31: 12.81140622 | BT31: 9.748578851 | BU31: 9.767049465 | BV31: 9.723492643 | BW31: 9.693581368 | BX31: 9.447358978 | BY31: 9.119754768 | BZ31: 8.778262192 | CA31: 8.500085282 | CB31: 8.154690257 | CC31: 7.971380848 | CD31: 7.798840258 | CE31: 7.971380848 | CF31: 7.798840258 | CK31: 5357778.981 | DA31: Other manufacturing | DB31: 1.302349469 | DC31: 37.90814065 | DD31: 90.69141875 | DE31: 3.051905309 | DF31: 24.0323502 | DG31: 0 | DH31: 32.15639126 | DI31: 39.5945616 | DJ31: 14.57050822 | DP31: Males | DQ31: 0.8042362388 | DR31: 0.6559492388 | DS31: 0.148287 | DW31: These are 'all industry values & will need updating
AZ32: Coke and petroleum | BA32: males | BB32: 97.79168245 | BC32: 96.97343847 | BD32: 97.26790362 | BE32: 98.02962212 | BF32: 97.17971511 | BG32: 96.69308793 | BH32: 96.93130196 | BI32: 96.22000006 | BJ32: 96.59621149 | BK32: 94.93828361 | BL32: 96.60283648 | BM32: 93.10929595 | BN32: 93.12989856 | BO32: 91.30254545 | BP32: 91.22398332 | BQ32: 91.18452774 | BR32: 94.48779485 | BS32: 88.83364453 | BT32: 92.54086649 | BU32: 92.81173373 | BV32: 92.37707649 | BW32: 91.99572256 | BX32: 91.70811649 | BY32: 91.47459526 | BZ32: 91.24691062 | CA32: 91.02088478 | CB32: 90.79245631 | CC32: 90.57483742 | CD32: 90.34317926 | CE32: 90.57483742 | CF32: 90.34317926 | CK32: 3124402.429 | DA32: Repair and installation | DB32: 12.15163775 | DC32: 217.5287749 | DD32: 510.6617014 | DE32: 16.35924425 | DF32: 133.4286224 | DG32: 0 | DH32: 175.6396924 | DI32: 199.6875293 | DJ32: 77.64677177 | DO32: Chemicals, etc | DP32: Females | DQ32: 1.314281066 | DR32: 0.8442460664 | DS32: 0.470035 | DW32: ? Use values for every industry separately when available?
BA33: females | BB33: 2.208317546 | BC33: 3.026561529 | BD33: 2.732096377 | BE33: 1.970377882 | BF33: 2.82028489 | BG33: 3.306912073 | BH33: 3.068698044 | BI33: 3.779999944 | BJ33: 3.403852138 | BK33: 5.061716386 | BL33: 3.397163515 | BM33: 6.89076249 | BN33: 6.870101442 | BO33: 8.697516427 | BP33: 8.776077826 | BQ33: 8.815472257 | BR33: 5.512205154 | BS33: 11.16635547 | BT33: 7.459133509 | BU33: 7.188266268 | BV33: 7.622923512 | BW33: 8.004277443 | BX33: 8.29192779 | BY33: 8.525404737 | BZ33: 8.753089377 | CA33: 8.979115221 | CB33: 9.207543688 | CC33: 9.425162584 | CD33: 9.656820743 | CE33: 9.425162584 | CF33: 9.656820743 | DA33: Emp x qualification for occupation 2 for every industry | DB33: 31.08306467 | DC33: 1043.13476 | DD33: 2176.365122 | DE33: 642.1152624 | DF33: 1584.420085 | DG33: 2850.161643 | DH33: 1948.94589 | DI33: 1151.526205 | DJ33: 266.8642022 | DP33: Males | DQ33: 5.1269086 | DR33: 4.9326086 | DS33: 0.1943
AZ34: Chemicals, etc | BA34: males | BB34: 83.0002874 | BC34: 82.71702297 | BD34: 81.53978284 | BE34: 81.14184806 | BF34: 79.63691506 | BG34: 79.31562505 | BH34: 78.56694039 | BI34: 81.2249352 | BJ34: 81.63618654 | BK34: 81.40103822 | BL34: 79.59904365 | BM34: 75.92699405 | BN34: 73.70370923 | BO34: 78.31290524 | BP34: 77.2674484 | BQ34: 79.54774559 | BR34: 84.02929147 | BS34: 81.05821586 | BT34: 86.13262786 | BU34: 85.94097837 | BV34: 85.68568003 | BW34: 85.43406336 | BX34: 85.19294771 | BY34: 84.91660505 | BZ34: 84.65771844 | CA34: 84.4021196 | CB34: 84.14426618 | CC34: 83.90135612 | CD34: 83.65508054 | CE34: 83.90135612 | CF34: 83.65508054 | DA34: Water | DB34: 9.537501202 | DC34: 242.7169635 | DD34: 525.5813914 | DE34: 162.9843398 | DF34: 438.6602351 | DG34: 842.8250479 | DH34: 552.1162694 | DI34: 296.0500871 | DJ34: 75.69530863 | DO34: Pharmaceuticals | DP34: Females | DQ34: 1.89888173 | DR34: 1.09916973 | DS34: 0.799712
BA35: females | BB35: 16.9997126 | BC35: 17.28297703 | BD35: 18.46021716 | BE35: 18.85815194 | BF35: 20.36308494 | BG35: 20.68437495 | BH35: 21.43305961 | BI35: 18.7750648 | BJ35: 18.36380876 | BK35: 18.59896178 | BL35: 20.40095635 | BM35: 24.07300595 | BN35: 26.29629077 | BO35: 21.68709476 | BP35: 22.7325516 | BQ35: 20.45225441 | BR35: 15.97070287 | BS35: 18.94178414 | BT35: 13.86737214 | BU35: 14.05901596 | BV35: 14.31431997 | BW35: 14.56593664 | BX35: 14.80705229 | BY35: 15.08339495 | BZ35: 15.34228701 | CA35: 15.59788585 | CB35: 15.85572838 | CC35: 16.09864388 | CD35: 16.34491946 | CE35: 16.09864388 | CF35: 16.34491946 | DA35: Sewerage | DB35: 40.56964457 | DC35: 1087.950714 | DD35: 2496.28326 | DE35: 756.7699893 | DF35: 1948.822661 | DG35: 3716.009355 | DH35: 2505.306618 | DI35: 1396.931389 | DJ35: 364.9875999 | DP35: Males | DQ35: 2.586995005 | DR35: 1.712957005 | DS35: 0.874038
AZ36: Pharmaceuticals | BA36: males | BB36: 71.29686134 | BC36: 69.89845306 | BD36: 70.34344522 | BE36: 69.97300954 | BF36: 72.77213586 | BG36: 71.89454039 | BH36: 69.72005563 | BI36: 74.9653717 | BJ36: 74.61826059 | BK36: 75.05461739 | BL36: 73.3086686 | BM36: 66.14852619 | BN36: 70.07569776 | BO36: 71.81083466 | BP36: 72.09818912 | BQ36: 61.91872776 | BR36: 57.19265962 | BS36: 57.93801696 | BT36: 61.16475195 | BU36: 61.18409698 | BV36: 61.06611211 | BW36: 60.77936683 | BX36: 60.60670128 | BY36: 60.44860309 | BZ36: 60.27858068 | CA36: 60.10999386 | CB36: 59.92971867 | CC36: 59.76161111 | CD36: 59.60873599 | CE36: 59.76161111 | CF36: 59.60873599 | DA36: Waste management | DB36: 8.731725924 | DC36: 220.6880139 | DD36: 1278.966171 | DE36: 258.224476 | DF36: 469.8898033 | DG36: 1440.559276 | DH36: 1219.454688 | DI36: 1136.771503 | DJ36: 129.2919141 | DO36: Rubber and plastic | DP36: Females | DQ36: 0.613469659 | DR36: 0.385863659 | DS36: 0.227606
BA37: females | BB37: 28.70313866 | BC37: 30.10154694 | BD37: 29.65655478 | BE37: 30.02699046 | BF37: 27.22786414 | BG37: 28.10545961 | BH37: 30.27994437 | BI37: 25.0346212 | BJ37: 25.38174673 | BK37: 24.94538261 | BL37: 26.6913314 | BM37: 33.85147381 | BN37: 29.92430224 | BO37: 28.18916534 | BP37: 27.90180217 | BQ37: 38.08127224 | BR37: 42.80734038 | BS37: 42.06198304 | BT37: 38.83524805 | BU37: 38.81590302 | BV37: 38.93389967 | BW37: 39.2206218 | BX37: 39.39329872 | BY37: 39.55139691 | BZ37: 39.72141932 | CA37: 39.89001651 | CB37: 40.07028133 | CC37: 40.23838889 | CD37: 40.39126401 | CE37: 40.23838889 | CF37: 40.39126401 | DA37: Construction | DB37: 37.87961664 | DC37: 1190.426574 | DD37: 6622.283766 | DE37: 1480.871647 | DF37: 2303.061011 | DG37: 7724.180661 | DH37: 6648.499141 | DI37: 5917.353975 | DJ37: 649.7222043 | DP37: Males | DQ37: 3.416428251 | DR37: 2.951424251 | DS37: 0.465004
AZ38: Rubber and plastic | BA38: males | BB38: 92.09756049 | BC38: 92.17549803 | BD38: 92.07268536 | BE38: 92.2484601 | BF38: 91.97110285 | BG38: 91.99630048 | BH38: 91.40837826 | BI38: 90.80961273 | BJ38: 90.87632899 | BK38: 90.87284072 | BL38: 90.32855426 | BM38: 92.21892465 | BN38: 87.91615722 | BO38: 86.14121396 | BP38: 91.6179086 | BQ38: 89.50009587 | BR38: 87.94412538 | BS38: 88.47826991 | BT38: 88.99081922 | BU38: 88.80979306 | BV38: 88.60775882 | BW38: 88.40663534 | BX38: 88.21634432 | BY38: 88.03122661 | BZ38: 87.87984409 | CA38: 87.72845336 | CB38: 87.55736209 | CC38: 87.39324211 | CD38: 87.23817113 | CE38: 87.39324211 | CF38: 87.23817113 | DA38: Civil engineering | DB38: 48.47462177 | DC38: 1456.733549 | DD38: 7727.421887 | DE38: 1852.547188 | DF38: 2367.41262 | DG38: 8923.159706 | DH38: 8639.689976 | DI38: 7172.601434 | DJ38: 882.9935738 | DO38: Other non-metallic | DP38: Females | DQ38: 0.1997968094 | DR38: 0.1489738094 | DS38: 0.050823
BA39: females | BB39: 7.902439506 | BC39: 7.824489806 | BD39: 7.927314642 | BE39: 7.751539903 | BF39: 8.028897151 | BG39: 8.003690079 | BH39: 8.591621736 | BI39: 9.190387265 | BJ39: 9.123671014 | BK39: 9.127159278 | BL39: 9.671445745 | BM39: 7.781075347 | BN39: 12.08384278 | BO39: 13.85879937 | BP39: 8.382091399 | BQ39: 10.49990413 | BR39: 12.05588846 | BS39: 11.52173009 | BT39: 11.00919114 | BU39: 11.19020694 | BV39: 11.39224118 | BW39: 11.59336466 | BX39: 11.78365568 | BY39: 11.96877339 | BZ39: 12.12014649 | CA39: 12.27154664 | CB39: 12.44263791 | CC39: 12.60675789 | CD39: 12.76183808 | CE39: 12.60675789 | CF39: 12.76183808 | DA39: Specialised construction | DB39: 17.05061047 | DC39: 184.1658604 | DD39: 709.1282125 | DE39: 82.29289246 | DF39: 162.1949989 | DG39: 543.0317824 | DH39: 593.4357229 | DI39: 361.4990597 | DJ39: 79.38998692 | DP39: Males | DQ39: 1.107111428 | DR39: 1.153601428 | DS39: -0.04649
AZ40: Other non-metallic | BA40: males | BB40: 91.01153397 | BC40: 91.12681738 | BD40: 91.23928048 | BE40: 90.06821754 | BF40: 90.35903188 | BG40: 90.22152789 | BH40: 90.09966215 | BI40: 88.26935706 | BJ40: 88.33178981 | BK40: 88.08234743 | BL40: 87.40491702 | BM40: 91.61114228 | BN40: 89.06325752 | BO40: 90.28542538 | BP40: 91.80092179 | BQ40: 90.64046892 | BR40: 91.8506358 | BS40: 87.52298128 | BT40: 89.1078328 | BU40: 88.91972006 | BV40: 88.77463616 | BW40: 88.58077426 | BX40: 88.42766587 | BY40: 88.30116611 | BZ40: 88.18207108 | CA40: 88.05604259 | CB40: 87.90189293 | CC40: 87.70999201 | CD40: 87.5185681 | CE40: 87.70999201 | CF40: 87.5185681 | DA40: Motor vehicle trade | DB40: 2.612189143 | DC40: 34.22268936 | DD40: 110.8725677 | DE40: 13.52479905 | DF40: 25.09680687 | DG40: 73.14248438 | DH40: 77.50988317 | DI40: 59.60425536 | DJ40: 12.28204679 | DO40: Basic metals | DP40: Females | DQ40: 0.2483221171 | DR40: 0.1025581171 | DS40: 0.145764
BA41: females | BB41: 8.98846603 | BC41: 8.873182618 | BD41: 8.760699619 | BE41: 9.931762773 | BF41: 9.64096812 | BG41: 9.778472107 | BH41: 9.900317698 | BI41: 11.73064294 | BJ41: 11.66821019 | BK41: 11.91765257 | BL41: 12.59505903 | BM41: 8.388857721 | BN41: 10.93674248 | BO41: 9.714574622 | BP41: 8.199078205 | BQ41: 9.359531085 | BR41: 8.149364202 | BS41: 12.47701872 | BT41: 10.8921672 | BU41: 11.08027994 | BV41: 11.22536384 | BW41: 11.41922574 | BX41: 11.57233413 | BY41: 11.69883389 | BZ41: 11.81792892 | CA41: 11.94395741 | CB41: 12.09810707 | CC41: 12.29000799 | CD41: 12.48140695 | CE41: 12.29000799 | CF41: 12.48140695 | DA41: Wholesale trade | DB41: 4.563500745 | DC41: 49.06346544 | DD41: 179.3117026 | DE41: 19.62272667 | DF41: 40.21552897 | DG41: 125.9073749 | DH41: 135.1996669 | DI41: 101.1457094 | DJ41: 14.06569342 | DP41: Males | DQ41: 2.04337577 | DR41: 1.69038277 | DS41: 0.352993
AZ42: Basic metals | BA42: males | BB42: 97.59900694 | BC42: 97.56289482 | BD42: 97.51988156 | BE42: 97.44104512 | BF42: 97.61497367 | BG42: 96.91860499 | BH42: 95.17120963 | BI42: 92.7255645 | BJ42: 92.65459744 | BK42: 92.92656182 | BL42: 93.34256179 | BM42: 92.68881353 | BN42: 93.4827524 | BO42: 93.66983575 | BP42: 94.83693994 | BQ42: 94.61218131 | BR42: 95.29364089 | BS42: 94.75817058 | BT42: 94.96622042 | BU42: 94.70294638 | BV42: 94.49518555 | BW42: 94.31174823 | BX42: 94.08099326 | BY42: 93.87657006 | BZ42: 93.60086645 | CA42: 93.34271414 | CB42: 93.05974988 | CC42: 92.79717075 | CD42: 92.55864536 | CE42: 92.79717075 | CF42: 92.55864536 | DA42: Retail trade | DB42: 39.23647217 | DC42: 422.9161043 | DD42: 1639.55132 | DE42: 166.2824027 | DF42: 338.1650424 | DG42: 1315.674771 | DH42: 1384.667151 | DI42: 883.0038566 | DJ42: 163.7970317 | DO42: Metal products | DP42: Females | DQ42: 1.595320451 | DR42: 0.5237374513 | DS42: 1.071583
BA43: females | BB43: 2.400993061 | BC43: 2.43710518 | BD43: 2.480118438 | BE43: 2.55895488 | BF43: 2.385026332 | BG43: 3.081395007 | BH43: 4.828790368 | BI43: 7.274435495 | BJ43: 7.345402562 | BK43: 7.073454423 | BL43: 6.65743821 | BM43: 7.311186469 | BN43: 6.517247603 | BO43: 6.330164246 | BP43: 5.163060055 | BQ43: 5.387803657 | BR43: 4.706373952 | BS43: 5.241842832 | BT43: 5.033779583 | BU43: 5.29705362 | BV43: 5.504814449 | BW43: 5.688234454 | BX43: 5.919006735 | BY43: 6.123429942 | BZ43: 6.399133553 | CA43: 6.65728586 | CB43: 6.940250118 | CC43: 7.202845533 | CD43: 7.441354638 | CE43: 7.202845533 | CF43: 7.441354638 | DA43: Land transport, etc | DB43: 17.9303616 | DC43: 183.3469435 | DD43: 712.2986971 | DE43: 110.6728042 | DF43: 216.6267262 | DG43: 436.1185855 | DH43: 481.7812233 | DI43: 343.3598154 | DJ43: 72.43118751 | DP43: Males | DQ43: 9.938867147 | DR43: 7.636038147 | DS43: 2.302829
AZ44: Metal products | BA44: males | BB44: 97.18270611 | BC44: 97.13731709 | BD44: 97.15949817 | BE44: 97.12015438 | BF44: 97.172075 | BG44: 96.82854465 | BH44: 96.66253326 | BI44: 94.80852404 | BJ44: 95.0446837 | BK44: 94.842795 | BL44: 95.0287247 | BM44: 93.50034793 | BN44: 94.75436718 | BO44: 94.8241355 | BP44: 94.61023767 | BQ44: 94.52650738 | BR44: 95.36452645 | BS44: 95.06158853 | BT44: 94.58974792 | BU44: 94.20681874 | BV44: 93.79588293 | BW44: 93.38164619 | BX44: 92.96346458 | BY44: 92.53695048 | BZ44: 92.20222015 | CA44: 91.8517154 | CB44: 91.48667221 | CC44: 91.11006199 | CD44: 90.73858903 | CE44: 91.11006199 | CF44: 90.73858903 | DA44: Water transport | DB44: 0.4679831561 | DC44: 96.93616296 | DD44: 276.4256563 | DE44: 25.37156809 | DF44: 74.97168963 | DG44: 159.0691509 | DH44: 237.6748436 | DI44: 147.6650364 | DJ44: 12.56214331 | DO44: Computer, etc | DP44: Females | DQ44: 0.5425573003 | DR44: 0.7121873003 | DS44: -0.16963
BA45: females | BB45: 2.817293891 | BC45: 2.862679834 | BD45: 2.840501831 | BE45: 2.879842726 | BF45: 2.827927759 | BG45: 3.171458101 | BH45: 3.337466744 | BI45: 5.191475961 | BJ45: 4.955316298 | BK45: 5.157205004 | BL45: 4.971275295 | BM45: 6.499652065 | BN45: 5.245632819 | BO45: 5.175864502 | BP45: 5.389758957 | BQ45: 5.473492622 | BR45: 4.635473545 | BS45: 4.938411472 | BT45: 5.410252082 | BU45: 5.79317711 | BV45: 6.20411707 | BW45: 6.618353809 | BX45: 7.036535421 | BY45: 7.463049518 | BZ45: 7.797779846 | CA45: 8.148284604 | CB45: 8.513327789 | CC45: 8.889938011 | CD45: 9.261410967 | CE45: 8.889938011 | CF45: 9.261410967 | DA45: Air transport | DB45: 1.880503054 | DC45: 317.9884709 | DD45: 879.6986291 | DE45: 76.49720107 | DF45: 231.0290579 | DG45: 599.7611467 | DH45: 770.2735891 | DI45: 462.7302269 | DJ45: 45.53798964 | DP45: Males | DQ45: 3.845392381 | DR45: 6.860691381 | DS45: -3.015299
AZ46: Computer, etc | BA46: males | BB46: 85.23500893 | BC46: 85.32300482 | BD46: 85.86349454 | BE46: 86.93813333 | BF46: 86.68053913 | BG46: 87.69102402 | BH46: 87.60383023 | BI46: 88.99985916 | BJ46: 88.34412506 | BK46: 88.99137277 | BL46: 88.95125385 | BM46: 89.50272451 | BN46: 89.87160078 | BO46: 90.36367744 | BP46: 91.22440225 | BQ46: 91.17334239 | BR46: 91.24210429 | BS46: 92.22681446 | BT46: 90.88902399 | BU46: 90.90373493 | BV46: 90.83248537 | BW46: 90.70410801 | BX46: 90.60306912 | BY46: 90.51441296 | BZ46: 90.5071811 | CA46: 90.45808935 | CB46: 90.41516802 | CC46: 90.34825285 | CD46: 90.2347495 | CE46: 90.34825285 | CF46: 90.2347495 | DA46: Warehousing, etc | DB46: 57.6530971 | DC46: 303.9684077 | DD46: 1093.808204 | DE46: 122.7759135 | DF46: 182.6407448 | DG46: 598.4263719 | DH46: 523.5460288 | DI46: 328.0642793 | DJ46: 30.21782962 | DO46: Electrical equipment | DP46: Females | DQ46: 0.3891343367 | DR46: 0.3039083367 | DS46: 0.085226
BA47: females | BB47: 14.76499107 | BC47: 14.67699518 | BD47: 14.13650546 | BE47: 13.06186667 | BF47: 13.31945807 | BG47: 12.30897598 | BH47: 12.39617237 | BI47: 11.00014084 | BJ47: 11.65587224 | BK47: 11.00862723 | BL47: 11.04874615 | BM47: 10.49727549 | BN47: 10.12839922 | BO47: 9.636322565 | BP47: 8.775597753 | BQ47: 8.826657609 | BR47: 8.757895706 | BS47: 7.773185538 | BT47: 9.110971976 | BU47: 9.096265072 | BV47: 9.167514633 | BW47: 9.295891988 | BX47: 9.396930877 | BY47: 9.485587038 | BZ47: 9.492818896 | CA47: 9.541910655 | CB47: 9.58483198 | CC47: 9.651747153 | CD47: 9.765250495 | CE47: 9.651747153 | CF47: 9.765250495 | DA47: Postal and courier | DB47: 7.98858865 | DC47: 53.20125565 | DD47: 200.6667431 | DE47: 30.51000536 | DF47: 27.91903362 | DG47: 130.8145555 | DH47: 112.0179381 | DI47: 68.00835296 | DJ47: 8.787818489 | DP47: Males | DQ47: 2.736920781 | DR47: 2.561165781 | DS47: 0.175755
AZ48: Electrical equipment | BA48: males | BB48: 89.26086682 | BC48: 89.31543936 | BD48: 89.09908048 | BE48: 89.40607691 | BF48: 89.618122 | BG48: 89.7812378 | BH48: 88.5322562 | BI48: 90.45013567 | BJ48: 90.05703483 | BK48: 89.688769 | BL48: 90.8282604 | BM48: 91.9904417 | BN48: 91.42189192 | BO48: 91.8451909 | BP48: 92.31558732 | BQ48: 91.29167734 | BR48: 90.19586836 | BS48: 89.89046548 | BT48: 89.86561325 | BU48: 89.75137802 | BV48: 89.62314422 | BW48: 89.51869731 | BX48: 89.38269269 | BY48: 89.29866732 | BZ48: 89.24265735 | CA48: 89.18249644 | CB48: 89.05229599 | CC48: 89.01783098 | CD48: 88.98629666 | CE48: 89.01783098 | CF48: 88.98629666 | DA48: Accommodation | DB48: 1.498762638 | DC48: 13.56401059 | DD48: 46.88668362 | DE48: 3.268363558 | DF48: 8.691558225 | DG48: 23.83562467 | DH48: 22.59689376 | DI48: 14.86384329 | DJ48: 0.5196494257 | DO48: Machinery n.e.c. | DP48: Females | DQ48: 0.5924153807 | DR48: 0.3649153807 | DS48: 0.2275
BA49: females | BB49: 10.73913318 | BC49: 10.68457081 | BD49: 10.90091952 | BE49: 10.59392309 | BF49: 10.381878 | BG49: 10.2187622 | BH49: 11.46773642 | BI49: 9.549856771 | BJ49: 9.942957803 | BK49: 10.311231 | BL49: 9.171739596 | BM49: 8.009558302 | BN49: 8.578108077 | BO49: 8.154801193 | BP49: 7.684412679 | BQ49: 8.708322658 | BR49: 9.804121617 | BS49: 10.10952346 | BT49: 10.13438675 | BU49: 10.24862198 | BV49: 10.37685578 | BW49: 10.48131392 | BX49: 10.61730731 | BY49: 10.70132155 | BZ49: 10.75734265 | CA49: 10.81749247 | CB49: 10.94770401 | CC49: 10.98216902 | CD49: 11.01371429 | CE49: 10.98216902 | CF49: 11.01371429 | DA49: Food and beverage services | DB49: 38.04764934 | DC49: 801.1516902 | DD49: 2783.131501 | DE49: 290.3810213 | DF49: 657.9210479 | DG49: 947.2901522 | DH49: 894.0275965 | DI49: 500.8635702 | DJ49: 25.40144022 | DP49: Males | DQ49: 5.532028222 | DR49: 6.687445222 | DS49: -1.155417
AZ50: Machinery n.e.c. | BA50: males | BB50: 96.042232 | BC50: 95.78032299 | BD50: 95.72828838 | BE50: 95.92454079 | BF50: 95.85001555 | BG50: 95.95321857 | BH50: 95.17347998 | BI50: 93.78552852 | BJ50: 93.97544996 | BK50: 94.10786394 | BL50: 94.22347202 | BM50: 94.5291517 | BN50: 95.18360985 | BO50: 95.08196812 | BP50: 95.538073 | BQ50: 94.22303418 | BR50: 94.48363794 | BS50: 95.54409527 | BT50: 95.33982696 | BU50: 95.17247426 | BV50: 94.99896885 | BW50: 94.8175742 | BX50: 94.64517408 | BY50: 94.44925466 | BZ50: 94.24359234 | CA50: 94.07946422 | CB50: 93.95172081 | CC50: 93.82258627 | CD50: 93.69791011 | CE50: 93.82258627 | CF50: 93.69791011 | DA50: Publishing activities | DB50: 161.2072864 | DC50: 2846.85945 | DD50: 9249.408493 | DE50: 1269.054504 | DF50: 2445.544142 | DG50: 3522.279744 | DH50: 3173.56608 | DI50: 1770.693841 | DJ50: 100.360274 | DO50: Motor vehicles, etc | DP50: Females | DQ50: 0.4374122465 | DR50: 0.2184772465 | DS50: 0.218935
BA51: females | BB51: 3.957764595 | BC51: 4.219677005 | BD51: 4.271711617 | BE51: 4.07545921 | BF51: 4.149984451 | BG51: 4.046778185 | BH51: 4.826520022 | BI51: 6.214471478 | BJ51: 6.024550044 | BK51: 5.892136057 | BL51: 5.77652457 | BM51: 5.470848297 | BN51: 4.816390148 | BO51: 4.918031881 | BP51: 4.4619304 | BQ51: 5.776965825 | BR51: 5.51636592 | BS51: 4.455904734 | BT51: 4.660173045 | BU51: 4.827525745 | BV51: 5.001031148 | BW51: 5.182425802 | BX51: 5.354825923 | BY51: 5.550745337 | BZ51: 5.756407659 | CA51: 5.920535782 | CB51: 6.048279188 | CC51: 6.177413726 | CD51: 6.302094642 | CE51: 6.177413726 | CF51: 6.302094642 | DA51: Film and music | DB51: 17.00023618 | DC51: 285.0516933 | DD51: 889.8882551 | DE51: 124.9053897 | DF51: 240.4150837 | DG51: 362.5011037 | DH51: 332.1056213 | DI51: 192.5522951 | DJ51: 11.36637346 | DP51: Males | DQ51: 5.556458875 | DR51: 4.891636875 | DS51: 0.664822
